Workbook

Sheet Склаская
B1: EVOLUTION (складская программа) | F1: 2025-05-23 | G1: Оптовая скидка на коллекцию Evolution | H1: 25
G2: Оптовая скидка на аксессуары AKS | H2: 15
B3: Складская программа Столешницы столов, топы тумб, корпуса и полки шкафов: Дуб Честерфилд. Фасады тумб и шкафов, корпуса тумб: Дуб Честерфилд, Белый Фронтали столов, экраны из ЛДСП, корпуса тумб: Антрацит, Белый. Складские шкафы и тумбы с белыми элементами размещены в коллекции EcoStyle. Столы на металлических П, А, О-образных опорах сечением 60х30 мм в цв. Антрацит. Заглушки кабель-каналов столов и бенчей, ручки - Антрацит.
B6: Артикул | C6: Наименование | D6: Размеры Ш*Г*В (мм) | E6: Изображение | F6: Розничная Цена, руб.
A7: EVL155 | B7: EVL155/U003/ANT/ANT.U003 | C7: Стол письменный на ДСП опорах шириной 700 мм | D7: 1200*700*750 | F7: 9254.125
A8: EVL156 | B8: EVL156/U003/ANT/ANT.U003 | D8: 1400*700*750 | F8: 9895.025
A9: EVL157 | B9: EVL157/U003/ANT/ANT.U003 | D9: 1600*700*750 | F9: 10535.75
A10: EVL167SX | B10: EVL167SX/U003/ANT/ANT.U003 | C10: Стол криволинейный левый/правый на ДСП опорах, глубиной 700/900 мм | D10: 1200*900*750 | E10: правый | F10: 10479.7
A11: EVL167DX | B11: EVL167DX/U003/ANT/ANT.U003 | D11: 1200*900*750 | F11: 10479.7
A12: EVL168SX | B12: EVL168SX/U003/ANT/ANT.U003 | D12: 1400*900*750 | F12: 10803.1
A13: EVL168DX | B13: EVL168DX/U003/ANT/ANT.U003 | D13: 1400*900*750 | F13: 10803.1
A14: EVL101/П/60*30/ | B14: EVL101/П/60*30/ANT/ANT.U003 | C14: Стол письменный на П-образном м/к 60х30, глубиной 700 мм, столешница в цв. Дуб Честерфилд, опоры Антрацит, заглушка кабель-канала Антрацит | D14: 1200*700*750 | F14: 18989
A15: EVL102/П/60*30/ | B15: EVL102/П/60*30/ANT/ANT.U003 | D15: 1400*700*750 | F15: 19543
A16: EVL103/П/60*30/ | B16: EVL103/П/60*30/ANT/ANT.U003 | D16: 1600*700*750 | F16: 20404
A17: EVL101/А/60*30/ | B17: EVL101/А/60*30/ANT/ANT.U003 | C17: Стол письменный на А-образном м/к 60х30, глубиной 700 мм, столешница в цв. Дуб Честерфилд, опоры Антрацит, заглушка кабель-канала Антрацит | D17: 1200*700*750 | F17: 19102.6
A18: EVL102/А/60*30/ | B18: EVL102/А/60*30/ANT/ANT.U003 | D18: 1400*700*750 | F18: 19831.9
A19: EVL103/А/60*30/ | B19: EVL103/А/60*30/ANT/ANT.U003 | D19: 1600*700*750 | F19: 20688.8
A20: EVL101/О/60*30/ | B20: EVL101/О/60*30/ANT/ANT.U003 | C20: Стол письменный на О-образном м/к 60х30, глубиной 700 мм, столешница в цв. Дуб Честерфилд, опоры Антрацит, заглушка кабель-канала Антрацит | D20: 1200*700*750 | F20: 20364
A21: EVL102/О/60*30/ | B21: EVL102/О/60*30/ANT/ANT.U003 | D21: 1400*700*750 | F21: 20916
A22: EVL103/О/60*30/ | B22: EVL103/О/60*30/ANT/ANT.U003 | D22: 1600*700*750 | F22: 21777
A23: EVL106SX/П/60*30/ | B23: EVL106SX/П/60*30/ANT/ANT.U003 | C23: Стол криволинейный левый/правый на П образном м/к 60х30, глубиной 700/900 мм | D23: 1400*900*750 | E23: правый | F23: 18832
A24: EVL106DX/П/60*30/ | B24: EVL106DX/П/60*30/ANT/ANT.U003 | D24: 1400*900*750 | F24: 18832
A25: EVL106SX/А/60*30/ | B25: EVL106SX/А/60*30/ANT/ANT.U003 | C25: Стол криволинейный левый/правый на А-образном м/к 60х30, глубиной 700/900 мм | D25: 1400*900*750 | E25: правый | F25: 20212.5
A26: EVL106DX/А/60*30/ | B26: EVL106DX/А/60*30/ANT/ANT.U004 | D26: 1400*900*750 | F26: 20212.5
A27: EVL106SX/О/60*30/ | B27: EVL106SX/О/60*30/WHT/ANT.U003 | C27: Стол криволинейный левый/правый на О образном м/к 60х30, глубиной 700/900 мм | D27: 1400*900*750 | F27: 21652
A28: EVL106DX/О/60*30/ | B28: EVL106DX/О/60*30/WHT/ANT.U004 | D28: 1400*900*750 | F28: 21652
A29: EVL604/П/60*30/ | B29: EVL604/П/60*30/ANT/ANT.U003 | C29: Рабочая станция на П образном м/к 60х30 глубиной 1436 мм, столешница Дуб Честерфилд, заглушка и опоры Антрацит | D29: 1200*1436*750 | F29: 28582.4
A30: EVL605/П/60*30/ | B30: EVL605/П/60*30/ANT/ANT.U003 | D30: 1400*1436*750 | F30: 34100
A31: EVL606/П/60*30/ | B31: EVL606/П/60*30/ANT/ANT.U003 | D31: 1600*1436*750 | F31: 35852
A32: EVL604/А/60*30/ | B32: EVL604/А/60*30/ANT/ANT.U003 | C32: Рабочая станция на А образном м/к 60х30 глубиной 1436 мм, столешница Дуб Честерфилд, заглушка и опоры Антрацит | D32: 1200*1436*750 | F32: 29642
A33: EVL605/А/60*30/ | B33: EVL605/А/60*30/ANT/ANT.U003 | D33: 1400*1436*750 | F33: 34723
A34: EVL606/А/60*30/ | B34: EVL606/А/60*30/ANT/ANT.U003 | D34: 1600*1436*750 | F34: 36475
A35: EVL604/О/60*30/ | B35: EVL604/О/60*30/ANT/ANT.U003 | C35: Рабочая станция на О образном м/к 60х30 глубиной 1436 мм, столешница Дуб Честерфилд, заглушка и опоры Антрацит | D35: 1200*1436*750 | F35: 34709.4
A36: EVL605/О/60*30/ | B36: EVL605/О/60*30/ANT/ANT.U003 | D36: 1400*1436*750 | F36: 36159.2
A37: EVL606/О/60*30/ | B37: EVL606/О/60*30/ANT/ANT.U003 | D37: 1600*1436*750 | F37: 37582.6
B38: EVL702/П/60*30/ANT/ANT.U003 | C38: Рабочая станция на П образном м/к 60х30 с тумбой EVL301 (композиция стол EVL101-103+тумба) | D38: 1650*700*750 | E38: Тумба 450х700х750 | F38: =F14+$F$68 -> 32824
B39: EVL703/П/60*30/ANT/ANT.U003 | D39: 1850*700*750 | F39: =F15+$F$68 -> 33378
B40: EVL704/П/60*30/ANT/ANT.U003 | D40: 2050*700*750 | F40: 34239
B41: EVL712/П/60*30/ANT/ANT.U003 | C41: Рабочая станция на П образном м/к 60х30 со шкафом-купе EVL433 (композиция двойной бенч+шкаф-купе) | D41: 1610*1436*750 | E41: Шкаф-купе приставной 1440х410х750 | F41: =F29+$F$77 -> 47186.4
B42: EVL713/П/60*30/ANT/ANT.U003 | D42: 1810*1436*750 | F42: =F30+$F$77 -> 52704
B43: EVL714/П/60*30/ANT/ANT.U003 | D43: 2010*1436*750 | F43: 54456
B44: EVL717/П/60*30/ANT/ANT.U003 | C44: Рабочая станция на П образном м/к 60х30 со шкафом-купе EVL430 (композиция двойной бенч+шкаф-купе) | D44: 1610*1436*1098 | E44: Шкаф-купе приставной 1440х410х1098 | F44: =F29+$F$78 -> 51606.4
B45: EVL718/П/60*30/ANT/ANT.U003 | D45: 1810*1436*1098 | F45: =F30+$F$78 -> 57124
B46: EVL719/П/60*30/ANT/ANT.U003 | D46: 2010*1436*1098 | F46: 58876
B47: EVL702/А/60*30/ANT/ANT.U003 | C47: Рабочая станция на А-образном м/к 60х30 с тумбой EVL301 (композиция стол+тумба) | D47: 1650*700*750 | E47: Тумба 450х700х750 | F47: =F17+$F$68 -> 32937.6
B48: EVL703/А/60*30/ANT/ANT.U003 | D48: 1850*700*750 | F48: =F18+$F$68 -> 33666.9
B49: EVL704/А/60*30/ANT/ANT.U003 | D49: 2050*700*750 | F49: 34523.8
B50: EVL712/А/60*30/ANT/ANT.U003 | C50: Рабочая станция на А-образном м/к 60х30 со шкафом-купе EVL433 (композиция двойной бенч+шкаф-купе) | D50: 1610*1436*750 | E50: Шкаф-купе приставной 1440х410х750 | F50: =F32+$F$77 -> 48246
B51: EVL713/А/60*30/ANT/ANT.U003 | D51: 1810*1436*750 | F51: =F33+$F$77 -> 53327
B52: EVL714/А/60*30/ANT/ANT.U003 | D52: 2010*1436*750 | F52: =F34+$F$77 -> 55079
B53: EVL717/А/60*30/ANT/ANT.U003 | C53: Рабочая станция на А-образном м/к 60х30 со шкафом-купе EVL430 (композиция двойной бенч+шкаф-купе) | D53: 1610*1436*1098 | E53: Шкаф-купе приставной 1440х410х1098 | F53: =F32+$F$78 -> 52666
B54: EVL718/А/60*30/ANT/ANT.U003 | D54: 1810*1436*1098 | F54: =F33+$F$78 -> 57747
B55: EVL719/А/60*30/ANT/ANT.U003 | D55: 2010*1436*1098 | F55: 59499
B56: Внимание! Центральная опора бенчей имеет уменьшенный горизонтальный размер и повышенную жесткость. Что обеспечивает удобство размещения сотрудников и устойчивость конструкции.↓
A57: EVL666/П/60*30/ | B57: EVL666/П/60*30/ANT/ANT.U003 | C57: Рабочая станция на 4 раб.места на П образном м/к 60х30 с шириной 1-го рабочего места 700 мм | D57: 2400*1436*750 | F57: 54434.6
A58: EVL666/А/60*30/ | B58: EVL666/A/60*30/ANT/ANT.U003 | C58: Рабочая станция на 4 раб.места на А-образном м/к 60х30 с шириной 1-го рабочего места 700 мм | D58: 2400*1436*750 | F58: 54434.6
A59: EVL666/О/60*30/ | B59: EVL666/О/60*30/ANT/ANT.U003 | C59: Рабочая станция на 4 раб.места на О образном м/к 60х30 | D59: 2400*1436*750 | F59: 54435
A60: EVL675/П/60*30/ | B60: EVL675/П/60*30/ANT/ANT.U003 | C60: Рабочая станция на 6 раб.места на П образном м/к 30х60 с шириной 1-го рабочего места 700 мм | D60: 3600*1436*750 | F60: 91994.1
A61: EVL675/А/60*30/ | B61: EVL675/А/60*30/ANT/ANT.U003 | C61: Рабочая станция на 6 раб.места на А образном м/к 60х30 с шириной 1-го рабочего места 700 мм | D61: 3600*1436*750 | F61: 91994.1
A62: EVL675/О/60*30/ | B62: EVL675/О/60*30/ANT/ANT.U003 | C62: Рабочая станция на 6 раб.места на О образном м/к 60х30 с шириной 1-го рабочего места 700 мм | D62: 3600*1436*750 | F62: 92559.5
A63: EVL180/П/60*30/ | B63: EVL180/П/60*30/ANT.U003 | C63: Приставка к столу рабочая 1000х500 (используется в качестве брифинга или боковой приставки) П-образ. м/к 60х30, столешница в цв. Дуб Честерфилд, опоры Антрацит | D63: 1000x500x750 | F63: 12603.8
A64: EVL180/О/60*30/ | B64: EVL180/О/60*30/ANT.U003 | C64: Приставка к столу рабочая 1000х500 (используется в качестве брифинга или боковой приставки) О-образ. м/к 60х30 | D64: 1000x500x750 | F64: 12603.8
B65: EVL821/П/60х30/ANT/ANT.U003 | C65: Стол для переговоров 2 м. на металлических опорах | D65: 2000x1000x750 | F65: 22788.7
B66: EVL821/А/60х30/ANT/ANT.U003 | D66: 2000x1000x750 | F66: 23106.6
B67: EVL821/О/60х30/ANT/ANT.U003 | D67: 2000x1000x750 | F67: 23655.5
A68: EVL301 | B68: EVL301/ANT/ANT/ANT.U003 | C68: Тумба приставная 450х700. Топ в цв. Дуб Честерфилд, фасады, боковины, задняя стенка, ручки - Антрацит | D68: 450х700х750 | F68: 13835
A69: EVL307 | B69: EVL307/ANT/ANT/ANT.U003 | C69: Тумба мобильная на колёсах 3 ящика EVL307 замок на верхний ящик. Топ в цв. Дуб Честерфилд, фасады, боковины, задняя стенка Антрацит | D69: 450х475х570 | F69: 9627
A70: EVL311 | B70: EVL311/ANT/ANT/ANT.U003 | C70: Тумба сервисная универсальная 880 | D70: 880х475х570 | F70: 13720
B71: EVL312/ANT/ANT/ANT.U003 | C71: Тумба сервисная универсальная 1140 | D71: 1140х475х570 | F71: 16746
B72: EVL308/ANT/ANT/ANT.U003 | C72: Тумба приставная 4 ящика 450х475 замок на верхний ящик (только для криволинейных столов) | D72: 450х475х750 | F72: 13250.6
B73: EVL309/ANT/ANT/ANT.U003 | C73: Тумба приставная 4 ящика 790х475 замок на верхний ящик (для криволинейных столов) | D73: 790х475х750 | F73: 14863.2
A74: EVL290 | B74: EVL293/ANT.ANT | C74: Контейнер подвесной с 1 ящиком Тип - 2 (замок на ящик) Фасады, корпус - Антрацит, ручки Антрацит | D74: 448х478х166 | F74: 4105
B75: EVL294/ANT.ANT | C75: Контейнер подвесной с 2 ящиками Тип - 2 (замок на верхний ящик) Фасады, корпус - Антрацит, ручки Антрацит | D75: 448х478х296 | F75: 6155
B76: EVL903/ANT/ANT/ANT.U003 | C76: Оргтауэр низкий. Топ в цв. Дуб Честерфилд, фасады, боковины, задняя стенка, ручки Антрацит | D76: 390х700х750 | F76: 14024
A77: EVL433/ANT/ANT/ANT.U003 | B77: EVL433/ANT/ANT/ANT.U003 | C77: Шкаф-купе приставной 1440х750 Топ в цв. Дуб Честерфилд, фасады, боковины, задняя стенка Антрацит | D77: 1440х410х750 | F77: 18604
B78: EVL430/ANT/ANT/ANT.U003 | C78: Шкаф-купе приставной 1440х1098 Топ в цв. Дуб Честерфилд, фасады, боковины, задняя стенка Антрацит | D78: 1440х410х1098 | F78: 23024
A79: EVL905 | B79: EVL905/ANT.U003 | C79: Стеллаж настольный Корпус Антрацит, топ Дуб Честерфилд. | D79: 350х1100х1100 | F79: 8957
B80: Блок с ящиками или дверью открывается только с одной стороны, с другой расположен неподвижный "фальш-фасад" с ручкой. Рекомендуем с каждой стороны размещать по одному блоку, открывающемуся в сторону сотрудника.↓
B81: EVL905/ANT.U003+EVL914/ANT.U003+EVL915/ANT.U003 | C81: Стеллаж настольный Корпус Антрацит, топ Дуб Честерфилд.+ Блок ящиков+Блок с дверью для стеллажа настольного Дуб Честерфилд | D81: 350х1100х1100 | F81: 21956
A82: EVL400 | B82: EVL400/ANT.U003 | C82: Стеллаж высокий 800х2050. Корпус и полки Дуб Честерфилд, задняя стенка Антрацит | D82: 800х344х2052 | F82: 12946
A83: EVL401 | B83: EVL401/U003/GRAFIT/ANT.U003 | C83: Шкаф для документов комбинированный 800х2050. Корпус, полки и фасады Дуб Честерфилд, задняя стенка Антрацит, стекло графит | D83: 800х364х2052 | F83: 20443.775
A84: EVL403 | B84: EVL403/U003/ANT.U003 | C84: Шкаф для документов (низ малые фасады, верх открытый) 800х2050. Корпус, полки и фасады Дуб Честерфилд, задняя стенка Антрацит. | D84: 800х364х2052 | F84: 13863.2
A85: EVL404 | B85: EVL404/U003/ANT.U003 | C85: Шкаф для документов 4 двери с нишей 800х2050. Корпус, полки и фасады Дуб Честерфилд, задняя стенка Антрацит. | D85: 800х364х2052 | F85: 18996
A86: EVL406 | B86: EVL406/U003/ANT.U003 | C86: Шкаф для документов ( низ средние фасады, верх открытый) 800х2050. Корпус, полки и фасады Дуб Честерфилд, задняя стенка Антрацит. | D86: 800х364х2052 | F86: 14646.075
A87: EVL407 | B87: EVL407/U003/ANT.U003 | C87: Шкаф для документов с глухими фасадами 800х2050. Корпус, полки и фасады Дуб Честерфилд, задняя стенка Антрацит. | D87: 800х364х2052 | F87: 16616.65
A88: EVL408 | B88: EVL408/U003/ANT.U003 | C88: Шкаф для одежды с замком 800х2050. Корпус, полки и фасады Дуб Честерфилд, задняя стенка Антрацит. | D88: 800х364х2052 | F88: 18121
A89: EVL410 | B89: EVL410/U003/ANT.U003 | C89: Шкаф для одежды с замком глубокий 800х2050. Корпус, полки и фасады Дуб Честерфилд, задняя стенка Антрацит. | D89: 800х600х2052 | F89: 19893.2
A90: EVL413 | B90: EVL413/U003/ANT.U003 | C90: Шкаф для документов узкий (низ средний фасад, верх открытый) 600х2050. Корпус и полки Дуб Честерфилд, задняя стенка Антрацит | D90: 600х364х2052 | F90: 14063
A91: EVL415 | B91: EVL415/ANT.U003 | C91: Стеллаж средний, Корпус и полки Дуб Честерфилд, задняя стенка Антрацит | D91: 800х344х1250 | F91: 8620
A92: EVL417 | B92: EVL417/U003/ANT.U003 | C92: Шкаф для документов средний с глухими фасадами и открытой нишей. Корпус и полки Дуб Честерфилд, задняя стенка Антрацит | D92: 800х364х1250 | F92: 11645
A93: EVL418 | B93: EVL418/U003/ANT.GRAFIT | C93: Шкаф средний со стеклянными фасадами. Корпус и полки Дуб Честерфилд, задняя стенка Антрацит, стекло графит | D93: 800х364х1250 | F93: 14062.25
A94: EVL416 | B94: EVL416/U003/ANT.U003 | C94: Шкаф для документов средний с глухими фасадами, , задняя стенка Антрацит. | D94: 800х364х1250 | F94: 12546
A95: EVL423 | B95: EVL423/U003/ANT.U003 | C95: Шкаф низкий. Корпус и полки Дуб Честерфилд, задняя стенка Антрацит. | D95: 800х364х870 | F95: 9632
A96: EVL436 | B96: EVL436/U003/ANT.U003 | C96: Локер на 25 ячеек (5х5 дверей) с ограничителем и обычным замком. Корпус, фасады и полки Дуб Честерфилд, задняя стенка Антрацит. | D96: 2000х360х1850 | F96: 69182
A97: EVL439 | B97: EVL439.U003 | C97: Стеллаж все элементы Дуб Честерфилд | D97: 2000х400х2100 | F97: 31916
A98: EVL908 | B98: EVL908/ANT/ANT/ANT.U003 | C98: Тумба-стеллаж разделительный глубиной 420 Корпус и фасады Антрацит, средний топ Дуб Честерфилд, ручки Антрацит. | D98: 1650х420х1600 | F98: 43743
B99: EVL442.U003 | C99: Стеллаж боковой высокий. Корпус, полки, задняя стенка - Дуб Честерфилд | D99: 320х344х2035 | F99: 10011
B100: EVL443/U003.U003 | C100: Стеллаж промежуточный высокий. Корпус, полки - Дуб Честерфилд, задняя стенка - Антрацит. | D100: 600х344х2052 | F100: 15936
B101: EVL444/ANT.U003 | C101: Стеллаж промежуточный высокий. Корпус, полки - Дуб Честерфилд, задняя стенка - Антрацит. | D101: 450х344х2052 | F101: 13868
A102: EVL441 | B102: EVL441.U003 | C102: Стеллаж боковой средний. Корпус, полки, задняя стенка - Дуб Честерфилд. | D102: 320х344х1233 | F102: 6352
A103: EVL445 | B103: EVL445/ANT.U003 | C103: Стеллаж промежуточный средний. Корпус, полки - Дуб Честерфилд, задняя стенка - Антрацит. | D103: 600х344х1233 | F103: 9288.4
A104: EVL446 | B104: EVL446/ANT.U003 | C104: Стеллаж промежуточный средний. Корпус, полки - Дуб Честерфилд, задняя стенка - Антрацит. | D104: 450х344х1233 | F104: 8554
B105: EVL450/U003/ANT.U003 | C105: Миникухня. Полностью Дуб Честерфилд. Задняя стенка - Антрацит. | D105: 1000х620х2150 | F105: 31920
B107: EVL992.ANT | C107: Цветочница, цвет Антрацит | D107: 720х410x200 | F107: 2393
B108: Программа под заказ (Скидки на остатки в наличии)
B109: Артикул | C109: Наименование | D109: Размеры Ш*Г*В (мм) | E109: Изображение | F109: Розничная Цена | G109: Розничная цена со скидкой*
B110: EVL822/П/60х30/ANT/ANT.U003 | C110: Стол для переговоров 2,2 м. на металлических опорах | D110: 2200x1000x750 | F110: =ROUND(24260.5*0.56,0) -> 13586 | G110: =ROUND(F110*0.75,0) -> 10190
B111: EVL822/А/60х30/ANT/ANT.U003 | D111: 2200x1000x750 | F111: =ROUND(24267.1*0.56,0) -> 13590 | G111: =ROUND(F111*0.75,0) -> 10193
B112: EVL822/О/60х30/ANT/ANT.U003 | D112: 2200x1000x750 | F112: =ROUND(25348.4*0.56,0) -> 14195 | G112: 10646
B113: EVL290/ANT.ANT | C113: Контейнер подвесной с 1 ящиком Тип - 1 (замок на ящик) Фасады, корпус - Антрацит, ручки Антрацит | D113: 448х478х208 | F113: 5163 | G113: =ROUND(F113*0.75,0) -> 3872
B114: EVL291/ANT.ANT | C114: Контейнер подвесной с 2 ящиками Тип - 1 (замок на верхний ящик) Фасады, корпус - Антрацит, ручки Антрацит | D114: 448х478х346 | F114: 7469 | G114: =ROUND(F114*0.75,0) -> 5602
B115: Указана финальная цена с максимальной скидкой, действует до тех пор, пока позиция есть в наличии.
B117: Экраны и фронтали
B118: Фронтальные экраны ЛДСП в цв. Антрацит и Белый с креплением AKS166(Комплект кронштейнов для крепления фронтальных надстольных экранов к рабочему столу) | F118: Розничная Цена (руб.)
F119: 1164 | G119: Цвет Антрацит
F120: 1164 | G120: Белый цвет
B121: Для удобства клиентов цены изделий указаны вместе с креплением→ (в отгрузочных документах экран и крепление прописываются отдельно) | F121: Розничная цена изделия без крепления (руб) | G121: Розничная цена с креплением (руб.)
A122: EVL501W.ANT | B122: EVL501W.ANT+AKS166 | C122: Экран стола 1200, ЛДСП в цв. Антрацит + крепление AKS166 (Антрацит) | D122: 1200х383х18 | F122: 2700.5 | G122: =F122+F119 -> 3864.5
A123: EVL501W.H | B123: EVL501W.H+AKS166 | C123: Экран стола 1200, ЛДСП в белом цвете + крепление AKS166 (Белый) | D123: 1200х383х18 | F123: 2700.5 | G123: =F123+F120 -> 3864.5
A124: EVL503W.ANT | B124: EVL503W.ANT+AKS166 | C124: Экран стола 1400, ЛДСП в цв. Антрацит + крепление AKS166 (Антрацит) | D124: 1400х383х18 | F124: 3132.8 | G124: =F124+F119 -> 4296.8
A125: EVL503W.H | B125: EVL503W.H+AKS166 | C125: Экран стола 1400, ЛДСП в белом цвете + крепление AKS166 (Белый) | D125: 1400х383х18 | F125: 3132.8 | G125: =F125+F120 -> 4296.8
A126: EVL505W.ANT | B126: EVL505W.ANT+AKS166 | C126: Экран стола 1600, ЛДСП в цв. Антрацит + крепление AKS166 (Антрацит) | D126: 1600х383х18 | F126: 3723.5 | G126: =F126+F119 -> 4887.5
A127: EVL505W.H | B127: EVL505W.H+AKS166 | C127: Экран стола 1600, ЛДСП в белом цвете + крепление AKS166 (Белый) | D127: 1600х383х18 | F127: 3723.5 | G127: =F127+F120 -> 4887.5
B128: Тканевые фронтальные экраны для одиночного стола в цвете Grey с креплением AKS166(Комплект кронштейнов для крепления фронтальных надстольных экранов к рабочему столу) в цв. Антрацит | F128: Розничная Цена (руб.)
F129: 1164 | G129: Цвет Антрацит
B130: Для удобства клиентов цены изделий указаны вместе с креплением→ (в отгрузочных документах экран и крепление прописываются отдельно) | F130: Розничная цена изделия без крепления (руб) | G130: Розничная цена с креплением (руб.)
A131: EVL501.2 | B131: EVL501.2+AKS166 | C131: Экран стола 1200, ткань + крепление AKS166 | D131: 1200х383х22 | F131: 4243 | G131: =F131+F129 -> 5407
A132: EVL503.2 | B132: EVL503.2+AKS166 | C132: Экран стола 1400, ткань + крепление AKS166 | D132: 1400х383х22 | F132: 4587 | G132: =F132+F129 -> 5751
A133: EVL505.2 | B133: EVL505.2+AKS166 | C133: Экран стола 1600, ткань + крепление AKS166 | D133: 1600х383х22 | F133: 6184 | G133: =F133+F129 -> 7348
B134: Тканевые фронтальные экраны для одиночного стола в цвете Mint с креплением AKS166(Комплект кронштейнов для крепления фронтальных надстольных экранов к рабочему столу) в цв. Антрацит | F134: Розничная Цена (руб.)
F135: 1164 | G135: Цвет Антрацит
B136: Для удобства клиентов цены изделий указаны вместе с креплением→ (в отгрузочных документах экран и крепление прописываются отдельно) | F136: Розничная цена изделия без крепления (руб) | G136: Розничная цена с креплением (руб.)
A137: EVL501.MNT | B137: EVL501.MNT+AKS166 | C137: Экран стола 1200, ткань + крепление AKS166 | D137: 1200х383х22 | F137: 4243 | G137: =F137+F135 -> 5407
A138: EVL503.MNT | B138: EVL503.MNT+AKS166 | C138: Экран стола 1400, ткань + крепление AKS166 | D138: 1400х383х22 | F138: 4587 | G138: =F138+F135 -> 5751
A139: EVL505.MNT | B139: EVL505.MNT+AKS166 | C139: Экран стола 1600, ткань + крепление AKS166 | D139: 1600х383х22 | F139: 6184 | G139: =F139+F135 -> 7348
B140: Фронтальные экраны ЛДСП в цв. Антрацит и Белый с креплением AKS165(Комплект кронштейнов со штырём для крепления экрана к бенчу) в соответствующем цвете | F140: Розничная Цена (руб.)
F141: 1240 | G141: Цвет Антрацит
F142: 1240 | G142: Белый цвет
B143: Для удобства клиентов цены изделий указаны вместе с креплением→ (в отгрузочных документах экран и крепление прописываются отдельно) | F143: Розничная цена изделия без крепления (руб) | G143: Розничная цена с креплением (руб.)
A144: EVL501W.ANT | B144: EVL501W.ANT+AKS165 | C144: Экран бенча 1200, ЛДСП в цв. Антрацит + крепление AKS165 (Антрацит) | D144: 1200х383х18 | F144: 2700.5 | G144: =F141+F144 -> 3940.5
A145: EVL501W.H | B145: EVL501W.H+AKS165 | C145: Экран бенча 1200, ЛДСП в белом цвете + крепление AKS165 (Белый) | D145: 1200х383х18 | F145: 2700.5 | G145: =F145+F142 -> 3940.5
A146: EVL503W.ANT | B146: EVL503W.ANT+AKS165 | C146: Экран бенча 1400, ЛДСП в цв. Антрацит + крепление AKS165 (Антрацит) | D146: 1400х383х18 | F146: 3132.8 | G146: =F146+F141 -> 4372.8
A147: EVL503W.H | B147: EVL503W.H+AKS165 | C147: Экран бенча 1400, ЛДСП в белом цвете + крепление AKS165 (Белый) | D147: 1400х383х18 | F147: 3132.8 | G147: =F147+F142 -> 4372.8
A148: EVL505W.ANT | B148: EVL505W.ANT+AKS165 | C148: Экран бенча 1600, ЛДСП в цв. Антрацит + крепление AKS165 (Антрацит) | D148: 1600х383х18 | F148: 3723.5 | G148: =F148+F141 -> 4963.5
A149: EVL505W.H | B149: EVL505W.H+AKS165 | C149: Экран бенча 1600, ЛДСП в белом цвете + крепление AKS165 (Белый) | D149: 1600х383х18 | F149: 3723.5 | G149: =F149+F142 -> 4963.5
B150: Тканевые фронтальные экраны для бенчей в цвете Grey с креплением AKS165 (Комплект кронштейнов двойных со штырём для крепления экрана к бенчу) в цв. Антрацит | F150: Розничная Цена (руб.)
F151: 1240 | G151: Цвет Антрацит
B152: Для удобства клиентов цены изделий указаны вместе с креплением→ (в отгрузочных документах экран и крепление прописываются отдельно) | F152: Розничная цена изделия без крепления (руб) | G152: Розничная цена с креплением (руб.)
A153: EVL501.2 | B153: EVL501.2+AKS165 | C153: Экран стола 1200, ткань + крепление AKS165 | D153: 1200х383х22 | F153: 4243 | G153: =F153+F151 -> 5483
A154: EVL503.2 | B154: EVL503.2+AKS165 | C154: Экран стола 1400, ткань + крепление AKS165 | D154: 1400х383х22 | F154: 4587 | G154: =F154+F151 -> 5827
A155: EVL505.2 | B155: EVL505.2+AKS165 | C155: Экран стола 1600, ткань + крепление AKS165 | D155: 1600х383х22 | F155: 6184 | G155: =F155+F151 -> 7424
B156: Тканевые фронтальные экраны для бенчей в цвете Mint с креплением AKS165 (Комплект кронштейнов двойных со штырём для крепления экрана к бенчу) в цв. Антрацит | F156: Розничная Цена (руб.)
F157: 1240 | G157: Цвет Антрацит
B158: Для удобства клиентов цены изделий указаны вместе с креплением→ (в отгрузочных документах экран и крепление прописываются отдельно) | F158: Розничная цена изделия без крепления (руб) | G158: Розничная цена с креплением (руб.)
A159: EVL501.MNT | B159: EVL501.MNT+AKS165 | C159: Экран стола 1200, ткань + крепление AKS165 | D159: 1200х383х22 | F159: 4243 | G159: =F159+F157 -> 5483
A160: EVL503.MNT | B160: EVL503.MNT+AKS165 | C160: Экран стола 1400, ткань + крепление AKS165 | D160: 1400х383х22 | F160: 4587 | G160: =F160+F157 -> 5827
A161: EVL505.MNT | B161: EVL505.MNT+AKS165 | C161: Экран стола 1600, ткань + крепление AKS165 | D161: 1600х383х22 | F161: 6184 | G161: =F161+F157 -> 7424
F162: Розничная Цена (руб.)
F163: 2723 | G163: Цвет Антрацит
C164: Для удобства клиентов цены изделий указаны вместе с креплением (в отгрузочных документах экран и крепление прописываются отдельно)↓ | F164: Розничная цена изделия без крепления (руб) | G164: Розничная цена с креплением (руб.)
A165: EVL500.2 | B165: EVL500.2+AKS161.ANT | C165: Экран-фронталь для одиночного стола 1200 (ткань) с креплением AKS161 | D165: 1050х750х22 | F165: 6811 | G165: =F165+F163 -> 9534
A166: EVL502.2 | B166: EVL502.2+AKS161.ANT | C166: Экран-фронталь для одиночного стола 1400 (ткань) с креплением AKS161 | D166: 1250х750х22 | F166: 7291 | G166: =F166+F163 -> 10014
B168: Тканевый торцевой экран с комплектом креплений AKS177 (для торцевых экранов) | F168: Розничная Цена (руб.)
F169: 2874 | G169: Цвет Антрацит
A170: Для удобства клиентов цены изделий указаны вместе с креплением (в отгрузочных документах экран и крепление прописываются отдельно)→ | F170: Розничная цена изделия без крепления (руб) | G170: Розничная цена с креплением (руб.)
A171: EVL509.2 | B171: EVL509.2+AKS177.ANT | C171: Экран торцевой 700, ткань, с креплением AKS167 | D171: 700х350х22 | F171: 3254 | G171: =F171+F169 -> 6128
B173: Торцевый экран ЛДСП с комплектом креплений AKS177 (для торцевых экранов) | F173: Розничная Цена (руб.)
F174: 2874 | G174: Цвет Антрацит
B175: Для удобства клиентов цены изделий указаны вместе с креплением (в отгрузочных документах экран и крепление прописываются отдельно)→ | F175: Розничная цена изделия без крепления (руб) | G175: Розничная цена с креплением (руб.)
A176: EVL509W.ANT | B176: EVL509W.ANT+AKS177.ANT | C176: Экран торцевой 700, ЛДСП, с креплением AKS167 | D176: 700х350х18 | F176: 1395.9 | G176: =F176+F174 -> 4269.9
B178: Фронталь скромности стола в цв. Антрацит с креплением AKS168 (165х35х82 - каждый) | E178: Комплект держателей для фронтали скромности любого размера | F178: 1041 | G178: Цвет Антрацит
B179: Для удобства клиентов цены изделий указаны вместе с креплением→ (в отгрузочных документах экран и крепление прописываются отдельно) | F179: Розничная цена изделия без крепления (руб) | G179: Розничная цена с креплением (руб.)
A180: EVL140.ANT | B180: EVL140.ANT+AKS168 | C180: Фронталь скромности стола 1200 мм в цв. Антрацит + крепление AKS168 | D180: 1050х315х18 | F180: 1375 | G180: =F180+F178 -> 2416
A181: EVL140.H | B181: EVL140.H+AKS168 | C181: Фронталь скромности стола 1200 мм в Белом цвете + крепление AKS168 | D181: 1050х315х18 | F181: 1375 | G181: =F181+F178 -> 2416
A182: EVL141.ANT | B182: EVL141.ANT+AKS168 | C182: Фронталь скромности стола 1400 мм в цв. Антрацит + крепление AKS168 | D182: 1250х315х18 | F182: 1444 | G182: =F182+F178 -> 2485
A183: EVL141.H | B183: EVL141.HAKS168 | C183: Фронталь скромности стола 1400 мм в Белом цвете + крепление AKS168 | D183: 1250х315х18 | F183: 1575 | G183: =F183+F178 -> 2616
A184: EVL142.ANT | B184: EVL142.ANT+AKS168 | C184: Фронталь скромности стола 1600 мм в цв. Антрацит + крепление AKS168 | D184: 1450х315х18 | F184: 1778 | G184: =F184+F178 -> 2819
A185: EVL142.H | B185: EVL142.H+AKS168 | C185: Фронталь скромности стола 1600 мм в Белом цвете + крепление AKS168 | D185: 1450х315х18 | F185: 1798 | G185: =F185+F178 -> 2839
B187: Кабель-каналы и вставки в бенчи | F187: Розничная Цена (руб.)
A188: AKS170.ANT | B188: AKS170.ANT | C188: Кабель канал узкий с креплением к столешнице | D188: 1000х90х55h (для стола 1,2 м.) | F188: 2369
A189: AKS171.ANT | B189: AKS171.ANT | D189: 1200х90х55h (для стола 1,4 м.) | F189: 2443
A190: AKS172.ANT | B190: AKS172.ANT | D190: 1400х90х55h (для стола 1,6 м.) | F190: 2854
A191: EVL551.ANT | B191: EVL551.ANT | C191: Вставка для бенчей шириной 1200 мм. ЛДСП и крепление в цв. Антрацит | D191: 1200х40х25 | F191: 1360
A192: EVL552.ANT | B192: EVL552.ANT | C192: Вставка для бенчей шириной 1400 мм. ЛДСП и крепление в цв. Антрацит | D192: 1400х40х25 | F192: 1404
A193: EVL553.ANT | B193: EVL553.ANT | C193: Вставка для бенчей шириной 1600 мм. ЛДСП и крепление в цв. Антрацит | D193: 1600х40х25 | F193: 1518

Sheet Столы на ДСП опорах
B1: EVOLUTION | F1: =Склаская!F1 -> 2025-05-23 | J1: Формирование артикула в зависимости от выбранных характеристик
B2: Столы на ЛДСП опорах: толщина столешницы 25 мм, толщина опор и фронтали стола 18 мм.
B3: Не складская программа производятся на заказ партией от 6 шт., со сроком по согласованию с производством, в цвете: Дуб Честерфилд, Белый, Антрацит, Серый R2, Дуб 131, Серый камень, Венге Цаво, Бетон. Для заказа изделия следует пользоваться правилами кодировки для создания артикула. →→→ | J3: Цвет опор | K3: Цвет фронтали (передней панели) | L3: Цвет заглушки кабель-канала | M3: Цвет столешницы
J4: Дуб Честерфилд | K4: Антрацит | L4: Антрацит | M4: Дуб Честерфилд
B5: Артикул | C5: Наименование | D5: Размеры Ш*Г*В (мм) | E5: Изображение | F5: Розничная Цена, руб.
A6: EVL150 | B6: =CONCATENATE(A6,"/",VLOOKUP($J$4,'Цвет корпуса шкафа'!A:B,2,0),"/",VLOOKUP($K$4,'Цвет корпуса шкафа'!A:B,2,0),"/",VLOOKUP($L$4,'Цвет лючка'!A:B,2,0),".",VLOOKUP($M$4,'Цвет столешницы'!A:B,2,FALSE)) -> EVL150/U003/ANT/ANT.U003 | C6: Стол письменный на ДСП опорах шириной 600 мм | D6: 1000*600*750 | F6: 9244
A7: EVL151 | B7: =CONCATENATE(A7,"/",VLOOKUP($J$4,'Цвет корпуса шкафа'!A:B,2,0),"/",VLOOKUP($K$4,'Цвет корпуса шкафа'!A:B,2,0),"/",VLOOKUP($L$4,'Цвет лючка'!A:B,2,0),".",VLOOKUP($M$4,'Цвет столешницы'!A:B,2,FALSE)) -> EVL151/U003/ANT/ANT.U003 | D7: 1200*600*750 | F7: 9978
A8: EVL152 | B8: =CONCATENATE(A8,"/",VLOOKUP($J$4,'Цвет корпуса шкафа'!A:B,2,0),"/",VLOOKUP($K$4,'Цвет корпуса шкафа'!A:B,2,0),"/",VLOOKUP($L$4,'Цвет лючка'!A:B,2,0),".",VLOOKUP($M$4,'Цвет столешницы'!A:B,2,FALSE)) -> EVL152/U003/ANT/ANT.U003 | D8: 1400*600*750 | F8: 10079
A9: EVL153 | B9: =CONCATENATE(A9,"/",VLOOKUP($J$4,'Цвет корпуса шкафа'!A:B,2,0),"/",VLOOKUP($K$4,'Цвет корпуса шкафа'!A:B,2,0),"/",VLOOKUP($L$4,'Цвет лючка'!A:B,2,0),".",VLOOKUP($M$4,'Цвет столешницы'!A:B,2,FALSE)) -> EVL153/U003/ANT/ANT.U003 | D9: 1600*600*750 | F9: 11386
A10: EVL154 | B10: =CONCATENATE(A10,"/",VLOOKUP($J$4,'Цвет корпуса шкафа'!A:B,2,0),"/",VLOOKUP($K$4,'Цвет корпуса шкафа'!A:B,2,0),"/",VLOOKUP($L$4,'Цвет лючка'!A:B,2,0),".",VLOOKUP($M$4,'Цвет столешницы'!A:B,2,FALSE)) -> EVL154/U003/ANT/ANT.U003 | C10: Стол письменный на ДСП опорах шириной 700 мм | D10: 1000*700*750 | F10: 9779
A11: EVL155 | B11: =CONCATENATE(A11,"/",VLOOKUP($J$4,'Цвет корпуса шкафа'!A:B,2,0),"/",VLOOKUP($K$4,'Цвет корпуса шкафа'!A:B,2,0),"/",VLOOKUP($L$4,'Цвет лючка'!A:B,2,0),".",VLOOKUP($M$4,'Цвет столешницы'!A:B,2,FALSE)) -> EVL155/U003/ANT/ANT.U003 | D11: 1200*700*750 | F11: 9793
A12: EVL156 | B12: =CONCATENATE(A12,"/",VLOOKUP($J$4,'Цвет корпуса шкафа'!A:B,2,0),"/",VLOOKUP($K$4,'Цвет корпуса шкафа'!A:B,2,0),"/",VLOOKUP($L$4,'Цвет лючка'!A:B,2,0),".",VLOOKUP($M$4,'Цвет столешницы'!A:B,2,FALSE)) -> EVL156/U003/ANT/ANT.U003 | D12: 1400*700*750 | F12: 10523
A13: EVL157 | B13: =CONCATENATE(A13,"/",VLOOKUP($J$4,'Цвет корпуса шкафа'!A:B,2,0),"/",VLOOKUP($K$4,'Цвет корпуса шкафа'!A:B,2,0),"/",VLOOKUP($L$4,'Цвет лючка'!A:B,2,0),".",VLOOKUP($M$4,'Цвет столешницы'!A:B,2,FALSE)) -> EVL157/U003/ANT/ANT.U003 | D13: 1600*700*750 | F13: 11189
A14: EVL158 | B14: =CONCATENATE(A14,"/",VLOOKUP($J$4,'Цвет корпуса шкафа'!A:B,2,0),"/",VLOOKUP($K$4,'Цвет корпуса шкафа'!A:B,2,0),"/",VLOOKUP($L$4,'Цвет лючка'!A:B,2,0),".",VLOOKUP($M$4,'Цвет столешницы'!A:B,2,FALSE)) -> EVL158/U003/ANT/ANT.U003 | D14: 1800*700*750 | F14: 13239
A15: EVL159 | B15: =CONCATENATE(A15,"/",VLOOKUP($J$4,'Цвет корпуса шкафа'!A:B,2,0),"/",VLOOKUP($K$4,'Цвет корпуса шкафа'!A:B,2,0),"/",VLOOKUP($L$4,'Цвет лючка'!A:B,2,0),".",VLOOKUP($M$4,'Цвет столешницы'!A:B,2,FALSE)) -> EVL159/U003/ANT/ANT.U003 | C15: Стол письменный на ДСП опорах шириной 800 мм | D15: 1000*800*750 | F15: 10969
A16: EVL160 | B16: =CONCATENATE(A16,"/",VLOOKUP($J$4,'Цвет корпуса шкафа'!A:B,2,0),"/",VLOOKUP($K$4,'Цвет корпуса шкафа'!A:B,2,0),"/",VLOOKUP($L$4,'Цвет лючка'!A:B,2,0),".",VLOOKUP($M$4,'Цвет столешницы'!A:B,2,FALSE)) -> EVL160/U003/ANT/ANT.U003 | D16: 1200*800*750 | F16: 11320
A17: EVL161 | B17: =CONCATENATE(A17,"/",VLOOKUP($J$4,'Цвет корпуса шкафа'!A:B,2,0),"/",VLOOKUP($K$4,'Цвет корпуса шкафа'!A:B,2,0),"/",VLOOKUP($L$4,'Цвет лючка'!A:B,2,0),".",VLOOKUP($M$4,'Цвет столешницы'!A:B,2,FALSE)) -> EVL161/U003/ANT/ANT.U003 | D17: 1400*800*750 | F17: 12198
A18: EVL162 | B18: =CONCATENATE(A18,"/",VLOOKUP($J$4,'Цвет корпуса шкафа'!A:B,2,0),"/",VLOOKUP($K$4,'Цвет корпуса шкафа'!A:B,2,0),"/",VLOOKUP($L$4,'Цвет лючка'!A:B,2,0),".",VLOOKUP($M$4,'Цвет столешницы'!A:B,2,FALSE)) -> EVL162/U003/ANT/ANT.U003 | D18: 1600*800*750 | F18: 13534
A19: EVL163 | B19: =CONCATENATE(A19,"/",VLOOKUP($J$4,'Цвет корпуса шкафа'!A:B,2,0),"/",VLOOKUP($K$4,'Цвет корпуса шкафа'!A:B,2,0),"/",VLOOKUP($L$4,'Цвет лючка'!A:B,2,0),".",VLOOKUP($M$4,'Цвет столешницы'!A:B,2,FALSE)) -> EVL163/U003/ANT/ANT.U003 | D19: 1800*800*750 | F19: 14729
A20: EVL164 | B20: =CONCATENATE(A20,"/",VLOOKUP($J$4,'Цвет корпуса шкафа'!A:B,2,0),"/",VLOOKUP($K$4,'Цвет корпуса шкафа'!A:B,2,0),"/",VLOOKUP($L$4,'Цвет лючка'!A:B,2,0),".",VLOOKUP($M$4,'Цвет столешницы'!A:B,2,FALSE)) -> EVL164/U003/ANT/ANT.U003 | C20: Стол письменный на ДСП опорах, шириной 900 мм | D20: 1800*900*750 | F20: 17516
A21: EVL165SX | B21: =CONCATENATE(A21,"/",VLOOKUP($J$4,'Цвет корпуса шкафа'!A:B,2,0),"/",VLOOKUP($K$4,'Цвет корпуса шкафа'!A:B,2,0),"/",VLOOKUP($L$4,'Цвет лючка'!A:B,2,0),".",VLOOKUP($M$4,'Цвет столешницы'!A:B,2,FALSE)) -> EVL165SX/U003/ANT/ANT.U003 | C21: Стол криволинейный левый/правый на ДСП опорах, глубиной 600/900 мм | D21: 1200*900*750 | E21: правый | F21: 11766
A22: EVL165DX | B22: =CONCATENATE(A22,"/",VLOOKUP($J$4,'Цвет корпуса шкафа'!A:B,2,0),"/",VLOOKUP($K$4,'Цвет корпуса шкафа'!A:B,2,0),"/",VLOOKUP($L$4,'Цвет лючка'!A:B,2,0),".",VLOOKUP($M$4,'Цвет столешницы'!A:B,2,FALSE)) -> EVL165DX/U003/ANT/ANT.U003
A23: EVL166SX | B23: =CONCATENATE(A23,"/",VLOOKUP($J$4,'Цвет корпуса шкафа'!A:B,2,0),"/",VLOOKUP($K$4,'Цвет корпуса шкафа'!A:B,2,0),"/",VLOOKUP($L$4,'Цвет лючка'!A:B,2,0),".",VLOOKUP($M$4,'Цвет столешницы'!A:B,2,FALSE)) -> EVL166SX/U003/ANT/ANT.U003 | D23: 1400*900*750 | F23: 12792
A24: EVL166DX | B24: =CONCATENATE(A24,"/",VLOOKUP($J$4,'Цвет корпуса шкафа'!A:B,2,0),"/",VLOOKUP($K$4,'Цвет корпуса шкафа'!A:B,2,0),"/",VLOOKUP($L$4,'Цвет лючка'!A:B,2,0),".",VLOOKUP($M$4,'Цвет столешницы'!A:B,2,FALSE)) -> EVL166DX/U003/ANT/ANT.U003
A25: EVL167SX | B25: =CONCATENATE(A25,"/",VLOOKUP($J$4,'Цвет корпуса шкафа'!A:B,2,0),"/",VLOOKUP($K$4,'Цвет корпуса шкафа'!A:B,2,0),"/",VLOOKUP($L$4,'Цвет лючка'!A:B,2,0),".",VLOOKUP($M$4,'Цвет столешницы'!A:B,2,FALSE)) -> EVL167SX/U003/ANT/ANT.U003 | C25: Стол криволинейный левый/правый на ДСП опорах, глубиной 700/900 мм | D25: 1200*900*750 | E25: правый | F25: 10480
A26: EVL167DX | B26: =CONCATENATE(A26,"/",VLOOKUP($J$4,'Цвет корпуса шкафа'!A:B,2,0),"/",VLOOKUP($K$4,'Цвет корпуса шкафа'!A:B,2,0),"/",VLOOKUP($L$4,'Цвет лючка'!A:B,2,0),".",VLOOKUP($M$4,'Цвет столешницы'!A:B,2,FALSE)) -> EVL167DX/U003/ANT/ANT.U003
A27: EVL168SX | B27: =CONCATENATE(A27,"/",VLOOKUP($J$4,'Цвет корпуса шкафа'!A:B,2,0),"/",VLOOKUP($K$4,'Цвет корпуса шкафа'!A:B,2,0),"/",VLOOKUP($L$4,'Цвет лючка'!A:B,2,0),".",VLOOKUP($M$4,'Цвет столешницы'!A:B,2,FALSE)) -> EVL168SX/U003/ANT/ANT.U003 | D27: 1400*900*750 | F27: 10804
A28: EVL168DX | B28: =CONCATENATE(A28,"/",VLOOKUP($J$4,'Цвет корпуса шкафа'!A:B,2,0),"/",VLOOKUP($K$4,'Цвет корпуса шкафа'!A:B,2,0),"/",VLOOKUP($L$4,'Цвет лючка'!A:B,2,0),".",VLOOKUP($M$4,'Цвет столешницы'!A:B,2,FALSE)) -> EVL168DX/U003/ANT/ANT.U003
A29: EVL169SX | B29: =CONCATENATE(A29,"/",VLOOKUP($J$4,'Цвет корпуса шкафа'!A:B,2,0),"/",VLOOKUP($K$4,'Цвет корпуса шкафа'!A:B,2,0),"/",VLOOKUP($L$4,'Цвет лючка'!A:B,2,0),".",VLOOKUP($M$4,'Цвет столешницы'!A:B,2,FALSE)) -> EVL169SX/U003/ANT/ANT.U003 | D29: 1600*900*750 | F29: 13190
A30: EVL169DX | B30: =CONCATENATE(A30,"/",VLOOKUP($J$4,'Цвет корпуса шкафа'!A:B,2,0),"/",VLOOKUP($K$4,'Цвет корпуса шкафа'!A:B,2,0),"/",VLOOKUP($L$4,'Цвет лючка'!A:B,2,0),".",VLOOKUP($M$4,'Цвет столешницы'!A:B,2,FALSE)) -> EVL169DX/U003/ANT/ANT.U003
A31: EVL170SX | B31: =CONCATENATE(A31,"/",VLOOKUP($J$4,'Цвет корпуса шкафа'!A:B,2,0),"/",VLOOKUP($K$4,'Цвет корпуса шкафа'!A:B,2,0),"/",VLOOKUP($L$4,'Цвет лючка'!A:B,2,0),".",VLOOKUP($M$4,'Цвет столешницы'!A:B,2,FALSE)) -> EVL170SX/U003/ANT/ANT.U003 | C31: Стол криволинейный левый/правый на ДСП опорах, глубиной 800/900 мм | D31: 1400*900*750 | E31: правый | F31: 13341
A32: EVL170DX | B32: =CONCATENATE(A32,"/",VLOOKUP($J$4,'Цвет корпуса шкафа'!A:B,2,0),"/",VLOOKUP($K$4,'Цвет корпуса шкафа'!A:B,2,0),"/",VLOOKUP($L$4,'Цвет лючка'!A:B,2,0),".",VLOOKUP($M$4,'Цвет столешницы'!A:B,2,FALSE)) -> EVL170DX/U003/ANT/ANT.U003
A33: EVL171SX | B33: =CONCATENATE(A33,"/",VLOOKUP($J$4,'Цвет корпуса шкафа'!A:B,2,0),"/",VLOOKUP($K$4,'Цвет корпуса шкафа'!A:B,2,0),"/",VLOOKUP($L$4,'Цвет лючка'!A:B,2,0),".",VLOOKUP($M$4,'Цвет столешницы'!A:B,2,FALSE)) -> EVL171SX/U003/ANT/ANT.U003 | D33: 1600*900*750 | F33: 14257
A34: EVL171DX | B34: =CONCATENATE(A34,"/",VLOOKUP($J$4,'Цвет корпуса шкафа'!A:B,2,0),"/",VLOOKUP($K$4,'Цвет корпуса шкафа'!A:B,2,0),"/",VLOOKUP($L$4,'Цвет лючка'!A:B,2,0),".",VLOOKUP($M$4,'Цвет столешницы'!A:B,2,FALSE)) -> EVL171DX/U003/ANT/ANT.U003
A35: EVL172SX | B35: =CONCATENATE(A35,"/",VLOOKUP($J$4,'Цвет корпуса шкафа'!A:B,2,0),"/",VLOOKUP($K$4,'Цвет корпуса шкафа'!A:B,2,0),"/",VLOOKUP($L$4,'Цвет лючка'!A:B,2,0),".",VLOOKUP($M$4,'Цвет столешницы'!A:B,2,FALSE)) -> EVL172SX/U003/ANT/ANT.U003 | C35: Стол криволинейный левый/правый на ДСП опорах | D35: 1400*1200*750 | E35: левый | F35: 16129
A36: EVL172DX | B36: =CONCATENATE(A36,"/",VLOOKUP($J$4,'Цвет корпуса шкафа'!A:B,2,0),"/",VLOOKUP($K$4,'Цвет корпуса шкафа'!A:B,2,0),"/",VLOOKUP($L$4,'Цвет лючка'!A:B,2,0),".",VLOOKUP($M$4,'Цвет столешницы'!A:B,2,FALSE)) -> EVL172DX/U003/ANT/ANT.U003
A37: EVL173SX | B37: =CONCATENATE(A37,"/",VLOOKUP($J$4,'Цвет корпуса шкафа'!A:B,2,0),"/",VLOOKUP($K$4,'Цвет корпуса шкафа'!A:B,2,0),"/",VLOOKUP($L$4,'Цвет лючка'!A:B,2,0),".",VLOOKUP($M$4,'Цвет столешницы'!A:B,2,FALSE)) -> EVL173SX/U003/ANT/ANT.U003 | D37: 1600*1200*750 | F37: 17466
A38: EVL173DX | B38: =CONCATENATE(A38,"/",VLOOKUP($J$4,'Цвет корпуса шкафа'!A:B,2,0),"/",VLOOKUP($K$4,'Цвет корпуса шкафа'!A:B,2,0),"/",VLOOKUP($L$4,'Цвет лючка'!A:B,2,0),".",VLOOKUP($M$4,'Цвет столешницы'!A:B,2,FALSE)) -> EVL173DX/U003/ANT/ANT.U003
A39: EVL174SX | B39: =CONCATENATE(A39,"/",VLOOKUP($J$4,'Цвет корпуса шкафа'!A:B,2,0),"/",VLOOKUP($K$4,'Цвет корпуса шкафа'!A:B,2,0),"/",VLOOKUP($L$4,'Цвет лючка'!A:B,2,0),".",VLOOKUP($M$4,'Цвет столешницы'!A:B,2,FALSE)) -> EVL174SX/U003/ANT/ANT.U003 | C39: Стол криволинейный левый/правый на ДСП опорах | D39: 1400*1200*750 | E39: левый | F39: 16324
A40: EVL174DX | B40: =CONCATENATE(A40,"/",VLOOKUP($J$4,'Цвет корпуса шкафа'!A:B,2,0),"/",VLOOKUP($K$4,'Цвет корпуса шкафа'!A:B,2,0),"/",VLOOKUP($L$4,'Цвет лючка'!A:B,2,0),".",VLOOKUP($M$4,'Цвет столешницы'!A:B,2,FALSE)) -> EVL174DX/U003/ANT/ANT.U003
A41: EVL175SX | B41: =CONCATENATE(A41,"/",VLOOKUP($J$4,'Цвет корпуса шкафа'!A:B,2,0),"/",VLOOKUP($K$4,'Цвет корпуса шкафа'!A:B,2,0),"/",VLOOKUP($L$4,'Цвет лючка'!A:B,2,0),".",VLOOKUP($M$4,'Цвет столешницы'!A:B,2,FALSE)) -> EVL175SX/U003/ANT/ANT.U003 | D41: 1600*1200*750 | F41: 17477
A42: EVL175DX | B42: =CONCATENATE(A42,"/",VLOOKUP($J$4,'Цвет корпуса шкафа'!A:B,2,0),"/",VLOOKUP($K$4,'Цвет корпуса шкафа'!A:B,2,0),"/",VLOOKUP($L$4,'Цвет лючка'!A:B,2,0),".",VLOOKUP($M$4,'Цвет столешницы'!A:B,2,FALSE)) -> EVL175DX/U003/ANT/ANT.U003
A43: EVL176SX | B43: =CONCATENATE(A43,"/",VLOOKUP($J$4,'Цвет корпуса шкафа'!A:B,2,0),"/",VLOOKUP($K$4,'Цвет корпуса шкафа'!A:B,2,0),"/",VLOOKUP($L$4,'Цвет лючка'!A:B,2,0),".",VLOOKUP($M$4,'Цвет столешницы'!A:B,2,FALSE)) -> EVL176SX/U003/ANT/ANT.U003 | C43: Стол криволинейный левый/правый на ДСП опорах | D43: 1400*1200*750 | E43: левый | F43: 16093
A44: EVL176DX | B44: =CONCATENATE(A44,"/",VLOOKUP($J$4,'Цвет корпуса шкафа'!A:B,2,0),"/",VLOOKUP($K$4,'Цвет корпуса шкафа'!A:B,2,0),"/",VLOOKUP($L$4,'Цвет лючка'!A:B,2,0),".",VLOOKUP($M$4,'Цвет столешницы'!A:B,2,FALSE)) -> EVL176DX/U003/ANT/ANT.U003
A45: EVL177SX | B45: =CONCATENATE(A45,"/",VLOOKUP($J$4,'Цвет корпуса шкафа'!A:B,2,0),"/",VLOOKUP($K$4,'Цвет корпуса шкафа'!A:B,2,0),"/",VLOOKUP($L$4,'Цвет лючка'!A:B,2,0),".",VLOOKUP($M$4,'Цвет столешницы'!A:B,2,FALSE)) -> EVL177SX/U003/ANT/ANT.U003 | D45: 1600*1200*750 | F45: 17488
A46: EVL177DX | B46: =CONCATENATE(A46,"/",VLOOKUP($J$4,'Цвет корпуса шкафа'!A:B,2,0),"/",VLOOKUP($K$4,'Цвет корпуса шкафа'!A:B,2,0),"/",VLOOKUP($L$4,'Цвет лючка'!A:B,2,0),".",VLOOKUP($M$4,'Цвет столешницы'!A:B,2,FALSE)) -> EVL177DX/U003/ANT/ANT.U003
C48: Кодировка Артикула стола
B49: Модель стола разворот стола /Цвет опор/Цв. фронтали/Цв. заглушки. Цвет столешницы
B50: МОДЕЛЬ СТОЛА (ФОРМА, РАЗМЕР) | C50: ПРАВОСТОРОННИЙ /ЛЕВОСТОРОННИЙ | D50: ЦВЕТ ОПОР | E50: ЦВЕТ ФРОНТАЛИ | F50: ЦВЕТ ЗАГЛУШКИ, РУЧЕК | G50: ЦВЕТ СТОЛЕШНИЦЫ
C51: SX-левый | D51: АNT-АНТРАЦИТ | E51: H Белый | F51: АNT-АНТРАЦИТ | G51: H | H51: Белый
C52: DX-правый | D52: H-БЕЛЫЙ | E52: SLT Салтилло | F52: H-БЕЛЫЙ | G52: U727 | H52: Серый Камень
D53: R2-СЕРЫЙ | E53: R2 Серый | F53: G-СЕРЫЙ | G53: R2 | H53: Серый
E54: ANT Антрацит | G54: ANT | H54: Антрацит
E55: U003 Дуб Честерфилд | G55: U003 | H55: Дуб Честерфилд
E56: L Дуб 131 | G56: L | H56: Дуб 131

Sheet Столы на П-обр. 60х30
B1: EVOLUTION | F1: =Склаская!F1 -> 2025-05-23
B2: Столы, бенчи и рабочие станции на металлокаркасе: П-образные опоры - прямоугольная труба с сечением 60*30мм, траверсы - труба 40*20мм.
B3: Не складская программа производятся на заказ партией от 6 шт., со сроком по согласованию с производством, в цвете: Дуб Честерфилд, Белый, Антрацит, Серый R2, Дуб 131, Серый камень, Венге Цаво, Бетон. Опоры столов в цв. Антрацит, Белый, Серый. Заглушки кабель-каналов и ручки тумб Антрацит, Белый. Для заказа изделия следует пользоваться правилами кодировки для создания артикула. →→→ | I3: Формирование артикула в зависимости от выбранных характеристик
I4: Цвет мет. Опор | J4: Цвет кабель-канала | K4: Цвет столешницы
I5: Антрацит | J5: Антрацит | K5: Дуб Честерфилд
B6: Артикул | C6: Наименование | D6: Размеры Ш*Г*В (мм) | E6: Изображение | F6: Розничная Цена, руб.
A7: EVL113/П/60*30/ | B7: =CONCATENATE(A7,VLOOKUP($I$5,'Цвет мет. опор'!A:B,2,0),"/",VLOOKUP($J$5,'Цвет лючка'!A:B,2,0),".",VLOOKUP($K$5,'Цвет столешницы'!A:B,2,FALSE)) -> EVL113/П/60*30/ANT/ANT.U003 | C7: Стол письменный на П образном м/к 60х30, глубиной 600 мм | D7: 1000*600*750 | F7: 17745
A8: EVL114/П/60*30/ | B8: =CONCATENATE(A8,VLOOKUP($I$5,'Цвет мет. опор'!A:B,2,0),"/",VLOOKUP($J$5,'Цвет лючка'!A:B,2,0),".",VLOOKUP($K$5,'Цвет столешницы'!A:B,2,FALSE)) -> EVL114/П/60*30/ANT/ANT.U003 | D8: 1200*600*750 | F8: 18312
A9: EVL115/П/60*30/ | B9: =CONCATENATE(A9,VLOOKUP($I$5,'Цвет мет. опор'!A:B,2,0),"/",VLOOKUP($J$5,'Цвет лючка'!A:B,2,0),".",VLOOKUP($K$5,'Цвет столешницы'!A:B,2,FALSE)) -> EVL115/П/60*30/ANT/ANT.U003 | D9: 1400*600*750 | F9: 18862
A10: EVL116/П/60*30/ | B10: =CONCATENATE(A10,VLOOKUP($I$5,'Цвет мет. опор'!A:B,2,0),"/",VLOOKUP($J$5,'Цвет лючка'!A:B,2,0),".",VLOOKUP($K$5,'Цвет столешницы'!A:B,2,FALSE)) -> EVL116/П/60*30/ANT/ANT.U003 | D10: 1600*600*750 | F10: 19680
A11: EVL100/П/60*30/ | B11: =CONCATENATE(A11,VLOOKUP($I$5,'Цвет мет. опор'!A:B,2,0),"/",VLOOKUP($J$5,'Цвет лючка'!A:B,2,0),".",VLOOKUP($K$5,'Цвет столешницы'!A:B,2,FALSE)) -> EVL100/П/60*30/ANT/ANT.U003 | C11: Стол письменный на П образном м/к 60х30, глубиной 700 мм | D11: 1000*700*750 | F11: 18269
A12: EVL101/П/60*30/ | B12: =CONCATENATE(A12,VLOOKUP($I$5,'Цвет мет. опор'!A:B,2,0),"/",VLOOKUP($J$5,'Цвет лючка'!A:B,2,0),".",VLOOKUP($K$5,'Цвет столешницы'!A:B,2,FALSE)) -> EVL101/П/60*30/ANT/ANT.U003 | D12: 1200*700*750 | F12: 19220
A13: EVL102/П/60*30/ | B13: =CONCATENATE(A13,VLOOKUP($I$5,'Цвет мет. опор'!A:B,2,0),"/",VLOOKUP($J$5,'Цвет лючка'!A:B,2,0),".",VLOOKUP($K$5,'Цвет столешницы'!A:B,2,FALSE)) -> EVL102/П/60*30/ANT/ANT.U003 | D13: 1400*700*750 | F13: 20072
A14: EVL103/П/60*30/ | B14: =CONCATENATE(A14,VLOOKUP($I$5,'Цвет мет. опор'!A:B,2,0),"/",VLOOKUP($J$5,'Цвет лючка'!A:B,2,0),".",VLOOKUP($K$5,'Цвет столешницы'!A:B,2,FALSE)) -> EVL103/П/60*30/ANT/ANT.U003 | D14: 1600*700*750 | F14: 20793
A15: EVL104/П/60*30/ | B15: =CONCATENATE(A15,VLOOKUP($I$5,'Цвет мет. опор'!A:B,2,0),"/",VLOOKUP($J$5,'Цвет лючка'!A:B,2,0),".",VLOOKUP($K$5,'Цвет столешницы'!A:B,2,FALSE)) -> EVL104/П/60*30/ANT/ANT.U003 | D15: 1800*700*750 | F15: 21261
A16: EVL117/П/60*30/ | B16: =CONCATENATE(A16,VLOOKUP($I$5,'Цвет мет. опор'!A:B,2,0),"/",VLOOKUP($J$5,'Цвет лючка'!A:B,2,0),".",VLOOKUP($K$5,'Цвет столешницы'!A:B,2,FALSE)) -> EVL117/П/60*30/ANT/ANT.U003 | C16: Стол письменный на П образном м/к 60х30, глубиной 800 мм | D16: 1000*800*750 | F16: 18783
A17: EVL118/П/60*30/ | B17: =CONCATENATE(A17,VLOOKUP($I$5,'Цвет мет. опор'!A:B,2,0),"/",VLOOKUP($J$5,'Цвет лючка'!A:B,2,0),".",VLOOKUP($K$5,'Цвет столешницы'!A:B,2,FALSE)) -> EVL118/П/60*30/ANT/ANT.U003 | D17: 1200*800*750 | F17: 19737
A18: EVL119/П/60*30/ | B18: =CONCATENATE(A18,VLOOKUP($I$5,'Цвет мет. опор'!A:B,2,0),"/",VLOOKUP($J$5,'Цвет лючка'!A:B,2,0),".",VLOOKUP($K$5,'Цвет столешницы'!A:B,2,FALSE)) -> EVL119/П/60*30/ANT/ANT.U003 | D18: 1400*800*750 | F18: 20845
A19: EVL120/П/60*30/ | B19: =CONCATENATE(A19,VLOOKUP($I$5,'Цвет мет. опор'!A:B,2,0),"/",VLOOKUP($J$5,'Цвет лючка'!A:B,2,0),".",VLOOKUP($K$5,'Цвет столешницы'!A:B,2,FALSE)) -> EVL120/П/60*30/ANT/ANT.U003 | D19: 1600*800*750 | F19: 21492
A20: EVL121/П/60*30/ | B20: =CONCATENATE(A20,VLOOKUP($I$5,'Цвет мет. опор'!A:B,2,0),"/",VLOOKUP($J$5,'Цвет лючка'!A:B,2,0),".",VLOOKUP($K$5,'Цвет столешницы'!A:B,2,FALSE)) -> EVL121/П/60*30/ANT/ANT.U003 | D20: 1800*800*750 | F20: 22364
A21: EVL122/П/60*30/ | B21: =CONCATENATE(A21,VLOOKUP($I$5,'Цвет мет. опор'!A:B,2,0),"/",VLOOKUP($J$5,'Цвет лючка'!A:B,2,0),".",VLOOKUP($K$5,'Цвет столешницы'!A:B,2,FALSE)) -> EVL122/П/60*30/ANT/ANT.U003 | C21: Стол письменный на П образном м/к 60х30, глубиной 900 мм | D21: 1800*900*750 | F21: 23881
A22: EVL123SX/П/60*30/ | B22: =CONCATENATE(A22,VLOOKUP($I$5,'Цвет мет. опор'!A:B,2,0),"/",VLOOKUP($J$5,'Цвет лючка'!A:B,2,0),".",VLOOKUP($K$5,'Цвет столешницы'!A:B,2,FALSE)) -> EVL123SX/П/60*30/ANT/ANT.U003 | C22: Стол криволинейный левый/правый на П образном м/к 60х30, глубиной 600/900 мм | D22: 1200*900*750 | E22: правый | F22: 19578
A23: EVL123DX/П/60*30/ | B23: =CONCATENATE(A23,VLOOKUP($I$5,'Цвет мет. опор'!A:B,2,0),"/",VLOOKUP($J$5,'Цвет лючка'!A:B,2,0),".",VLOOKUP($K$5,'Цвет столешницы'!A:B,2,FALSE)) -> EVL123DX/П/60*30/ANT/ANT.U003
A24: EVL124SX/П/60*30/ | B24: =CONCATENATE(A24,VLOOKUP($I$5,'Цвет мет. опор'!A:B,2,0),"/",VLOOKUP($J$5,'Цвет лючка'!A:B,2,0),".",VLOOKUP($K$5,'Цвет столешницы'!A:B,2,FALSE)) -> EVL124SX/П/60*30/ANT/ANT.U003 | D24: 1400*900*750 | F24: 20427
A25: EVL124DX/П/60*30/ | B25: =CONCATENATE(A25,VLOOKUP($I$5,'Цвет мет. опор'!A:B,2,0),"/",VLOOKUP($J$5,'Цвет лючка'!A:B,2,0),".",VLOOKUP($K$5,'Цвет столешницы'!A:B,2,FALSE)) -> EVL124DX/П/60*30/ANT/ANT.U003
A26: EVL105SX/П/60*30/ | B26: =CONCATENATE(A26,VLOOKUP($I$5,'Цвет мет. опор'!A:B,2,0),"/",VLOOKUP($J$5,'Цвет лючка'!A:B,2,0),".",VLOOKUP($K$5,'Цвет столешницы'!A:B,2,FALSE)) -> EVL105SX/П/60*30/ANT/ANT.U003 | C26: Стол криволинейный левый/правый на П образном м/к 60х30, глубиной 700/900 мм | D26: 1200*900*750 | E26: правый | F26: 19036
A27: EVL105DX/П/60*30/ | B27: =CONCATENATE(A27,VLOOKUP($I$5,'Цвет мет. опор'!A:B,2,0),"/",VLOOKUP($J$5,'Цвет лючка'!A:B,2,0),".",VLOOKUP($K$5,'Цвет столешницы'!A:B,2,FALSE)) -> EVL105DX/П/60*30/ANT/ANT.U003
A28: EVL106SX/П/60*30/ | B28: =CONCATENATE(A28,VLOOKUP($I$5,'Цвет мет. опор'!A:B,2,0),"/",VLOOKUP($J$5,'Цвет лючка'!A:B,2,0),".",VLOOKUP($K$5,'Цвет столешницы'!A:B,2,FALSE)) -> EVL106SX/П/60*30/ANT/ANT.U003 | D28: 1400*900*750 | F28: 20086
A29: EVL106DX/П/60*30/ | B29: =CONCATENATE(A29,VLOOKUP($I$5,'Цвет мет. опор'!A:B,2,0),"/",VLOOKUP($J$5,'Цвет лючка'!A:B,2,0),".",VLOOKUP($K$5,'Цвет столешницы'!A:B,2,FALSE)) -> EVL106DX/П/60*30/ANT/ANT.U003
A30: EVL107SX/П/60*30/ | B30: =CONCATENATE(A30,VLOOKUP($I$5,'Цвет мет. опор'!A:B,2,0),"/",VLOOKUP($J$5,'Цвет лючка'!A:B,2,0),".",VLOOKUP($K$5,'Цвет столешницы'!A:B,2,FALSE)) -> EVL107SX/П/60*30/ANT/ANT.U003 | D30: 1600*900*750 | F30: 20778
A31: EVL107DX/П/60*30/ | B31: =CONCATENATE(A31,VLOOKUP($I$5,'Цвет мет. опор'!A:B,2,0),"/",VLOOKUP($J$5,'Цвет лючка'!A:B,2,0),".",VLOOKUP($K$5,'Цвет столешницы'!A:B,2,FALSE)) -> EVL107DX/П/60*30/ANT/ANT.U003
A32: EVL125SX/П/60*30/ | B32: =CONCATENATE(A32,VLOOKUP($I$5,'Цвет мет. опор'!A:B,2,0),"/",VLOOKUP($J$5,'Цвет лючка'!A:B,2,0),".",VLOOKUP($K$5,'Цвет столешницы'!A:B,2,FALSE)) -> EVL125SX/П/60*30/ANT/ANT.U003 | C32: Стол криволинейный левый/правый на П образном м/к 60х30, глубиной 800/900 мм | D32: 1400*900*750 | F32: 21370
A33: EVL125DX/П/60*30/ | B33: =CONCATENATE(A33,VLOOKUP($I$5,'Цвет мет. опор'!A:B,2,0),"/",VLOOKUP($J$5,'Цвет лючка'!A:B,2,0),".",VLOOKUP($K$5,'Цвет столешницы'!A:B,2,FALSE)) -> EVL125DX/П/60*30/ANT/ANT.U003
A34: EVL126SX/П/60*30/ | B34: =CONCATENATE(A34,VLOOKUP($I$5,'Цвет мет. опор'!A:B,2,0),"/",VLOOKUP($J$5,'Цвет лючка'!A:B,2,0),".",VLOOKUP($K$5,'Цвет столешницы'!A:B,2,FALSE)) -> EVL126SX/П/60*30/ANT/ANT.U003 | D34: 1600*900*750 | F34: 21977
A35: EVL126DX/П/60*30/ | B35: =CONCATENATE(A35,VLOOKUP($I$5,'Цвет мет. опор'!A:B,2,0),"/",VLOOKUP($J$5,'Цвет лючка'!A:B,2,0),".",VLOOKUP($K$5,'Цвет столешницы'!A:B,2,FALSE)) -> EVL126DX/П/60*30/ANT/ANT.U003
A36: EVL109SX/П/60*30 | B36: =CONCATENATE(A36,VLOOKUP($I$5,'Цвет мет. опор'!A:B,2,0),"/",VLOOKUP($J$5,'Цвет лючка'!A:B,2,0),".",VLOOKUP($K$5,'Цвет столешницы'!A:B,2,FALSE)) -> EVL109SX/П/60*30ANT/ANT.U003 | C36: Стол эргономичный левый/правый на П образном м/к 60х30, глубиной 700/900 мм | D36: 1200х900 /700х750 | F36: 19013
A37: EVL109DX/П/60*31 | B37: =CONCATENATE(A37,VLOOKUP($I$5,'Цвет мет. опор'!A:B,2,0),"/",VLOOKUP($J$5,'Цвет лючка'!A:B,2,0),".",VLOOKUP($K$5,'Цвет столешницы'!A:B,2,FALSE)) -> EVL109DX/П/60*31ANT/ANT.U003
A38: EVL110SX/П/60*30 | B38: =CONCATENATE(A38,VLOOKUP($I$5,'Цвет мет. опор'!A:B,2,0),"/",VLOOKUP($J$5,'Цвет лючка'!A:B,2,0),".",VLOOKUP($K$5,'Цвет столешницы'!A:B,2,FALSE)) -> EVL110SX/П/60*30ANT/ANT.U003 | D38: 1400х900 /700х750 | F38: 20109
A39: EVL110DX/П/60*31 | B39: =CONCATENATE(A39,VLOOKUP($I$5,'Цвет мет. опор'!A:B,2,0),"/",VLOOKUP($J$5,'Цвет лючка'!A:B,2,0),".",VLOOKUP($K$5,'Цвет столешницы'!A:B,2,FALSE)) -> EVL110DX/П/60*31ANT/ANT.U003
A40: EVL111SX/П/60*30 | B40: =CONCATENATE(A40,VLOOKUP($I$5,'Цвет мет. опор'!A:B,2,0),"/",VLOOKUP($J$5,'Цвет лючка'!A:B,2,0),".",VLOOKUP($K$5,'Цвет столешницы'!A:B,2,FALSE)) -> EVL111SX/П/60*30ANT/ANT.U003 | D40: 1600х900 /700х750 | F40: 20753
A41: EVL111DX/П/60*31 | B41: =CONCATENATE(A41,VLOOKUP($I$5,'Цвет мет. опор'!A:B,2,0),"/",VLOOKUP($J$5,'Цвет лючка'!A:B,2,0),".",VLOOKUP($K$5,'Цвет столешницы'!A:B,2,FALSE)) -> EVL111DX/П/60*31ANT/ANT.U003
A42: EVL127SX/П/60*30/ | B42: =CONCATENATE(A42,VLOOKUP($I$5,'Цвет мет. опор'!A:B,2,0),"/",VLOOKUP($J$5,'Цвет лючка'!A:B,2,0),".",VLOOKUP($K$5,'Цвет столешницы'!A:B,2,FALSE)) -> EVL127SX/П/60*30/ANT/ANT.U003 | C42: Стол эргономичный левый/правый на П образном м/к 60х30, глубиной 600/1200 мм | D42: 1400*1200*750 | F42: 30583
A43: EVL127DX/П/60*30/ | B43: =CONCATENATE(A43,VLOOKUP($I$5,'Цвет мет. опор'!A:B,2,0),"/",VLOOKUP($J$5,'Цвет лючка'!A:B,2,0),".",VLOOKUP($K$5,'Цвет столешницы'!A:B,2,FALSE)) -> EVL127DX/П/60*30/ANT/ANT.U003
A44: EVL128SX/П/60*30/ | B44: =CONCATENATE(A44,VLOOKUP($I$5,'Цвет мет. опор'!A:B,2,0),"/",VLOOKUP($J$5,'Цвет лючка'!A:B,2,0),".",VLOOKUP($K$5,'Цвет столешницы'!A:B,2,FALSE)) -> EVL128SX/П/60*30/ANT/ANT.U003 | D44: 1600*1200*750 | F44: 31393
A45: EVL128DX/П/60*30/ | B45: =CONCATENATE(A45,VLOOKUP($I$5,'Цвет мет. опор'!A:B,2,0),"/",VLOOKUP($J$5,'Цвет лючка'!A:B,2,0),".",VLOOKUP($K$5,'Цвет столешницы'!A:B,2,FALSE)) -> EVL128DX/П/60*30/ANT/ANT.U003
A46: EVL129SX/П/60*30/ | B46: =CONCATENATE(A46,VLOOKUP($I$5,'Цвет мет. опор'!A:B,2,0),"/",VLOOKUP($J$5,'Цвет лючка'!A:B,2,0),".",VLOOKUP($K$5,'Цвет столешницы'!A:B,2,FALSE)) -> EVL129SX/П/60*30/ANT/ANT.U003 | C46: Стол эргономичный левый/правый на П образном м/к 60х30, глубиной 700/1200 мм | D46: 1400*1200*750 | F46: 31314
A47: EVL129DX/П/60*30/ | B47: =CONCATENATE(A47,VLOOKUP($I$5,'Цвет мет. опор'!A:B,2,0),"/",VLOOKUP($J$5,'Цвет лючка'!A:B,2,0),".",VLOOKUP($K$5,'Цвет столешницы'!A:B,2,FALSE)) -> EVL129DX/П/60*30/ANT/ANT.U003
A48: EVL130SX/П/60*30/ | B48: =CONCATENATE(A48,VLOOKUP($I$5,'Цвет мет. опор'!A:B,2,0),"/",VLOOKUP($J$5,'Цвет лючка'!A:B,2,0),".",VLOOKUP($K$5,'Цвет столешницы'!A:B,2,FALSE)) -> EVL130SX/П/60*30/ANT/ANT.U003 | D48: 1600*1200*750 | F48: 32388
A49: EVL130DX/П/60*30/ | B49: =CONCATENATE(A49,VLOOKUP($I$5,'Цвет мет. опор'!A:B,2,0),"/",VLOOKUP($J$5,'Цвет лючка'!A:B,2,0),".",VLOOKUP($K$5,'Цвет столешницы'!A:B,2,FALSE)) -> EVL130DX/П/60*30/ANT/ANT.U003
A50: EVL131SX/П/60*30/ | B50: =CONCATENATE(A50,VLOOKUP($I$5,'Цвет мет. опор'!A:B,2,0),"/",VLOOKUP($J$5,'Цвет лючка'!A:B,2,0),".",VLOOKUP($K$5,'Цвет столешницы'!A:B,2,FALSE)) -> EVL131SX/П/60*30/ANT/ANT.U003 | C50: Стол эргономичный левый/правый на П образном м/к 60х30, глубиной 800/1200 мм | D50: 1400*1200*750 | F50: 31452
A51: EVL131DX/П/60*30/ | B51: =CONCATENATE(A51,VLOOKUP($I$5,'Цвет мет. опор'!A:B,2,0),"/",VLOOKUP($J$5,'Цвет лючка'!A:B,2,0),".",VLOOKUP($K$5,'Цвет столешницы'!A:B,2,FALSE)) -> EVL131DX/П/60*30/ANT/ANT.U003
A52: EVL132SX/П/60*30/ | B52: =CONCATENATE(A52,VLOOKUP($I$5,'Цвет мет. опор'!A:B,2,0),"/",VLOOKUP($J$5,'Цвет лючка'!A:B,2,0),".",VLOOKUP($K$5,'Цвет столешницы'!A:B,2,FALSE)) -> EVL132SX/П/60*30/ANT/ANT.U003 | D52: 1600*1200*750 | F52: 32179
A53: EVL132DX/П/60*30/ | B53: =CONCATENATE(A53,VLOOKUP($I$5,'Цвет мет. опор'!A:B,2,0),"/",VLOOKUP($J$5,'Цвет лючка'!A:B,2,0),".",VLOOKUP($K$5,'Цвет столешницы'!A:B,2,FALSE)) -> EVL132DX/П/60*30/ANT/ANT.U003
A54: EVL601/П/60*30/ | B54: =CONCATENATE(A54,VLOOKUP($I$5,'Цвет мет. опор'!A:B,2,0),"/",VLOOKUP($J$5,'Цвет лючка'!A:B,2,0),".",VLOOKUP($K$5,'Цвет столешницы'!A:B,2,FALSE)) -> EVL601/П/60*30/ANT/ANT.U003 | C54: Рабочая станция на П образном м/к 60х30, глубиной 1236 мм | D54: 1200*1236*750 | F54: 31304
A55: EVL602/П/60*30/ | B55: =CONCATENATE(A55,VLOOKUP($I$5,'Цвет мет. опор'!A:B,2,0),"/",VLOOKUP($J$5,'Цвет лючка'!A:B,2,0),".",VLOOKUP($K$5,'Цвет столешницы'!A:B,2,FALSE)) -> EVL602/П/60*30/ANT/ANT.U003 | D55: 1400*1236*750 | F55: 32199
A56: EVL603/П/60*30/ | B56: =CONCATENATE(A56,VLOOKUP($I$5,'Цвет мет. опор'!A:B,2,0),"/",VLOOKUP($J$5,'Цвет лючка'!A:B,2,0),".",VLOOKUP($K$5,'Цвет столешницы'!A:B,2,FALSE)) -> EVL603/П/60*30/ANT/ANT.U003 | D56: 1600*1236*750 | F56: 34363
A57: EVL681/П/60*30/ | B57: =CONCATENATE(A57,VLOOKUP($I$5,'Цвет мет. опор'!A:B,2,0),"/",VLOOKUP($J$5,'Цвет лючка'!A:B,2,0),".",VLOOKUP($K$5,'Цвет столешницы'!A:B,2,FALSE)) -> EVL681/П/60*30/ANT/ANT.U003 | D57: 1800*1236*751 | F57: 37030
A58: EVL604/П/60*30/ | B58: =CONCATENATE(A58,VLOOKUP($I$5,'Цвет мет. опор'!A:B,2,0),"/",VLOOKUP($J$5,'Цвет лючка'!A:B,2,0),".",VLOOKUP($K$5,'Цвет столешницы'!A:B,2,FALSE)) -> EVL604/П/60*30/ANT/ANT.U003 | C58: Рабочая станция на П образном м/к 60х30 глубиной 1436 мм | D58: 1200*1436*750 | F58: 28582
A59: EVL605/П/60*30/ | B59: =CONCATENATE(A59,VLOOKUP($I$5,'Цвет мет. опор'!A:B,2,0),"/",VLOOKUP($J$5,'Цвет лючка'!A:B,2,0),".",VLOOKUP($K$5,'Цвет столешницы'!A:B,2,FALSE)) -> EVL605/П/60*30/ANT/ANT.U003 | D59: 1400*1436*750 | F59: 34592
A60: EVL606/П/60*30/ | B60: =CONCATENATE(A60,VLOOKUP($I$5,'Цвет мет. опор'!A:B,2,0),"/",VLOOKUP($J$5,'Цвет лючка'!A:B,2,0),".",VLOOKUP($K$5,'Цвет столешницы'!A:B,2,FALSE)) -> EVL606/П/60*30/ANT/ANT.U003 | D60: 1600*1436*750 | F60: 35839
A61: EVL682/П/60*30/ | B61: =CONCATENATE(A61,VLOOKUP($I$5,'Цвет мет. опор'!A:B,2,0),"/",VLOOKUP($J$5,'Цвет лючка'!A:B,2,0),".",VLOOKUP($K$5,'Цвет столешницы'!A:B,2,FALSE)) -> EVL682/П/60*30/ANT/ANT.U003 | D61: 1800*1436*751 | F61: 38842
A62: EVL607/П/60*30/ | B62: =CONCATENATE(A62,VLOOKUP($I$5,'Цвет мет. опор'!A:B,2,0),"/",VLOOKUP($J$5,'Цвет лючка'!A:B,2,0),".",VLOOKUP($K$5,'Цвет столешницы'!A:B,2,FALSE)) -> EVL607/П/60*30/ANT/ANT.U003 | C62: Рабочая станция на П образном м/к 60х30 глубиной 1636 мм | D62: 1200*1636*750 | F62: 34242
A63: EVL608/П/60*30/ | B63: =CONCATENATE(A63,VLOOKUP($I$5,'Цвет мет. опор'!A:B,2,0),"/",VLOOKUP($J$5,'Цвет лючка'!A:B,2,0),".",VLOOKUP($K$5,'Цвет столешницы'!A:B,2,FALSE)) -> EVL608/П/60*30/ANT/ANT.U003 | D63: 1400*1636*750 | F63: 35933
A64: EVL609/П/60*30/ | B64: =CONCATENATE(A64,VLOOKUP($I$5,'Цвет мет. опор'!A:B,2,0),"/",VLOOKUP($J$5,'Цвет лючка'!A:B,2,0),".",VLOOKUP($K$5,'Цвет столешницы'!A:B,2,FALSE)) -> EVL609/П/60*30/ANT/ANT.U003 | D64: 1600*1636*750 | F64: 37332
A65: EVL683/П/60*30/ | B65: =CONCATENATE(A65,VLOOKUP($I$5,'Цвет мет. опор'!A:B,2,0),"/",VLOOKUP($J$5,'Цвет лючка'!A:B,2,0),".",VLOOKUP($K$5,'Цвет столешницы'!A:B,2,FALSE)) -> EVL683/П/60*30/ANT/ANT.U003 | D65: 1800*1636*751 | F65: 43511
A66: EVL610/П/60*30/ | B66: =CONCATENATE(A66,VLOOKUP($I$5,'Цвет мет. опор'!A:B,2,0),"/",VLOOKUP($J$5,'Цвет лючка'!A:B,2,0),".",VLOOKUP($K$5,'Цвет столешницы'!A:B,2,FALSE)) -> EVL610/П/60*30/ANT/ANT.U003 | C66: Рабочая станция криволинейная на П образном м/к 60х30 глубиной 1236/1836 | D66: 1200*1836*750 | F66: 34158
A67: EVL611/П/60*30/ | B67: =CONCATENATE(A67,VLOOKUP($I$5,'Цвет мет. опор'!A:B,2,0),"/",VLOOKUP($J$5,'Цвет лючка'!A:B,2,0),".",VLOOKUP($K$5,'Цвет столешницы'!A:B,2,FALSE)) -> EVL611/П/60*30/ANT/ANT.U003 | D67: 1400*1836*750 | F67: 34723
A68: EVL612/П/60*30/ | B68: =CONCATENATE(A68,VLOOKUP($I$5,'Цвет мет. опор'!A:B,2,0),"/",VLOOKUP($J$5,'Цвет лючка'!A:B,2,0),".",VLOOKUP($K$5,'Цвет столешницы'!A:B,2,FALSE)) -> EVL612/П/60*30/ANT/ANT.U003 | D68: 1600*1836*750 | F68: 36363
A69: EVL613/П/60*30/ | B69: =CONCATENATE(A69,VLOOKUP($I$5,'Цвет мет. опор'!A:B,2,0),"/",VLOOKUP($J$5,'Цвет лючка'!A:B,2,0),".",VLOOKUP($K$5,'Цвет столешницы'!A:B,2,FALSE)) -> EVL613/П/60*30/ANT/ANT.U003 | C69: Рабочая станция криволинейная на П-образном м/к 60х30 глубиной 1436/1836 | D69: 1200*1836*750 | F69: 33733
A70: EVL614/П/60*30/ | B70: =CONCATENATE(A70,VLOOKUP($I$5,'Цвет мет. опор'!A:B,2,0),"/",VLOOKUP($J$5,'Цвет лючка'!A:B,2,0),".",VLOOKUP($K$5,'Цвет столешницы'!A:B,2,FALSE)) -> EVL614/П/60*30/ANT/ANT.U003 | D70: 1400*1836*750 | F70: 34885
A71: EVL615/П/60*30/ | B71: =CONCATENATE(A71,VLOOKUP($I$5,'Цвет мет. опор'!A:B,2,0),"/",VLOOKUP($J$5,'Цвет лючка'!A:B,2,0),".",VLOOKUP($K$5,'Цвет столешницы'!A:B,2,FALSE)) -> EVL615/П/60*30/ANT/ANT.U003 | D71: 1600*1836*750 | F71: 36262
A72: EVL616/П/60*30/ | B72: =CONCATENATE(A72,VLOOKUP($I$5,'Цвет мет. опор'!A:B,2,0),"/",VLOOKUP($J$5,'Цвет лючка'!A:B,2,0),".",VLOOKUP($K$5,'Цвет столешницы'!A:B,2,FALSE)) -> EVL616/П/60*30/ANT/ANT.U003 | C72: Рабочая станция эргономичная на П-образном м/к 60х30 глубиной 1236/2436 | D72: 1400*2436*750 | F72: 56342
A73: EVL617/П/60*30/ | B73: =CONCATENATE(A73,VLOOKUP($I$5,'Цвет мет. опор'!A:B,2,0),"/",VLOOKUP($J$5,'Цвет лючка'!A:B,2,0),".",VLOOKUP($K$5,'Цвет столешницы'!A:B,2,FALSE)) -> EVL617/П/60*30/ANT/ANT.U003 | D73: 1600*2436*750 | F73: 57961
A74: EVL618/П/60*30/ | B74: =CONCATENATE(A74,VLOOKUP($I$5,'Цвет мет. опор'!A:B,2,0),"/",VLOOKUP($J$5,'Цвет лючка'!A:B,2,0),".",VLOOKUP($K$5,'Цвет столешницы'!A:B,2,FALSE)) -> EVL618/П/60*30/ANT/ANT.U003 | C74: Рабочая станция эргономичная на П-образном м/к 60х30 глубиной 1436/2436 | D74: 1400*2440*750 | F74: 57429
A75: EVL619/П/60*30/ | B75: =CONCATENATE(A75,VLOOKUP($I$5,'Цвет мет. опор'!A:B,2,0),"/",VLOOKUP($J$5,'Цвет лючка'!A:B,2,0),".",VLOOKUP($K$5,'Цвет столешницы'!A:B,2,FALSE)) -> EVL619/П/60*30/ANT/ANT.U003 | D75: 1600*2440*750 | F75: 58903
A76: EVL620/П/60*30/ | B76: =CONCATENATE(A76,VLOOKUP($I$5,'Цвет мет. опор'!A:B,2,0),"/",VLOOKUP($J$5,'Цвет лючка'!A:B,2,0),".",VLOOKUP($K$5,'Цвет столешницы'!A:B,2,FALSE)) -> EVL620/П/60*30/ANT/ANT.U003 | C76: Рабочая станция эргономичная на П-образном м/к 60х30 глубиной 1636/2436 | D76: 1400*2440*750 | F76: 57640
A77: EVL621/П/60*30/ | B77: =CONCATENATE(A77,VLOOKUP($I$5,'Цвет мет. опор'!A:B,2,0),"/",VLOOKUP($J$5,'Цвет лючка'!A:B,2,0),".",VLOOKUP($K$5,'Цвет столешницы'!A:B,2,FALSE)) -> EVL621/П/60*30/ANT/ANT.U003 | D77: 1600*2440*750 | F77: 59094
A78: EVL622/П/60*30/ | B78: =CONCATENATE(A78,VLOOKUP($I$5,'Цвет мет. опор'!A:B,2,0),"/",VLOOKUP($J$5,'Цвет лючка'!A:B,2,0),".",VLOOKUP($K$5,'Цвет столешницы'!A:B,2,FALSE)) -> EVL622/П/60*30/ANT/ANT.U003 | C78: Рабочая станция эргономичная на П-образном м/к 60х30 глубиной 600/900 | D78: 2400*900*750 | F78: 37222
A79: EVL623/П/60*30/ | B79: =CONCATENATE(A79,VLOOKUP($I$5,'Цвет мет. опор'!A:B,2,0),"/",VLOOKUP($J$5,'Цвет лючка'!A:B,2,0),".",VLOOKUP($K$5,'Цвет столешницы'!A:B,2,FALSE)) -> EVL623/П/60*30/ANT/ANT.U003 | D79: 2800*900*750 | F79: 39285
A80: EVL624/П/60*30/ | B80: =CONCATENATE(A80,VLOOKUP($I$5,'Цвет мет. опор'!A:B,2,0),"/",VLOOKUP($J$5,'Цвет лючка'!A:B,2,0),".",VLOOKUP($K$5,'Цвет столешницы'!A:B,2,FALSE)) -> EVL624/П/60*30/ANT/ANT.U003 | D80: 3200*900*750 | F80: 40526
A81: EVL625/П/60*30/ | B81: =CONCATENATE(A81,VLOOKUP($I$5,'Цвет мет. опор'!A:B,2,0),"/",VLOOKUP($J$5,'Цвет лючка'!A:B,2,0),".",VLOOKUP($K$5,'Цвет столешницы'!A:B,2,FALSE)) -> EVL625/П/60*30/ANT/ANT.U003 | C81: Рабочая станция эргономичная на П-образном м/к 60х30 глубиной 700/900 | D81: 2400*900*750 | F81: 36456
A82: EVL626/П/60*30/ | B82: =CONCATENATE(A82,VLOOKUP($I$5,'Цвет мет. опор'!A:B,2,0),"/",VLOOKUP($J$5,'Цвет лючка'!A:B,2,0),".",VLOOKUP($K$5,'Цвет столешницы'!A:B,2,FALSE)) -> EVL626/П/60*30/ANT/ANT.U003 | D82: 2800*900*750 | F82: 38377
A83: EVL627/П/60*30/ | B83: =CONCATENATE(A83,VLOOKUP($I$5,'Цвет мет. опор'!A:B,2,0),"/",VLOOKUP($J$5,'Цвет лючка'!A:B,2,0),".",VLOOKUP($K$5,'Цвет столешницы'!A:B,2,FALSE)) -> EVL627/П/60*30/ANT/ANT.U003 | D83: 3200*900*750 | F83: 40005
A84: EVL628/П/60*30/ | B84: =CONCATENATE(A84,VLOOKUP($I$5,'Цвет мет. опор'!A:B,2,0),"/",VLOOKUP($J$5,'Цвет лючка'!A:B,2,0),".",VLOOKUP($K$5,'Цвет столешницы'!A:B,2,FALSE)) -> EVL628/П/60*30/ANT/ANT.U003 | C84: Рабочая станция эргономичная на П-образном м/к 60х30 глубиной 800/900 | D84: 2400*900*750 | F84: 38049
A85: EVL629/П/60*30/ | B85: =CONCATENATE(A85,VLOOKUP($I$5,'Цвет мет. опор'!A:B,2,0),"/",VLOOKUP($J$5,'Цвет лючка'!A:B,2,0),".",VLOOKUP($K$5,'Цвет столешницы'!A:B,2,FALSE)) -> EVL629/П/60*30/ANT/ANT.U003 | D85: 2800*900*750 | F85: 40066
A86: EVL630/П/60*30/ | B86: =CONCATENATE(A86,VLOOKUP($I$5,'Цвет мет. опор'!A:B,2,0),"/",VLOOKUP($J$5,'Цвет лючка'!A:B,2,0),".",VLOOKUP($K$5,'Цвет столешницы'!A:B,2,FALSE)) -> EVL630/П/60*30/ANT/ANT.U003 | D86: 3200*900*750 | F86: 41280
A87: EVL631/П/60*30/ | B87: =CONCATENATE(A87,VLOOKUP($I$5,'Цвет мет. опор'!A:B,2,0),"/",VLOOKUP($J$5,'Цвет лючка'!A:B,2,0),".",VLOOKUP($K$5,'Цвет столешницы'!A:B,2,FALSE)) -> EVL631/П/60*30/ANT/ANT.U003 | C87: Рабочая станция эргономичная на П-образном м/к 60х30 глубиной 600/1200 | D87: 2400*1200*750 | F87: 41944
A88: EVL632/П/60*30/ | B88: =CONCATENATE(A88,VLOOKUP($I$5,'Цвет мет. опор'!A:B,2,0),"/",VLOOKUP($J$5,'Цвет лючка'!A:B,2,0),".",VLOOKUP($K$5,'Цвет столешницы'!A:B,2,FALSE)) -> EVL632/П/60*30/ANT/ANT.U003 | D88: 2800*1200*750 | F88: 44107
A89: EVL633/П/60*30/ | B89: =CONCATENATE(A89,VLOOKUP($I$5,'Цвет мет. опор'!A:B,2,0),"/",VLOOKUP($J$5,'Цвет лючка'!A:B,2,0),".",VLOOKUP($K$5,'Цвет столешницы'!A:B,2,FALSE)) -> EVL633/П/60*30/ANT/ANT.U003 | D89: 3200*1200*750 | F89: 45726
A90: EVL634/П/60*30/ | B90: =CONCATENATE(A90,VLOOKUP($I$5,'Цвет мет. опор'!A:B,2,0),"/",VLOOKUP($J$5,'Цвет лючка'!A:B,2,0),".",VLOOKUP($K$5,'Цвет столешницы'!A:B,2,FALSE)) -> EVL634/П/60*30/ANT/ANT.U003 | C90: Рабочая станция эргономичная на П-образном м/к 60х30 глубиной 700/1200 | D90: 2400*1200*750 | F90: 42332
A91: EVL635/П/60*30/ | B91: =CONCATENATE(A91,VLOOKUP($I$5,'Цвет мет. опор'!A:B,2,0),"/",VLOOKUP($J$5,'Цвет лючка'!A:B,2,0),".",VLOOKUP($K$5,'Цвет столешницы'!A:B,2,FALSE)) -> EVL635/П/60*30/ANT/ANT.U003 | D91: 2800*1200*750 | F91: 44803
A92: EVL636/П/60*30/ | B92: =CONCATENATE(A92,VLOOKUP($I$5,'Цвет мет. опор'!A:B,2,0),"/",VLOOKUP($J$5,'Цвет лючка'!A:B,2,0),".",VLOOKUP($K$5,'Цвет столешницы'!A:B,2,FALSE)) -> EVL636/П/60*30/ANT/ANT.U003 | D92: 3200*1200*750 | F92: 46477
A93: EVL637/П/60*30/ | B93: =CONCATENATE(A93,VLOOKUP($I$5,'Цвет мет. опор'!A:B,2,0),"/",VLOOKUP($J$5,'Цвет лючка'!A:B,2,0),".",VLOOKUP($K$5,'Цвет столешницы'!A:B,2,FALSE)) -> EVL637/П/60*30/ANT/ANT.U003 | C93: Рабочая станция эргономичная на П-образном м/к 60х30 глубиной 800/1200 | D93: 2400*1200*750 | F93: 42703
A94: EVL638/П/60*30/ | B94: =CONCATENATE(A94,VLOOKUP($I$5,'Цвет мет. опор'!A:B,2,0),"/",VLOOKUP($J$5,'Цвет лючка'!A:B,2,0),".",VLOOKUP($K$5,'Цвет столешницы'!A:B,2,FALSE)) -> EVL638/П/60*30/ANT/ANT.U003 | D94: 2800*1200*750 | F94: 45306
A95: EVL639/П/60*30/ | B95: =CONCATENATE(A95,VLOOKUP($I$5,'Цвет мет. опор'!A:B,2,0),"/",VLOOKUP($J$5,'Цвет лючка'!A:B,2,0),".",VLOOKUP($K$5,'Цвет столешницы'!A:B,2,FALSE)) -> EVL639/П/60*30/ANT/ANT.U003 | D95: 3200*1200*750 | F95: 46760
A96: EVL180/П/60*30/ | B96: =CONCATENATE(A96,VLOOKUP($I$5,'Цвет мет. опор'!A:B,2,0),"/",VLOOKUP($J$5,'Цвет лючка'!A:B,2,0),".",VLOOKUP($K$5,'Цвет столешницы'!A:B,2,FALSE)) -> EVL180/П/60*30/ANT/ANT.U003 | C96: Приставка к столу рабочая 1000х500 (используется в качестве брифинга или боковой приставки) | D96: 1000x500x750 | F96: 12604
A97: EVL135/П/60*30/ | B97: =CONCATENATE(A97,VLOOKUP($I$5,'Цвет мет. опор'!A:B,2,0),"/",VLOOKUP($J$5,'Цвет лючка'!A:B,2,0),".",VLOOKUP($K$5,'Цвет столешницы'!A:B,2,FALSE)) -> EVL135/П/60*30/ANT/ANT.U003 | C97: Приставной элемент на П-образном м/к 60х30 глубиной 700 (используется только в качестве брифинга) | D97: 1000*600*750 | F97: 13346
A98: EVL137/П/60*30/ | B98: =CONCATENATE(A98,VLOOKUP($I$5,'Цвет мет. опор'!A:B,2,0),"/",VLOOKUP($J$5,'Цвет лючка'!A:B,2,0),".",VLOOKUP($K$5,'Цвет столешницы'!A:B,2,FALSE)) -> EVL137/П/60*30/ANT/ANT.U003 | D98: 1200*700*750 | F98: 14499
A99: EVL701/П/60*30/ | B99: =CONCATENATE(A99,VLOOKUP($I$5,'Цвет мет. опор'!A:B,2,0),"/",VLOOKUP($J$5,'Цвет лючка'!A:B,2,0),".",VLOOKUP($K$5,'Цвет столешницы'!A:B,2,FALSE)) -> EVL701/П/60*30/ANT/ANT.U003 | C99: Рабочая станция на П образном м/к 60х30 с тумбой (композиция стол+тумба) | D99: 1450*700*750 | E99: Тумба 450х700х750 | F99: 33487
A100: EVL702/П/60*30/ | B100: =CONCATENATE(A100,VLOOKUP($I$5,'Цвет мет. опор'!A:B,2,0),"/",VLOOKUP($J$5,'Цвет лючка'!A:B,2,0),".",VLOOKUP($K$5,'Цвет столешницы'!A:B,2,FALSE)) -> EVL702/П/60*30/ANT/ANT.U003 | D100: 1650*700*750 | F100: 34439
A101: EVL703/П/60*30/ | B101: =CONCATENATE(A101,VLOOKUP($I$5,'Цвет мет. опор'!A:B,2,0),"/",VLOOKUP($J$5,'Цвет лючка'!A:B,2,0),".",VLOOKUP($K$5,'Цвет столешницы'!A:B,2,FALSE)) -> EVL703/П/60*30/ANT/ANT.U003 | D101: 1850*700*750 | F101: 35290
A102: EVL704/П/60*30/ | B102: =CONCATENATE(A102,VLOOKUP($I$5,'Цвет мет. опор'!A:B,2,0),"/",VLOOKUP($J$5,'Цвет лючка'!A:B,2,0),".",VLOOKUP($K$5,'Цвет столешницы'!A:B,2,FALSE)) -> EVL704/П/60*30/ANT/ANT.U003 | D102: 2050*700*750 | F102: 36012
A103: EVL705/П/60*30/ | B103: =CONCATENATE(A103,VLOOKUP($I$5,'Цвет мет. опор'!A:B,2,0),"/",VLOOKUP($J$5,'Цвет лючка'!A:B,2,0),".",VLOOKUP($K$5,'Цвет столешницы'!A:B,2,FALSE)) -> EVL705/П/60*30/ANT/ANT.U003 | D103: 2250*700*750 | F103: 36479
A104: EVL706/П/60*30/ | B104: =CONCATENATE(A104,VLOOKUP($I$5,'Цвет мет. опор'!A:B,2,0),"/",VLOOKUP($J$5,'Цвет лючка'!A:B,2,0),".",VLOOKUP($K$5,'Цвет столешницы'!A:B,2,FALSE)) -> EVL706/П/60*30/ANT/ANT.U003 | C104: Рабочая станция на П образном м/к 60х30 с тумбой (композиция двойной бенч+тумба) | D104: 1450*1436*750 | E104: Тумба 450х1436х750 | F104: 57951
A105: EVL707/П/60*30/ | B105: =CONCATENATE(A105,VLOOKUP($I$5,'Цвет мет. опор'!A:B,2,0),"/",VLOOKUP($J$5,'Цвет лючка'!A:B,2,0),".",VLOOKUP($K$5,'Цвет столешницы'!A:B,2,FALSE)) -> EVL707/П/60*30/ANT/ANT.U003 | D105: 1650*1436*750 | F105: 59676
A106: EVL708/П/60*30/ | B106: =CONCATENATE(A106,VLOOKUP($I$5,'Цвет мет. опор'!A:B,2,0),"/",VLOOKUP($J$5,'Цвет лючка'!A:B,2,0),".",VLOOKUP($K$5,'Цвет столешницы'!A:B,2,FALSE)) -> EVL708/П/60*30/ANT/ANT.U003 | D106: 1850*1436*750 | F106: 61374
A107: EVL709/П/60*30/ | B107: =CONCATENATE(A107,VLOOKUP($I$5,'Цвет мет. опор'!A:B,2,0),"/",VLOOKUP($J$5,'Цвет лючка'!A:B,2,0),".",VLOOKUP($K$5,'Цвет столешницы'!A:B,2,FALSE)) -> EVL709/П/60*30/ANT/ANT.U003 | D107: 2050*1436*750 | F107: 62477
A108: EVL710/П/60*30/ | B108: =CONCATENATE(A108,VLOOKUP($I$5,'Цвет мет. опор'!A:B,2,0),"/",VLOOKUP($J$5,'Цвет лючка'!A:B,2,0),".",VLOOKUP($K$5,'Цвет столешницы'!A:B,2,FALSE)) -> EVL710/П/60*30/ANT/ANT.U003 | D108: 2250*1436*750 | F108: 63970
A109: EVL711/П/60*30/ | B109: =CONCATENATE(A109,VLOOKUP($I$5,'Цвет мет. опор'!A:B,2,0),"/",VLOOKUP($J$5,'Цвет лючка'!A:B,2,0),".",VLOOKUP($K$5,'Цвет столешницы'!A:B,2,FALSE)) -> EVL711/П/60*30/ANT/ANT.U003 | C109: Рабочая станция на П образном м/к 60х30 со шкафом-купе (композиция двойной бенч+шкаф-купе) | D109: 1410*1436*750 | E109: Шкаф-купе приставной 1440х410х750 | F109: 51855
A110: EVL712/П/60*30/ | B110: =CONCATENATE(A110,VLOOKUP($I$5,'Цвет мет. опор'!A:B,2,0),"/",VLOOKUP($J$5,'Цвет лючка'!A:B,2,0),".",VLOOKUP($K$5,'Цвет столешницы'!A:B,2,FALSE)) -> EVL712/П/60*30/ANT/ANT.U003 | D110: 1610*1436*750 | F110: 49047
A111: EVL713/П/60*30/ | B111: =CONCATENATE(A111,VLOOKUP($I$5,'Цвет мет. опор'!A:B,2,0),"/",VLOOKUP($J$5,'Цвет лючка'!A:B,2,0),".",VLOOKUP($K$5,'Цвет столешницы'!A:B,2,FALSE)) -> EVL713/П/60*30/ANT/ANT.U003 | D111: 1810*1436*750 | F111: 55056
A112: EVL714/П/60*30/ | B112: =CONCATENATE(A112,VLOOKUP($I$5,'Цвет мет. опор'!A:B,2,0),"/",VLOOKUP($J$5,'Цвет лючка'!A:B,2,0),".",VLOOKUP($K$5,'Цвет столешницы'!A:B,2,FALSE)) -> EVL714/П/60*30/ANT/ANT.U003 | D112: 2010*1436*750 | F112: 56304
A113: EVL715/П/60*30/ | B113: =CONCATENATE(A113,VLOOKUP($I$5,'Цвет мет. опор'!A:B,2,0),"/",VLOOKUP($J$5,'Цвет лючка'!A:B,2,0),".",VLOOKUP($K$5,'Цвет столешницы'!A:B,2,FALSE)) -> EVL715/П/60*30/ANT/ANT.U003 | D113: 2210*1436*750 | F113: 57874
A114: EVL716/П/60*30/ | B114: =CONCATENATE(A114,VLOOKUP($I$5,'Цвет мет. опор'!A:B,2,0),"/",VLOOKUP($J$5,'Цвет лючка'!A:B,2,0),".",VLOOKUP($K$5,'Цвет столешницы'!A:B,2,FALSE)) -> EVL716/П/60*30/ANT/ANT.U003 | C114: Рабочая станция на П образном м/к 60х30 со шкафом-купе (композиция двойной бенч+шкаф-купе) | D114: 1410*1436*1098 | E114: Шкаф-купе приставной 1440х410х1098 | F114: 56717
A115: EVL717/П/60*30/ | B115: =CONCATENATE(A115,VLOOKUP($I$5,'Цвет мет. опор'!A:B,2,0),"/",VLOOKUP($J$5,'Цвет лючка'!A:B,2,0),".",VLOOKUP($K$5,'Цвет столешницы'!A:B,2,FALSE)) -> EVL717/П/60*30/ANT/ANT.U003 | D115: 1610*1436*1098 | F115: 53909
A116: EVL718/П/60*30/ | B116: =CONCATENATE(A116,VLOOKUP($I$5,'Цвет мет. опор'!A:B,2,0),"/",VLOOKUP($J$5,'Цвет лючка'!A:B,2,0),".",VLOOKUP($K$5,'Цвет столешницы'!A:B,2,FALSE)) -> EVL718/П/60*30/ANT/ANT.U003 | D116: 1810*1436*1098 | F116: 59918
A117: EVL719/П/60*30/ | B117: =CONCATENATE(A117,VLOOKUP($I$5,'Цвет мет. опор'!A:B,2,0),"/",VLOOKUP($J$5,'Цвет лючка'!A:B,2,0),".",VLOOKUP($K$5,'Цвет столешницы'!A:B,2,FALSE)) -> EVL719/П/60*30/ANT/ANT.U003 | D117: 2010*1436*1098 | F117: 61166
A118: EVL720/П/60*30/ | B118: =CONCATENATE(A118,VLOOKUP($I$5,'Цвет мет. опор'!A:B,2,0),"/",VLOOKUP($J$5,'Цвет лючка'!A:B,2,0),".",VLOOKUP($K$5,'Цвет столешницы'!A:B,2,FALSE)) -> EVL720/П/60*30/ANT/ANT.U003 | D118: 2210*1436*1098 | F118: 62736
A119: EVL721/П/60*30/ | B119: =CONCATENATE(A119,VLOOKUP($I$5,'Цвет мет. опор'!A:B,2,0),"/",VLOOKUP($J$5,'Цвет лючка'!A:B,2,0),".",VLOOKUP($K$5,'Цвет столешницы'!A:B,2,FALSE)) -> EVL721/П/60*30/ANT/ANT.U003 | C119: Стол письменный на П образном м/к 60х30 со шкафом-купе (композиция двойной бенч+шкаф-купе) | D119: 1410*1240*1098 | E119: Шкаф-купе приставной 1240х410х1098 | F119: 41218
A120: EVL722/П/60*30/ | B120: =CONCATENATE(A120,VLOOKUP($I$5,'Цвет мет. опор'!A:B,2,0),"/",VLOOKUP($J$5,'Цвет лючка'!A:B,2,0),".",VLOOKUP($K$5,'Цвет столешницы'!A:B,2,FALSE)) -> EVL722/П/60*30/ANT/ANT.U003 | D120: 1610*1240*1098 | F120: 42170
A121: EVL723/П/60*30/ | B121: =CONCATENATE(A121,VLOOKUP($I$5,'Цвет мет. опор'!A:B,2,0),"/",VLOOKUP($J$5,'Цвет лючка'!A:B,2,0),".",VLOOKUP($K$5,'Цвет столешницы'!A:B,2,FALSE)) -> EVL723/П/60*30/ANT/ANT.U003 | D121: 1810*1240*1098 | F121: 43021
A122: EVL724/П/60*30/ | B122: =CONCATENATE(A122,VLOOKUP($I$5,'Цвет мет. опор'!A:B,2,0),"/",VLOOKUP($J$5,'Цвет лючка'!A:B,2,0),".",VLOOKUP($K$5,'Цвет столешницы'!A:B,2,FALSE)) -> EVL724/П/60*30/ANT/ANT.U003 | D122: 2010*1240*1098 | F122: 43743
A123: EVL725/П/60*30/ | B123: =CONCATENATE(A123,VLOOKUP($I$5,'Цвет мет. опор'!A:B,2,0),"/",VLOOKUP($J$5,'Цвет лючка'!A:B,2,0),".",VLOOKUP($K$5,'Цвет столешницы'!A:B,2,FALSE)) -> EVL725/П/60*30/ANT/ANT.U003 | D123: 2210*1240*1098 | F123: 44210
A124: EVL726/П/60*30/ | B124: =CONCATENATE(A124,VLOOKUP($I$5,'Цвет мет. опор'!A:B,2,0),"/",VLOOKUP($J$5,'Цвет лючка'!A:B,2,0),".",VLOOKUP($K$5,'Цвет столешницы'!A:B,2,FALSE)) -> EVL726/П/60*30/ANT/ANT.U003 | C124: Рабочая станция на П образном м/к 60х30 со шкафом-купе (композиция двойной бенч+шкаф-купе) | D124: 1410*2332*1098 | E124: Шкаф-купе приставной 2332х410х1098 | F124: 80363
A125: EVL727/П/60*30/ | B125: =CONCATENATE(A125,VLOOKUP($I$5,'Цвет мет. опор'!A:B,2,0),"/",VLOOKUP($J$5,'Цвет лючка'!A:B,2,0),".",VLOOKUP($K$5,'Цвет столешницы'!A:B,2,FALSE)) -> EVL727/П/60*30/ANT/ANT.U003 | D125: 1610*2332*1098 | F125: 77556
A126: EVL728/П/60*30/ | B126: =CONCATENATE(A126,VLOOKUP($I$5,'Цвет мет. опор'!A:B,2,0),"/",VLOOKUP($J$5,'Цвет лючка'!A:B,2,0),".",VLOOKUP($K$5,'Цвет столешницы'!A:B,2,FALSE)) -> EVL728/П/60*30/ANT/ANT.U003 | D126: 1810*2332*1098 | F126: 83565
A127: EVL729/П/60*30/ | B127: =CONCATENATE(A127,VLOOKUP($I$5,'Цвет мет. опор'!A:B,2,0),"/",VLOOKUP($J$5,'Цвет лючка'!A:B,2,0),".",VLOOKUP($K$5,'Цвет столешницы'!A:B,2,FALSE)) -> EVL729/П/60*30/ANT/ANT.U003 | D127: 2010*2332*1098 | F127: 84812
A128: EVL730/П/60*30/ | B128: =CONCATENATE(A128,VLOOKUP($I$5,'Цвет мет. опор'!A:B,2,0),"/",VLOOKUP($J$5,'Цвет лючка'!A:B,2,0),".",VLOOKUP($K$5,'Цвет столешницы'!A:B,2,FALSE)) -> EVL730/П/60*30/ANT/ANT.U003 | D128: 2210*2332*1098 | F128: 86383
A129: EVL731/П/60*30/ | B129: =CONCATENATE(A129,VLOOKUP($I$5,'Цвет мет. опор'!A:B,2,0),"/",VLOOKUP($J$5,'Цвет лючка'!A:B,2,0),".",VLOOKUP($K$5,'Цвет столешницы'!A:B,2,FALSE)) -> EVL731/П/60*30/ANT/ANT.U003 | C129: Рабочая станция на П образном м/к 60х30 с тумбой левая/правая | D129: 1450*1250*750 L | E129: правый | F129: 32859
A130: EVL732/П/60*30/ | B130: =CONCATENATE(A130,VLOOKUP($I$5,'Цвет мет. опор'!A:B,2,0),"/",VLOOKUP($J$5,'Цвет лючка'!A:B,2,0),".",VLOOKUP($K$5,'Цвет столешницы'!A:B,2,FALSE)) -> EVL732/П/60*30/ANT/ANT.U003 | D130: 1450*1250*750 R | F130: 32859
A131: EVL733/П/60*30/ | B131: =CONCATENATE(A131,VLOOKUP($I$5,'Цвет мет. опор'!A:B,2,0),"/",VLOOKUP($J$5,'Цвет лючка'!A:B,2,0),".",VLOOKUP($K$5,'Цвет столешницы'!A:B,2,FALSE)) -> EVL733/П/60*30/ANT/ANT.U003 | D131: 1650*1250*750 L | F131: 33492
A132: EVL734/П/60*30/ | B132: =CONCATENATE(A132,VLOOKUP($I$5,'Цвет мет. опор'!A:B,2,0),"/",VLOOKUP($J$5,'Цвет лючка'!A:B,2,0),".",VLOOKUP($K$5,'Цвет столешницы'!A:B,2,FALSE)) -> EVL734/П/60*30/ANT/ANT.U003 | D132: 1650*1250*750 R | F132: 34184
A133: EVL735/П/60*30/ | B133: =CONCATENATE(A133,VLOOKUP($I$5,'Цвет мет. опор'!A:B,2,0),"/",VLOOKUP($J$5,'Цвет лючка'!A:B,2,0),".",VLOOKUP($K$5,'Цвет столешницы'!A:B,2,FALSE)) -> EVL735/П/60*30/ANT/ANT.U003 | D133: 1850*1250*750 L | F133: 34418
A134: EVL736/П/60*30/ | B134: =CONCATENATE(A134,VLOOKUP($I$5,'Цвет мет. опор'!A:B,2,0),"/",VLOOKUP($J$5,'Цвет лючка'!A:B,2,0),".",VLOOKUP($K$5,'Цвет столешницы'!A:B,2,FALSE)) -> EVL736/П/60*30/ANT/ANT.U003 | D134: 1850*1250*750 R | F134: 35050
B135: Бэнч-системы
A136: EVL645/П/60*30/ | B136: =CONCATENATE(A136,VLOOKUP($I$5,'Цвет мет. опор'!A:B,2,0),"/",VLOOKUP($J$5,'Цвет лючка'!A:B,2,0),".",VLOOKUP($K$5,'Цвет столешницы'!A:B,2,FALSE)) -> EVL645/П/60*30/ANT/ANT.U003 | C136: Рабочая станция на 2 раб.места на П образном м/к 60х30 (бенч-система) глубиной 600 | D136: 2400*600*750 | F136: 34720
A137: EVL646/П/60*30/ | B137: =CONCATENATE(A137,VLOOKUP($I$5,'Цвет мет. опор'!A:B,2,0),"/",VLOOKUP($J$5,'Цвет лючка'!A:B,2,0),".",VLOOKUP($K$5,'Цвет столешницы'!A:B,2,FALSE)) -> EVL646/П/60*30/ANT/ANT.U003 | D137: 2800*600*750 | F137: 35850
A138: EVL647/П/60*30/ | B138: =CONCATENATE(A138,VLOOKUP($I$5,'Цвет мет. опор'!A:B,2,0),"/",VLOOKUP($J$5,'Цвет лючка'!A:B,2,0),".",VLOOKUP($K$5,'Цвет столешницы'!A:B,2,FALSE)) -> EVL647/П/60*30/ANT/ANT.U003 | D138: 3200*600*750 | F138: 37427
A139: EVL648/П/60*30/ | B139: =CONCATENATE(A139,VLOOKUP($I$5,'Цвет мет. опор'!A:B,2,0),"/",VLOOKUP($J$5,'Цвет лючка'!A:B,2,0),".",VLOOKUP($K$5,'Цвет столешницы'!A:B,2,FALSE)) -> EVL648/П/60*30/ANT/ANT.U003 | C139: Рабочая станция на 2 раб.места на П образном м/к 60х30 (бенч-система) глубиной 700 | D139: 2400*700*750 | F139: 35784
A140: EVL649/П/60*30/ | B140: =CONCATENATE(A140,VLOOKUP($I$5,'Цвет мет. опор'!A:B,2,0),"/",VLOOKUP($J$5,'Цвет лючка'!A:B,2,0),".",VLOOKUP($K$5,'Цвет столешницы'!A:B,2,FALSE)) -> EVL649/П/60*30/ANT/ANT.U003 | D140: 2800*700*750 | F140: 37243
A141: EVL650/П/60*30/ | B141: =CONCATENATE(A141,VLOOKUP($I$5,'Цвет мет. опор'!A:B,2,0),"/",VLOOKUP($J$5,'Цвет лючка'!A:B,2,0),".",VLOOKUP($K$5,'Цвет столешницы'!A:B,2,FALSE)) -> EVL650/П/60*30/ANT/ANT.U003 | D141: 3200*700*750 | F141: 38598
A142: EVL651/П/60*30/ | B142: =CONCATENATE(A142,VLOOKUP($I$5,'Цвет мет. опор'!A:B,2,0),"/",VLOOKUP($J$5,'Цвет лючка'!A:B,2,0),".",VLOOKUP($K$5,'Цвет столешницы'!A:B,2,FALSE)) -> EVL651/П/60*30/ANT/ANT.U003 | C142: Рабочая станция на 2 раб.места на П образном м/к 60х30 (бенч-система) глубиной 800 | D142: 2400*800*750 | F142: 37095
A143: EVL652/П/60*30/ | B143: =CONCATENATE(A143,VLOOKUP($I$5,'Цвет мет. опор'!A:B,2,0),"/",VLOOKUP($J$5,'Цвет лючка'!A:B,2,0),".",VLOOKUP($K$5,'Цвет столешницы'!A:B,2,FALSE)) -> EVL652/П/60*30/ANT/ANT.U003 | D143: 2800*800*750 | F143: 38491
A144: EVL653/П/60*30/ | B144: =CONCATENATE(A144,VLOOKUP($I$5,'Цвет мет. опор'!A:B,2,0),"/",VLOOKUP($J$5,'Цвет лючка'!A:B,2,0),".",VLOOKUP($K$5,'Цвет столешницы'!A:B,2,FALSE)) -> EVL653/П/60*30/ANT/ANT.U003 | D144: 3200*800*750 | F144: 39922
A145: EVL654/П/60*30/ | B145: =CONCATENATE(A145,VLOOKUP($I$5,'Цвет мет. опор'!A:B,2,0),"/",VLOOKUP($J$5,'Цвет лючка'!A:B,2,0),".",VLOOKUP($K$5,'Цвет столешницы'!A:B,2,FALSE)) -> EVL654/П/60*30/ANT/ANT.U003 | C145: Рабочая станция на 3 раб.места на П образном м/к 60х30 (бенч-система), глубиной 600 мм | D145: 3600*600*750 | F145: 52943
A146: EVL655/П/60*30/ | B146: =CONCATENATE(A146,VLOOKUP($I$5,'Цвет мет. опор'!A:B,2,0),"/",VLOOKUP($J$5,'Цвет лючка'!A:B,2,0),".",VLOOKUP($K$5,'Цвет столешницы'!A:B,2,FALSE)) -> EVL655/П/60*30/ANT/ANT.U003 | D146: 4200*600*750 | F146: 55491
A147: EVL656/П/60*30/ | B147: =CONCATENATE(A147,VLOOKUP($I$5,'Цвет мет. опор'!A:B,2,0),"/",VLOOKUP($J$5,'Цвет лючка'!A:B,2,0),".",VLOOKUP($K$5,'Цвет столешницы'!A:B,2,FALSE)) -> EVL656/П/60*30/ANT/ANT.U003 | D147: 4800*600*750 | F147: 57144
A148: EVL657/П/60*30/ | B148: =CONCATENATE(A148,VLOOKUP($I$5,'Цвет мет. опор'!A:B,2,0),"/",VLOOKUP($J$5,'Цвет лючка'!A:B,2,0),".",VLOOKUP($K$5,'Цвет столешницы'!A:B,2,FALSE)) -> EVL657/П/60*30/ANT/ANT.U003 | C148: Рабочая станция на 3 раб.места на П образном м/к 60х30 (бенч-система), глубиной 700 мм | D148: 3600*700*750 | F148: 52637
A149: EVL658/П/60*30/ | B149: =CONCATENATE(A149,VLOOKUP($I$5,'Цвет мет. опор'!A:B,2,0),"/",VLOOKUP($J$5,'Цвет лючка'!A:B,2,0),".",VLOOKUP($K$5,'Цвет столешницы'!A:B,2,FALSE)) -> EVL658/П/60*30/ANT/ANT.U003 | D149: 4200*700*750 | F149: 54722
A150: EVL659/П/60*30/ | B150: =CONCATENATE(A150,VLOOKUP($I$5,'Цвет мет. опор'!A:B,2,0),"/",VLOOKUP($J$5,'Цвет лючка'!A:B,2,0),".",VLOOKUP($K$5,'Цвет столешницы'!A:B,2,FALSE)) -> EVL659/П/60*30/ANT/ANT.U003 | D150: 4800*700*750 | F150: 57682
A151: EVL660/П/60*30/ | B151: =CONCATENATE(A151,VLOOKUP($I$5,'Цвет мет. опор'!A:B,2,0),"/",VLOOKUP($J$5,'Цвет лючка'!A:B,2,0),".",VLOOKUP($K$5,'Цвет столешницы'!A:B,2,FALSE)) -> EVL660/П/60*30/ANT/ANT.U003 | C151: Рабочая станция на 3 раб.места на П образном м/к 60х30 (бенч-система), глубиной 800 мм | D151: 3600*800*750 | F151: 53482
A152: EVL661/П/60*30/ | B152: =CONCATENATE(A152,VLOOKUP($I$5,'Цвет мет. опор'!A:B,2,0),"/",VLOOKUP($J$5,'Цвет лючка'!A:B,2,0),".",VLOOKUP($K$5,'Цвет столешницы'!A:B,2,FALSE)) -> EVL661/П/60*30/ANT/ANT.U003 | D152: 4200*800*750 | F152: 56029
A153: EVL662/П/60*30/ | B153: =CONCATENATE(A153,VLOOKUP($I$5,'Цвет мет. опор'!A:B,2,0),"/",VLOOKUP($J$5,'Цвет лючка'!A:B,2,0),".",VLOOKUP($K$5,'Цвет столешницы'!A:B,2,FALSE)) -> EVL662/П/60*30/ANT/ANT.U003 | D153: 4800*800*750 | F153: 58546
A154: EVL663/П/60*30/ | B154: =CONCATENATE(A154,VLOOKUP($I$5,'Цвет мет. опор'!A:B,2,0),"/",VLOOKUP($J$5,'Цвет лючка'!A:B,2,0),".",VLOOKUP($K$5,'Цвет столешницы'!A:B,2,FALSE)) -> EVL663/П/60*30/ANT/ANT.U003 | C154: Рабочая станция на 4 раб.места на П образном м/к 60х30 | D154: 2400*1236*750 | F154: 59703
A155: EVL664/П/60*30/ | B155: =CONCATENATE(A155,VLOOKUP($I$5,'Цвет мет. опор'!A:B,2,0),"/",VLOOKUP($J$5,'Цвет лючка'!A:B,2,0),".",VLOOKUP($K$5,'Цвет столешницы'!A:B,2,FALSE)) -> EVL664/П/60*30/ANT/ANT.U003 | D155: 2800*1236*750 | F155: 62656
A156: EVL665/П/60*30/ | B156: =CONCATENATE(A156,VLOOKUP($I$5,'Цвет мет. опор'!A:B,2,0),"/",VLOOKUP($J$5,'Цвет лючка'!A:B,2,0),".",VLOOKUP($K$5,'Цвет столешницы'!A:B,2,FALSE)) -> EVL665/П/60*30/ANT/ANT.U003 | D156: 3200*1236*750 | F156: 65091
A157: EVL666/П/60*30/ | B157: =CONCATENATE(A157,VLOOKUP($I$5,'Цвет мет. опор'!A:B,2,0),"/",VLOOKUP($J$5,'Цвет лючка'!A:B,2,0),".",VLOOKUP($K$5,'Цвет столешницы'!A:B,2,FALSE)) -> EVL666/П/60*30/ANT/ANT.U003 | C157: Рабочая станция на 4 раб.места на П образном м/к 60х30 | D157: 2400*1436*750 | F157: 54435
A158: EVL667/П/60*30/ | B158: =CONCATENATE(A158,VLOOKUP($I$5,'Цвет мет. опор'!A:B,2,0),"/",VLOOKUP($J$5,'Цвет лючка'!A:B,2,0),".",VLOOKUP($K$5,'Цвет столешницы'!A:B,2,FALSE)) -> EVL667/П/60*30/ANT/ANT.U003 | D158: 2800*1436*750 | F158: 65248
A159: EVL668/П/60*30/ | B159: =CONCATENATE(A159,VLOOKUP($I$5,'Цвет мет. опор'!A:B,2,0),"/",VLOOKUP($J$5,'Цвет лючка'!A:B,2,0),".",VLOOKUP($K$5,'Цвет столешницы'!A:B,2,FALSE)) -> EVL668/П/60*30/ANT/ANT.U003 | D159: 3200*1436*750 | F159: 67958
A160: EVL669/П/60*30/ | B160: =CONCATENATE(A160,VLOOKUP($I$5,'Цвет мет. опор'!A:B,2,0),"/",VLOOKUP($J$5,'Цвет лючка'!A:B,2,0),".",VLOOKUP($K$5,'Цвет столешницы'!A:B,2,FALSE)) -> EVL669/П/60*30/ANT/ANT.U003 | C160: Рабочая станция на 4 раб.места на П образном м/к 60х30 | D160: 2400*1636*750 | F160: 65584
A161: EVL670/П/60*30/ | B161: =CONCATENATE(A161,VLOOKUP($I$5,'Цвет мет. опор'!A:B,2,0),"/",VLOOKUP($J$5,'Цвет лючка'!A:B,2,0),".",VLOOKUP($K$5,'Цвет столешницы'!A:B,2,FALSE)) -> EVL670/П/60*30/ANT/ANT.U003 | D161: 2800*1636*750 | F161: 68378
A162: EVL671/П/60*30/ | B162: =CONCATENATE(A162,VLOOKUP($I$5,'Цвет мет. опор'!A:B,2,0),"/",VLOOKUP($J$5,'Цвет лючка'!A:B,2,0),".",VLOOKUP($K$5,'Цвет столешницы'!A:B,2,FALSE)) -> EVL671/П/60*30/ANT/ANT.U003 | D162: 3200*1636*750 | F162: 71238
A163: EVL672/П/60*30/ | B163: =CONCATENATE(A163,VLOOKUP($I$5,'Цвет мет. опор'!A:B,2,0),"/",VLOOKUP($J$5,'Цвет лючка'!A:B,2,0),".",VLOOKUP($K$5,'Цвет столешницы'!A:B,2,FALSE)) -> EVL672/П/60*30/ANT/ANT.U003 | C163: Рабочая станция на 6 раб.места на П образном м/к 30х60 с шириной 1-го рабочего места 600 мм | D163: 3600*1236*750 | F163: 88096
A164: EVL673/П/60*30/ | B164: =CONCATENATE(A164,VLOOKUP($I$5,'Цвет мет. опор'!A:B,2,0),"/",VLOOKUP($J$5,'Цвет лючка'!A:B,2,0),".",VLOOKUP($K$5,'Цвет столешницы'!A:B,2,FALSE)) -> EVL673/П/60*30/ANT/ANT.U003 | D164: 4200*1236*750 | F164: 92527
A165: EVL674/П/60*30/ | B165: =CONCATENATE(A165,VLOOKUP($I$5,'Цвет мет. опор'!A:B,2,0),"/",VLOOKUP($J$5,'Цвет лючка'!A:B,2,0),".",VLOOKUP($K$5,'Цвет столешницы'!A:B,2,FALSE)) -> EVL674/П/60*30/ANT/ANT.U003 | D165: 4800*1236*750 | F165: 97258
A166: EVL675/П/60*30/ | B166: =CONCATENATE(A166,VLOOKUP($I$5,'Цвет мет. опор'!A:B,2,0),"/",VLOOKUP($J$5,'Цвет лючка'!A:B,2,0),".",VLOOKUP($K$5,'Цвет столешницы'!A:B,2,FALSE)) -> EVL675/П/60*30/ANT/ANT.U003 | C166: Рабочая станция на 6 раб.места на П образном м/к 30х60 с шириной 1-го рабочего места 700 мм | D166: 3600*1436*750 | F166: 91994
A167: EVL676/П/60*30/ | B167: =CONCATENATE(A167,VLOOKUP($I$5,'Цвет мет. опор'!A:B,2,0),"/",VLOOKUP($J$5,'Цвет лючка'!A:B,2,0),".",VLOOKUP($K$5,'Цвет столешницы'!A:B,2,FALSE)) -> EVL676/П/60*30/ANT/ANT.U003 | D167: 4200*1436*750 | F167: 96370
A168: EVL677/П/60*30/ | B168: =CONCATENATE(A168,VLOOKUP($I$5,'Цвет мет. опор'!A:B,2,0),"/",VLOOKUP($J$5,'Цвет лючка'!A:B,2,0),".",VLOOKUP($K$5,'Цвет столешницы'!A:B,2,FALSE)) -> EVL677/П/60*30/ANT/ANT.U003 | D168: 4800*1436*750 | F168: 106483
A169: EVL678/П/60*30/ | B169: =CONCATENATE(A169,VLOOKUP($I$5,'Цвет мет. опор'!A:B,2,0),"/",VLOOKUP($J$5,'Цвет лючка'!A:B,2,0),".",VLOOKUP($K$5,'Цвет столешницы'!A:B,2,FALSE)) -> EVL678/П/60*30/ANT/ANT.U003 | C169: Рабочая станция на 6 раб.места на П образном м/к 30х60 с шириной 1-го рабочего места 800 мм | D169: 3600*1636*750 | F169: 96664
A170: EVL679/П/60*30/ | B170: =CONCATENATE(A170,VLOOKUP($I$5,'Цвет мет. опор'!A:B,2,0),"/",VLOOKUP($J$5,'Цвет лючка'!A:B,2,0),".",VLOOKUP($K$5,'Цвет столешницы'!A:B,2,FALSE)) -> EVL679/П/60*30/ANT/ANT.U003 | D170: 4200*1636*750 | F170: 102492
A171: EVL680/П/60*30/ | B171: =CONCATENATE(A171,VLOOKUP($I$5,'Цвет мет. опор'!A:B,2,0),"/",VLOOKUP($J$5,'Цвет лючка'!A:B,2,0),".",VLOOKUP($K$5,'Цвет столешницы'!A:B,2,FALSE)) -> EVL680/П/60*30/ANT/ANT.U003 | D171: 4800*1636*750 | F171: 105145
B172: Переговорные столы
A173: EVL800/П/60*30/ | B173: =CONCATENATE(A173,VLOOKUP($I$5,'Цвет мет. опор'!A:B,2,0),".",VLOOKUP($K$5,'Цвет столешницы'!A:B,2,FALSE)) -> EVL800/П/60*30/ANT.U003 | C173: Переговорный стол (1 столешница) на П образном м/к 60х30 | D173: 1000*1236*750 | F173: 27715
A174: EVL801/П/60*30/ | B174: =CONCATENATE(A174,VLOOKUP($I$5,'Цвет мет. опор'!A:B,2,0),".",VLOOKUP($K$5,'Цвет столешницы'!A:B,2,FALSE)) -> EVL801/П/60*30/ANT.U003 | D174: 1200*1236*750 | F174: 28735
A175: EVL802/П/60*30/ | B175: =CONCATENATE(A175,VLOOKUP($I$5,'Цвет мет. опор'!A:B,2,0),".",VLOOKUP($K$5,'Цвет столешницы'!A:B,2,FALSE)) -> EVL802/П/60*30/ANT.U003 | D175: 1400*1236*750 | F175: 33345
A176: EVL803/П/60*30/ | B176: =CONCATENATE(A176,VLOOKUP($I$5,'Цвет мет. опор'!A:B,2,0),".",VLOOKUP($K$5,'Цвет столешницы'!A:B,2,FALSE)) -> EVL803/П/60*30/ANT.U003 | D176: 1600*1236*750 | F176: 35064
A177: EVL804/П/60*30/ | B177: =CONCATENATE(A177,VLOOKUP($I$5,'Цвет мет. опор'!A:B,2,0),".",VLOOKUP($K$5,'Цвет столешницы'!A:B,2,FALSE)) -> EVL804/П/60*30/ANT.U003 | D177: 1800*1236*750 | F177: 36958
A178: EVL805/П/60*30/ | B178: =CONCATENATE(A178,VLOOKUP($I$5,'Цвет мет. опор'!A:B,2,0),".",VLOOKUP($K$5,'Цвет столешницы'!A:B,2,FALSE)) -> EVL805/П/60*30/ANT.U003 | C178: Переговорный стол (2 столешницы) на П образном м/к 60х30 | D178: 2000*1236*750 | F178: 52462
A179: EVL806/П/60*30/ | B179: =CONCATENATE(A179,VLOOKUP($I$5,'Цвет мет. опор'!A:B,2,0),".",VLOOKUP($K$5,'Цвет столешницы'!A:B,2,FALSE)) -> EVL806/П/60*30/ANT.U003 | D179: 2400*1236*750 | F179: 54555
A180: EVL807/П/60*30/ | B180: =CONCATENATE(A180,VLOOKUP($I$5,'Цвет мет. опор'!A:B,2,0),".",VLOOKUP($K$5,'Цвет столешницы'!A:B,2,FALSE)) -> EVL807/П/60*30/ANT.U003 | D180: 2800*1236*750 | F180: 57048
A181: EVL808/П/60*30/ | B181: =CONCATENATE(A181,VLOOKUP($I$5,'Цвет мет. опор'!A:B,2,0),".",VLOOKUP($K$5,'Цвет столешницы'!A:B,2,FALSE)) -> EVL808/П/60*30/ANT.U003 | D181: 3200*1236*750 | F181: 67211
A182: EVL809/П/60*30/ | B182: =CONCATENATE(A182,VLOOKUP($I$5,'Цвет мет. опор'!A:B,2,0),".",VLOOKUP($K$5,'Цвет столешницы'!A:B,2,FALSE)) -> EVL809/П/60*30/ANT.U003 | D182: 3600*1236*750 | F182: 71000
A183: EVL810/П/60*30/ | B183: =CONCATENATE(A183,VLOOKUP($I$5,'Цвет мет. опор'!A:B,2,0),".",VLOOKUP($K$5,'Цвет столешницы'!A:B,2,FALSE)) -> EVL810/П/60*30/ANT.U003 | C183: Переговорный стол (3 столешницы) на П образном м/к 60х30 | D183: 3000*1236*750 | F183: 73461
A184: EVL811/П/60*30/ | B184: =CONCATENATE(A184,VLOOKUP($I$5,'Цвет мет. опор'!A:B,2,0),".",VLOOKUP($K$5,'Цвет столешницы'!A:B,2,FALSE)) -> EVL811/П/60*30/ANT.U003 | D184: 3600*1236*750 | F184: 80374
A185: EVL812/П/60*30/ | B185: =CONCATENATE(A185,VLOOKUP($I$5,'Цвет мет. опор'!A:B,2,0),".",VLOOKUP($K$5,'Цвет столешницы'!A:B,2,FALSE)) -> EVL812/П/60*30/ANT.U003 | D185: 4200*1236*750 | F185: 84114
A186: EVL813/П/60*30/ | B186: =CONCATENATE(A186,VLOOKUP($I$5,'Цвет мет. опор'!A:B,2,0),".",VLOOKUP($K$5,'Цвет столешницы'!A:B,2,FALSE)) -> EVL813/П/60*30/ANT.U003 | D186: 4800*1236*750 | F186: 86546
A187: EVL814/П/60*30/ | B187: =CONCATENATE(A187,VLOOKUP($I$5,'Цвет мет. опор'!A:B,2,0),".",VLOOKUP($K$5,'Цвет столешницы'!A:B,2,FALSE)) -> EVL814/П/60*30/ANT.U003 | D187: 5400*1236*750 | F187: 89641
A188: EVL841/П/60*30/ | B188: =CONCATENATE(A188,VLOOKUP($I$5,'Цвет мет. опор'!A:B,2,0),".",VLOOKUP($K$5,'Цвет столешницы'!A:B,2,FALSE)) -> EVL841/П/60*30/ANT.U003 | C188: Переговорный стол (3 столешницы) на П-образном м/к 60х30 | D188: 3600*1436*750 | F188: 82796
A189: EVL842/П/60*30/ | B189: =CONCATENATE(A189,VLOOKUP($I$5,'Цвет мет. опор'!A:B,2,0),".",VLOOKUP($K$5,'Цвет столешницы'!A:B,2,FALSE)) -> EVL842/П/60*30/ANT.U003 | D189: 4200*1436*750 | F189: 86644
A190: EVL843/П/60*30/ | B190: =CONCATENATE(A190,VLOOKUP($I$5,'Цвет мет. опор'!A:B,2,0),".",VLOOKUP($K$5,'Цвет столешницы'!A:B,2,FALSE)) -> EVL843/П/60*30/ANT.U003 | D190: 4800*1436*750 | F190: 89175
A191: EVL844/П/60*30/ | B191: =CONCATENATE(A191,VLOOKUP($I$5,'Цвет мет. опор'!A:B,2,0),".",VLOOKUP($K$5,'Цвет столешницы'!A:B,2,FALSE)) -> EVL844/П/60*30/ANT.U003 | D191: 5400*1436*750 | F191: 91306
C192: Кодировка Артикула стола
C193: Модель стола разворот стола /Цвет опор/Цв. заглушки. Цвет столешницы
B194: МОДЕЛЬ СТОЛА (ФОРМА, РАЗМЕР) | C194: ПРАВОСТОРОННИЙ /ЛЕВОСТОРОННИЙ | D194: ЦВЕТ ОПОР | E194: ЦВЕТ ЗАГЛУШКИ, РУЧЕК | F194: ЦВЕТ СТОЛЕШНИЦЫ
C195: SX-левый | D195: АNT-АНТРАЦИТ | E195: АNT-АНТРАЦИТ | F195: H | G195: Белый
C196: DX-правый | D196: WHT-БЕЛЫЙ | E196: H-БЕЛЫЙ | F196: U727 | G196: Серый Камень
D197: GR-СЕРЫЙ | E197: G-СЕРЫЙ | F197: R2 | G197: Серый
F198: ANT | G198: Антрацит
F199: U003 | G199: Дуб Честерфилд
F200: L | G200: Дуб 131

Sheet Столы на А обр. 60х30
B1: EVOLUTION | F1: =Склаская!$F$1 -> 2025-05-23
B2: Столы, бенчи и рабочие станции на металлокаркасе: А-образные опоры - прямоугольная труба с сечением 60*30мм, траверсы - труба 40*20мм.
B3: Не складская программа производятся на заказ партией от 6 шт., со сроком по согласованию с производством, в цвете: Дуб Честерфилд, Белый, Антрацит, Серый R2, Дуб 131, Серый камень, Венге Цаво, Бетон. Опоры столов в цв. Антрацит, Белый, Серый. Заглушки кабель-каналов и ручки тумб Антрацит, Белый. Для заказа изделия следует пользоваться правилами кодировки для создания артикула. →→→ | I3: Формирование артикула в зависимости от выбранных характеристик
I4: Цвет Опор | J4: Цвет кабель-канала | K4: Цвет столешницы
I5: Антрацит | J5: Антрацит | K5: Дуб Честерфилд
B6: Артикул | C6: Наименование | D6: Размеры Ш*Г*В (мм) | E6: Изображение | F6: Розничная Цена, руб.
A7: EVL113/А/60*30/ | B7: =CONCATENATE(A7,VLOOKUP($I$5,'Цвет мет. опор'!A:B,2,0),"/",VLOOKUP($J$5,'Цвет лючка'!A:B,2,0),".",VLOOKUP($K$5,'Цвет столешницы'!A:B,2,FALSE)) -> EVL113/А/60*30/ANT/ANT.U003 | C7: Стол письменный на А-образном м/к 60х30, глубиной 600 мм | D7: 1000*600*750 | F7: 17745
A8: EVL114/А/60*30/ | B8: =CONCATENATE(A8,VLOOKUP($I$5,'Цвет мет. опор'!A:B,2,0),"/",VLOOKUP($J$5,'Цвет лючка'!A:B,2,0),".",VLOOKUP($K$5,'Цвет столешницы'!A:B,2,FALSE)) -> EVL114/А/60*30/ANT/ANT.U003 | D8: 1200*600*750 | F8: 18312
A9: EVL115/А/60*30/ | B9: =CONCATENATE(A9,VLOOKUP($I$5,'Цвет мет. опор'!A:B,2,0),"/",VLOOKUP($J$5,'Цвет лючка'!A:B,2,0),".",VLOOKUP($K$5,'Цвет столешницы'!A:B,2,FALSE)) -> EVL115/А/60*30/ANT/ANT.U003 | D9: 1400*600*750 | F9: 18757
A10: EVL116/А/60*30/ | B10: =CONCATENATE(A10,VLOOKUP($I$5,'Цвет мет. опор'!A:B,2,0),"/",VLOOKUP($J$5,'Цвет лючка'!A:B,2,0),".",VLOOKUP($K$5,'Цвет столешницы'!A:B,2,FALSE)) -> EVL116/А/60*30/ANT/ANT.U003 | D10: 1600*600*750 | F10: 19804
A11: EVL100/А/60*30/ | B11: =CONCATENATE(A11,VLOOKUP($I$5,'Цвет мет. опор'!A:B,2,0),"/",VLOOKUP($J$5,'Цвет лючка'!A:B,2,0),".",VLOOKUP($K$5,'Цвет столешницы'!A:B,2,FALSE)) -> EVL100/А/60*30/ANT/ANT.U003 | C11: Стол письменный на А-образном м/к 60х30, глубиной 700 мм | D11: 1000*700*750 | F11: 18465
A12: EVL101/А/60*30/ | B12: =CONCATENATE(A12,VLOOKUP($I$5,'Цвет мет. опор'!A:B,2,0),"/",VLOOKUP($J$5,'Цвет лючка'!A:B,2,0),".",VLOOKUP($K$5,'Цвет столешницы'!A:B,2,FALSE)) -> EVL101/А/60*30/ANT/ANT.U003 | D12: 1200*700*750 | F12: 19103
A13: EVL102/А/60*30/ | B13: =CONCATENATE(A13,VLOOKUP($I$5,'Цвет мет. опор'!A:B,2,0),"/",VLOOKUP($J$5,'Цвет лючка'!A:B,2,0),".",VLOOKUP($K$5,'Цвет столешницы'!A:B,2,FALSE)) -> EVL102/А/60*30/ANT/ANT.U003 | D13: 1400*700*750 | F13: 19832
A14: EVL103/А/60*30/ | B14: =CONCATENATE(A14,VLOOKUP($I$5,'Цвет мет. опор'!A:B,2,0),"/",VLOOKUP($J$5,'Цвет лючка'!A:B,2,0),".",VLOOKUP($K$5,'Цвет столешницы'!A:B,2,FALSE)) -> EVL103/А/60*30/ANT/ANT.U003 | D14: 1600*700*750 | F14: 20793
A15: EVL104/А/60*30/ | B15: =CONCATENATE(A15,VLOOKUP($I$5,'Цвет мет. опор'!A:B,2,0),"/",VLOOKUP($J$5,'Цвет лючка'!A:B,2,0),".",VLOOKUP($K$5,'Цвет столешницы'!A:B,2,FALSE)) -> EVL104/А/60*30/ANT/ANT.U003 | D15: 1800*700*750 | F15: 21474
A16: EVL117/А/60*30/ | B16: =CONCATENATE(A16,VLOOKUP($I$5,'Цвет мет. опор'!A:B,2,0),"/",VLOOKUP($J$5,'Цвет лючка'!A:B,2,0),".",VLOOKUP($K$5,'Цвет столешницы'!A:B,2,FALSE)) -> EVL117/А/60*30/ANT/ANT.U003 | C16: Стол письменный на А-образном м/к 60х30, глубиной 800 мм | D16: 1000*800*750 | F16: 18783
A17: EVL118/А/60*30/ | B17: =CONCATENATE(A17,VLOOKUP($I$5,'Цвет мет. опор'!A:B,2,0),"/",VLOOKUP($J$5,'Цвет лючка'!A:B,2,0),".",VLOOKUP($K$5,'Цвет столешницы'!A:B,2,FALSE)) -> EVL118/А/60*30/ANT/ANT.U003 | D17: 1200*800*750 | F17: 19885
A18: EVL119/А/60*30/ | B18: =CONCATENATE(A18,VLOOKUP($I$5,'Цвет мет. опор'!A:B,2,0),"/",VLOOKUP($J$5,'Цвет лючка'!A:B,2,0),".",VLOOKUP($K$5,'Цвет столешницы'!A:B,2,FALSE)) -> EVL119/А/60*30/ANT/ANT.U003 | D18: 1400*800*750 | F18: 20589
A19: EVL120/А/60*30/ | B19: =CONCATENATE(A19,VLOOKUP($I$5,'Цвет мет. опор'!A:B,2,0),"/",VLOOKUP($J$5,'Цвет лючка'!A:B,2,0),".",VLOOKUP($K$5,'Цвет столешницы'!A:B,2,FALSE)) -> EVL120/А/60*30/ANT/ANT.U003 | D19: 1600*800*750 | F19: 21482
A20: EVL121/А/60*30/ | B20: =CONCATENATE(A20,VLOOKUP($I$5,'Цвет мет. опор'!A:B,2,0),"/",VLOOKUP($J$5,'Цвет лючка'!A:B,2,0),".",VLOOKUP($K$5,'Цвет столешницы'!A:B,2,FALSE)) -> EVL121/А/60*30/ANT/ANT.U003 | D20: 1800*800*750 | F20: 22351
A21: EVL122/А/60*30/ | B21: =CONCATENATE(A21,VLOOKUP($I$5,'Цвет мет. опор'!A:B,2,0),"/",VLOOKUP($J$5,'Цвет лючка'!A:B,2,0),".",VLOOKUP($K$5,'Цвет столешницы'!A:B,2,FALSE)) -> EVL122/А/60*30/ANT/ANT.U003 | C21: Стол письменный на А-образном м/к 60х30, глубиной 900 мм | D21: 1800*900*750 | F21: 23881
A22: EVL123SX/А/60*30/ | B22: =CONCATENATE(A22,VLOOKUP($I$5,'Цвет мет. опор'!A:B,2,0),"/",VLOOKUP($J$5,'Цвет лючка'!A:B,2,0),".",VLOOKUP($K$5,'Цвет столешницы'!A:B,2,FALSE)) -> EVL123SX/А/60*30/ANT/ANT.U003 | C22: Стол криволинейный левый/правый на А-образном м/к 60х30, глубиной 600/900 мм | D22: 1200*900*750 | E22: правый | F22: 19678
A23: EVL123DX/А/60*30/ | B23: =CONCATENATE(A23,VLOOKUP($I$5,'Цвет мет. опор'!A:B,2,0),"/",VLOOKUP($J$5,'Цвет лючка'!A:B,2,0),".",VLOOKUP($K$5,'Цвет столешницы'!A:B,2,FALSE)) -> EVL123DX/А/60*30/ANT/ANT.U003
A24: EVL124SX/А/60*30/ | B24: =CONCATENATE(A24,VLOOKUP($I$5,'Цвет мет. опор'!A:B,2,0),"/",VLOOKUP($J$5,'Цвет лючка'!A:B,2,0),".",VLOOKUP($K$5,'Цвет столешницы'!A:B,2,FALSE)) -> EVL124SX/А/60*30/ANT/ANT.U003 | D24: 1400*900*750 | F24: 20427
A25: EVL124DX/А/60*30/ | B25: =CONCATENATE(A25,VLOOKUP($I$5,'Цвет мет. опор'!A:B,2,0),"/",VLOOKUP($J$5,'Цвет лючка'!A:B,2,0),".",VLOOKUP($K$5,'Цвет столешницы'!A:B,2,FALSE)) -> EVL124DX/А/60*30/ANT/ANT.U003
A26: EVL105SX/А/60*30/ | B26: =CONCATENATE(A26,VLOOKUP($I$5,'Цвет мет. опор'!A:B,2,0),"/",VLOOKUP($J$5,'Цвет лючка'!A:B,2,0),".",VLOOKUP($K$5,'Цвет столешницы'!A:B,2,FALSE)) -> EVL105SX/А/60*30/ANT/ANT.U003 | C26: Стол криволинейный левый/правый на А-образном м/к 60х30, глубиной 700/900 мм | D26: 1200*900*750 | E26: правый | F26: 19353
A27: EVL105DX/А/60*30/ | B27: =CONCATENATE(A27,VLOOKUP($I$5,'Цвет мет. опор'!A:B,2,0),"/",VLOOKUP($J$5,'Цвет лючка'!A:B,2,0),".",VLOOKUP($K$5,'Цвет столешницы'!A:B,2,FALSE)) -> EVL105DX/А/60*30/ANT/ANT.U003
A28: EVL106SX/А/60*30/ | B28: =CONCATENATE(A28,VLOOKUP($I$5,'Цвет мет. опор'!A:B,2,0),"/",VLOOKUP($J$5,'Цвет лючка'!A:B,2,0),".",VLOOKUP($K$5,'Цвет столешницы'!A:B,2,FALSE)) -> EVL106SX/А/60*30/ANT/ANT.U003 | D28: 1400*900*750 | F28: 20213
A29: EVL106DX/А/60*30/ | B29: =CONCATENATE(A29,VLOOKUP($I$5,'Цвет мет. опор'!A:B,2,0),"/",VLOOKUP($J$5,'Цвет лючка'!A:B,2,0),".",VLOOKUP($K$5,'Цвет столешницы'!A:B,2,FALSE)) -> EVL106DX/А/60*30/ANT/ANT.U003
A30: EVL107SX/А/60*30/ | B30: =CONCATENATE(A30,VLOOKUP($I$5,'Цвет мет. опор'!A:B,2,0),"/",VLOOKUP($J$5,'Цвет лючка'!A:B,2,0),".",VLOOKUP($K$5,'Цвет столешницы'!A:B,2,FALSE)) -> EVL107SX/А/60*30/ANT/ANT.U003 | D30: 1600*900*750 | F30: 21128
A31: EVL107SX/А/60*30/ | B31: =CONCATENATE(A31,VLOOKUP($I$5,'Цвет мет. опор'!A:B,2,0),"/",VLOOKUP($J$5,'Цвет лючка'!A:B,2,0),".",VLOOKUP($K$5,'Цвет столешницы'!A:B,2,FALSE)) -> EVL107SX/А/60*30/ANT/ANT.U003
A32: EVL125SX/А/60*30/ | B32: =CONCATENATE(A32,VLOOKUP($I$5,'Цвет мет. опор'!A:B,2,0),"/",VLOOKUP($J$5,'Цвет лючка'!A:B,2,0),".",VLOOKUP($K$5,'Цвет столешницы'!A:B,2,FALSE)) -> EVL125SX/А/60*30/ANT/ANT.U003 | C32: Стол криволинейный левый/правый на А-образном м/к 60х30, глубиной 800/900 мм | D32: 1400*900*750 | F32: 21370
A33: EVL125DX/А/60*30/ | B33: =CONCATENATE(A33,VLOOKUP($I$5,'Цвет мет. опор'!A:B,2,0),"/",VLOOKUP($J$5,'Цвет лючка'!A:B,2,0),".",VLOOKUP($K$5,'Цвет столешницы'!A:B,2,FALSE)) -> EVL125DX/А/60*30/ANT/ANT.U003
A34: EVL126SX/А/60*30/ | B34: =CONCATENATE(A34,VLOOKUP($I$5,'Цвет мет. опор'!A:B,2,0),"/",VLOOKUP($J$5,'Цвет лючка'!A:B,2,0),".",VLOOKUP($K$5,'Цвет столешницы'!A:B,2,FALSE)) -> EVL126SX/А/60*30/ANT/ANT.U003 | D34: 1600*900*750 | F34: 21977
A35: EVL126DX/А/60*30/ | B35: =CONCATENATE(A35,VLOOKUP($I$5,'Цвет мет. опор'!A:B,2,0),"/",VLOOKUP($J$5,'Цвет лючка'!A:B,2,0),".",VLOOKUP($K$5,'Цвет столешницы'!A:B,2,FALSE)) -> EVL126DX/А/60*30/ANT/ANT.U003
A36: EVL109SX/А/60*30 | B36: =CONCATENATE(A36,VLOOKUP($I$5,'Цвет мет. опор'!A:B,2,0),"/",VLOOKUP($J$5,'Цвет лючка'!A:B,2,0),".",VLOOKUP($K$5,'Цвет столешницы'!A:B,2,FALSE)) -> EVL109SX/А/60*30ANT/ANT.U003 | C36: Стол эргономичный левый/правый на А-образном м/к 60х30, глубиной 700/900 мм | D36: 1200х900/700х750 | F36: 15928
A37: EVL109DX/А/60*31 | B37: =CONCATENATE(A37,VLOOKUP($I$5,'Цвет мет. опор'!A:B,2,0),"/",VLOOKUP($J$5,'Цвет лючка'!A:B,2,0),".",VLOOKUP($K$5,'Цвет столешницы'!A:B,2,FALSE)) -> EVL109DX/А/60*31ANT/ANT.U003
A38: EVL110SX/А/60*30 | B38: =CONCATENATE(A38,VLOOKUP($I$5,'Цвет мет. опор'!A:B,2,0),"/",VLOOKUP($J$5,'Цвет лючка'!A:B,2,0),".",VLOOKUP($K$5,'Цвет столешницы'!A:B,2,FALSE)) -> EVL110SX/А/60*30ANT/ANT.U003 | D38: 1400х900/700х750 | F38: 16547
A39: EVL110DX/А/60*31 | B39: =CONCATENATE(A39,VLOOKUP($I$5,'Цвет мет. опор'!A:B,2,0),"/",VLOOKUP($J$5,'Цвет лючка'!A:B,2,0),".",VLOOKUP($K$5,'Цвет столешницы'!A:B,2,FALSE)) -> EVL110DX/А/60*31ANT/ANT.U003
A40: EVL111SX/А/60*30 | B40: =CONCATENATE(A40,VLOOKUP($I$5,'Цвет мет. опор'!A:B,2,0),"/",VLOOKUP($J$5,'Цвет лючка'!A:B,2,0),".",VLOOKUP($K$5,'Цвет столешницы'!A:B,2,FALSE)) -> EVL111SX/А/60*30ANT/ANT.U003 | D40: 1600х900/700х750 | F40: 17356
A41: EVL111DX/А/60*31 | B41: =CONCATENATE(A41,VLOOKUP($I$5,'Цвет мет. опор'!A:B,2,0),"/",VLOOKUP($J$5,'Цвет лючка'!A:B,2,0),".",VLOOKUP($K$5,'Цвет столешницы'!A:B,2,FALSE)) -> EVL111DX/А/60*31ANT/ANT.U003
A42: EVL127SX/А/60*30/ | B42: =CONCATENATE(A42,VLOOKUP($I$5,'Цвет мет. опор'!A:B,2,0),"/",VLOOKUP($J$5,'Цвет лючка'!A:B,2,0),".",VLOOKUP($K$5,'Цвет столешницы'!A:B,2,FALSE)) -> EVL127SX/А/60*30/ANT/ANT.U003 | C42: Стол эргономичный левый/правый на А-образном м/к 60х30, глубиной 600/1200 мм | D42: 1400*1200*750 | F42: 31143
A43: EVL127DX/А/60*30/ | B43: =CONCATENATE(A43,VLOOKUP($I$5,'Цвет мет. опор'!A:B,2,0),"/",VLOOKUP($J$5,'Цвет лючка'!A:B,2,0),".",VLOOKUP($K$5,'Цвет столешницы'!A:B,2,FALSE)) -> EVL127DX/А/60*30/ANT/ANT.U003
A44: EVL128SX/А/60*30/ | B44: =CONCATENATE(A44,VLOOKUP($I$5,'Цвет мет. опор'!A:B,2,0),"/",VLOOKUP($J$5,'Цвет лючка'!A:B,2,0),".",VLOOKUP($K$5,'Цвет столешницы'!A:B,2,FALSE)) -> EVL128SX/А/60*30/ANT/ANT.U003 | D44: 1600*1200*750 | F44: 31393
A45: EVL128DX/А/60*30/ | B45: =CONCATENATE(A45,VLOOKUP($I$5,'Цвет мет. опор'!A:B,2,0),"/",VLOOKUP($J$5,'Цвет лючка'!A:B,2,0),".",VLOOKUP($K$5,'Цвет столешницы'!A:B,2,FALSE)) -> EVL128DX/А/60*30/ANT/ANT.U003
A46: EVL129SX/А/60*30/ | B46: =CONCATENATE(A46,VLOOKUP($I$5,'Цвет мет. опор'!A:B,2,0),"/",VLOOKUP($J$5,'Цвет лючка'!A:B,2,0),".",VLOOKUP($K$5,'Цвет столешницы'!A:B,2,FALSE)) -> EVL129SX/А/60*30/ANT/ANT.U003 | C46: Стол эргономичный левый/правый на А-образном м/к 60х30, глубиной 700/1200 мм | D46: 1400*1200*750 | F46: 31060
A47: EVL129DX/А/60*30/ | B47: =CONCATENATE(A47,VLOOKUP($I$5,'Цвет мет. опор'!A:B,2,0),"/",VLOOKUP($J$5,'Цвет лючка'!A:B,2,0),".",VLOOKUP($K$5,'Цвет столешницы'!A:B,2,FALSE)) -> EVL129DX/А/60*30/ANT/ANT.U003
A48: EVL130SX/А/60*30/ | B48: =CONCATENATE(A48,VLOOKUP($I$5,'Цвет мет. опор'!A:B,2,0),"/",VLOOKUP($J$5,'Цвет лючка'!A:B,2,0),".",VLOOKUP($K$5,'Цвет столешницы'!A:B,2,FALSE)) -> EVL130SX/А/60*30/ANT/ANT.U003 | D48: 1600*1200*750 | F48: 31862
A49: EVL130DX/А/60*30/ | B49: =CONCATENATE(A49,VLOOKUP($I$5,'Цвет мет. опор'!A:B,2,0),"/",VLOOKUP($J$5,'Цвет лючка'!A:B,2,0),".",VLOOKUP($K$5,'Цвет столешницы'!A:B,2,FALSE)) -> EVL130DX/А/60*30/ANT/ANT.U003
A50: EVL131SX/А/60*30/ | B50: =CONCATENATE(A50,VLOOKUP($I$5,'Цвет мет. опор'!A:B,2,0),"/",VLOOKUP($J$5,'Цвет лючка'!A:B,2,0),".",VLOOKUP($K$5,'Цвет столешницы'!A:B,2,FALSE)) -> EVL131SX/А/60*30/ANT/ANT.U003 | C50: Стол эргономичный левый/правый на А-образном м/к 60х30, глубиной 800/1200 мм | D50: 1400*1200*750 | F50: 31452
A51: EVL131DX/А/60*30/ | B51: =CONCATENATE(A51,VLOOKUP($I$5,'Цвет мет. опор'!A:B,2,0),"/",VLOOKUP($J$5,'Цвет лючка'!A:B,2,0),".",VLOOKUP($K$5,'Цвет столешницы'!A:B,2,FALSE)) -> EVL131DX/А/60*30/ANT/ANT.U003
A52: EVL132SX/А/60*30/ | B52: =CONCATENATE(A52,VLOOKUP($I$5,'Цвет мет. опор'!A:B,2,0),"/",VLOOKUP($J$5,'Цвет лючка'!A:B,2,0),".",VLOOKUP($K$5,'Цвет столешницы'!A:B,2,FALSE)) -> EVL132SX/А/60*30/ANT/ANT.U003 | D52: 1600*1200*750 | F52: 32612
A53: EVL132DX/А/60*30/ | B53: =CONCATENATE(A53,VLOOKUP($I$5,'Цвет мет. опор'!A:B,2,0),"/",VLOOKUP($J$5,'Цвет лючка'!A:B,2,0),".",VLOOKUP($K$5,'Цвет столешницы'!A:B,2,FALSE)) -> EVL132DX/А/60*30/ANT/ANT.U003
A54: EVL601/А/60*30/ | B54: =CONCATENATE(A54,VLOOKUP($I$5,'Цвет мет. опор'!A:B,2,0),"/",VLOOKUP($J$5,'Цвет лючка'!A:B,2,0),".",VLOOKUP($K$5,'Цвет столешницы'!A:B,2,FALSE)) -> EVL601/А/60*30/ANT/ANT.U003 | C54: Рабочая станция на А-образном м/к 60х30, глубиной 1236 мм | D54: 1200*1236*750 | F54: 31656
A55: EVL602/А/60*30/ | B55: =CONCATENATE(A55,VLOOKUP($I$5,'Цвет мет. опор'!A:B,2,0),"/",VLOOKUP($J$5,'Цвет лючка'!A:B,2,0),".",VLOOKUP($K$5,'Цвет столешницы'!A:B,2,FALSE)) -> EVL602/А/60*30/ANT/ANT.U003 | D55: 1400*1236*750 | F55: 32193
A56: EVL603/А/60*30/ | B56: =CONCATENATE(A56,VLOOKUP($I$5,'Цвет мет. опор'!A:B,2,0),"/",VLOOKUP($J$5,'Цвет лючка'!A:B,2,0),".",VLOOKUP($K$5,'Цвет столешницы'!A:B,2,FALSE)) -> EVL603/А/60*30/ANT/ANT.U003 | D56: 1600*1236*750 | F56: 34363
A57: EVL681/А/60*30/ | B57: =CONCATENATE(A57,VLOOKUP($I$5,'Цвет мет. опор'!A:B,2,0),"/",VLOOKUP($J$5,'Цвет лючка'!A:B,2,0),".",VLOOKUP($K$5,'Цвет столешницы'!A:B,2,FALSE)) -> EVL681/А/60*30/ANT/ANT.U003 | D57: 1800*1236*750 | F57: 37030
A58: EVL604/А/60*30/ | B58: =CONCATENATE(A58,VLOOKUP($I$5,'Цвет мет. опор'!A:B,2,0),"/",VLOOKUP($J$5,'Цвет лючка'!A:B,2,0),".",VLOOKUP($K$5,'Цвет столешницы'!A:B,2,FALSE)) -> EVL604/А/60*30/ANT/ANT.U003 | C58: Рабочая станция на А-образном м/к 60х30 глубиной 1436 | D58: 1200*1436*750 | F58: 32606
A59: EVL605/А/60*30/ | B59: =CONCATENATE(A59,VLOOKUP($I$5,'Цвет мет. опор'!A:B,2,0),"/",VLOOKUP($J$5,'Цвет лючка'!A:B,2,0),".",VLOOKUP($K$5,'Цвет столешницы'!A:B,2,FALSE)) -> EVL605/А/60*30/ANT/ANT.U003 | D59: 1400*1436*750 | F59: 34056
A60: EVL606/А/60*30/ | B60: =CONCATENATE(A60,VLOOKUP($I$5,'Цвет мет. опор'!A:B,2,0),"/",VLOOKUP($J$5,'Цвет лючка'!A:B,2,0),".",VLOOKUP($K$5,'Цвет столешницы'!A:B,2,FALSE)) -> EVL606/А/60*30/ANT/ANT.U003 | D60: 1600*1436*750 | F60: 35479
A61: EVL681/А/60*30/ | B61: =CONCATENATE(A61,VLOOKUP($I$5,'Цвет мет. опор'!A:B,2,0),"/",VLOOKUP($J$5,'Цвет лючка'!A:B,2,0),".",VLOOKUP($K$5,'Цвет столешницы'!A:B,2,FALSE)) -> EVL681/А/60*30/ANT/ANT.U003 | D61: 1800*1436*750 | F61: 38842
A62: EVL607/А/60*30/ | B62: =CONCATENATE(A62,VLOOKUP($I$5,'Цвет мет. опор'!A:B,2,0),"/",VLOOKUP($J$5,'Цвет лючка'!A:B,2,0),".",VLOOKUP($K$5,'Цвет столешницы'!A:B,2,FALSE)) -> EVL607/А/60*30/ANT/ANT.U003 | C62: рабочая станция на А-образном м/к 60х30 глубиной 1636 | D62: 1200*1636*750 | F62: 34505
A63: EVL608/А/60*30/ | B63: =CONCATENATE(A63,VLOOKUP($I$5,'Цвет мет. опор'!A:B,2,0),"/",VLOOKUP($J$5,'Цвет лючка'!A:B,2,0),".",VLOOKUP($K$5,'Цвет столешницы'!A:B,2,FALSE)) -> EVL608/А/60*30/ANT/ANT.U003 | D63: 1400*1636*750 | F63: 36448
A64: EVL609/А/60*30/ | B64: =CONCATENATE(A64,VLOOKUP($I$5,'Цвет мет. опор'!A:B,2,0),"/",VLOOKUP($J$5,'Цвет лючка'!A:B,2,0),".",VLOOKUP($K$5,'Цвет столешницы'!A:B,2,FALSE)) -> EVL609/А/60*30/ANT/ANT.U003 | D64: 1600*1636*750 | F64: 36716
A65: EVL683/А/60*30/ | B65: =CONCATENATE(A65,VLOOKUP($I$5,'Цвет мет. опор'!A:B,2,0),"/",VLOOKUP($J$5,'Цвет лючка'!A:B,2,0),".",VLOOKUP($K$5,'Цвет столешницы'!A:B,2,FALSE)) -> EVL683/А/60*30/ANT/ANT.U003 | D65: 1800*1636*750 | F65: 39420
A66: EVL610/А/60*30/ | B66: =CONCATENATE(A66,VLOOKUP($I$5,'Цвет мет. опор'!A:B,2,0),"/",VLOOKUP($J$5,'Цвет лючка'!A:B,2,0),".",VLOOKUP($K$5,'Цвет столешницы'!A:B,2,FALSE)) -> EVL610/А/60*30/ANT/ANT.U003 | C66: Рабочая станция криволинейная на А-образном м/к 60х30 глубиной 1236/1836 | D66: 1200*1836*750 | F66: 34158
A67: EVL611/А/60*30/ | B67: =CONCATENATE(A67,VLOOKUP($I$5,'Цвет мет. опор'!A:B,2,0),"/",VLOOKUP($J$5,'Цвет лючка'!A:B,2,0),".",VLOOKUP($K$5,'Цвет столешницы'!A:B,2,FALSE)) -> EVL611/А/60*30/ANT/ANT.U003 | D67: 1400*1836*750 | F67: 34723
A68: EVL612/А/60*30/ | B68: =CONCATENATE(A68,VLOOKUP($I$5,'Цвет мет. опор'!A:B,2,0),"/",VLOOKUP($J$5,'Цвет лючка'!A:B,2,0),".",VLOOKUP($K$5,'Цвет столешницы'!A:B,2,FALSE)) -> EVL612/А/60*30/ANT/ANT.U003 | D68: 1600*1836*750 | F68: 36363
A69: EVL613/А/60*30/ | B69: =CONCATENATE(A69,VLOOKUP($I$5,'Цвет мет. опор'!A:B,2,0),"/",VLOOKUP($J$5,'Цвет лючка'!A:B,2,0),".",VLOOKUP($K$5,'Цвет столешницы'!A:B,2,FALSE)) -> EVL613/А/60*30/ANT/ANT.U003 | C69: Рабочая станция криволинейная на А-образном м/к 60х30 глубиной 1436/1836 | D69: 1200*1836*750 | F69: 33733
A70: EVL614/А/60*30/ | B70: =CONCATENATE(A70,VLOOKUP($I$5,'Цвет мет. опор'!A:B,2,0),"/",VLOOKUP($J$5,'Цвет лючка'!A:B,2,0),".",VLOOKUP($K$5,'Цвет столешницы'!A:B,2,FALSE)) -> EVL614/А/60*30/ANT/ANT.U003 | D70: 1400*1836*750 | F70: 34885
A71: EVL615/А/60*30/ | B71: =CONCATENATE(A71,VLOOKUP($I$5,'Цвет мет. опор'!A:B,2,0),"/",VLOOKUP($J$5,'Цвет лючка'!A:B,2,0),".",VLOOKUP($K$5,'Цвет столешницы'!A:B,2,FALSE)) -> EVL615/А/60*30/ANT/ANT.U003 | D71: 1600*1836*750 | F71: 35957
A72: EVL616/А/60*30/ | B72: =CONCATENATE(A72,VLOOKUP($I$5,'Цвет мет. опор'!A:B,2,0),"/",VLOOKUP($J$5,'Цвет лючка'!A:B,2,0),".",VLOOKUP($K$5,'Цвет столешницы'!A:B,2,FALSE)) -> EVL616/А/60*30/ANT/ANT.U003 | C72: Рабочая станция эргономичная на А-образном м/к 60х30 глубиной 1236/2436 | D72: 1400*2436*750 | F72: 55968
A73: EVL617/А/60*30/ | B73: =CONCATENATE(A73,VLOOKUP($I$5,'Цвет мет. опор'!A:B,2,0),"/",VLOOKUP($J$5,'Цвет лючка'!A:B,2,0),".",VLOOKUP($K$5,'Цвет столешницы'!A:B,2,FALSE)) -> EVL617/А/60*30/ANT/ANT.U003 | D73: 1600*2436*750 | F73: 57587
A74: EVL618/А/60*30/ | B74: =CONCATENATE(A74,VLOOKUP($I$5,'Цвет мет. опор'!A:B,2,0),"/",VLOOKUP($J$5,'Цвет лючка'!A:B,2,0),".",VLOOKUP($K$5,'Цвет столешницы'!A:B,2,FALSE)) -> EVL618/А/60*30/ANT/ANT.U003 | C74: Рабочая станция эргономичная на А-образном м/к 60х30 глубиной 1436/2436 | D74: 1400*2440*750 | F74: 56998
A75: EVL619/А/60*30/ | B75: =CONCATENATE(A75,VLOOKUP($I$5,'Цвет мет. опор'!A:B,2,0),"/",VLOOKUP($J$5,'Цвет лючка'!A:B,2,0),".",VLOOKUP($K$5,'Цвет столешницы'!A:B,2,FALSE)) -> EVL619/А/60*30/ANT/ANT.U003 | D75: 1600*2440*750 | F75: 59369
A76: EVL620/А/60*30/ | B76: =CONCATENATE(A76,VLOOKUP($I$5,'Цвет мет. опор'!A:B,2,0),"/",VLOOKUP($J$5,'Цвет лючка'!A:B,2,0),".",VLOOKUP($K$5,'Цвет столешницы'!A:B,2,FALSE)) -> EVL620/А/60*30/ANT/ANT.U003 | C76: Рабочая станция эргономичная на А-образном м/к 60х30 глубиной 1636/2436 | D76: 1400*2440*750 | F76: 57640
A77: EVL621/А/60*30/ | B77: =CONCATENATE(A77,VLOOKUP($I$5,'Цвет мет. опор'!A:B,2,0),"/",VLOOKUP($J$5,'Цвет лючка'!A:B,2,0),".",VLOOKUP($K$5,'Цвет столешницы'!A:B,2,FALSE)) -> EVL621/А/60*30/ANT/ANT.U003 | D77: 1600*2440*750 | F77: 59094
A78: EVL622/А/60*30/ | B78: =CONCATENATE(A78,VLOOKUP($I$5,'Цвет мет. опор'!A:B,2,0),"/",VLOOKUP($J$5,'Цвет лючка'!A:B,2,0),".",VLOOKUP($K$5,'Цвет столешницы'!A:B,2,FALSE)) -> EVL622/А/60*30/ANT/ANT.U003 | C78: Рабочая станция эргономичная на А-образном м/к 60х30 глубиной 600/900 | D78: 2400*900*750 | F78: 37222
A79: EVL623/А/60*30/ | B79: =CONCATENATE(A79,VLOOKUP($I$5,'Цвет мет. опор'!A:B,2,0),"/",VLOOKUP($J$5,'Цвет лючка'!A:B,2,0),".",VLOOKUP($K$5,'Цвет столешницы'!A:B,2,FALSE)) -> EVL623/А/60*30/ANT/ANT.U003 | D79: 2800*900*750 | F79: 39285
A80: EVL624/А/60*30/ | B80: =CONCATENATE(A80,VLOOKUP($I$5,'Цвет мет. опор'!A:B,2,0),"/",VLOOKUP($J$5,'Цвет лючка'!A:B,2,0),".",VLOOKUP($K$5,'Цвет столешницы'!A:B,2,FALSE)) -> EVL624/А/60*30/ANT/ANT.U003 | D80: 3200*900*750 | F80: 40526
A81: EVL625/А/60*30/ | B81: =CONCATENATE(A81,VLOOKUP($I$5,'Цвет мет. опор'!A:B,2,0),"/",VLOOKUP($J$5,'Цвет лючка'!A:B,2,0),".",VLOOKUP($K$5,'Цвет столешницы'!A:B,2,FALSE)) -> EVL625/А/60*30/ANT/ANT.U003 | C81: Рабочая станция эргономичная на А-образном м/к 60х30 глубиной 700/900 | D81: 2400*900*750 | F81: 36456
A82: EVL626/А/60*30/ | B82: =CONCATENATE(A82,VLOOKUP($I$5,'Цвет мет. опор'!A:B,2,0),"/",VLOOKUP($J$5,'Цвет лючка'!A:B,2,0),".",VLOOKUP($K$5,'Цвет столешницы'!A:B,2,FALSE)) -> EVL626/А/60*30/ANT/ANT.U003 | D82: 2800*900*750 | F82: 38377
A83: EVL627/А/60*30/ | B83: =CONCATENATE(A83,VLOOKUP($I$5,'Цвет мет. опор'!A:B,2,0),"/",VLOOKUP($J$5,'Цвет лючка'!A:B,2,0),".",VLOOKUP($K$5,'Цвет столешницы'!A:B,2,FALSE)) -> EVL627/А/60*30/ANT/ANT.U003 | D83: 3200*900*750 | F83: 40005
A84: EVL628/А/60*30/ | B84: =CONCATENATE(A84,VLOOKUP($I$5,'Цвет мет. опор'!A:B,2,0),"/",VLOOKUP($J$5,'Цвет лючка'!A:B,2,0),".",VLOOKUP($K$5,'Цвет столешницы'!A:B,2,FALSE)) -> EVL628/А/60*30/ANT/ANT.U003 | C84: Рабочая станция эргономичная на А-образном м/к 60х30 глубиной 800/900 | D84: 2400*900*750 | F84: 38049
A85: EVL629/А/60*30/ | B85: =CONCATENATE(A85,VLOOKUP($I$5,'Цвет мет. опор'!A:B,2,0),"/",VLOOKUP($J$5,'Цвет лючка'!A:B,2,0),".",VLOOKUP($K$5,'Цвет столешницы'!A:B,2,FALSE)) -> EVL629/А/60*30/ANT/ANT.U003 | D85: 2800*900*750 | F85: 40066
A86: EVL630/А/60*30/ | B86: =CONCATENATE(A86,VLOOKUP($I$5,'Цвет мет. опор'!A:B,2,0),"/",VLOOKUP($J$5,'Цвет лючка'!A:B,2,0),".",VLOOKUP($K$5,'Цвет столешницы'!A:B,2,FALSE)) -> EVL630/А/60*30/ANT/ANT.U003 | D86: 3200*900*750 | F86: 41280
A87: EVL631/А/60*30/ | B87: =CONCATENATE(A87,VLOOKUP($I$5,'Цвет мет. опор'!A:B,2,0),"/",VLOOKUP($J$5,'Цвет лючка'!A:B,2,0),".",VLOOKUP($K$5,'Цвет столешницы'!A:B,2,FALSE)) -> EVL631/А/60*30/ANT/ANT.U003 | C87: Рабочая станция эргономичная на А-образном м/к 60х30 глубиной 600/1200 | D87: 2400*1236*750 | E87: промежуточная опора 1236 | F87: 41944
A88: EVL632/А/60*30/ | B88: =CONCATENATE(A88,VLOOKUP($I$5,'Цвет мет. опор'!A:B,2,0),"/",VLOOKUP($J$5,'Цвет лючка'!A:B,2,0),".",VLOOKUP($K$5,'Цвет столешницы'!A:B,2,FALSE)) -> EVL632/А/60*30/ANT/ANT.U003 | D88: 2800*1236*750 | F88: 44646
A89: EVL633/А/60*30/ | B89: =CONCATENATE(A89,VLOOKUP($I$5,'Цвет мет. опор'!A:B,2,0),"/",VLOOKUP($J$5,'Цвет лючка'!A:B,2,0),".",VLOOKUP($K$5,'Цвет столешницы'!A:B,2,FALSE)) -> EVL633/А/60*30/ANT/ANT.U003 | D89: 3200*1236*750 | F89: 45726
A90: EVL634/А/60*30/ | B90: =CONCATENATE(A90,VLOOKUP($I$5,'Цвет мет. опор'!A:B,2,0),"/",VLOOKUP($J$5,'Цвет лючка'!A:B,2,0),".",VLOOKUP($K$5,'Цвет столешницы'!A:B,2,FALSE)) -> EVL634/А/60*30/ANT/ANT.U003 | C90: Рабочая станция эргономичная на А-образном м/к 60х30 глубиной 700/1200 | D90: 2400*1200*750 | E90: промежуточная опора 700 | F90: 40440
A91: EVL635/А/60*30/ | B91: =CONCATENATE(A91,VLOOKUP($I$5,'Цвет мет. опор'!A:B,2,0),"/",VLOOKUP($J$5,'Цвет лючка'!A:B,2,0),".",VLOOKUP($K$5,'Цвет столешницы'!A:B,2,FALSE)) -> EVL635/А/60*30/ANT/ANT.U003 | D91: 2800*1200*750 | F91: 42911
A92: EVL636/А/60*30/ | B92: =CONCATENATE(A92,VLOOKUP($I$5,'Цвет мет. опор'!A:B,2,0),"/",VLOOKUP($J$5,'Цвет лючка'!A:B,2,0),".",VLOOKUP($K$5,'Цвет столешницы'!A:B,2,FALSE)) -> EVL636/А/60*30/ANT/ANT.U003 | D92: 3200*1200*750 | F92: 44585
A93: EVL637/А/60*30/ | B93: =CONCATENATE(A93,VLOOKUP($I$5,'Цвет мет. опор'!A:B,2,0),"/",VLOOKUP($J$5,'Цвет лючка'!A:B,2,0),".",VLOOKUP($K$5,'Цвет столешницы'!A:B,2,FALSE)) -> EVL637/А/60*30/ANT/ANT.U003 | C93: Рабочая станция эргономичная на А-образном м/к 60х30 глубиной 800/1200 | D93: 2400*1200*750 | E93: промежуточная опора 800 | F93: 40670
A94: EVL638/А/60*30/ | B94: =CONCATENATE(A94,VLOOKUP($I$5,'Цвет мет. опор'!A:B,2,0),"/",VLOOKUP($J$5,'Цвет лючка'!A:B,2,0),".",VLOOKUP($K$5,'Цвет столешницы'!A:B,2,FALSE)) -> EVL638/А/60*30/ANT/ANT.U003 | D94: 2800*1200*750 | F94: 43273
A95: EVL639/А/60*30/ | B95: =CONCATENATE(A95,VLOOKUP($I$5,'Цвет мет. опор'!A:B,2,0),"/",VLOOKUP($J$5,'Цвет лючка'!A:B,2,0),".",VLOOKUP($K$5,'Цвет столешницы'!A:B,2,FALSE)) -> EVL639/А/60*30/ANT/ANT.U003 | D95: 3200*1200*750 | F95: 44727
A96: EVL701/А/60*30/ | B96: =CONCATENATE(A96,VLOOKUP($I$5,'Цвет мет. опор'!A:B,2,0),"/",VLOOKUP($J$5,'Цвет лючка'!A:B,2,0),".",VLOOKUP($K$5,'Цвет столешницы'!A:B,2,FALSE)) -> EVL701/А/60*30/ANT/ANT.U003 | C96: Рабочая станция на А-образном м/к 60х30 с тумбой (композиция стол+тумба) | D96: 1450*700*750 | E96: Тумба 450х700х750 | F96: 33683
A97: EVL702/А/60*30/ | B97: =CONCATENATE(A97,VLOOKUP($I$5,'Цвет мет. опор'!A:B,2,0),"/",VLOOKUP($J$5,'Цвет лючка'!A:B,2,0),".",VLOOKUP($K$5,'Цвет столешницы'!A:B,2,FALSE)) -> EVL702/А/60*30/ANT/ANT.U003 | D97: 1650*700*750 | F97: 34321
A98: EVL703/А/60*30/ | B98: =CONCATENATE(A98,VLOOKUP($I$5,'Цвет мет. опор'!A:B,2,0),"/",VLOOKUP($J$5,'Цвет лючка'!A:B,2,0),".",VLOOKUP($K$5,'Цвет столешницы'!A:B,2,FALSE)) -> EVL703/А/60*30/ANT/ANT.U003 | D98: 1850*700*750 | F98: 35050
A99: EVL704/А/60*30/ | B99: =CONCATENATE(A99,VLOOKUP($I$5,'Цвет мет. опор'!A:B,2,0),"/",VLOOKUP($J$5,'Цвет лючка'!A:B,2,0),".",VLOOKUP($K$5,'Цвет столешницы'!A:B,2,FALSE)) -> EVL704/А/60*30/ANT/ANT.U003 | D99: 2050*700*750 | F99: 36012
A100: EVL705/А/60*30/ | B100: =CONCATENATE(A100,VLOOKUP($I$5,'Цвет мет. опор'!A:B,2,0),"/",VLOOKUP($J$5,'Цвет лючка'!A:B,2,0),".",VLOOKUP($K$5,'Цвет столешницы'!A:B,2,FALSE)) -> EVL705/А/60*30/ANT/ANT.U003 | D100: 2250*700*750 | F100: 36693
A101: EVL706/А/60*30/ | B101: =CONCATENATE(A101,VLOOKUP($I$5,'Цвет мет. опор'!A:B,2,0),"/",VLOOKUP($J$5,'Цвет лючка'!A:B,2,0),".",VLOOKUP($K$5,'Цвет столешницы'!A:B,2,FALSE)) -> EVL706/А/60*30/ANT/ANT.U003 | C101: Рабочая станция на А-образном м/к 60х30 с тумбой (композиция двойной бенч+тумба) | D101: 1450*1436*750 | E101: Тумба 450х1436х750 | F101: 57951
A102: EVL707/А/60*30/ | B102: =CONCATENATE(A102,VLOOKUP($I$5,'Цвет мет. опор'!A:B,2,0),"/",VLOOKUP($J$5,'Цвет лючка'!A:B,2,0),".",VLOOKUP($K$5,'Цвет столешницы'!A:B,2,FALSE)) -> EVL707/А/60*30/ANT/ANT.U003 | D102: 1650*1436*750 | F102: 59167
A103: EVL708/А/60*30/ | B103: =CONCATENATE(A103,VLOOKUP($I$5,'Цвет мет. опор'!A:B,2,0),"/",VLOOKUP($J$5,'Цвет лючка'!A:B,2,0),".",VLOOKUP($K$5,'Цвет столешницы'!A:B,2,FALSE)) -> EVL708/А/60*30/ANT/ANT.U003 | D103: 1850*1436*750 | F103: 60617
A104: EVL709/А/60*30/ | B104: =CONCATENATE(A104,VLOOKUP($I$5,'Цвет мет. опор'!A:B,2,0),"/",VLOOKUP($J$5,'Цвет лючка'!A:B,2,0),".",VLOOKUP($K$5,'Цвет столешницы'!A:B,2,FALSE)) -> EVL709/А/60*30/ANT/ANT.U003 | D104: 2050*1436*750 | F104: 62040
A105: EVL710/А/60*30/ | B105: =CONCATENATE(A105,VLOOKUP($I$5,'Цвет мет. опор'!A:B,2,0),"/",VLOOKUP($J$5,'Цвет лючка'!A:B,2,0),".",VLOOKUP($K$5,'Цвет столешницы'!A:B,2,FALSE)) -> EVL710/А/60*30/ANT/ANT.U003 | D105: 2250*1436*750 | F105: 63675
A106: EVL711/А/60*30/ | B106: =CONCATENATE(A106,VLOOKUP($I$5,'Цвет мет. опор'!A:B,2,0),"/",VLOOKUP($J$5,'Цвет лючка'!A:B,2,0),".",VLOOKUP($K$5,'Цвет столешницы'!A:B,2,FALSE)) -> EVL711/А/60*30/ANT/ANT.U003 | C106: Рабочая станция на А-образном м/к 60х30 со шкафом-купе (композиция двойной бенч+шкаф-купе) | D106: 1410*1436*750 | E106: Шкаф-купе приставной 1440х410х750 | F106: 51855
A107: EVL712/А/60*30/ | B107: =CONCATENATE(A107,VLOOKUP($I$5,'Цвет мет. опор'!A:B,2,0),"/",VLOOKUP($J$5,'Цвет лючка'!A:B,2,0),".",VLOOKUP($K$5,'Цвет столешницы'!A:B,2,FALSE)) -> EVL712/А/60*30/ANT/ANT.U003 | D107: 1610*1436*750 | F107: 53071
A108: EVL713/А/60*30/ | B108: =CONCATENATE(A108,VLOOKUP($I$5,'Цвет мет. опор'!A:B,2,0),"/",VLOOKUP($J$5,'Цвет лючка'!A:B,2,0),".",VLOOKUP($K$5,'Цвет столешницы'!A:B,2,FALSE)) -> EVL713/А/60*30/ANT/ANT.U003 | D108: 1810*1436*750 | F108: 54520
A109: EVL714/А/60*30/ | B109: =CONCATENATE(A109,VLOOKUP($I$5,'Цвет мет. опор'!A:B,2,0),"/",VLOOKUP($J$5,'Цвет лючка'!A:B,2,0),".",VLOOKUP($K$5,'Цвет столешницы'!A:B,2,FALSE)) -> EVL714/А/60*30/ANT/ANT.U003 | D109: 2010*1436*750 | F109: 55944
A110: EVL715/А/60*30/ | B110: =CONCATENATE(A110,VLOOKUP($I$5,'Цвет мет. опор'!A:B,2,0),"/",VLOOKUP($J$5,'Цвет лючка'!A:B,2,0),".",VLOOKUP($K$5,'Цвет столешницы'!A:B,2,FALSE)) -> EVL715/А/60*30/ANT/ANT.U003 | D110: 2210*1436*750 | F110: 57874
A111: EVL716/А/60*30/ | B111: =CONCATENATE(A111,VLOOKUP($I$5,'Цвет мет. опор'!A:B,2,0),"/",VLOOKUP($J$5,'Цвет лючка'!A:B,2,0),".",VLOOKUP($K$5,'Цвет столешницы'!A:B,2,FALSE)) -> EVL716/А/60*30/ANT/ANT.U003 | C111: Рабочая станция на А-образном м/к 60х30 со шкафом-купе (композиция двойной бенч+шкаф-купе) | D111: 1410*1436*1098 | E111: Шкаф-купе приставной 1440х410х1098 | F111: 56422
A112: EVL717/А/60*30/ | B112: =CONCATENATE(A112,VLOOKUP($I$5,'Цвет мет. опор'!A:B,2,0),"/",VLOOKUP($J$5,'Цвет лючка'!A:B,2,0),".",VLOOKUP($K$5,'Цвет столешницы'!A:B,2,FALSE)) -> EVL717/А/60*30/ANT/ANT.U003 | D112: 1610*1436*1098 | F112: 57933
A113: EVL718/А/60*30/ | B113: =CONCATENATE(A113,VLOOKUP($I$5,'Цвет мет. опор'!A:B,2,0),"/",VLOOKUP($J$5,'Цвет лючка'!A:B,2,0),".",VLOOKUP($K$5,'Цвет столешницы'!A:B,2,FALSE)) -> EVL718/А/60*30/ANT/ANT.U003 | D113: 1810*1436*1098 | F113: 59382
A114: EVL719/А/60*30/ | B114: =CONCATENATE(A114,VLOOKUP($I$5,'Цвет мет. опор'!A:B,2,0),"/",VLOOKUP($J$5,'Цвет лючка'!A:B,2,0),".",VLOOKUP($K$5,'Цвет столешницы'!A:B,2,FALSE)) -> EVL719/А/60*30/ANT/ANT.U003 | D114: 2010*1436*1098 | F114: 60806
A115: EVL720/А/60*30/ | B115: =CONCATENATE(A115,VLOOKUP($I$5,'Цвет мет. опор'!A:B,2,0),"/",VLOOKUP($J$5,'Цвет лючка'!A:B,2,0),".",VLOOKUP($K$5,'Цвет столешницы'!A:B,2,FALSE)) -> EVL720/А/60*30/ANT/ANT.U003 | D115: 2210*1436*1098 | F115: 62441
A116: EVL721/А/60*30/ | B116: =CONCATENATE(A116,VLOOKUP($I$5,'Цвет мет. опор'!A:B,2,0),"/",VLOOKUP($J$5,'Цвет лючка'!A:B,2,0),".",VLOOKUP($K$5,'Цвет столешницы'!A:B,2,FALSE)) -> EVL721/А/60*30/ANT/ANT.U003 | C116: Стол письменный на А-образном м/к 60х30 со шкафом-купе (композиция двойной бенч+шкаф-купе) | D116: 1410*1240*1098 | E116: Шкаф-купе приставной 1240х410х1098 | F116: 41414
A117: EVL722/А/60*30/ | B117: =CONCATENATE(A117,VLOOKUP($I$5,'Цвет мет. опор'!A:B,2,0),"/",VLOOKUP($J$5,'Цвет лючка'!A:B,2,0),".",VLOOKUP($K$5,'Цвет столешницы'!A:B,2,FALSE)) -> EVL722/А/60*30/ANT/ANT.U003 | D117: 1610*1240*1098 | F117: 42052
A118: EVL723/А/60*30/ | B118: =CONCATENATE(A118,VLOOKUP($I$5,'Цвет мет. опор'!A:B,2,0),"/",VLOOKUP($J$5,'Цвет лючка'!A:B,2,0),".",VLOOKUP($K$5,'Цвет столешницы'!A:B,2,FALSE)) -> EVL723/А/60*30/ANT/ANT.U003 | D118: 1810*1240*1098 | F118: 42781
A119: EVL724/А/60*30/ | B119: =CONCATENATE(A119,VLOOKUP($I$5,'Цвет мет. опор'!A:B,2,0),"/",VLOOKUP($J$5,'Цвет лючка'!A:B,2,0),".",VLOOKUP($K$5,'Цвет столешницы'!A:B,2,FALSE)) -> EVL724/А/60*30/ANT/ANT.U003 | D119: 2010*1240*1098 | F119: 43743
A120: EVL725/А/60*30/ | B120: =CONCATENATE(A120,VLOOKUP($I$5,'Цвет мет. опор'!A:B,2,0),"/",VLOOKUP($J$5,'Цвет лючка'!A:B,2,0),".",VLOOKUP($K$5,'Цвет столешницы'!A:B,2,FALSE)) -> EVL725/А/60*30/ANT/ANT.U003 | D120: 2210*1240*1098 | F120: 44424
A121: EVL726/А/60*30/ | B121: =CONCATENATE(A121,VLOOKUP($I$5,'Цвет мет. опор'!A:B,2,0),"/",VLOOKUP($J$5,'Цвет лючка'!A:B,2,0),".",VLOOKUP($K$5,'Цвет столешницы'!A:B,2,FALSE)) -> EVL726/А/60*30/ANT/ANT.U003 | C121: Рабочая станция на А-образном м/к 60х30 со шкафом-купе (композиция двойной бенч+шкаф-купе) | D121: 1410*2332*1098 | E121: Шкаф-купе приставной 2332х410х1098 | F121: 80069
A122: EVL727/А/60*30/ | B122: =CONCATENATE(A122,VLOOKUP($I$5,'Цвет мет. опор'!A:B,2,0),"/",VLOOKUP($J$5,'Цвет лючка'!A:B,2,0),".",VLOOKUP($K$5,'Цвет столешницы'!A:B,2,FALSE)) -> EVL727/А/60*30/ANT/ANT.U003 | D122: 1610*2332*1098 | F122: 81579
A123: EVL728/А/60*30/ | B123: =CONCATENATE(A123,VLOOKUP($I$5,'Цвет мет. опор'!A:B,2,0),"/",VLOOKUP($J$5,'Цвет лючка'!A:B,2,0),".",VLOOKUP($K$5,'Цвет столешницы'!A:B,2,FALSE)) -> EVL728/А/60*30/ANT/ANT.U003 | D123: 1810*2332*1098 | F123: 83029
A124: EVL729/А/60*30/ | B124: =CONCATENATE(A124,VLOOKUP($I$5,'Цвет мет. опор'!A:B,2,0),"/",VLOOKUP($J$5,'Цвет лючка'!A:B,2,0),".",VLOOKUP($K$5,'Цвет столешницы'!A:B,2,FALSE)) -> EVL729/А/60*30/ANT/ANT.U003 | D124: 2010*2332*1098 | F124: 84453
A125: EVL730/А/60*30/ | B125: =CONCATENATE(A125,VLOOKUP($I$5,'Цвет мет. опор'!A:B,2,0),"/",VLOOKUP($J$5,'Цвет лючка'!A:B,2,0),".",VLOOKUP($K$5,'Цвет столешницы'!A:B,2,FALSE)) -> EVL730/А/60*30/ANT/ANT.U003 | D125: 2210*2332*1098 | F125: 86088
C126: Бэнч-системы
A127: EVL645/А/60*30/ | B127: =CONCATENATE(A127,VLOOKUP($I$5,'Цвет мет. опор'!A:B,2,0),"/",VLOOKUP($J$5,'Цвет лючка'!A:B,2,0),".",VLOOKUP($K$5,'Цвет столешницы'!A:B,2,FALSE)) -> EVL645/А/60*30/ANT/ANT.U003 | C127: Рабочая станция на 2 раб.места на А-образном м/к 60х30 (бенч-система) глубиной 600 | D127: 2400*600*750 | F127: 34720
A128: EVL646/А/60*30/ | B128: =CONCATENATE(A128,VLOOKUP($I$5,'Цвет мет. опор'!A:B,2,0),"/",VLOOKUP($J$5,'Цвет лючка'!A:B,2,0),".",VLOOKUP($K$5,'Цвет столешницы'!A:B,2,FALSE)) -> EVL646/А/60*30/ANT/ANT.U003 | D128: 2800*600*750 | F128: 35850
A129: EVL647/А/60*30/ | B129: =CONCATENATE(A129,VLOOKUP($I$5,'Цвет мет. опор'!A:B,2,0),"/",VLOOKUP($J$5,'Цвет лючка'!A:B,2,0),".",VLOOKUP($K$5,'Цвет столешницы'!A:B,2,FALSE)) -> EVL647/А/60*30/ANT/ANT.U003 | D129: 3200*600*750 | F129: 37427
A130: EVL648/А/60*30/ | B130: =CONCATENATE(A130,VLOOKUP($I$5,'Цвет мет. опор'!A:B,2,0),"/",VLOOKUP($J$5,'Цвет лючка'!A:B,2,0),".",VLOOKUP($K$5,'Цвет столешницы'!A:B,2,FALSE)) -> EVL648/А/60*30/ANT/ANT.U003 | C130: Рабочая станция на 2 раб.места на А-образном м/к 60х30 (бенч-система) глубиной 700 | D130: 2400*700*750 | F130: 36404
A131: EVL649/А/60*30/ | B131: =CONCATENATE(A131,VLOOKUP($I$5,'Цвет мет. опор'!A:B,2,0),"/",VLOOKUP($J$5,'Цвет лючка'!A:B,2,0),".",VLOOKUP($K$5,'Цвет столешницы'!A:B,2,FALSE)) -> EVL649/А/60*30/ANT/ANT.U003 | D131: 2800*700*750 | F131: 38102
A132: EVL650/А/60*30/ | B132: =CONCATENATE(A132,VLOOKUP($I$5,'Цвет мет. опор'!A:B,2,0),"/",VLOOKUP($J$5,'Цвет лючка'!A:B,2,0),".",VLOOKUP($K$5,'Цвет столешницы'!A:B,2,FALSE)) -> EVL650/А/60*30/ANT/ANT.U003 | D132: 3200*700*750 | F132: 39205
A133: EVL651/А/60*30/ | B133: =CONCATENATE(A133,VLOOKUP($I$5,'Цвет мет. опор'!A:B,2,0),"/",VLOOKUP($J$5,'Цвет лючка'!A:B,2,0),".",VLOOKUP($K$5,'Цвет столешницы'!A:B,2,FALSE)) -> EVL651/А/60*30/ANT/ANT.U003 | C133: Рабочая станция на 2 раб.места на А-образном м/к 60х30 (бенч-система) глубиной 800 | D133: 2400*800*750 | F133: 37095
A134: EVL652/А/60*30/ | B134: =CONCATENATE(A134,VLOOKUP($I$5,'Цвет мет. опор'!A:B,2,0),"/",VLOOKUP($J$5,'Цвет лючка'!A:B,2,0),".",VLOOKUP($K$5,'Цвет столешницы'!A:B,2,FALSE)) -> EVL652/А/60*30/ANT/ANT.U003 | D134: 2800*800*750 | F134: 38145
A135: EVL653/А/60*30/ | B135: =CONCATENATE(A135,VLOOKUP($I$5,'Цвет мет. опор'!A:B,2,0),"/",VLOOKUP($J$5,'Цвет лючка'!A:B,2,0),".",VLOOKUP($K$5,'Цвет столешницы'!A:B,2,FALSE)) -> EVL653/А/60*30/ANT/ANT.U003 | D135: 3200*800*750 | F135: 40368
A136: EVL654/А/60*30/ | B136: =CONCATENATE(A136,VLOOKUP($I$5,'Цвет мет. опор'!A:B,2,0),"/",VLOOKUP($J$5,'Цвет лючка'!A:B,2,0),".",VLOOKUP($K$5,'Цвет столешницы'!A:B,2,FALSE)) -> EVL654/А/60*30/ANT/ANT.U003 | C136: Рабочая станция на 3 раб.места на А-образном м/к 60х30 (бенч-система), глубиной 600 мм | D136: 3600*600*750 | F136: 52943
A137: EVL655/А/60*30/ | B137: =CONCATENATE(A137,VLOOKUP($I$5,'Цвет мет. опор'!A:B,2,0),"/",VLOOKUP($J$5,'Цвет лючка'!A:B,2,0),".",VLOOKUP($K$5,'Цвет столешницы'!A:B,2,FALSE)) -> EVL655/А/60*30/ANT/ANT.U003 | D137: 4200*600*750 | F137: 55491
A138: EVL656/А/60*30/ | B138: =CONCATENATE(A138,VLOOKUP($I$5,'Цвет мет. опор'!A:B,2,0),"/",VLOOKUP($J$5,'Цвет лючка'!A:B,2,0),".",VLOOKUP($K$5,'Цвет столешницы'!A:B,2,FALSE)) -> EVL656/А/60*30/ANT/ANT.U003 | D138: 4800*600*750 | F138: 57144
A139: EVL657/А/60*30/ | B139: =CONCATENATE(A139,VLOOKUP($I$5,'Цвет мет. опор'!A:B,2,0),"/",VLOOKUP($J$5,'Цвет лючка'!A:B,2,0),".",VLOOKUP($K$5,'Цвет столешницы'!A:B,2,FALSE)) -> EVL657/А/60*30/ANT/ANT.U003 | C139: Рабочая станция на 3 раб.места на А-образном м/к 60х30 (бенч-система), глубиной 700 мм | D139: 3600*700*750 | F139: 53481
A140: EVL658/А/60*30/ | B140: =CONCATENATE(A140,VLOOKUP($I$5,'Цвет мет. опор'!A:B,2,0),"/",VLOOKUP($J$5,'Цвет лючка'!A:B,2,0),".",VLOOKUP($K$5,'Цвет столешницы'!A:B,2,FALSE)) -> EVL658/А/60*30/ANT/ANT.U003 | D140: 4200*700*750 | F140: 56028
A141: EVL659/А/60*30/ | B141: =CONCATENATE(A141,VLOOKUP($I$5,'Цвет мет. опор'!A:B,2,0),"/",VLOOKUP($J$5,'Цвет лючка'!A:B,2,0),".",VLOOKUP($K$5,'Цвет столешницы'!A:B,2,FALSE)) -> EVL659/А/60*30/ANT/ANT.U003 | D141: 4800*700*750 | F141: 57682
A142: EVL660/А/60*30/ | B142: =CONCATENATE(A142,VLOOKUP($I$5,'Цвет мет. опор'!A:B,2,0),"/",VLOOKUP($J$5,'Цвет лючка'!A:B,2,0),".",VLOOKUP($K$5,'Цвет столешницы'!A:B,2,FALSE)) -> EVL660/А/60*30/ANT/ANT.U003 | C142: Рабочая станция на 3 раб.места на А-образном м/к 60х30 (бенч-система), глубиной 800 мм | D142: 3600*800*750 | F142: 53482
A143: EVL661/А/60*30/ | B143: =CONCATENATE(A143,VLOOKUP($I$5,'Цвет мет. опор'!A:B,2,0),"/",VLOOKUP($J$5,'Цвет лючка'!A:B,2,0),".",VLOOKUP($K$5,'Цвет столешницы'!A:B,2,FALSE)) -> EVL661/А/60*30/ANT/ANT.U003 | D143: 4200*800*750 | F143: 55880
A144: EVL662/А/60*30/ | B144: =CONCATENATE(A144,VLOOKUP($I$5,'Цвет мет. опор'!A:B,2,0),"/",VLOOKUP($J$5,'Цвет лючка'!A:B,2,0),".",VLOOKUP($K$5,'Цвет столешницы'!A:B,2,FALSE)) -> EVL662/А/60*30/ANT/ANT.U003 | D144: 4800*800*750 | F144: 57683
A145: EVL663/А/60*30/ | B145: =CONCATENATE(A145,VLOOKUP($I$5,'Цвет мет. опор'!A:B,2,0),"/",VLOOKUP($J$5,'Цвет лючка'!A:B,2,0),".",VLOOKUP($K$5,'Цвет столешницы'!A:B,2,FALSE)) -> EVL663/А/60*30/ANT/ANT.U003 | C145: Рабочая станция на 4 раб.места на А-образном м/к 60х30 с шириной 1-го рабочего места 600 мм | D145: 2400*1236*750 | F145: 60397
A146: EVL664/А/60*30/ | B146: =CONCATENATE(A146,VLOOKUP($I$5,'Цвет мет. опор'!A:B,2,0),"/",VLOOKUP($J$5,'Цвет лючка'!A:B,2,0),".",VLOOKUP($K$5,'Цвет столешницы'!A:B,2,FALSE)) -> EVL664/А/60*30/ANT/ANT.U003 | D146: 2800*1236*750 | F146: 62656
A147: EVL665/А/60*30/ | B147: =CONCATENATE(A147,VLOOKUP($I$5,'Цвет мет. опор'!A:B,2,0),"/",VLOOKUP($J$5,'Цвет лючка'!A:B,2,0),".",VLOOKUP($K$5,'Цвет столешницы'!A:B,2,FALSE)) -> EVL665/А/60*30/ANT/ANT.U003 | D147: 3200*1236*750 | F147: 65811
A148: EVL666/А/60*30/ | B148: =CONCATENATE(A148,VLOOKUP($I$5,'Цвет мет. опор'!A:B,2,0),"/",VLOOKUP($J$5,'Цвет лючка'!A:B,2,0),".",VLOOKUP($K$5,'Цвет столешницы'!A:B,2,FALSE)) -> EVL666/А/60*30/ANT/ANT.U003 | C148: Рабочая станция на 4 раб.места на А-образном м/к 60х30 с шириной 1-го рабочего места 700 мм | D148: 2400*1436*750 | F148: 63228
A149: EVL667/А/60*30/ | B149: =CONCATENATE(A149,VLOOKUP($I$5,'Цвет мет. опор'!A:B,2,0),"/",VLOOKUP($J$5,'Цвет лючка'!A:B,2,0),".",VLOOKUP($K$5,'Цвет столешницы'!A:B,2,FALSE)) -> EVL667/А/60*30/ANT/ANT.U003 | D149: 2800*1436*750 | F149: 66625
A150: EVL668/А/60*30/ | B150: =CONCATENATE(A150,VLOOKUP($I$5,'Цвет мет. опор'!A:B,2,0),"/",VLOOKUP($J$5,'Цвет лючка'!A:B,2,0),".",VLOOKUP($K$5,'Цвет столешницы'!A:B,2,FALSE)) -> EVL668/А/60*30/ANT/ANT.U003 | D150: 3200*1436*750 | F150: 66884
A151: EVL669/А/60*30/ | B151: =CONCATENATE(A151,VLOOKUP($I$5,'Цвет мет. опор'!A:B,2,0),"/",VLOOKUP($J$5,'Цвет лючка'!A:B,2,0),".",VLOOKUP($K$5,'Цвет столешницы'!A:B,2,FALSE)) -> EVL669/А/60*30/ANT/ANT.U003 | C151: Рабочая станция на 4 раб.места на А-образном м/к 60х30 с шириной 1-го рабочего места 800 мм | D151: 2400*1636*750 | F151: 65584
A152: EVL670/А/60*30/ | B152: =CONCATENATE(A152,VLOOKUP($I$5,'Цвет мет. опор'!A:B,2,0),"/",VLOOKUP($J$5,'Цвет лючка'!A:B,2,0),".",VLOOKUP($K$5,'Цвет столешницы'!A:B,2,FALSE)) -> EVL670/А/60*30/ANT/ANT.U003 | D152: 2800*1636*750 | F152: 67676
A153: EVL671/А/60*30/ | B153: =CONCATENATE(A153,VLOOKUP($I$5,'Цвет мет. опор'!A:B,2,0),"/",VLOOKUP($J$5,'Цвет лючка'!A:B,2,0),".",VLOOKUP($K$5,'Цвет столешницы'!A:B,2,FALSE)) -> EVL671/А/60*30/ANT/ANT.U003 | D153: 3200*1636*750 | F153: 70013
A154: EVL672/А/60*30/ | B154: =CONCATENATE(A154,VLOOKUP($I$5,'Цвет мет. опор'!A:B,2,0),"/",VLOOKUP($J$5,'Цвет лючка'!A:B,2,0),".",VLOOKUP($K$5,'Цвет столешницы'!A:B,2,FALSE)) -> EVL672/А/60*30/ANT/ANT.U003 | C154: Рабочая станция на 6 раб.места на А образном м/к 60х30 с шириной 1-го рабочего места 600 мм | D154: 3600*1236*750 | F154: 89137
A155: EVL673/А/60*30/ | B155: =CONCATENATE(A155,VLOOKUP($I$5,'Цвет мет. опор'!A:B,2,0),"/",VLOOKUP($J$5,'Цвет лючка'!A:B,2,0),".",VLOOKUP($K$5,'Цвет столешницы'!A:B,2,FALSE)) -> EVL673/А/60*30/ANT/ANT.U003 | D155: 4200*1236*750 | F155: 92527
A156: EVL674/А/60*30/ | B156: =CONCATENATE(A156,VLOOKUP($I$5,'Цвет мет. опор'!A:B,2,0),"/",VLOOKUP($J$5,'Цвет лючка'!A:B,2,0),".",VLOOKUP($K$5,'Цвет столешницы'!A:B,2,FALSE)) -> EVL674/А/60*30/ANT/ANT.U003 | D156: 4800*1236*750 | F156: 97258
A157: EVL675/А/60*30/ | B157: =CONCATENATE(A157,VLOOKUP($I$5,'Цвет мет. опор'!A:B,2,0),"/",VLOOKUP($J$5,'Цвет лючка'!A:B,2,0),".",VLOOKUP($K$5,'Цвет столешницы'!A:B,2,FALSE)) -> EVL675/А/60*30/ANT/ANT.U003 | C157: Рабочая станция на 6 раб.места на А образном м/к 60х30 с шириной 1-го рабочего места 700 мм | D157: 3600*1436*750 | F157: 91994
A158: EVL676/А/60*30/ | B158: =CONCATENATE(A158,VLOOKUP($I$5,'Цвет мет. опор'!A:B,2,0),"/",VLOOKUP($J$5,'Цвет лючка'!A:B,2,0),".",VLOOKUP($K$5,'Цвет столешницы'!A:B,2,FALSE)) -> EVL676/А/60*30/ANT/ANT.U003 | D158: 4200*1436*750 | F158: 96164
A159: EVL677/А/60*30/ | B159: =CONCATENATE(A159,VLOOKUP($I$5,'Цвет мет. опор'!A:B,2,0),"/",VLOOKUP($J$5,'Цвет лючка'!A:B,2,0),".",VLOOKUP($K$5,'Цвет столешницы'!A:B,2,FALSE)) -> EVL677/А/60*30/ANT/ANT.U003 | D159: 4800*1436*750 | F159: 101744
A160: EVL678/А/60*30/ | B160: =CONCATENATE(A160,VLOOKUP($I$5,'Цвет мет. опор'!A:B,2,0),"/",VLOOKUP($J$5,'Цвет лючка'!A:B,2,0),".",VLOOKUP($K$5,'Цвет столешницы'!A:B,2,FALSE)) -> EVL678/А/60*30/ANT/ANT.U003 | C160: Рабочая станция на 6 раб.места на А образном м/к 60х30 с шириной 1-го рабочего места 800 мм | D160: 3600*1636*750 | F160: 96664
A161: EVL679/А/60*30/ | B161: =CONCATENATE(A161,VLOOKUP($I$5,'Цвет мет. опор'!A:B,2,0),"/",VLOOKUP($J$5,'Цвет лючка'!A:B,2,0),".",VLOOKUP($K$5,'Цвет столешницы'!A:B,2,FALSE)) -> EVL679/А/60*30/ANT/ANT.U003 | D161: 4200*1636*750 | F161: 99805
A162: EVL680/А/60*30/ | B162: =CONCATENATE(A162,VLOOKUP($I$5,'Цвет мет. опор'!A:B,2,0),"/",VLOOKUP($J$5,'Цвет лючка'!A:B,2,0),".",VLOOKUP($K$5,'Цвет столешницы'!A:B,2,FALSE)) -> EVL680/А/60*30/ANT/ANT.U003 | D162: 4800*1636*750 | F162: 106483
D163: Переговорные столы
A164: EVL800/А/60*30/ | B164: =CONCATENATE(A164,VLOOKUP($I$5,'Цвет мет. опор'!A:B,2,0),".",VLOOKUP($K$5,'Цвет столешницы'!A:B,2,FALSE)) -> EVL800/А/60*30/ANT.U003 | C164: Переговорный стол (1 столешница) на А-образном м/к 60х30 | D164: 1000*1236*750 | F164: 30456
A165: EVL801/А/60*30/ | B165: =CONCATENATE(A165,VLOOKUP($I$5,'Цвет мет. опор'!A:B,2,0),".",VLOOKUP($K$5,'Цвет столешницы'!A:B,2,FALSE)) -> EVL801/А/60*30/ANT.U003 | D165: 1200*1236*750 | F165: 31692
A166: EVL802/А/60*30/ | B166: =CONCATENATE(A166,VLOOKUP($I$5,'Цвет мет. опор'!A:B,2,0),".",VLOOKUP($K$5,'Цвет столешницы'!A:B,2,FALSE)) -> EVL802/А/60*30/ANT.U003 | D166: 1400*1236*750 | F166: 33345
A167: EVL803/А/60*30/ | B167: =CONCATENATE(A167,VLOOKUP($I$5,'Цвет мет. опор'!A:B,2,0),".",VLOOKUP($K$5,'Цвет столешницы'!A:B,2,FALSE)) -> EVL803/А/60*30/ANT.U003 | D167: 1600*1236*750 | F167: 35064
A168: EVL804/А/60*30/ | B168: =CONCATENATE(A168,VLOOKUP($I$5,'Цвет мет. опор'!A:B,2,0),".",VLOOKUP($K$5,'Цвет столешницы'!A:B,2,FALSE)) -> EVL804/А/60*30/ANT.U003 | D168: 1800*1236*750 | F168: 36958
A169: EVL805/А/60*30/ | B169: =CONCATENATE(A169,VLOOKUP($I$5,'Цвет мет. опор'!A:B,2,0),".",VLOOKUP($K$5,'Цвет столешницы'!A:B,2,FALSE)) -> EVL805/А/60*30/ANT.U003 | C169: Переговорный стол (2 столешницы) на А-образном м/к 60х30 | D169: 2000*1236*750 | F169: 52462
A170: EVL806/А/60*30/ | B170: =CONCATENATE(A170,VLOOKUP($I$5,'Цвет мет. опор'!A:B,2,0),".",VLOOKUP($K$5,'Цвет столешницы'!A:B,2,FALSE)) -> EVL806/А/60*30/ANT.U003 | D170: 2400*1236*750 | F170: 54555
A171: EVL807/А/60*30/ | B171: =CONCATENATE(A171,VLOOKUP($I$5,'Цвет мет. опор'!A:B,2,0),".",VLOOKUP($K$5,'Цвет столешницы'!A:B,2,FALSE)) -> EVL807/А/60*30/ANT.U003 | D171: 2800*1236*750 | F171: 57048
A172: EVL808/А/60*30/ | B172: =CONCATENATE(A172,VLOOKUP($I$5,'Цвет мет. опор'!A:B,2,0),".",VLOOKUP($K$5,'Цвет столешницы'!A:B,2,FALSE)) -> EVL808/А/60*30/ANT.U003 | D172: 3200*1236*750 | F172: 67211
A173: EVL809/А/60*30/ | B173: =CONCATENATE(A173,VLOOKUP($I$5,'Цвет мет. опор'!A:B,2,0),".",VLOOKUP($K$5,'Цвет столешницы'!A:B,2,FALSE)) -> EVL809/А/60*30/ANT.U003 | D173: 3600*1236*750 | F173: 71000
A174: EVL810/А/60*30/ | B174: =CONCATENATE(A174,VLOOKUP($I$5,'Цвет мет. опор'!A:B,2,0),".",VLOOKUP($K$5,'Цвет столешницы'!A:B,2,FALSE)) -> EVL810/А/60*30/ANT.U003 | C174: Переговорный стол (3 столешницы) на А-образном м/к 60х30 | D174: 3000*1236*750 | F174: 73461
A175: EVL811/А/60*30/ | B175: =CONCATENATE(A175,VLOOKUP($I$5,'Цвет мет. опор'!A:B,2,0),".",VLOOKUP($K$5,'Цвет столешницы'!A:B,2,FALSE)) -> EVL811/А/60*30/ANT.U003 | D175: 3600*1236*750 | F175: 80374
A176: EVL812/А/60*30/ | B176: =CONCATENATE(A176,VLOOKUP($I$5,'Цвет мет. опор'!A:B,2,0),".",VLOOKUP($K$5,'Цвет столешницы'!A:B,2,FALSE)) -> EVL812/А/60*30/ANT.U003 | D176: 4200*1236*750 | F176: 84114
A177: EVL813/А/60*30/ | B177: =CONCATENATE(A177,VLOOKUP($I$5,'Цвет мет. опор'!A:B,2,0),".",VLOOKUP($K$5,'Цвет столешницы'!A:B,2,FALSE)) -> EVL813/А/60*30/ANT.U003 | D177: 4800*1236*750 | F177: 86546
A178: EVL814/А/60*30/ | B178: =CONCATENATE(A178,VLOOKUP($I$5,'Цвет мет. опор'!A:B,2,0),".",VLOOKUP($K$5,'Цвет столешницы'!A:B,2,FALSE)) -> EVL814/А/60*30/ANT.U003 | D178: 5400*1236*750 | F178: 89641
A179: EVL841/А/60*30/ | B179: =CONCATENATE(A179,VLOOKUP($I$5,'Цвет мет. опор'!A:B,2,0),".",VLOOKUP($K$5,'Цвет столешницы'!A:B,2,FALSE)) -> EVL841/А/60*30/ANT.U003 | C179: Переговорный стол (3 столешницы) на А-образном м/к 60х30 | D179: 3600*1436*750 | F179: 82796
A180: EVL842/А/60*30/ | B180: =CONCATENATE(A180,VLOOKUP($I$5,'Цвет мет. опор'!A:B,2,0),".",VLOOKUP($K$5,'Цвет столешницы'!A:B,2,FALSE)) -> EVL842/А/60*30/ANT.U003 | D180: 4200*1436*750 | F180: 86644
A181: EVL843/А/60*30/ | B181: =CONCATENATE(A181,VLOOKUP($I$5,'Цвет мет. опор'!A:B,2,0),".",VLOOKUP($K$5,'Цвет столешницы'!A:B,2,FALSE)) -> EVL843/А/60*30/ANT.U003 | D181: 4800*1436*750 | F181: 89175
A182: EVL844/А/60*30/ | B182: =CONCATENATE(A182,VLOOKUP($I$5,'Цвет мет. опор'!A:B,2,0),".",VLOOKUP($K$5,'Цвет столешницы'!A:B,2,FALSE)) -> EVL844/А/60*30/ANT.U003 | D182: 5400*1436*750 | F182: 91306
C183: Кодировка Артикула стола
C184: Модель стола разворот стола /Цвет опор/Цв. заглушки. Цвет столешницы
B185: МОДЕЛЬ СТОЛА (ФОРМА, РАЗМЕР) | C185: ПРАВОСТОРОННИЙ /ЛЕВОСТОРОННИЙ | D185: ЦВЕТ ОПОР | E185: ЦВЕТ ЗАГЛУШКИ, РУЧЕК | F185: ЦВЕТ СТОЛЕШНИЦЫ
C186: SX-левый | D186: АNT-АНТРАЦИТ | E186: АNT-АНТРАЦИТ | F186: H | G186: Белый
C187: DX-правый | D187: WHT-БЕЛЫЙ | E187: H-БЕЛЫЙ | F187: U727 | G187: Серый Камень
D188: GR-СЕРЫЙ | E188: G-СЕРЫЙ | F188: R2 | G188: Серый
F189: ANT | G189: Антрацит
F190: U003 | G190: Дуб Честерфилд
F191: L | G191: Дуб 131

Sheet Столы на О обр. 60х30
B1: EVOLUTION | F1: =Склаская!$F$1 -> 2025-05-23
B2: Столы, бенчи и рабочие станции на металлокаркасе: О-образные опоры - труба с сечением 60*30мм, траверсы - труба 40*20мм в цв. Антрацит. Столешницы ЛДСП - 25 мм.
B3: Не складская программа производятся на заказ партией от 6 шт., со сроком по согласованию с производством, в цвете: Дуб Честерфилд, Белый, Антрацит, Серый R2, Дуб 131, Серый камень, Венге Цаво, Бетон. Опоры столов в цв. Антрацит, Белый, Серый. Заглушки кабель-каналов и ручки тумб Антрацит, Белый. Для заказа изделия следует пользоваться правилами кодировки для создания артикула. →→→ | I3: Формирование артикула в зависимости от выбранных характеристик
I4: Цвет Опор | J4: Цвет кабель-канала | K4: Цвет столешницы
I5: Белый | J5: Антрацит | K5: Дуб 131
B6: Артикул | C6: Наименование | D6: Размеры Ш*Г*В (мм) | E6: Изображение | F6: Розничная Цена, руб.
A7: EVL113/О/60*30/ | B7: =CONCATENATE(A7,VLOOKUP($I$5,'Цвет мет. опор'!A:B,2,0),"/",VLOOKUP($J$5,'Цвет лючка'!A:B,2,0),".",VLOOKUP($K$5,'Цвет столешницы'!A:B,2,FALSE)) -> EVL113/О/60*30/WHT/ANT.L | C7: Стол письменный на О образном м/к 60х30, глубиной 600 мм | D7: 1000*600*750 | F7: 19058
A8: EVL114/О/60*30/ | B8: =CONCATENATE(A8,VLOOKUP($I$5,'Цвет мет. опор'!A:B,2,0),"/",VLOOKUP($J$5,'Цвет лючка'!A:B,2,0),".",VLOOKUP($K$5,'Цвет столешницы'!A:B,2,FALSE)) -> EVL114/О/60*30/WHT/ANT.L | D8: 1200*600*750 | F8: 19624
A9: EVL115/О/60*30/ | B9: =CONCATENATE(A9,VLOOKUP($I$5,'Цвет мет. опор'!A:B,2,0),"/",VLOOKUP($J$5,'Цвет лючка'!A:B,2,0),".",VLOOKUP($K$5,'Цвет столешницы'!A:B,2,FALSE)) -> EVL115/О/60*30/WHT/ANT.L | D9: 1400*600*750 | F9: 20070
A10: EVL116/О/60*30/ | B10: =CONCATENATE(A10,VLOOKUP($I$5,'Цвет мет. опор'!A:B,2,0),"/",VLOOKUP($J$5,'Цвет лючка'!A:B,2,0),".",VLOOKUP($K$5,'Цвет столешницы'!A:B,2,FALSE)) -> EVL116/О/60*30/WHT/ANT.L | D10: 1600*600*750 | F10: 21152
A11: EVL100/О/60*30/ | B11: =CONCATENATE(A11,VLOOKUP($I$5,'Цвет мет. опор'!A:B,2,0),"/",VLOOKUP($J$5,'Цвет лючка'!A:B,2,0),".",VLOOKUP($K$5,'Цвет столешницы'!A:B,2,FALSE)) -> EVL100/О/60*30/WHT/ANT.L | C11: Стол письменный на О образном м/к 60х30, глубиной 700 мм | D11: 1000*700*750 | F11: 19861
A12: EVL101/О/60*30/ | B12: =CONCATENATE(A12,VLOOKUP($I$5,'Цвет мет. опор'!A:B,2,0),"/",VLOOKUP($J$5,'Цвет лючка'!A:B,2,0),".",VLOOKUP($K$5,'Цвет столешницы'!A:B,2,FALSE)) -> EVL101/О/60*30/WHT/ANT.L | D12: 1200*700*750 | F12: 20577
A13: EVL102/О/60*30/ | B13: =CONCATENATE(A13,VLOOKUP($I$5,'Цвет мет. опор'!A:B,2,0),"/",VLOOKUP($J$5,'Цвет лючка'!A:B,2,0),".",VLOOKUP($K$5,'Цвет столешницы'!A:B,2,FALSE)) -> EVL102/О/60*30/WHT/ANT.L | D13: 1400*700*750 | F13: 21309
A14: EVL103/О/60*30/ | B14: =CONCATENATE(A14,VLOOKUP($I$5,'Цвет мет. опор'!A:B,2,0),"/",VLOOKUP($J$5,'Цвет лючка'!A:B,2,0),".",VLOOKUP($K$5,'Цвет столешницы'!A:B,2,FALSE)) -> EVL103/О/60*30/WHT/ANT.L | D14: 1600*700*750 | F14: 22123
A15: EVL104/О/60*30/ | B15: =CONCATENATE(A15,VLOOKUP($I$5,'Цвет мет. опор'!A:B,2,0),"/",VLOOKUP($J$5,'Цвет лючка'!A:B,2,0),".",VLOOKUP($K$5,'Цвет столешницы'!A:B,2,FALSE)) -> EVL104/О/60*30/WHT/ANT.L | D15: 1800*700*750 | F15: 22826
A16: EVL117/О/60*30/ | B16: =CONCATENATE(A16,VLOOKUP($I$5,'Цвет мет. опор'!A:B,2,0),"/",VLOOKUP($J$5,'Цвет лючка'!A:B,2,0),".",VLOOKUP($K$5,'Цвет столешницы'!A:B,2,FALSE)) -> EVL117/О/60*30/WHT/ANT.L | C16: Стол письменный на О образном м/к 60х30, глубиной 800 мм | D16: 1000*800*750 | F16: 19869
A17: EVL118/О/60*30/ | B17: =CONCATENATE(A17,VLOOKUP($I$5,'Цвет мет. опор'!A:B,2,0),"/",VLOOKUP($J$5,'Цвет лючка'!A:B,2,0),".",VLOOKUP($K$5,'Цвет столешницы'!A:B,2,FALSE)) -> EVL118/О/60*30/WHT/ANT.L | D17: 1200*800*750 | F17: 20825
A18: EVL119/О/60*30/ | B18: =CONCATENATE(A18,VLOOKUP($I$5,'Цвет мет. опор'!A:B,2,0),"/",VLOOKUP($J$5,'Цвет лючка'!A:B,2,0),".",VLOOKUP($K$5,'Цвет столешницы'!A:B,2,FALSE)) -> EVL119/О/60*30/WHT/ANT.L | D18: 1400*800*750 | F18: 21943
A19: EVL120/О/60*30/ | B19: =CONCATENATE(A19,VLOOKUP($I$5,'Цвет мет. опор'!A:B,2,0),"/",VLOOKUP($J$5,'Цвет лючка'!A:B,2,0),".",VLOOKUP($K$5,'Цвет столешницы'!A:B,2,FALSE)) -> EVL120/О/60*30/WHT/ANT.L | D19: 1600*800*750 | F19: 22429
A20: EVL121/О/60*30/ | B20: =CONCATENATE(A20,VLOOKUP($I$5,'Цвет мет. опор'!A:B,2,0),"/",VLOOKUP($J$5,'Цвет лючка'!A:B,2,0),".",VLOOKUP($K$5,'Цвет столешницы'!A:B,2,FALSE)) -> EVL121/О/60*30/WHT/ANT.L | D20: 1800*800*750 | F20: 23433
A21: EVL122/О/60*30/ | B21: =CONCATENATE(A21,VLOOKUP($I$5,'Цвет мет. опор'!A:B,2,0),"/",VLOOKUP($J$5,'Цвет лючка'!A:B,2,0),".",VLOOKUP($K$5,'Цвет столешницы'!A:B,2,FALSE)) -> EVL122/О/60*30/WHT/ANT.L | C21: Стол письменный на О образном м/к 60х30, глубиной 900 мм | D21: 1800*900*750 | F21: 24871
A22: EVL123/О/60*30/ | B22: =CONCATENATE(A22,VLOOKUP($I$5,'Цвет мет. опор'!A:B,2,0),"/",VLOOKUP($J$5,'Цвет лючка'!A:B,2,0),".",VLOOKUP($K$5,'Цвет столешницы'!A:B,2,FALSE)) -> EVL123/О/60*30/WHT/ANT.L | C22: Стол криволинейный левый/правый на О образном м/к 60х30, глубиной 600/900 мм | D22: 1200*900*750 | E22: правый | F22: 20901
A23: EVL124/О/60*30/ | B23: =CONCATENATE(A23,VLOOKUP($I$5,'Цвет мет. опор'!A:B,2,0),"/",VLOOKUP($J$5,'Цвет лючка'!A:B,2,0),".",VLOOKUP($K$5,'Цвет столешницы'!A:B,2,FALSE)) -> EVL124/О/60*30/WHT/ANT.L | D23: 1400*900*750 | F23: 21798
A24: EVL105SX/О/60*30/ | B24: =CONCATENATE(A24,VLOOKUP($I$5,'Цвет мет. опор'!A:B,2,0),"/",VLOOKUP($J$5,'Цвет лючка'!A:B,2,0),".",VLOOKUP($K$5,'Цвет столешницы'!A:B,2,FALSE)) -> EVL105SX/О/60*30/WHT/ANT.L | C24: Стол криволинейный левый/правый на О образном м/к 60х30, глубиной 700/900 мм | D24: 1200*900*750 | E24: правый | F24: 20602
A25: EVL105DX/О/60*30/ | B25: =CONCATENATE(A25,VLOOKUP($I$5,'Цвет мет. опор'!A:B,2,0),"/",VLOOKUP($J$5,'Цвет лючка'!A:B,2,0),".",VLOOKUP($K$5,'Цвет столешницы'!A:B,2,FALSE)) -> EVL105DX/О/60*30/WHT/ANT.L
A26: EVL106SX/О/60*30/ | B26: =CONCATENATE(A26,VLOOKUP($I$5,'Цвет мет. опор'!A:B,2,0),"/",VLOOKUP($J$5,'Цвет лючка'!A:B,2,0),".",VLOOKUP($K$5,'Цвет столешницы'!A:B,2,FALSE)) -> EVL106SX/О/60*30/WHT/ANT.L | D26: 1400*900*750 | F26: 21652
A27: EVL106DX/О/60*30/ | B27: =CONCATENATE(A27,VLOOKUP($I$5,'Цвет мет. опор'!A:B,2,0),"/",VLOOKUP($J$5,'Цвет лючка'!A:B,2,0),".",VLOOKUP($K$5,'Цвет столешницы'!A:B,2,FALSE)) -> EVL106DX/О/60*30/WHT/ANT.L
A28: EVL107SX/О/60*30/ | B28: =CONCATENATE(A28,VLOOKUP($I$5,'Цвет мет. опор'!A:B,2,0),"/",VLOOKUP($J$5,'Цвет лючка'!A:B,2,0),".",VLOOKUP($K$5,'Цвет столешницы'!A:B,2,FALSE)) -> EVL107SX/О/60*30/WHT/ANT.L | D28: 1600*900*750 | F28: 22345
A29: EVL107DX/О/60*30/ | B29: =CONCATENATE(A29,VLOOKUP($I$5,'Цвет мет. опор'!A:B,2,0),"/",VLOOKUP($J$5,'Цвет лючка'!A:B,2,0),".",VLOOKUP($K$5,'Цвет столешницы'!A:B,2,FALSE)) -> EVL107DX/О/60*30/WHT/ANT.L
A30: EVL125SX/О/60*30/ | B30: =CONCATENATE(A30,VLOOKUP($I$5,'Цвет мет. опор'!A:B,2,0),"/",VLOOKUP($J$5,'Цвет лючка'!A:B,2,0),".",VLOOKUP($K$5,'Цвет столешницы'!A:B,2,FALSE)) -> EVL125SX/О/60*30/WHT/ANT.L | C30: Стол криволинейный левый/правый на О образном м/к 60х30, глубиной 800/900 мм | D30: 1400*900*750 | E30: правый | F30: 22457
A31: EVL125DX/О/60*30/ | B31: =CONCATENATE(A31,VLOOKUP($I$5,'Цвет мет. опор'!A:B,2,0),"/",VLOOKUP($J$5,'Цвет лючка'!A:B,2,0),".",VLOOKUP($K$5,'Цвет столешницы'!A:B,2,FALSE)) -> EVL125DX/О/60*30/WHT/ANT.L
A32: EVL126SX/О/60*30/ | B32: =CONCATENATE(A32,VLOOKUP($I$5,'Цвет мет. опор'!A:B,2,0),"/",VLOOKUP($J$5,'Цвет лючка'!A:B,2,0),".",VLOOKUP($K$5,'Цвет столешницы'!A:B,2,FALSE)) -> EVL126SX/О/60*30/WHT/ANT.L | D32: 1600*900*750 | F32: 23064
A33: EVL126DX/О/60*30/ | B33: =CONCATENATE(A33,VLOOKUP($I$5,'Цвет мет. опор'!A:B,2,0),"/",VLOOKUP($J$5,'Цвет лючка'!A:B,2,0),".",VLOOKUP($K$5,'Цвет столешницы'!A:B,2,FALSE)) -> EVL126DX/О/60*30/WHT/ANT.L
A34: EVL109SX/О/60*30 | B34: =CONCATENATE(A34,VLOOKUP($I$5,'Цвет мет. опор'!A:B,2,0),"/",VLOOKUP($J$5,'Цвет лючка'!A:B,2,0),".",VLOOKUP($K$5,'Цвет столешницы'!A:B,2,FALSE)) -> EVL109SX/О/60*30WHT/ANT.L | C34: Стол эргономичный левый/правый на О образном м/к 60х30, глубиной 700/900 мм | D34: 1200х900/700х750 | E34: правый | F34: 20579
A35: EVL109DX/О/60*31 | B35: =CONCATENATE(A35,VLOOKUP($I$5,'Цвет мет. опор'!A:B,2,0),"/",VLOOKUP($J$5,'Цвет лючка'!A:B,2,0),".",VLOOKUP($K$5,'Цвет столешницы'!A:B,2,FALSE)) -> EVL109DX/О/60*31WHT/ANT.L
A36: EVL110SX/О/60*30 | B36: =CONCATENATE(A36,VLOOKUP($I$5,'Цвет мет. опор'!A:B,2,0),"/",VLOOKUP($J$5,'Цвет лючка'!A:B,2,0),".",VLOOKUP($K$5,'Цвет столешницы'!A:B,2,FALSE)) -> EVL110SX/О/60*30WHT/ANT.L | D36: 1400х900/700х750 | F36: 21447
A37: EVL110DX/О/60*31 | B37: =CONCATENATE(A37,VLOOKUP($I$5,'Цвет мет. опор'!A:B,2,0),"/",VLOOKUP($J$5,'Цвет лючка'!A:B,2,0),".",VLOOKUP($K$5,'Цвет столешницы'!A:B,2,FALSE)) -> EVL110DX/О/60*31WHT/ANT.L
A38: EVL111SX/О/60*30 | B38: =CONCATENATE(A38,VLOOKUP($I$5,'Цвет мет. опор'!A:B,2,0),"/",VLOOKUP($J$5,'Цвет лючка'!A:B,2,0),".",VLOOKUP($K$5,'Цвет столешницы'!A:B,2,FALSE)) -> EVL111SX/О/60*30WHT/ANT.L | D38: 1600х900/700х750 | F38: 22319
A39: EVL111DX/О/60*31 | B39: =CONCATENATE(A39,VLOOKUP($I$5,'Цвет мет. опор'!A:B,2,0),"/",VLOOKUP($J$5,'Цвет лючка'!A:B,2,0),".",VLOOKUP($K$5,'Цвет столешницы'!A:B,2,FALSE)) -> EVL111DX/О/60*31WHT/ANT.L
A40: EVL127SX/О/60*30/ | B40: =CONCATENATE(A40,VLOOKUP($I$5,'Цвет мет. опор'!A:B,2,0),"/",VLOOKUP($J$5,'Цвет лючка'!A:B,2,0),".",VLOOKUP($K$5,'Цвет столешницы'!A:B,2,FALSE)) -> EVL127SX/О/60*30/WHT/ANT.L | C40: Стол эргономичный левый/правый на О образном м/к 60х30, глубиной 600/1200 мм | D40: 1400*1200*750 | F40: 32639
A41: EVL127DX/О/60*30/ | B41: =CONCATENATE(A41,VLOOKUP($I$5,'Цвет мет. опор'!A:B,2,0),"/",VLOOKUP($J$5,'Цвет лючка'!A:B,2,0),".",VLOOKUP($K$5,'Цвет столешницы'!A:B,2,FALSE)) -> EVL127DX/О/60*30/WHT/ANT.L
A42: EVL128SX/О/60*30/ | B42: =CONCATENATE(A42,VLOOKUP($I$5,'Цвет мет. опор'!A:B,2,0),"/",VLOOKUP($J$5,'Цвет лючка'!A:B,2,0),".",VLOOKUP($K$5,'Цвет столешницы'!A:B,2,FALSE)) -> EVL128SX/О/60*30/WHT/ANT.L | D42: 1600*1200*750 | F42: 33449
A43: EVL128DX/О/60*30/ | B43: =CONCATENATE(A43,VLOOKUP($I$5,'Цвет мет. опор'!A:B,2,0),"/",VLOOKUP($J$5,'Цвет лючка'!A:B,2,0),".",VLOOKUP($K$5,'Цвет столешницы'!A:B,2,FALSE)) -> EVL128DX/О/60*30/WHT/ANT.L
A44: EVL129SX/О/60*30/ | B44: =CONCATENATE(A44,VLOOKUP($I$5,'Цвет мет. опор'!A:B,2,0),"/",VLOOKUP($J$5,'Цвет лючка'!A:B,2,0),".",VLOOKUP($K$5,'Цвет столешницы'!A:B,2,FALSE)) -> EVL129SX/О/60*30/WHT/ANT.L | C44: Стол эргономичный левый/правый на О образном м/к 60х30, глубиной 700/1200 мм | D44: 1400*1200*750 | F44: 33141
A45: EVL129DX/О/60*30/ | B45: =CONCATENATE(A45,VLOOKUP($I$5,'Цвет мет. опор'!A:B,2,0),"/",VLOOKUP($J$5,'Цвет лючка'!A:B,2,0),".",VLOOKUP($K$5,'Цвет столешницы'!A:B,2,FALSE)) -> EVL129DX/О/60*30/WHT/ANT.L
A46: EVL130SX/О/60*30/ | B46: =CONCATENATE(A46,VLOOKUP($I$5,'Цвет мет. опор'!A:B,2,0),"/",VLOOKUP($J$5,'Цвет лючка'!A:B,2,0),".",VLOOKUP($K$5,'Цвет столешницы'!A:B,2,FALSE)) -> EVL130SX/О/60*30/WHT/ANT.L | D46: 1600*1200*750 | F46: 34290
A47: EVL130DX/О/60*30/ | B47: =CONCATENATE(A47,VLOOKUP($I$5,'Цвет мет. опор'!A:B,2,0),"/",VLOOKUP($J$5,'Цвет лючка'!A:B,2,0),".",VLOOKUP($K$5,'Цвет столешницы'!A:B,2,FALSE)) -> EVL130DX/О/60*30/WHT/ANT.L
A48: EVL131SX/О/60*30/ | B48: =CONCATENATE(A48,VLOOKUP($I$5,'Цвет мет. опор'!A:B,2,0),"/",VLOOKUP($J$5,'Цвет лючка'!A:B,2,0),".",VLOOKUP($K$5,'Цвет столешницы'!A:B,2,FALSE)) -> EVL131SX/О/60*30/WHT/ANT.L | C48: Стол эргономичный левый/правый на О образном м/к 60х30, глубиной 800/1200 мм | D48: 1400*1200*750 | F48: 33224
A49: EVL131DX/О/60*30/ | B49: =CONCATENATE(A49,VLOOKUP($I$5,'Цвет мет. опор'!A:B,2,0),"/",VLOOKUP($J$5,'Цвет лючка'!A:B,2,0),".",VLOOKUP($K$5,'Цвет столешницы'!A:B,2,FALSE)) -> EVL131DX/О/60*30/WHT/ANT.L
A50: EVL132SX/О/60*30/ | B50: =CONCATENATE(A50,VLOOKUP($I$5,'Цвет мет. опор'!A:B,2,0),"/",VLOOKUP($J$5,'Цвет лючка'!A:B,2,0),".",VLOOKUP($K$5,'Цвет столешницы'!A:B,2,FALSE)) -> EVL132SX/О/60*30/WHT/ANT.L | D50: 1600*1200*750 | F50: 33952
A51: EVL132DX/О/60*30/ | B51: =CONCATENATE(A51,VLOOKUP($I$5,'Цвет мет. опор'!A:B,2,0),"/",VLOOKUP($J$5,'Цвет лючка'!A:B,2,0),".",VLOOKUP($K$5,'Цвет столешницы'!A:B,2,FALSE)) -> EVL132DX/О/60*30/WHT/ANT.L
A52: EVL601/О/60*30/ | B52: =CONCATENATE(A52,VLOOKUP($I$5,'Цвет мет. опор'!A:B,2,0),"/",VLOOKUP($J$5,'Цвет лючка'!A:B,2,0),".",VLOOKUP($K$5,'Цвет столешницы'!A:B,2,FALSE)) -> EVL601/О/60*30/WHT/ANT.L | C52: Рабочая станция на О образном м/к 60х30, глубиной 1236 мм | D52: 1200*1236*750 | F52: 34021
A53: EVL602/О/60*30/ | B53: =CONCATENATE(A53,VLOOKUP($I$5,'Цвет мет. опор'!A:B,2,0),"/",VLOOKUP($J$5,'Цвет лючка'!A:B,2,0),".",VLOOKUP($K$5,'Цвет столешницы'!A:B,2,FALSE)) -> EVL602/О/60*30/WHT/ANT.L | D53: 1400*1236*750 | F53: 35151
A54: EVL603/О/60*30/ | B54: =CONCATENATE(A54,VLOOKUP($I$5,'Цвет мет. опор'!A:B,2,0),"/",VLOOKUP($J$5,'Цвет лючка'!A:B,2,0),".",VLOOKUP($K$5,'Цвет столешницы'!A:B,2,FALSE)) -> EVL603/О/60*30/WHT/ANT.L | D54: 1600*1236*750 | F54: 36728
A55: EVL681/О/60*30/ | B55: =CONCATENATE(A55,VLOOKUP($I$5,'Цвет мет. опор'!A:B,2,0),"/",VLOOKUP($J$5,'Цвет лючка'!A:B,2,0),".",VLOOKUP($K$5,'Цвет столешницы'!A:B,2,FALSE)) -> EVL681/О/60*30/WHT/ANT.L | D55: 1800*1236*751 | F55: 38293
A56: EVL604/О/60*30/ | B56: =CONCATENATE(A56,VLOOKUP($I$5,'Цвет мет. опор'!A:B,2,0),"/",VLOOKUP($J$5,'Цвет лючка'!A:B,2,0),".",VLOOKUP($K$5,'Цвет столешницы'!A:B,2,FALSE)) -> EVL604/О/60*30/WHT/ANT.L | C56: Рабочая станция на О образном м/к 60х30 глубиной 1436 | D56: 1200*1436*750 | F56: 34709
A57: EVL605/О/60*30/ | B57: =CONCATENATE(A57,VLOOKUP($I$5,'Цвет мет. опор'!A:B,2,0),"/",VLOOKUP($J$5,'Цвет лючка'!A:B,2,0),".",VLOOKUP($K$5,'Цвет столешницы'!A:B,2,FALSE)) -> EVL605/О/60*30/WHT/ANT.L | D57: 1400*1436*750 | F57: 36159
A58: EVL606/О/60*30/ | B58: =CONCATENATE(A58,VLOOKUP($I$5,'Цвет мет. опор'!A:B,2,0),"/",VLOOKUP($J$5,'Цвет лючка'!A:B,2,0),".",VLOOKUP($K$5,'Цвет столешницы'!A:B,2,FALSE)) -> EVL606/О/60*30/WHT/ANT.L | D58: 1600*1436*750 | F58: 36490
A59: EVL682/О/60*30/ | B59: =CONCATENATE(A59,VLOOKUP($I$5,'Цвет мет. опор'!A:B,2,0),"/",VLOOKUP($J$5,'Цвет лючка'!A:B,2,0),".",VLOOKUP($K$5,'Цвет столешницы'!A:B,2,FALSE)) -> EVL682/О/60*30/WHT/ANT.L | D59: 1800*1436*751 | F59: 40536
A60: EVL607/О/60*30/ | B60: =CONCATENATE(A60,VLOOKUP($I$5,'Цвет мет. опор'!A:B,2,0),"/",VLOOKUP($J$5,'Цвет лючка'!A:B,2,0),".",VLOOKUP($K$5,'Цвет столешницы'!A:B,2,FALSE)) -> EVL607/О/60*30/WHT/ANT.L | C60: Рабочая станция на О образном м/к 60х30 глубиной 1636 | D60: 1200*1636*750 | F60: 38487
A61: EVL608/О/60*30/ | B61: =CONCATENATE(A61,VLOOKUP($I$5,'Цвет мет. опор'!A:B,2,0),"/",VLOOKUP($J$5,'Цвет лючка'!A:B,2,0),".",VLOOKUP($K$5,'Цвет столешницы'!A:B,2,FALSE)) -> EVL608/О/60*30/WHT/ANT.L | D61: 1400*1636*750 | F61: 40430
A62: EVL609/О/60*30/ | B62: =CONCATENATE(A62,VLOOKUP($I$5,'Цвет мет. опор'!A:B,2,0),"/",VLOOKUP($J$5,'Цвет лючка'!A:B,2,0),".",VLOOKUP($K$5,'Цвет столешницы'!A:B,2,FALSE)) -> EVL609/О/60*30/WHT/ANT.L | D62: 1600*1636*750 | F62: 41760
A63: EVL683/О/60*30/ | B63: =CONCATENATE(A63,VLOOKUP($I$5,'Цвет мет. опор'!A:B,2,0),"/",VLOOKUP($J$5,'Цвет лючка'!A:B,2,0),".",VLOOKUP($K$5,'Цвет столешницы'!A:B,2,FALSE)) -> EVL683/О/60*30/WHT/ANT.L | D63: 1800*1636*750 | F63: 42747
A64: EVL610/О/60*30/ | B64: =CONCATENATE(A64,VLOOKUP($I$5,'Цвет мет. опор'!A:B,2,0),"/",VLOOKUP($J$5,'Цвет лючка'!A:B,2,0),".",VLOOKUP($K$5,'Цвет столешницы'!A:B,2,FALSE)) -> EVL610/О/60*30/WHT/ANT.L | C64: Рабочая станция криволинейная на О образном м/к 60х30 глубиной 1236/1836 | D64: 1200*1836*750 | F64: 36523
A65: EVL611/О/60*30/ | B65: =CONCATENATE(A65,VLOOKUP($I$5,'Цвет мет. опор'!A:B,2,0),"/",VLOOKUP($J$5,'Цвет лючка'!A:B,2,0),".",VLOOKUP($K$5,'Цвет столешницы'!A:B,2,FALSE)) -> EVL611/О/60*30/WHT/ANT.L | D65: 1400*1836*750 | F65: 37088
A66: EVL612/О/60*30/ | B66: =CONCATENATE(A66,VLOOKUP($I$5,'Цвет мет. опор'!A:B,2,0),"/",VLOOKUP($J$5,'Цвет лючка'!A:B,2,0),".",VLOOKUP($K$5,'Цвет столешницы'!A:B,2,FALSE)) -> EVL612/О/60*30/WHT/ANT.L | D66: 1600*1836*750 | F66: 38728
A67: EVL613/О/60*30/ | B67: =CONCATENATE(A67,VLOOKUP($I$5,'Цвет мет. опор'!A:B,2,0),"/",VLOOKUP($J$5,'Цвет лючка'!A:B,2,0),".",VLOOKUP($K$5,'Цвет столешницы'!A:B,2,FALSE)) -> EVL613/О/60*30/WHT/ANT.L | C67: Рабочая станция криволинейная на О-образном м/к 60х30 глубиной 1436/1836 | D67: 1200*1836*750 | F67: 35836
A68: EVL614/О/60*30/ | B68: =CONCATENATE(A68,VLOOKUP($I$5,'Цвет мет. опор'!A:B,2,0),"/",VLOOKUP($J$5,'Цвет лючка'!A:B,2,0),".",VLOOKUP($K$5,'Цвет столешницы'!A:B,2,FALSE)) -> EVL614/О/60*30/WHT/ANT.L | D68: 1400*1836*750 | F68: 35977
A69: EVL615/О/60*30/ | B69: =CONCATENATE(A69,VLOOKUP($I$5,'Цвет мет. опор'!A:B,2,0),"/",VLOOKUP($J$5,'Цвет лючка'!A:B,2,0),".",VLOOKUP($K$5,'Цвет столешницы'!A:B,2,FALSE)) -> EVL615/О/60*30/WHT/ANT.L | D69: 1600*1836*750 | F69: 38060
A70: EVL616/О/60*30/ | B70: =CONCATENATE(A70,VLOOKUP($I$5,'Цвет мет. опор'!A:B,2,0),"/",VLOOKUP($J$5,'Цвет лючка'!A:B,2,0),".",VLOOKUP($K$5,'Цвет столешницы'!A:B,2,FALSE)) -> EVL616/О/60*30/WHT/ANT.L | C70: Рабочая станция эргономичная на О-образном м/к 60х30 глубиной 1236/2436 | D70: 1400*2436*750 | F70: 60078
A71: EVL617/О/60*30/ | B71: =CONCATENATE(A71,VLOOKUP($I$5,'Цвет мет. опор'!A:B,2,0),"/",VLOOKUP($J$5,'Цвет лючка'!A:B,2,0),".",VLOOKUP($K$5,'Цвет столешницы'!A:B,2,FALSE)) -> EVL617/О/60*30/WHT/ANT.L | D71: 1600*2436*750 | F71: 61697
A72: EVL618/О/60*30/ | B72: =CONCATENATE(A72,VLOOKUP($I$5,'Цвет мет. опор'!A:B,2,0),"/",VLOOKUP($J$5,'Цвет лючка'!A:B,2,0),".",VLOOKUP($K$5,'Цвет столешницы'!A:B,2,FALSE)) -> EVL618/О/60*30/WHT/ANT.L | C72: Рабочая станция эргономичная на О-образном м/к 60х30 глубиной 1436/2436 | D72: 1400*2440*750 | F72: 60846
A73: EVL619/О/60*30/ | B73: =CONCATENATE(A73,VLOOKUP($I$5,'Цвет мет. опор'!A:B,2,0),"/",VLOOKUP($J$5,'Цвет лючка'!A:B,2,0),".",VLOOKUP($K$5,'Цвет столешницы'!A:B,2,FALSE)) -> EVL619/О/60*30/WHT/ANT.L | D73: 1600*2440*750 | F73: 62377
A74: EVL620/О/60*30/ | B74: =CONCATENATE(A74,VLOOKUP($I$5,'Цвет мет. опор'!A:B,2,0),"/",VLOOKUP($J$5,'Цвет лючка'!A:B,2,0),".",VLOOKUP($K$5,'Цвет столешницы'!A:B,2,FALSE)) -> EVL620/О/60*30/WHT/ANT.L | C74: Рабочая станция эргономичная на О-образном м/к 60х30 глубиной 1636/2436 | D74: 1400*2440*750 | F74: 64013
A75: EVL621/О/60*30/ | B75: =CONCATENATE(A75,VLOOKUP($I$5,'Цвет мет. опор'!A:B,2,0),"/",VLOOKUP($J$5,'Цвет лючка'!A:B,2,0),".",VLOOKUP($K$5,'Цвет столешницы'!A:B,2,FALSE)) -> EVL621/О/60*30/WHT/ANT.L | D75: 1600*2440*750 | F75: 65468
A76: EVL622/О/60*30/ | B76: =CONCATENATE(A76,VLOOKUP($I$5,'Цвет мет. опор'!A:B,2,0),"/",VLOOKUP($J$5,'Цвет лючка'!A:B,2,0),".",VLOOKUP($K$5,'Цвет столешницы'!A:B,2,FALSE)) -> EVL622/О/60*30/WHT/ANT.L | C76: Рабочая станция эргономичная на О-образном м/к 60х30 глубиной 600/900 | D76: 2400*900*750 | F76: 37688
A77: EVL623/О/60*30/ | B77: =CONCATENATE(A77,VLOOKUP($I$5,'Цвет мет. опор'!A:B,2,0),"/",VLOOKUP($J$5,'Цвет лючка'!A:B,2,0),".",VLOOKUP($K$5,'Цвет столешницы'!A:B,2,FALSE)) -> EVL623/О/60*30/WHT/ANT.L | D77: 2800*900*750 | F77: 39752
A78: EVL624/О/60*30/ | B78: =CONCATENATE(A78,VLOOKUP($I$5,'Цвет мет. опор'!A:B,2,0),"/",VLOOKUP($J$5,'Цвет лючка'!A:B,2,0),".",VLOOKUP($K$5,'Цвет столешницы'!A:B,2,FALSE)) -> EVL624/О/60*30/WHT/ANT.L | D78: 3200*900*750 | F78: 40992
A79: EVL625/О/60*30/ | B79: =CONCATENATE(A79,VLOOKUP($I$5,'Цвет мет. опор'!A:B,2,0),"/",VLOOKUP($J$5,'Цвет лючка'!A:B,2,0),".",VLOOKUP($K$5,'Цвет столешницы'!A:B,2,FALSE)) -> EVL625/О/60*30/WHT/ANT.L | C79: Рабочая станция эргономичная на О-образном м/к 60х30 глубиной 700/900 | D79: 2400*900*750 | F79: 36923
A80: EVL626/О/60*30/ | B80: =CONCATENATE(A80,VLOOKUP($I$5,'Цвет мет. опор'!A:B,2,0),"/",VLOOKUP($J$5,'Цвет лючка'!A:B,2,0),".",VLOOKUP($K$5,'Цвет столешницы'!A:B,2,FALSE)) -> EVL626/О/60*30/WHT/ANT.L | D80: 2800*900*750 | F80: 38843
A81: EVL627/О/60*30/ | B81: =CONCATENATE(A81,VLOOKUP($I$5,'Цвет мет. опор'!A:B,2,0),"/",VLOOKUP($J$5,'Цвет лючка'!A:B,2,0),".",VLOOKUP($K$5,'Цвет столешницы'!A:B,2,FALSE)) -> EVL627/О/60*30/WHT/ANT.L | D81: 3200*900*750 | F81: 40471
A82: EVL628/О/60*30/ | B82: =CONCATENATE(A82,VLOOKUP($I$5,'Цвет мет. опор'!A:B,2,0),"/",VLOOKUP($J$5,'Цвет лючка'!A:B,2,0),".",VLOOKUP($K$5,'Цвет столешницы'!A:B,2,FALSE)) -> EVL628/О/60*30/WHT/ANT.L | C82: Рабочая станция эргономичная на О-образном м/к 60х30 глубиной 800/900 | D82: 2400*900*750 | F82: 38077
A83: EVL629/О/60*30/ | B83: =CONCATENATE(A83,VLOOKUP($I$5,'Цвет мет. опор'!A:B,2,0),"/",VLOOKUP($J$5,'Цвет лючка'!A:B,2,0),".",VLOOKUP($K$5,'Цвет столешницы'!A:B,2,FALSE)) -> EVL629/О/60*30/WHT/ANT.L | D83: 2800*900*750 | F83: 40095
A84: EVL630/О/60*30/ | B84: =CONCATENATE(A84,VLOOKUP($I$5,'Цвет мет. опор'!A:B,2,0),"/",VLOOKUP($J$5,'Цвет лючка'!A:B,2,0),".",VLOOKUP($K$5,'Цвет столешницы'!A:B,2,FALSE)) -> EVL630/О/60*30/WHT/ANT.L | D84: 3200*900*750 | F84: 41309
A85: EVL631/О/60*30/ | B85: =CONCATENATE(A85,VLOOKUP($I$5,'Цвет мет. опор'!A:B,2,0),"/",VLOOKUP($J$5,'Цвет лючка'!A:B,2,0),".",VLOOKUP($K$5,'Цвет столешницы'!A:B,2,FALSE)) -> EVL631/О/60*30/WHT/ANT.L | C85: Рабочая станция эргономичная на О-образном м/к 60х30 глубиной 600/1200 | D85: 2400*1236*750 | F85: 42000
A86: EVL632/О/60*30/ | B86: =CONCATENATE(A86,VLOOKUP($I$5,'Цвет мет. опор'!A:B,2,0),"/",VLOOKUP($J$5,'Цвет лючка'!A:B,2,0),".",VLOOKUP($K$5,'Цвет столешницы'!A:B,2,FALSE)) -> EVL632/О/60*30/WHT/ANT.L | D86: 2800*1236*750 | F86: 44163
A87: EVL633/О/60*30/ | B87: =CONCATENATE(A87,VLOOKUP($I$5,'Цвет мет. опор'!A:B,2,0),"/",VLOOKUP($J$5,'Цвет лючка'!A:B,2,0),".",VLOOKUP($K$5,'Цвет столешницы'!A:B,2,FALSE)) -> EVL633/О/60*30/WHT/ANT.L | D87: 3200*1236*750 | F87: 45782
A88: EVL634/О/60*30/ | B88: =CONCATENATE(A88,VLOOKUP($I$5,'Цвет мет. опор'!A:B,2,0),"/",VLOOKUP($J$5,'Цвет лючка'!A:B,2,0),".",VLOOKUP($K$5,'Цвет столешницы'!A:B,2,FALSE)) -> EVL634/О/60*30/WHT/ANT.L | C88: Рабочая станция эргономичная на О-образном м/к 60х30 глубиной 700/1200 | D88: 2400*1236*750 | F88: 42414
A89: EVL635/О/60*30/ | B89: =CONCATENATE(A89,VLOOKUP($I$5,'Цвет мет. опор'!A:B,2,0),"/",VLOOKUP($J$5,'Цвет лючка'!A:B,2,0),".",VLOOKUP($K$5,'Цвет столешницы'!A:B,2,FALSE)) -> EVL635/О/60*30/WHT/ANT.L | D89: 2800*1236*750 | F89: 44884
A90: EVL636/О/60*30/ | B90: =CONCATENATE(A90,VLOOKUP($I$5,'Цвет мет. опор'!A:B,2,0),"/",VLOOKUP($J$5,'Цвет лючка'!A:B,2,0),".",VLOOKUP($K$5,'Цвет столешницы'!A:B,2,FALSE)) -> EVL636/О/60*30/WHT/ANT.L | D90: 3200*1236*750 | F90: 46559
A91: EVL637/О/60*30/ | B91: =CONCATENATE(A91,VLOOKUP($I$5,'Цвет мет. опор'!A:B,2,0),"/",VLOOKUP($J$5,'Цвет лючка'!A:B,2,0),".",VLOOKUP($K$5,'Цвет столешницы'!A:B,2,FALSE)) -> EVL637/О/60*30/WHT/ANT.L | C91: Рабочая станция эргономичная на О-образном м/к 60х30 глубиной 800/1200 | D91: 2400*1236*750 | F91: 42475
A92: EVL638/О/60*30/ | B92: =CONCATENATE(A92,VLOOKUP($I$5,'Цвет мет. опор'!A:B,2,0),"/",VLOOKUP($J$5,'Цвет лючка'!A:B,2,0),".",VLOOKUP($K$5,'Цвет столешницы'!A:B,2,FALSE)) -> EVL638/О/60*30/WHT/ANT.L | D92: 2800*1236*750 | F92: 45078
A93: EVL639/О/60*30/ | B93: =CONCATENATE(A93,VLOOKUP($I$5,'Цвет мет. опор'!A:B,2,0),"/",VLOOKUP($J$5,'Цвет лючка'!A:B,2,0),".",VLOOKUP($K$5,'Цвет столешницы'!A:B,2,FALSE)) -> EVL639/О/60*30/WHT/ANT.L | D93: 3200*1236*750 | F93: 46532
A94: EVL180/O/60*30/ | B94: =CONCATENATE(A94,VLOOKUP($I$5,'Цвет мет. опор'!A:B,2,0),"/",VLOOKUP($J$5,'Цвет лючка'!A:B,2,0),".",VLOOKUP($K$5,'Цвет столешницы'!A:B,2,FALSE)) -> EVL180/O/60*30/WHT/ANT.L | C94: Приставка к столу рабочая 1000х500 | D94: 1000x500x750 | F94: 12386
A95: EVL135/О/60*30/ | B95: =CONCATENATE(A95,VLOOKUP($I$5,'Цвет мет. опор'!A:B,2,0),"/",VLOOKUP($J$5,'Цвет лючка'!A:B,2,0),".",VLOOKUP($K$5,'Цвет столешницы'!A:B,2,FALSE)) -> EVL135/О/60*30/WHT/ANT.L | C95: Приставной элемент на О-образном м/к 60х30 глубиной 700 (используется только в качестве брифинга) | D95: 1000*600*750 | F95: 14366
A96: EVL137/О/60*30/ | B96: =CONCATENATE(A96,VLOOKUP($I$5,'Цвет мет. опор'!A:B,2,0),"/",VLOOKUP($J$5,'Цвет лючка'!A:B,2,0),".",VLOOKUP($K$5,'Цвет столешницы'!A:B,2,FALSE)) -> EVL137/О/60*30/WHT/ANT.L | D96: 1200*700*750 | F96: 14979
A97: EVL701/О/60*30/ | B97: =CONCATENATE(A97,VLOOKUP($I$5,'Цвет мет. опор'!A:B,2,0),"/",VLOOKUP($J$5,'Цвет лючка'!A:B,2,0),".",VLOOKUP($K$5,'Цвет столешницы'!A:B,2,FALSE)) -> EVL701/О/60*30/WHT/ANT.L | C97: Рабочая станция на О образном м/к 60х30 с тумбой (композиция стол+тумба) | D97: 1450*700*750 | E97: Тумба 450х700х750 | F97: 35079
A98: EVL702/О/60*30/ | B98: =CONCATENATE(A98,VLOOKUP($I$5,'Цвет мет. опор'!A:B,2,0),"/",VLOOKUP($J$5,'Цвет лючка'!A:B,2,0),".",VLOOKUP($K$5,'Цвет столешницы'!A:B,2,FALSE)) -> EVL702/О/60*30/WHT/ANT.L | D98: 1650*700*750 | F98: 35244
A99: EVL703/О/60*30/ | B99: =CONCATENATE(A99,VLOOKUP($I$5,'Цвет мет. опор'!A:B,2,0),"/",VLOOKUP($J$5,'Цвет лючка'!A:B,2,0),".",VLOOKUP($K$5,'Цвет столешницы'!A:B,2,FALSE)) -> EVL703/О/60*30/WHT/ANT.L | D99: 1850*700*750 | F99: 36528
A100: EVL704/О/60*30/ | B100: =CONCATENATE(A100,VLOOKUP($I$5,'Цвет мет. опор'!A:B,2,0),"/",VLOOKUP($J$5,'Цвет лючка'!A:B,2,0),".",VLOOKUP($K$5,'Цвет столешницы'!A:B,2,FALSE)) -> EVL704/О/60*30/WHT/ANT.L | D100: 2050*700*750 | F100: 37342
A101: EVL705/О/60*30/ | B101: =CONCATENATE(A101,VLOOKUP($I$5,'Цвет мет. опор'!A:B,2,0),"/",VLOOKUP($J$5,'Цвет лючка'!A:B,2,0),".",VLOOKUP($K$5,'Цвет столешницы'!A:B,2,FALSE)) -> EVL705/О/60*30/WHT/ANT.L | D101: 2250*700*750 | F101: 38045
A102: EVL706/О/60*30/ | B102: =CONCATENATE(A102,VLOOKUP($I$5,'Цвет мет. опор'!A:B,2,0),"/",VLOOKUP($J$5,'Цвет лючка'!A:B,2,0),".",VLOOKUP($K$5,'Цвет столешницы'!A:B,2,FALSE)) -> EVL706/О/60*30/WHT/ANT.L | C102: Рабочая станция на О образном м/к 60х30 с тумбой (композиция двойной бенч+тумба) | D102: 1450*1436*750 | E102: Тумба 450х1436х750 | F102: 60054
A103: EVL707/О/60*30/ | B103: =CONCATENATE(A103,VLOOKUP($I$5,'Цвет мет. опор'!A:B,2,0),"/",VLOOKUP($J$5,'Цвет лючка'!A:B,2,0),".",VLOOKUP($K$5,'Цвет столешницы'!A:B,2,FALSE)) -> EVL707/О/60*30/WHT/ANT.L | D103: 1650*1436*750 | F103: 61779
A104: EVL708/О/60*30/ | B104: =CONCATENATE(A104,VLOOKUP($I$5,'Цвет мет. опор'!A:B,2,0),"/",VLOOKUP($J$5,'Цвет лючка'!A:B,2,0),".",VLOOKUP($K$5,'Цвет столешницы'!A:B,2,FALSE)) -> EVL708/О/60*30/WHT/ANT.L | D104: 1850*1436*750 | F104: 63477
A105: EVL709/О/60*30/ | B105: =CONCATENATE(A105,VLOOKUP($I$5,'Цвет мет. опор'!A:B,2,0),"/",VLOOKUP($J$5,'Цвет лючка'!A:B,2,0),".",VLOOKUP($K$5,'Цвет столешницы'!A:B,2,FALSE)) -> EVL709/О/60*30/WHT/ANT.L | D105: 2050*1436*750 | F105: 64580
A106: EVL710/О/60*30/ | B106: =CONCATENATE(A106,VLOOKUP($I$5,'Цвет мет. опор'!A:B,2,0),"/",VLOOKUP($J$5,'Цвет лючка'!A:B,2,0),".",VLOOKUP($K$5,'Цвет столешницы'!A:B,2,FALSE)) -> EVL710/О/60*30/WHT/ANT.L | D106: 2250*1436*750 | F106: 66073
A107: EVL711/О/60*30/ | B107: =CONCATENATE(A107,VLOOKUP($I$5,'Цвет мет. опор'!A:B,2,0),"/",VLOOKUP($J$5,'Цвет лючка'!A:B,2,0),".",VLOOKUP($K$5,'Цвет столешницы'!A:B,2,FALSE)) -> EVL711/О/60*30/WHT/ANT.L | C107: Рабочая станция на О образном м/к 60х30 со шкафом-купе (композиция двойной бенч+шкаф-купе) | D107: 1410*1436*750 | E107: Шкаф-купе приставной 1440х410х750 | F107: 53958
A108: EVL712/О/60*30/ | B108: =CONCATENATE(A108,VLOOKUP($I$5,'Цвет мет. опор'!A:B,2,0),"/",VLOOKUP($J$5,'Цвет лючка'!A:B,2,0),".",VLOOKUP($K$5,'Цвет столешницы'!A:B,2,FALSE)) -> EVL712/О/60*30/WHT/ANT.L | D108: 1610*1436*750 | F108: 55174
A109: EVL713/О/60*30/ | B109: =CONCATENATE(A109,VLOOKUP($I$5,'Цвет мет. опор'!A:B,2,0),"/",VLOOKUP($J$5,'Цвет лючка'!A:B,2,0),".",VLOOKUP($K$5,'Цвет столешницы'!A:B,2,FALSE)) -> EVL713/О/60*30/WHT/ANT.L | D109: 1810*1436*750 | F109: 56624
A110: EVL714/О/60*30/ | B110: =CONCATENATE(A110,VLOOKUP($I$5,'Цвет мет. опор'!A:B,2,0),"/",VLOOKUP($J$5,'Цвет лючка'!A:B,2,0),".",VLOOKUP($K$5,'Цвет столешницы'!A:B,2,FALSE)) -> EVL714/О/60*30/WHT/ANT.L | D110: 2010*1436*750 | F110: 56955
A111: EVL715/О/60*30/ | B111: =CONCATENATE(A111,VLOOKUP($I$5,'Цвет мет. опор'!A:B,2,0),"/",VLOOKUP($J$5,'Цвет лючка'!A:B,2,0),".",VLOOKUP($K$5,'Цвет столешницы'!A:B,2,FALSE)) -> EVL715/О/60*30/WHT/ANT.L | D111: 2210*1436*750 | F111: 59977
A112: EVL716/О/60*30/ | B112: =CONCATENATE(A112,VLOOKUP($I$5,'Цвет мет. опор'!A:B,2,0),"/",VLOOKUP($J$5,'Цвет лючка'!A:B,2,0),".",VLOOKUP($K$5,'Цвет столешницы'!A:B,2,FALSE)) -> EVL716/О/60*30/WHT/ANT.L | C112: Рабочая станция на О образном м/к 60х30 со шкафом-купе (композиция двойной бенч+шкаф-купе) | D112: 1410*1436*1098 | E112: Шкаф-купе приставной 1440х410х1098 | F112: 58820
A113: EVL717/О/60*30/ | B113: =CONCATENATE(A113,VLOOKUP($I$5,'Цвет мет. опор'!A:B,2,0),"/",VLOOKUP($J$5,'Цвет лючка'!A:B,2,0),".",VLOOKUP($K$5,'Цвет столешницы'!A:B,2,FALSE)) -> EVL717/О/60*30/WHT/ANT.L | D113: 1610*1436*1098 | F113: 60036
A114: EVL718/О/60*30/ | B114: =CONCATENATE(A114,VLOOKUP($I$5,'Цвет мет. опор'!A:B,2,0),"/",VLOOKUP($J$5,'Цвет лючка'!A:B,2,0),".",VLOOKUP($K$5,'Цвет столешницы'!A:B,2,FALSE)) -> EVL718/О/60*30/WHT/ANT.L | D114: 1810*1436*1098 | F114: 61486
A115: EVL719/О/60*30/ | B115: =CONCATENATE(A115,VLOOKUP($I$5,'Цвет мет. опор'!A:B,2,0),"/",VLOOKUP($J$5,'Цвет лючка'!A:B,2,0),".",VLOOKUP($K$5,'Цвет столешницы'!A:B,2,FALSE)) -> EVL719/О/60*30/WHT/ANT.L | D115: 2010*1436*1098 | F115: 61817
A116: EVL720/О/60*30/ | B116: =CONCATENATE(A116,VLOOKUP($I$5,'Цвет мет. опор'!A:B,2,0),"/",VLOOKUP($J$5,'Цвет лючка'!A:B,2,0),".",VLOOKUP($K$5,'Цвет столешницы'!A:B,2,FALSE)) -> EVL720/О/60*30/WHT/ANT.L | D116: 2210*1436*1098 | F116: 64839
A117: EVL721/О/60*30/ | B117: =CONCATENATE(A117,VLOOKUP($I$5,'Цвет мет. опор'!A:B,2,0),"/",VLOOKUP($J$5,'Цвет лючка'!A:B,2,0),".",VLOOKUP($K$5,'Цвет столешницы'!A:B,2,FALSE)) -> EVL721/О/60*30/WHT/ANT.L | C117: Стол письменный на О образном м/к 60х30 со шкафом-купе (композиция двойной бенч+шкаф-купе) | D117: 1410*1240*1098 | E117: Шкаф-купе приставной 1240х410х1098 | F117: 42810
A118: EVL722/О/60*30/ | B118: =CONCATENATE(A118,VLOOKUP($I$5,'Цвет мет. опор'!A:B,2,0),"/",VLOOKUP($J$5,'Цвет лючка'!A:B,2,0),".",VLOOKUP($K$5,'Цвет столешницы'!A:B,2,FALSE)) -> EVL722/О/60*30/WHT/ANT.L | D118: 1610*1240*1098 | F118: 43526
A119: EVL723/О/60*30/ | B119: =CONCATENATE(A119,VLOOKUP($I$5,'Цвет мет. опор'!A:B,2,0),"/",VLOOKUP($J$5,'Цвет лючка'!A:B,2,0),".",VLOOKUP($K$5,'Цвет столешницы'!A:B,2,FALSE)) -> EVL723/О/60*30/WHT/ANT.L | D119: 1810*1240*1098 | F119: 44259
A120: EVL724/О/60*30/ | B120: =CONCATENATE(A120,VLOOKUP($I$5,'Цвет мет. опор'!A:B,2,0),"/",VLOOKUP($J$5,'Цвет лючка'!A:B,2,0),".",VLOOKUP($K$5,'Цвет столешницы'!A:B,2,FALSE)) -> EVL724/О/60*30/WHT/ANT.L | D120: 2010*1240*1098 | F120: 45073
A121: EVL725/О/60*30/ | B121: =CONCATENATE(A121,VLOOKUP($I$5,'Цвет мет. опор'!A:B,2,0),"/",VLOOKUP($J$5,'Цвет лючка'!A:B,2,0),".",VLOOKUP($K$5,'Цвет столешницы'!A:B,2,FALSE)) -> EVL725/О/60*30/WHT/ANT.L | D121: 2210*1240*1098 | F121: 45775
A122: EVL726/О/60*30/ | B122: =CONCATENATE(A122,VLOOKUP($I$5,'Цвет мет. опор'!A:B,2,0),"/",VLOOKUP($J$5,'Цвет лючка'!A:B,2,0),".",VLOOKUP($K$5,'Цвет столешницы'!A:B,2,FALSE)) -> EVL726/О/60*30/WHT/ANT.L | C122: Рабочая станция на О образном м/к 60х30 со шкафом-купе (композиция двойной бенч+шкаф-купе) | D122: 1410*2332*1098 | E122: Шкаф-купе приставной 2332х410х1098 | F122: 82467
A123: EVL727/О/60*30/ | B123: =CONCATENATE(A123,VLOOKUP($I$5,'Цвет мет. опор'!A:B,2,0),"/",VLOOKUP($J$5,'Цвет лючка'!A:B,2,0),".",VLOOKUP($K$5,'Цвет столешницы'!A:B,2,FALSE)) -> EVL727/О/60*30/WHT/ANT.L | D123: 1610*2332*1098 | F123: 83683
A124: EVL728/О/60*30/ | B124: =CONCATENATE(A124,VLOOKUP($I$5,'Цвет мет. опор'!A:B,2,0),"/",VLOOKUP($J$5,'Цвет лючка'!A:B,2,0),".",VLOOKUP($K$5,'Цвет столешницы'!A:B,2,FALSE)) -> EVL728/О/60*30/WHT/ANT.L | D124: 1810*2332*1098 | F124: 85132
A125: EVL729/О/60*30/ | B125: =CONCATENATE(A125,VLOOKUP($I$5,'Цвет мет. опор'!A:B,2,0),"/",VLOOKUP($J$5,'Цвет лючка'!A:B,2,0),".",VLOOKUP($K$5,'Цвет столешницы'!A:B,2,FALSE)) -> EVL729/О/60*30/WHT/ANT.L | D125: 2010*2332*1098 | F125: 85463
A126: EVL730/О/60*30/ | B126: =CONCATENATE(A126,VLOOKUP($I$5,'Цвет мет. опор'!A:B,2,0),"/",VLOOKUP($J$5,'Цвет лючка'!A:B,2,0),".",VLOOKUP($K$5,'Цвет столешницы'!A:B,2,FALSE)) -> EVL730/О/60*30/WHT/ANT.L | D126: 2210*2332*1098 | F126: 88486
A127: EVL731/О/60*30/ | B127: =CONCATENATE(A127,VLOOKUP($I$5,'Цвет мет. опор'!A:B,2,0),"/",VLOOKUP($J$5,'Цвет лючка'!A:B,2,0),".",VLOOKUP($K$5,'Цвет столешницы'!A:B,2,FALSE)) -> EVL731/О/60*30/WHT/ANT.L | C127: Рабочая станция на О образном м/к 60х30 с тумбой левая/правая | D127: 1450*1250*750 L | E127: правый | F127: 34756
A128: EVL732/О/60*30/ | B128: =CONCATENATE(A128,VLOOKUP($I$5,'Цвет мет. опор'!A:B,2,0),"/",VLOOKUP($J$5,'Цвет лючка'!A:B,2,0),".",VLOOKUP($K$5,'Цвет столешницы'!A:B,2,FALSE)) -> EVL732/О/60*30/WHT/ANT.L | D128: 1450*1250*750 R | F128: 34756
A129: EVL733/О/60*30/ | B129: =CONCATENATE(A129,VLOOKUP($I$5,'Цвет мет. опор'!A:B,2,0),"/",VLOOKUP($J$5,'Цвет лючка'!A:B,2,0),".",VLOOKUP($K$5,'Цвет столешницы'!A:B,2,FALSE)) -> EVL733/О/60*30/WHT/ANT.L | D129: 1650*1250*750 L | F129: 35086
A130: EVL734/О/60*30/ | B130: =CONCATENATE(A130,VLOOKUP($I$5,'Цвет мет. опор'!A:B,2,0),"/",VLOOKUP($J$5,'Цвет лючка'!A:B,2,0),".",VLOOKUP($K$5,'Цвет столешницы'!A:B,2,FALSE)) -> EVL734/О/60*30/WHT/ANT.L | D130: 1650*1250*750 R | F130: 35086
A131: EVL735/О/60*30/ | B131: =CONCATENATE(A131,VLOOKUP($I$5,'Цвет мет. опор'!A:B,2,0),"/",VLOOKUP($J$5,'Цвет лючка'!A:B,2,0),".",VLOOKUP($K$5,'Цвет столешницы'!A:B,2,FALSE)) -> EVL735/О/60*30/WHT/ANT.L | D131: 1850*1250*750 L | F131: 35416
A132: EVL736/О/60*30/ | B132: =CONCATENATE(A132,VLOOKUP($I$5,'Цвет мет. опор'!A:B,2,0),"/",VLOOKUP($J$5,'Цвет лючка'!A:B,2,0),".",VLOOKUP($K$5,'Цвет столешницы'!A:B,2,FALSE)) -> EVL736/О/60*30/WHT/ANT.L | D132: 1850*1250*750 R | F132: 35416
B133: Бэнч-системы
A134: EVL645/О/60*30/ | B134: =CONCATENATE(A134,VLOOKUP($I$5,'Цвет мет. опор'!A:B,2,0),"/",VLOOKUP($J$5,'Цвет лючка'!A:B,2,0),".",VLOOKUP($K$5,'Цвет столешницы'!A:B,2,FALSE)) -> EVL645/О/60*30/WHT/ANT.L | C134: Рабочая станция на 2 раб.места на О образном м/к 60х30 (бенч-система) глубиной 600 | D134: 2400*600*750 | F134: 35186
A135: EVL646/О/60*30/ | B135: =CONCATENATE(A135,VLOOKUP($I$5,'Цвет мет. опор'!A:B,2,0),"/",VLOOKUP($J$5,'Цвет лючка'!A:B,2,0),".",VLOOKUP($K$5,'Цвет столешницы'!A:B,2,FALSE)) -> EVL646/О/60*30/WHT/ANT.L | D135: 2800*600*750 | F135: 36316
A136: EVL647/О/60*30/ | B136: =CONCATENATE(A136,VLOOKUP($I$5,'Цвет мет. опор'!A:B,2,0),"/",VLOOKUP($J$5,'Цвет лючка'!A:B,2,0),".",VLOOKUP($K$5,'Цвет столешницы'!A:B,2,FALSE)) -> EVL647/О/60*30/WHT/ANT.L | D136: 3200*600*750 | F136: 37893
A137: EVL648/О/60*30/ | B137: =CONCATENATE(A137,VLOOKUP($I$5,'Цвет мет. опор'!A:B,2,0),"/",VLOOKUP($J$5,'Цвет лючка'!A:B,2,0),".",VLOOKUP($K$5,'Цвет столешницы'!A:B,2,FALSE)) -> EVL648/О/60*30/WHT/ANT.L | C137: Рабочая станция на 2 раб.места на О образном м/к 60х30 (бенч-система) глубиной 700 | D137: 2400*700*750 | F137: 36870
A138: EVL649/О/60*30/ | B138: =CONCATENATE(A138,VLOOKUP($I$5,'Цвет мет. опор'!A:B,2,0),"/",VLOOKUP($J$5,'Цвет лючка'!A:B,2,0),".",VLOOKUP($K$5,'Цвет столешницы'!A:B,2,FALSE)) -> EVL649/О/60*30/WHT/ANT.L | D138: 2800*700*750 | F138: 38273
A139: EVL650/О/60*30/ | B139: =CONCATENATE(A139,VLOOKUP($I$5,'Цвет мет. опор'!A:B,2,0),"/",VLOOKUP($J$5,'Цвет лючка'!A:B,2,0),".",VLOOKUP($K$5,'Цвет столешницы'!A:B,2,FALSE)) -> EVL650/О/60*30/WHT/ANT.L | D139: 3200*700*750 | F139: 39863
A140: EVL651/О/60*30/ | B140: =CONCATENATE(A140,VLOOKUP($I$5,'Цвет мет. опор'!A:B,2,0),"/",VLOOKUP($J$5,'Цвет лючка'!A:B,2,0),".",VLOOKUP($K$5,'Цвет столешницы'!A:B,2,FALSE)) -> EVL651/О/60*30/WHT/ANT.L | C140: Рабочая станция на 2 раб.места на О образном м/к 60х30 (бенч-система) глубиной 800 | D140: 2400*800*750 | F140: 37124
A141: EVL652/О/60*30/ | B141: =CONCATENATE(A141,VLOOKUP($I$5,'Цвет мет. опор'!A:B,2,0),"/",VLOOKUP($J$5,'Цвет лючка'!A:B,2,0),".",VLOOKUP($K$5,'Цвет столешницы'!A:B,2,FALSE)) -> EVL652/О/60*30/WHT/ANT.L | D141: 2800*800*750 | F141: 39554
A142: EVL653/О/60*30/ | B142: =CONCATENATE(A142,VLOOKUP($I$5,'Цвет мет. опор'!A:B,2,0),"/",VLOOKUP($J$5,'Цвет лючка'!A:B,2,0),".",VLOOKUP($K$5,'Цвет столешницы'!A:B,2,FALSE)) -> EVL653/О/60*30/WHT/ANT.L | D142: 3200*800*750 | F142: 42683
A143: EVL654/О/60*30/ | B143: =CONCATENATE(A143,VLOOKUP($I$5,'Цвет мет. опор'!A:B,2,0),"/",VLOOKUP($J$5,'Цвет лючка'!A:B,2,0),".",VLOOKUP($K$5,'Цвет столешницы'!A:B,2,FALSE)) -> EVL654/О/60*30/WHT/ANT.L | C143: Рабочая станция на 3 раб.места на О образном м/к 60х30 (бенч-система), глубиной 600 мм | D143: 3600*600*750 | F143: 52505
A144: EVL655/О/60*30/ | B144: =CONCATENATE(A144,VLOOKUP($I$5,'Цвет мет. опор'!A:B,2,0),"/",VLOOKUP($J$5,'Цвет лючка'!A:B,2,0),".",VLOOKUP($K$5,'Цвет столешницы'!A:B,2,FALSE)) -> EVL655/О/60*30/WHT/ANT.L | D144: 4200*600*750 | F144: 55053
A145: EVL656/О/60*30/ | B145: =CONCATENATE(A145,VLOOKUP($I$5,'Цвет мет. опор'!A:B,2,0),"/",VLOOKUP($J$5,'Цвет лючка'!A:B,2,0),".",VLOOKUP($K$5,'Цвет столешницы'!A:B,2,FALSE)) -> EVL656/О/60*30/WHT/ANT.L | D145: 4800*600*750 | F145: 56706
A146: EVL657/О/60*30/ | B146: =CONCATENATE(A146,VLOOKUP($I$5,'Цвет мет. опор'!A:B,2,0),"/",VLOOKUP($J$5,'Цвет лючка'!A:B,2,0),".",VLOOKUP($K$5,'Цвет столешницы'!A:B,2,FALSE)) -> EVL657/О/60*30/WHT/ANT.L | C146: Рабочая станция на 3 раб.места на О образном м/к 60х30 (бенч-система), глубиной 700 мм | D146: 3600*700*750 | F146: 53018
A147: EVL658/О/60*30/ | B147: =CONCATENATE(A147,VLOOKUP($I$5,'Цвет мет. опор'!A:B,2,0),"/",VLOOKUP($J$5,'Цвет лючка'!A:B,2,0),".",VLOOKUP($K$5,'Цвет столешницы'!A:B,2,FALSE)) -> EVL658/О/60*30/WHT/ANT.L | D147: 4200*700*750 | F147: 55565
A148: EVL659/О/60*30/ | B148: =CONCATENATE(A148,VLOOKUP($I$5,'Цвет мет. опор'!A:B,2,0),"/",VLOOKUP($J$5,'Цвет лючка'!A:B,2,0),".",VLOOKUP($K$5,'Цвет столешницы'!A:B,2,FALSE)) -> EVL659/О/60*30/WHT/ANT.L | D148: 4800*700*750 | F148: 57219
A149: EVL660/О/60*30/ | B149: =CONCATENATE(A149,VLOOKUP($I$5,'Цвет мет. опор'!A:B,2,0),"/",VLOOKUP($J$5,'Цвет лючка'!A:B,2,0),".",VLOOKUP($K$5,'Цвет столешницы'!A:B,2,FALSE)) -> EVL660/О/60*30/WHT/ANT.L | C149: Рабочая станция на 3 раб.места на О образном м/к 60х30 (бенч-система), глубиной 800 мм | D149: 3600*800*750 | F149: 52452
A150: EVL661/О/60*30/ | B150: =CONCATENATE(A150,VLOOKUP($I$5,'Цвет мет. опор'!A:B,2,0),"/",VLOOKUP($J$5,'Цвет лючка'!A:B,2,0),".",VLOOKUP($K$5,'Цвет столешницы'!A:B,2,FALSE)) -> EVL661/О/60*30/WHT/ANT.L | D150: 4200*800*750 | F150: 55000
A151: EVL662/О/60*30/ | B151: =CONCATENATE(A151,VLOOKUP($I$5,'Цвет мет. опор'!A:B,2,0),"/",VLOOKUP($J$5,'Цвет лючка'!A:B,2,0),".",VLOOKUP($K$5,'Цвет столешницы'!A:B,2,FALSE)) -> EVL662/О/60*30/WHT/ANT.L | D151: 4800*800*750 | F151: 56654
A152: EVL663/О/60*30/ | B152: =CONCATENATE(A152,VLOOKUP($I$5,'Цвет мет. опор'!A:B,2,0),"/",VLOOKUP($J$5,'Цвет лючка'!A:B,2,0),".",VLOOKUP($K$5,'Цвет столешницы'!A:B,2,FALSE)) -> EVL663/О/60*30/WHT/ANT.L | C152: Рабочая станция на 4 раб.места на О образном м/к 60х30 | D152: 2400*1236*750 | F152: 61447
A153: EVL664/О/60*30/ | B153: =CONCATENATE(A153,VLOOKUP($I$5,'Цвет мет. опор'!A:B,2,0),"/",VLOOKUP($J$5,'Цвет лючка'!A:B,2,0),".",VLOOKUP($K$5,'Цвет столешницы'!A:B,2,FALSE)) -> EVL664/О/60*30/WHT/ANT.L | D153: 2800*1236*750 | F153: 63707
A154: EVL665/О/60*30/ | B154: =CONCATENATE(A154,VLOOKUP($I$5,'Цвет мет. опор'!A:B,2,0),"/",VLOOKUP($J$5,'Цвет лючка'!A:B,2,0),".",VLOOKUP($K$5,'Цвет столешницы'!A:B,2,FALSE)) -> EVL665/О/60*30/WHT/ANT.L | D154: 3200*1236*750 | F154: 66861
A155: EVL666/О/60*30/ | B155: =CONCATENATE(A155,VLOOKUP($I$5,'Цвет мет. опор'!A:B,2,0),"/",VLOOKUP($J$5,'Цвет лючка'!A:B,2,0),".",VLOOKUP($K$5,'Цвет столешницы'!A:B,2,FALSE)) -> EVL666/О/60*30/WHT/ANT.L | C155: Рабочая станция на 4 раб.места на О образном м/к 60х30 | D155: 2400*1436*750 | F155: 54435
A156: EVL667/О/60*30/ | B156: =CONCATENATE(A156,VLOOKUP($I$5,'Цвет мет. опор'!A:B,2,0),"/",VLOOKUP($J$5,'Цвет лючка'!A:B,2,0),".",VLOOKUP($K$5,'Цвет столешницы'!A:B,2,FALSE)) -> EVL667/О/60*30/WHT/ANT.L | D156: 2800*1436*750 | F156: 66228
A157: EVL668/О/60*30/ | B157: =CONCATENATE(A157,VLOOKUP($I$5,'Цвет мет. опор'!A:B,2,0),"/",VLOOKUP($J$5,'Цвет лючка'!A:B,2,0),".",VLOOKUP($K$5,'Цвет столешницы'!A:B,2,FALSE)) -> EVL668/О/60*30/WHT/ANT.L | D157: 3200*1436*750 | F157: 69811
A158: EVL669/О/60*30/ | B158: =CONCATENATE(A158,VLOOKUP($I$5,'Цвет мет. опор'!A:B,2,0),"/",VLOOKUP($J$5,'Цвет лючка'!A:B,2,0),".",VLOOKUP($K$5,'Цвет столешницы'!A:B,2,FALSE)) -> EVL669/О/60*30/WHT/ANT.L | C158: Рабочая станция на 4 раб.места на О образном м/к 60х30 | D158: 2400*1636*750 | F158: 67878
A159: EVL670/О/60*30/ | B159: =CONCATENATE(A159,VLOOKUP($I$5,'Цвет мет. опор'!A:B,2,0),"/",VLOOKUP($J$5,'Цвет лючка'!A:B,2,0),".",VLOOKUP($K$5,'Цвет столешницы'!A:B,2,FALSE)) -> EVL670/О/60*30/WHT/ANT.L | D159: 2800*1636*750 | F159: 71763
A160: EVL671/О/60*30/ | B160: =CONCATENATE(A160,VLOOKUP($I$5,'Цвет мет. опор'!A:B,2,0),"/",VLOOKUP($J$5,'Цвет лючка'!A:B,2,0),".",VLOOKUP($K$5,'Цвет столешницы'!A:B,2,FALSE)) -> EVL671/О/60*30/WHT/ANT.L | D160: 3200*1636*750 | F160: 74424
A161: EVL672/О/60*30/ | B161: =CONCATENATE(A161,VLOOKUP($I$5,'Цвет мет. опор'!A:B,2,0),"/",VLOOKUP($J$5,'Цвет лючка'!A:B,2,0),".",VLOOKUP($K$5,'Цвет столешницы'!A:B,2,FALSE)) -> EVL672/О/60*30/WHT/ANT.L | C161: Рабочая станция на 6 раб.места на О образном м/к 60х30 с шириной 1-го рабочего места 600 мм | D161: 3600*1236*750 | F161: 88873
A162: EVL673/О/60*30/ | B162: =CONCATENATE(A162,VLOOKUP($I$5,'Цвет мет. опор'!A:B,2,0),"/",VLOOKUP($J$5,'Цвет лючка'!A:B,2,0),".",VLOOKUP($K$5,'Цвет столешницы'!A:B,2,FALSE)) -> EVL673/О/60*30/WHT/ANT.L | D162: 4200*1236*750 | F162: 92263
A163: EVL674/О/60*30/ | B163: =CONCATENATE(A163,VLOOKUP($I$5,'Цвет мет. опор'!A:B,2,0),"/",VLOOKUP($J$5,'Цвет лючка'!A:B,2,0),".",VLOOKUP($K$5,'Цвет столешницы'!A:B,2,FALSE)) -> EVL674/О/60*30/WHT/ANT.L | D163: 4800*1236*750 | F163: 96994
A164: EVL675/О/60*30/ | B164: =CONCATENATE(A164,VLOOKUP($I$5,'Цвет мет. опор'!A:B,2,0),"/",VLOOKUP($J$5,'Цвет лючка'!A:B,2,0),".",VLOOKUP($K$5,'Цвет столешницы'!A:B,2,FALSE)) -> EVL675/О/60*30/WHT/ANT.L | C164: Рабочая станция на 6 раб.места на О образном м/к 60х30 с шириной 1-го рабочего места 700 мм | D164: 3600*1436*750 | F164: 92560
A165: EVL676/О/60*30/ | B165: =CONCATENATE(A165,VLOOKUP($I$5,'Цвет мет. опор'!A:B,2,0),"/",VLOOKUP($J$5,'Цвет лючка'!A:B,2,0),".",VLOOKUP($K$5,'Цвет столешницы'!A:B,2,FALSE)) -> EVL676/О/60*30/WHT/ANT.L | D165: 4200*1436*750 | F165: 98296
A166: EVL677/О/60*30/ | B166: =CONCATENATE(A166,VLOOKUP($I$5,'Цвет мет. опор'!A:B,2,0),"/",VLOOKUP($J$5,'Цвет лючка'!A:B,2,0),".",VLOOKUP($K$5,'Цвет столешницы'!A:B,2,FALSE)) -> EVL677/О/60*30/WHT/ANT.L | D166: 4800*1436*750 | F166: 101603
A167: EVL678/О/60*30/ | B167: =CONCATENATE(A167,VLOOKUP($I$5,'Цвет мет. опор'!A:B,2,0),"/",VLOOKUP($J$5,'Цвет лючка'!A:B,2,0),".",VLOOKUP($K$5,'Цвет столешницы'!A:B,2,FALSE)) -> EVL678/О/60*30/WHT/ANT.L | C167: Рабочая станция на 6 раб.места на О образном м/к 60х30 с шириной 1-го рабочего места 800 мм | D167: 3600*1636*750 | F167: 98965
A168: EVL679/О/60*30/ | B168: =CONCATENATE(A168,VLOOKUP($I$5,'Цвет мет. опор'!A:B,2,0),"/",VLOOKUP($J$5,'Цвет лючка'!A:B,2,0),".",VLOOKUP($K$5,'Цвет столешницы'!A:B,2,FALSE)) -> EVL679/О/60*30/WHT/ANT.L | D168: 4200*1636*750 | F168: 104793
A169: EVL680/О/60*30/ | B169: =CONCATENATE(A169,VLOOKUP($I$5,'Цвет мет. опор'!A:B,2,0),"/",VLOOKUP($J$5,'Цвет лючка'!A:B,2,0),".",VLOOKUP($K$5,'Цвет столешницы'!A:B,2,FALSE)) -> EVL680/О/60*30/WHT/ANT.L | D169: 4800*1636*750 | F169: 108784
B170: Переговорные столы
A171: EVL800/О/60*30/ | B171: =CONCATENATE(A171,VLOOKUP($I$5,'Цвет мет. опор'!A:B,2,0),".",VLOOKUP($K$5,'Цвет столешницы'!A:B,2,FALSE)) -> EVL800/О/60*30/WHT.L | C171: Переговорный стол (1 столешница) на О образном м/к 60х30 | D171: 1000*1236*750 | F171: 32821
A172: EVL801/О/60*30/ | B172: =CONCATENATE(A172,VLOOKUP($I$5,'Цвет мет. опор'!A:B,2,0),".",VLOOKUP($K$5,'Цвет столешницы'!A:B,2,FALSE)) -> EVL801/О/60*30/WHT.L | D172: 1200*1236*750 | F172: 34057
A173: EVL802/О/60*30/ | B173: =CONCATENATE(A173,VLOOKUP($I$5,'Цвет мет. опор'!A:B,2,0),".",VLOOKUP($K$5,'Цвет столешницы'!A:B,2,FALSE)) -> EVL802/О/60*30/WHT.L | D173: 1400*1236*750 | F173: 35710
A174: EVL803/О/60*30/ | B174: =CONCATENATE(A174,VLOOKUP($I$5,'Цвет мет. опор'!A:B,2,0),".",VLOOKUP($K$5,'Цвет столешницы'!A:B,2,FALSE)) -> EVL803/О/60*30/WHT.L | D174: 1600*1236*750 | F174: 37429
A175: EVL804/О/60*30/ | B175: =CONCATENATE(A175,VLOOKUP($I$5,'Цвет мет. опор'!A:B,2,0),".",VLOOKUP($K$5,'Цвет столешницы'!A:B,2,FALSE)) -> EVL804/О/60*30/WHT.L | D175: 1800*1236*750 | F175: 39323
A176: EVL805/О/60*30/ | B176: =CONCATENATE(A176,VLOOKUP($I$5,'Цвет мет. опор'!A:B,2,0),".",VLOOKUP($K$5,'Цвет столешницы'!A:B,2,FALSE)) -> EVL805/О/60*30/WHT.L | C176: Переговорный стол (2 столешницы) на О образном м/к 60х30 | D176: 2000*1236*750 | F176: 53782
A177: EVL806/О/60*30/ | B177: =CONCATENATE(A177,VLOOKUP($I$5,'Цвет мет. опор'!A:B,2,0),".",VLOOKUP($K$5,'Цвет столешницы'!A:B,2,FALSE)) -> EVL806/О/60*30/WHT.L | D177: 2400*1236*750 | F177: 55875
A178: EVL807/О/60*30/ | B178: =CONCATENATE(A178,VLOOKUP($I$5,'Цвет мет. опор'!A:B,2,0),".",VLOOKUP($K$5,'Цвет столешницы'!A:B,2,FALSE)) -> EVL807/О/60*30/WHT.L | D178: 2800*1236*750 | F178: 58368
A179: EVL808/О/60*30/ | B179: =CONCATENATE(A179,VLOOKUP($I$5,'Цвет мет. опор'!A:B,2,0),".",VLOOKUP($K$5,'Цвет столешницы'!A:B,2,FALSE)) -> EVL808/О/60*30/WHT.L | D179: 3200*1236*750 | F179: 68531
A180: EVL809/О/60*30/ | B180: =CONCATENATE(A180,VLOOKUP($I$5,'Цвет мет. опор'!A:B,2,0),".",VLOOKUP($K$5,'Цвет столешницы'!A:B,2,FALSE)) -> EVL809/О/60*30/WHT.L | D180: 3600*1236*750 | F180: 72320
A181: EVL810/О/60*30/ | B181: =CONCATENATE(A181,VLOOKUP($I$5,'Цвет мет. опор'!A:B,2,0),".",VLOOKUP($K$5,'Цвет столешницы'!A:B,2,FALSE)) -> EVL810/О/60*30/WHT.L | C181: Переговорный стол (3 столешницы) на О образном м/к 60х30 | D181: 3000*1236*750 | F181: 74781
A182: EVL811/О/60*30/ | B182: =CONCATENATE(A182,VLOOKUP($I$5,'Цвет мет. опор'!A:B,2,0),".",VLOOKUP($K$5,'Цвет столешницы'!A:B,2,FALSE)) -> EVL811/О/60*30/WHT.L | D182: 3600*1236*750 | F182: 81694
A183: EVL812/О/60*30/ | B183: =CONCATENATE(A183,VLOOKUP($I$5,'Цвет мет. опор'!A:B,2,0),".",VLOOKUP($K$5,'Цвет столешницы'!A:B,2,FALSE)) -> EVL812/О/60*30/WHT.L | D183: 4200*1236*750 | F183: 85434
A184: EVL813/О/60*30/ | B184: =CONCATENATE(A184,VLOOKUP($I$5,'Цвет мет. опор'!A:B,2,0),".",VLOOKUP($K$5,'Цвет столешницы'!A:B,2,FALSE)) -> EVL813/О/60*30/WHT.L | D184: 4800*1236*750 | F184: 87866
A185: EVL814/О/60*30/ | B185: =CONCATENATE(A185,VLOOKUP($I$5,'Цвет мет. опор'!A:B,2,0),".",VLOOKUP($K$5,'Цвет столешницы'!A:B,2,FALSE)) -> EVL814/О/60*30/WHT.L | D185: 5400*1236*750 | F185: 90961
A186: EVL841/О/60*30/ | B186: =CONCATENATE(A186,VLOOKUP($I$5,'Цвет мет. опор'!A:B,2,0),".",VLOOKUP($K$5,'Цвет столешницы'!A:B,2,FALSE)) -> EVL841/О/60*30/WHT.L | C186: Переговорный стол (3 столешницы) на О-образном м/к 60х30 | D186: 3600*1436*750 | F186: 84116
A187: EVL842/О/60*30/ | B187: =CONCATENATE(A187,VLOOKUP($I$5,'Цвет мет. опор'!A:B,2,0),".",VLOOKUP($K$5,'Цвет столешницы'!A:B,2,FALSE)) -> EVL842/О/60*30/WHT.L | D187: 4200*1436*750 | F187: 87964
A188: EVL843/О/60*30/ | B188: =CONCATENATE(A188,VLOOKUP($I$5,'Цвет мет. опор'!A:B,2,0),".",VLOOKUP($K$5,'Цвет столешницы'!A:B,2,FALSE)) -> EVL843/О/60*30/WHT.L | D188: 4800*1436*750 | F188: 90495
A189: EVL844/О/60*30/ | B189: =CONCATENATE(A189,VLOOKUP($I$5,'Цвет мет. опор'!A:B,2,0),".",VLOOKUP($K$5,'Цвет столешницы'!A:B,2,FALSE)) -> EVL844/О/60*30/WHT.L | D189: 5400*1436*750 | F189: 92626
C190: Кодировка Артикула стола
C191: Модель стола разворот стола /Цвет опор/Цв. заглушки. Цвет столешницы
B192: МОДЕЛЬ СТОЛА (ФОРМА, РАЗМЕР) | C192: ПРАВОСТОРОННИЙ /ЛЕВОСТОРОННИЙ | D192: ЦВЕТ ОПОР | E192: ЦВЕТ ЗАГЛУШКИ, РУЧЕК | F192: ЦВЕТ СТОЛЕШНИЦЫ
C193: SX-левый | D193: АNT-АНТРАЦИТ | E193: АNT-АНТРАЦИТ | F193: H | G193: Белый
C194: DX-правый | D194: WHT-БЕЛЫЙ | E194: H-БЕЛЫЙ | F194: U727 | G194: Серый Камень
D195: GR-СЕРЫЙ | E195: G-СЕРЫЙ | F195: R2 | G195: Серый
F196: ANT | G196: Антрацит
F197: U003 | G197: Дуб Честерфилд
F198: L | G198: Дуб 131

Sheet Столы на П-обр. 40х40
B1: EVOLUTION | F1: =Склаская!$F$1 -> 2025-05-23
B2: Столы, бенчи и рабочие станции на металлокаркасе: П-образные опоры - труба с сечением 40*40мм, траверсы - труба 40*20мм в цв. Антрацит, Белый* Столешницы ЛДСП - 25 мм. | I2: Формирование артикула в зависимости от выбранных характеристик
B3: Не складская программа производятся на заказ партией от 6 шт., со сроком по согласованию с производством, в цвете: Дуб Честерфилд, Белый, Антрацит, Серый R2, Дуб 131, Серый камень, Венге Цаво, Бетон. Опоры столов в цв. Антрацит, Белый, Серый. Заглушки кабель-каналов и ручки тумб: Антрацит, Белый. Для заказа изделия следует пользоваться правилами кодировки для создания артикула. →→→→ | I3: в зависимости от выбранных характеристик | J3: Цвет заглушки кабель-канала | K3: Цвет столешницы
I4: Антрацит | J4: Антрацит | K4: Дуб 131
A5: Артикул | B5: Артикул | C5: Наименование | D5: Размеры Ш*Г*В (мм) | E5: Изображение | F5: Розничная Цена, руб.
A6: EVL113/П/40*40/ | B6: =CONCATENATE(A6,VLOOKUP($I$4,'Цвет мет. опор'!A:B,2,0),"/",VLOOKUP($J$4,'Цвет лючка'!A:B,2,0),".",VLOOKUP($K$4,'Цвет столешницы'!A:B,2,FALSE)) -> EVL113/П/40*40/ANT/ANT.L | C6: Стол письменный на П образном м/к 40х40, глубиной 600 мм | D6: 1000*600*750 | F6: 17696
A7: EVL114/П/40*40/ | B7: =CONCATENATE(A7,VLOOKUP($I$4,'Цвет мет. опор'!A:B,2,0),"/",VLOOKUP($J$4,'Цвет лючка'!A:B,2,0),".",VLOOKUP($K$4,'Цвет столешницы'!A:B,2,FALSE)) -> EVL114/П/40*40/ANT/ANT.L | D7: 1200*600*750 | F7: 18438
A8: EVL115/П/40*40/ | B8: =CONCATENATE(A8,VLOOKUP($I$4,'Цвет мет. опор'!A:B,2,0),"/",VLOOKUP($J$4,'Цвет лючка'!A:B,2,0),".",VLOOKUP($K$4,'Цвет столешницы'!A:B,2,FALSE)) -> EVL115/П/40*40/ANT/ANT.L | D8: 1400*600*750 | F8: 18687
A9: EVL116/П/40*40/ | B9: =CONCATENATE(A9,VLOOKUP($I$4,'Цвет мет. опор'!A:B,2,0),"/",VLOOKUP($J$4,'Цвет лючка'!A:B,2,0),".",VLOOKUP($K$4,'Цвет столешницы'!A:B,2,FALSE)) -> EVL116/П/40*40/ANT/ANT.L | D9: 1600*600*750 | F9: 19791
A10: EVL100/П/40*40/ | B10: =CONCATENATE(A10,VLOOKUP($I$4,'Цвет мет. опор'!A:B,2,0),"/",VLOOKUP($J$4,'Цвет лючка'!A:B,2,0),".",VLOOKUP($K$4,'Цвет столешницы'!A:B,2,FALSE)) -> EVL100/П/40*40/ANT/ANT.L | C10: Стол письменный на П образном м/к 40х40, глубиной 700 мм | D10: 1000*700*750 | F10: 18348
A11: EVL101/П/40*40/ | B11: =CONCATENATE(A11,VLOOKUP($I$4,'Цвет мет. опор'!A:B,2,0),"/",VLOOKUP($J$4,'Цвет лючка'!A:B,2,0),".",VLOOKUP($K$4,'Цвет столешницы'!A:B,2,FALSE)) -> EVL101/П/40*40/ANT/ANT.L | D11: 1200*700*750 | F11: 19213
A12: EVL102/П/40*40/ | B12: =CONCATENATE(A12,VLOOKUP($I$4,'Цвет мет. опор'!A:B,2,0),"/",VLOOKUP($J$4,'Цвет лючка'!A:B,2,0),".",VLOOKUP($K$4,'Цвет столешницы'!A:B,2,FALSE)) -> EVL102/П/40*40/ANT/ANT.L | D12: 1400*700*750 | F12: 19890
A13: EVL103/П/40*40/ | B13: =CONCATENATE(A13,VLOOKUP($I$4,'Цвет мет. опор'!A:B,2,0),"/",VLOOKUP($J$4,'Цвет лючка'!A:B,2,0),".",VLOOKUP($K$4,'Цвет столешницы'!A:B,2,FALSE)) -> EVL103/П/40*40/ANT/ANT.L | D13: 1600*700*750 | F13: 20337
A14: EVL104/П/40*40/ | B14: =CONCATENATE(A14,VLOOKUP($I$4,'Цвет мет. опор'!A:B,2,0),"/",VLOOKUP($J$4,'Цвет лючка'!A:B,2,0),".",VLOOKUP($K$4,'Цвет столешницы'!A:B,2,FALSE)) -> EVL104/П/40*40/ANT/ANT.L | D14: 1800*700*750 | F14: 21381
A15: EVL117/П/40*40/ | B15: =CONCATENATE(A15,VLOOKUP($I$4,'Цвет мет. опор'!A:B,2,0),"/",VLOOKUP($J$4,'Цвет лючка'!A:B,2,0),".",VLOOKUP($K$4,'Цвет столешницы'!A:B,2,FALSE)) -> EVL117/П/40*40/ANT/ANT.L | C15: Стол письменный на П образном м/к 40х40, глубиной 800 мм | D15: 1000*800*750 | F15: 18544
A16: EVL118/П/40*40/ | B16: =CONCATENATE(A16,VLOOKUP($I$4,'Цвет мет. опор'!A:B,2,0),"/",VLOOKUP($J$4,'Цвет лючка'!A:B,2,0),".",VLOOKUP($K$4,'Цвет столешницы'!A:B,2,FALSE)) -> EVL118/П/40*40/ANT/ANT.L | D16: 1200*800*750 | F16: 19083
A17: EVL119/П/40*40/ | B17: =CONCATENATE(A17,VLOOKUP($I$4,'Цвет мет. опор'!A:B,2,0),"/",VLOOKUP($J$4,'Цвет лючка'!A:B,2,0),".",VLOOKUP($K$4,'Цвет столешницы'!A:B,2,FALSE)) -> EVL119/П/40*40/ANT/ANT.L | D17: 1400*800*750 | F17: 20518
A18: EVL120/П/40*40/ | B18: =CONCATENATE(A18,VLOOKUP($I$4,'Цвет мет. опор'!A:B,2,0),"/",VLOOKUP($J$4,'Цвет лючка'!A:B,2,0),".",VLOOKUP($K$4,'Цвет столешницы'!A:B,2,FALSE)) -> EVL120/П/40*40/ANT/ANT.L | D18: 1600*800*750 | F18: 20964
A19: EVL121/П/40*40/ | B19: =CONCATENATE(A19,VLOOKUP($I$4,'Цвет мет. опор'!A:B,2,0),"/",VLOOKUP($J$4,'Цвет лючка'!A:B,2,0),".",VLOOKUP($K$4,'Цвет столешницы'!A:B,2,FALSE)) -> EVL121/П/40*40/ANT/ANT.L | D19: 1800*800*750 | F19: 22178
A20: EVL122/П/40*40/ | B20: =CONCATENATE(A20,VLOOKUP($I$4,'Цвет мет. опор'!A:B,2,0),"/",VLOOKUP($J$4,'Цвет лючка'!A:B,2,0),".",VLOOKUP($K$4,'Цвет столешницы'!A:B,2,FALSE)) -> EVL122/П/40*40/ANT/ANT.L | C20: Стол письменный на П образном м/к 40х40, глубиной 900 мм | D20: 1800*900*750 | F20: 22433
A21: EVL123/П/40*40/ | B21: =CONCATENATE(A21,VLOOKUP($I$4,'Цвет мет. опор'!A:B,2,0),"/",VLOOKUP($J$4,'Цвет лючка'!A:B,2,0),".",VLOOKUP($K$4,'Цвет столешницы'!A:B,2,FALSE)) -> EVL123/П/40*40/ANT/ANT.L | C21: Стол криволинейный левый/правый на П образном м/к 40х40, глубиной 600/900 мм | D21: 1200*900*750 | E21: правый | F21: 19108
A22: EVL124/П/40*40/ | B22: =CONCATENATE(A22,VLOOKUP($I$4,'Цвет мет. опор'!A:B,2,0),"/",VLOOKUP($J$4,'Цвет лючка'!A:B,2,0),".",VLOOKUP($K$4,'Цвет столешницы'!A:B,2,FALSE)) -> EVL124/П/40*40/ANT/ANT.L | D22: 1400*900*750 | F22: 20184
A23: EVL105SX(DX)/П/40*40/ | B23: =CONCATENATE(A23,VLOOKUP($I$4,'Цвет мет. опор'!A:B,2,0),"/",VLOOKUP($J$4,'Цвет лючка'!A:B,2,0),".",VLOOKUP($K$4,'Цвет столешницы'!A:B,2,FALSE)) -> EVL105SX(DX)/П/40*40/ANT/ANT.L | C23: Стол криволинейный левый/правый на П образном м/к 40х40, глубиной 700/900 мм | D23: 1200*900*750 | E23: правый | F23: 19238
A24: EVL106SX(DX)/П/40*40/ | B24: =CONCATENATE(A24,VLOOKUP($I$4,'Цвет мет. опор'!A:B,2,0),"/",VLOOKUP($J$4,'Цвет лючка'!A:B,2,0),".",VLOOKUP($K$4,'Цвет столешницы'!A:B,2,FALSE)) -> EVL106SX(DX)/П/40*40/ANT/ANT.L | D24: 1400*900*750 | F24: 20315
A25: EVL107SX(DX)/П/40*40/ | B25: =CONCATENATE(A25,VLOOKUP($I$4,'Цвет мет. опор'!A:B,2,0),"/",VLOOKUP($J$4,'Цвет лючка'!A:B,2,0),".",VLOOKUP($K$4,'Цвет столешницы'!A:B,2,FALSE)) -> EVL107SX(DX)/П/40*40/ANT/ANT.L | D25: 1600*900*750 | F25: 20737
A26: EVL125SX(DX)/П/40*40/ | B26: =CONCATENATE(A26,VLOOKUP($I$4,'Цвет мет. опор'!A:B,2,0),"/",VLOOKUP($J$4,'Цвет лючка'!A:B,2,0),".",VLOOKUP($K$4,'Цвет столешницы'!A:B,2,FALSE)) -> EVL125SX(DX)/П/40*40/ANT/ANT.L | C26: Стол криволинейный левый/правый на П образном м/к 40х40, глубиной 800/900 мм | D26: 1400*900*750 | F26: 16423
A27: EVL126SX(DX)/П/40*40/ | B27: =CONCATENATE(A27,VLOOKUP($I$4,'Цвет мет. опор'!A:B,2,0),"/",VLOOKUP($J$4,'Цвет лючка'!A:B,2,0),".",VLOOKUP($K$4,'Цвет столешницы'!A:B,2,FALSE)) -> EVL126SX(DX)/П/40*40/ANT/ANT.L | D27: 1600*900*750 | F27: 21220
A28: EVL109SX(DX)/П/40*40 | B28: =CONCATENATE(A28,VLOOKUP($I$4,'Цвет мет. опор'!A:B,2,0),"/",VLOOKUP($J$4,'Цвет лючка'!A:B,2,0),".",VLOOKUP($K$4,'Цвет столешницы'!A:B,2,FALSE)) -> EVL109SX(DX)/П/40*40ANT/ANT.L | C28: Стол эргономичный левый/правый на П образном м/к 40х40, глубиной 700/900 мм | D28: 1200х900/700х750 | F28: 19216
A29: EVL110SX(DX)/П/40*40 | B29: =CONCATENATE(A29,VLOOKUP($I$4,'Цвет мет. опор'!A:B,2,0),"/",VLOOKUP($J$4,'Цвет лючка'!A:B,2,0),".",VLOOKUP($K$4,'Цвет столешницы'!A:B,2,FALSE)) -> EVL110SX(DX)/П/40*40ANT/ANT.L | D29: 1400х900/700х750 | F29: 20020
A30: EVL111SX(DX)/П/40*40 | B30: =CONCATENATE(A30,VLOOKUP($I$4,'Цвет мет. опор'!A:B,2,0),"/",VLOOKUP($J$4,'Цвет лючка'!A:B,2,0),".",VLOOKUP($K$4,'Цвет столешницы'!A:B,2,FALSE)) -> EVL111SX(DX)/П/40*40ANT/ANT.L | D30: 1600х900/700х750 | F30: 20753
A31: EVL127SX(DX)/П/40*40/ | B31: =CONCATENATE(A31,VLOOKUP($I$4,'Цвет мет. опор'!A:B,2,0),"/",VLOOKUP($J$4,'Цвет лючка'!A:B,2,0),".",VLOOKUP($K$4,'Цвет столешницы'!A:B,2,FALSE)) -> EVL127SX(DX)/П/40*40/ANT/ANT.L | C31: Стол эргономичный левый/правый на П образном м/к 40х40, глубиной 600/1200 мм | D31: 1400*1200*750 | F31: 30648
A32: EVL128SX(DX)/П/40*40/ | B32: =CONCATENATE(A32,VLOOKUP($I$4,'Цвет мет. опор'!A:B,2,0),"/",VLOOKUP($J$4,'Цвет лючка'!A:B,2,0),".",VLOOKUP($K$4,'Цвет столешницы'!A:B,2,FALSE)) -> EVL128SX(DX)/П/40*40/ANT/ANT.L | D32: 1600*1200*750 | F32: 31547
A33: EVL129SX(DX)/П/40*40/ | B33: =CONCATENATE(A33,VLOOKUP($I$4,'Цвет мет. опор'!A:B,2,0),"/",VLOOKUP($J$4,'Цвет лючка'!A:B,2,0),".",VLOOKUP($K$4,'Цвет столешницы'!A:B,2,FALSE)) -> EVL129SX(DX)/П/40*40/ANT/ANT.L | C33: Стол эргономичный левый/правый на П образном м/к 40х40, глубиной 700/1200 мм | D33: 1400*1200*750 | F33: 30999
A34: EVL130SX(DX)/П/40*40/ | B34: =CONCATENATE(A34,VLOOKUP($I$4,'Цвет мет. опор'!A:B,2,0),"/",VLOOKUP($J$4,'Цвет лючка'!A:B,2,0),".",VLOOKUP($K$4,'Цвет столешницы'!A:B,2,FALSE)) -> EVL130SX(DX)/П/40*40/ANT/ANT.L | D34: 1600*1200*750 | F34: 31890
A35: EVL131SX(DX)/П/40*40/ | B35: =CONCATENATE(A35,VLOOKUP($I$4,'Цвет мет. опор'!A:B,2,0),"/",VLOOKUP($J$4,'Цвет лючка'!A:B,2,0),".",VLOOKUP($K$4,'Цвет столешницы'!A:B,2,FALSE)) -> EVL131SX(DX)/П/40*40/ANT/ANT.L | C35: Стол эргономичный левый/правый на П образном м/к 40х40, глубиной 800/1200 мм | D35: 1400*1200*750 | F35: 31270
A36: EVL132SX(DX)/П/40*40/ | B36: =CONCATENATE(A36,VLOOKUP($I$4,'Цвет мет. опор'!A:B,2,0),"/",VLOOKUP($J$4,'Цвет лючка'!A:B,2,0),".",VLOOKUP($K$4,'Цвет столешницы'!A:B,2,FALSE)) -> EVL132SX(DX)/П/40*40/ANT/ANT.L | D36: 1600*1200*750 | F36: 31563
A37: EVL601/П/40*40/ | B37: =CONCATENATE(A37,VLOOKUP($I$4,'Цвет мет. опор'!A:B,2,0),"/",VLOOKUP($J$4,'Цвет лючка'!A:B,2,0),".",VLOOKUP($K$4,'Цвет столешницы'!A:B,2,FALSE)) -> EVL601/П/40*40/ANT/ANT.L | C37: Рабочая станция на П образном м/к 40х40, глубиной 1236 мм | D37: 1200*1236*750 | F37: 31553
A38: EVL602/П/40*40/ | B38: =CONCATENATE(A38,VLOOKUP($I$4,'Цвет мет. опор'!A:B,2,0),"/",VLOOKUP($J$4,'Цвет лючка'!A:B,2,0),".",VLOOKUP($K$4,'Цвет столешницы'!A:B,2,FALSE)) -> EVL602/П/40*40/ANT/ANT.L | D38: 1400*1236*750 | F38: 32502
A39: EVL603/П/40*40/ | B39: =CONCATENATE(A39,VLOOKUP($I$4,'Цвет мет. опор'!A:B,2,0),"/",VLOOKUP($J$4,'Цвет лючка'!A:B,2,0),".",VLOOKUP($K$4,'Цвет столешницы'!A:B,2,FALSE)) -> EVL603/П/40*40/ANT/ANT.L | D39: 1600*1236*750 | F39: 34258
A40: EVL681/П/40*40/ | B40: =CONCATENATE(A40,VLOOKUP($I$4,'Цвет мет. опор'!A:B,2,0),"/",VLOOKUP($J$4,'Цвет лючка'!A:B,2,0),".",VLOOKUP($K$4,'Цвет столешницы'!A:B,2,FALSE)) -> EVL681/П/40*40/ANT/ANT.L | D40: 1800*1236*750 | F40: 35957
A41: EVL604/П/40*40/ | B41: =CONCATENATE(A41,VLOOKUP($I$4,'Цвет мет. опор'!A:B,2,0),"/",VLOOKUP($J$4,'Цвет лючка'!A:B,2,0),".",VLOOKUP($K$4,'Цвет столешницы'!A:B,2,FALSE)) -> EVL604/П/40*40/ANT/ANT.L | C41: Рабочая станция на П образном м/к 40х40 глубиной 1436 | D41: 1200*1436*750 | F41: 33014
A42: EVL605/П/40*40/ | B42: =CONCATENATE(A42,VLOOKUP($I$4,'Цвет мет. опор'!A:B,2,0),"/",VLOOKUP($J$4,'Цвет лючка'!A:B,2,0),".",VLOOKUP($K$4,'Цвет столешницы'!A:B,2,FALSE)) -> EVL605/П/40*40/ANT/ANT.L | D42: 1400*1436*750 | F42: 34108
A43: EVL606/П/40*40/ | B43: =CONCATENATE(A43,VLOOKUP($I$4,'Цвет мет. опор'!A:B,2,0),"/",VLOOKUP($J$4,'Цвет лючка'!A:B,2,0),".",VLOOKUP($K$4,'Цвет столешницы'!A:B,2,FALSE)) -> EVL606/П/40*40/ANT/ANT.L | D43: 1600*1436*750 | F43: 35813
A44: EVL682/П/40*40/ | B44: =CONCATENATE(A44,VLOOKUP($I$4,'Цвет мет. опор'!A:B,2,0),"/",VLOOKUP($J$4,'Цвет лючка'!A:B,2,0),".",VLOOKUP($K$4,'Цвет столешницы'!A:B,2,FALSE)) -> EVL682/П/40*40/ANT/ANT.L | D44: 1800*1436*750 | F44: 37350
A45: EVL607/П/40*40/ | B45: =CONCATENATE(A45,VLOOKUP($I$4,'Цвет мет. опор'!A:B,2,0),"/",VLOOKUP($J$4,'Цвет лючка'!A:B,2,0),".",VLOOKUP($K$4,'Цвет столешницы'!A:B,2,FALSE)) -> EVL607/П/40*40/ANT/ANT.L | C45: Рабочая станция на П образном м/к 40х40 глубиной 1636 | D45: 1200*1636*750 | F45: 34223
A46: EVL608/П/40*40/ | B46: =CONCATENATE(A46,VLOOKUP($I$4,'Цвет мет. опор'!A:B,2,0),"/",VLOOKUP($J$4,'Цвет лючка'!A:B,2,0),".",VLOOKUP($K$4,'Цвет столешницы'!A:B,2,FALSE)) -> EVL608/П/40*40/ANT/ANT.L | D46: 1400*1636*750 | F46: 35986
A47: EVL609/П/40*40/ | B47: =CONCATENATE(A47,VLOOKUP($I$4,'Цвет мет. опор'!A:B,2,0),"/",VLOOKUP($J$4,'Цвет лючка'!A:B,2,0),".",VLOOKUP($K$4,'Цвет столешницы'!A:B,2,FALSE)) -> EVL609/П/40*40/ANT/ANT.L | D47: 1600*1636*750 | F47: 36857
A48: EVL683/П/40*40/ | B48: =CONCATENATE(A48,VLOOKUP($I$4,'Цвет мет. опор'!A:B,2,0),"/",VLOOKUP($J$4,'Цвет лючка'!A:B,2,0),".",VLOOKUP($K$4,'Цвет столешницы'!A:B,2,FALSE)) -> EVL683/П/40*40/ANT/ANT.L | D48: 1800*1636*750 | F48: 39289
A49: EVL610/П/40*40/ | B49: =CONCATENATE(A49,VLOOKUP($I$4,'Цвет мет. опор'!A:B,2,0),"/",VLOOKUP($J$4,'Цвет лючка'!A:B,2,0),".",VLOOKUP($K$4,'Цвет столешницы'!A:B,2,FALSE)) -> EVL610/П/40*40/ANT/ANT.L | C49: Рабочая станция криволинейная на П образном м/к 40х40 глубиной 1236/1836 | D49: 1200*1836*750 | F49: 34055
A50: EVL611/П/40*40/ | B50: =CONCATENATE(A50,VLOOKUP($I$4,'Цвет мет. опор'!A:B,2,0),"/",VLOOKUP($J$4,'Цвет лючка'!A:B,2,0),".",VLOOKUP($K$4,'Цвет столешницы'!A:B,2,FALSE)) -> EVL611/П/40*40/ANT/ANT.L | D50: 1400*1836*750 | F50: 35938
A51: EVL612/П/40*40/ | B51: =CONCATENATE(A51,VLOOKUP($I$4,'Цвет мет. опор'!A:B,2,0),"/",VLOOKUP($J$4,'Цвет лючка'!A:B,2,0),".",VLOOKUP($K$4,'Цвет столешницы'!A:B,2,FALSE)) -> EVL612/П/40*40/ANT/ANT.L | D51: 1600*1836*750 | F51: 37357
A52: EVL613/П/40*40/ | B52: =CONCATENATE(A52,VLOOKUP($I$4,'Цвет мет. опор'!A:B,2,0),"/",VLOOKUP($J$4,'Цвет лючка'!A:B,2,0),".",VLOOKUP($K$4,'Цвет столешницы'!A:B,2,FALSE)) -> EVL613/П/40*40/ANT/ANT.L | C52: Рабочая станция криволинейная на П образном м/к 40х40 глубиной 1436/1836 | D52: 1200*1836*750 | F52: 33066
A53: EVL614/П/40*40/ | B53: =CONCATENATE(A53,VLOOKUP($I$4,'Цвет мет. опор'!A:B,2,0),"/",VLOOKUP($J$4,'Цвет лючка'!A:B,2,0),".",VLOOKUP($K$4,'Цвет столешницы'!A:B,2,FALSE)) -> EVL614/П/40*40/ANT/ANT.L | D53: 1400*1836*750 | F53: 35218
A54: EVL615/П/40*40/ | B54: =CONCATENATE(A54,VLOOKUP($I$4,'Цвет мет. опор'!A:B,2,0),"/",VLOOKUP($J$4,'Цвет лючка'!A:B,2,0),".",VLOOKUP($K$4,'Цвет столешницы'!A:B,2,FALSE)) -> EVL615/П/40*40/ANT/ANT.L | D54: 1600*1836*750 | F54: 35967
A55: EVL616/П/40*40/ | B55: =CONCATENATE(A55,VLOOKUP($I$4,'Цвет мет. опор'!A:B,2,0),"/",VLOOKUP($J$4,'Цвет лючка'!A:B,2,0),".",VLOOKUP($K$4,'Цвет столешницы'!A:B,2,FALSE)) -> EVL616/П/40*40/ANT/ANT.L | C55: Рабочая станция эргономичная на П образном м/к 40х40 глубиной 1236/2436 | D55: 1400*2436*750 | F55: 55849
A56: EVL617/П/40*40/ | B56: =CONCATENATE(A56,VLOOKUP($I$4,'Цвет мет. опор'!A:B,2,0),"/",VLOOKUP($J$4,'Цвет лючка'!A:B,2,0),".",VLOOKUP($K$4,'Цвет столешницы'!A:B,2,FALSE)) -> EVL617/П/40*40/ANT/ANT.L | D56: 1600*2436*750 | F56: 57713
A57: EVL618/П/40*40/ | B57: =CONCATENATE(A57,VLOOKUP($I$4,'Цвет мет. опор'!A:B,2,0),"/",VLOOKUP($J$4,'Цвет лючка'!A:B,2,0),".",VLOOKUP($K$4,'Цвет столешницы'!A:B,2,FALSE)) -> EVL618/П/40*40/ANT/ANT.L | C57: Рабочая станция эргономичная на П образном м/к 40х40 глубиной 1436/2436 | D57: 1400*2436*750 | F57: 56882
A58: EVL619/П/40*40/ | B58: =CONCATENATE(A58,VLOOKUP($I$4,'Цвет мет. опор'!A:B,2,0),"/",VLOOKUP($J$4,'Цвет лючка'!A:B,2,0),".",VLOOKUP($K$4,'Цвет столешницы'!A:B,2,FALSE)) -> EVL619/П/40*40/ANT/ANT.L | D58: 1600*2436*750 | F58: 58797
A59: EVL620/П/40*40/ | B59: =CONCATENATE(A59,VLOOKUP($I$4,'Цвет мет. опор'!A:B,2,0),"/",VLOOKUP($J$4,'Цвет лючка'!A:B,2,0),".",VLOOKUP($K$4,'Цвет столешницы'!A:B,2,FALSE)) -> EVL620/П/40*40/ANT/ANT.L | C59: Рабочая станция эргономичная на П образном м/к 40х40 глубиной 1636/2436 | D59: 1400*2440*750 | F59: 57343
A60: EVL621/П/40*40/ | B60: =CONCATENATE(A60,VLOOKUP($I$4,'Цвет мет. опор'!A:B,2,0),"/",VLOOKUP($J$4,'Цвет лючка'!A:B,2,0),".",VLOOKUP($K$4,'Цвет столешницы'!A:B,2,FALSE)) -> EVL621/П/40*40/ANT/ANT.L | D60: 1600*2440*750 | F60: 59041
A61: EVL622/П/40*40/ | B61: =CONCATENATE(A61,VLOOKUP($I$4,'Цвет мет. опор'!A:B,2,0),"/",VLOOKUP($J$4,'Цвет лючка'!A:B,2,0),".",VLOOKUP($K$4,'Цвет столешницы'!A:B,2,FALSE)) -> EVL622/П/40*40/ANT/ANT.L | C61: Рабочая станция эргономичная на П образном м/к 40х40 глубиной 600/900 | D61: 2400*900*750 | F61: 37025
A62: EVL623/П/40*40/ | B62: =CONCATENATE(A62,VLOOKUP($I$4,'Цвет мет. опор'!A:B,2,0),"/",VLOOKUP($J$4,'Цвет лючка'!A:B,2,0),".",VLOOKUP($K$4,'Цвет столешницы'!A:B,2,FALSE)) -> EVL623/П/40*40/ANT/ANT.L | D62: 2800*900*750 | F62: 38908
A63: EVL624/П/40*40/ | B63: =CONCATENATE(A63,VLOOKUP($I$4,'Цвет мет. опор'!A:B,2,0),"/",VLOOKUP($J$4,'Цвет лючка'!A:B,2,0),".",VLOOKUP($K$4,'Цвет столешницы'!A:B,2,FALSE)) -> EVL624/П/40*40/ANT/ANT.L | D63: 3200*900*750 | F63: 40327
A64: EVL625/П/40*40/ | B64: =CONCATENATE(A64,VLOOKUP($I$4,'Цвет мет. опор'!A:B,2,0),"/",VLOOKUP($J$4,'Цвет лючка'!A:B,2,0),".",VLOOKUP($K$4,'Цвет столешницы'!A:B,2,FALSE)) -> EVL625/П/40*40/ANT/ANT.L | C64: Рабочая станция эргономичная на П образном м/к 40х40 глубиной 700/900 | D64: 2400*900*750 | F64: 36116
A65: EVL626/П/40*40/ | B65: =CONCATENATE(A65,VLOOKUP($I$4,'Цвет мет. опор'!A:B,2,0),"/",VLOOKUP($J$4,'Цвет лючка'!A:B,2,0),".",VLOOKUP($K$4,'Цвет столешницы'!A:B,2,FALSE)) -> EVL626/П/40*40/ANT/ANT.L | D65: 2800*900*750 | F65: 38268
A66: EVL627/П/40*40/ | B66: =CONCATENATE(A66,VLOOKUP($I$4,'Цвет мет. опор'!A:B,2,0),"/",VLOOKUP($J$4,'Цвет лючка'!A:B,2,0),".",VLOOKUP($K$4,'Цвет столешницы'!A:B,2,FALSE)) -> EVL627/П/40*40/ANT/ANT.L | D66: 3200*900*750 | F66: 39663
A67: EVL628/П/40*40/ | B67: =CONCATENATE(A67,VLOOKUP($I$4,'Цвет мет. опор'!A:B,2,0),"/",VLOOKUP($J$4,'Цвет лючка'!A:B,2,0),".",VLOOKUP($K$4,'Цвет столешницы'!A:B,2,FALSE)) -> EVL628/П/40*40/ANT/ANT.L | C67: Рабочая станция эргономичная на П образном м/к 40х40 глубиной 800/900 | D67: 2400*900*750 | F67: 37633
A68: EVL629/П/40*40/ | B68: =CONCATENATE(A68,VLOOKUP($I$4,'Цвет мет. опор'!A:B,2,0),"/",VLOOKUP($J$4,'Цвет лючка'!A:B,2,0),".",VLOOKUP($K$4,'Цвет столешницы'!A:B,2,FALSE)) -> EVL629/П/40*40/ANT/ANT.L | D68: 2800*900*750 | F68: 39470
A69: EVL630/П/40*40/ | B69: =CONCATENATE(A69,VLOOKUP($I$4,'Цвет мет. опор'!A:B,2,0),"/",VLOOKUP($J$4,'Цвет лючка'!A:B,2,0),".",VLOOKUP($K$4,'Цвет столешницы'!A:B,2,FALSE)) -> EVL630/П/40*40/ANT/ANT.L | D69: 3200*900*750 | F69: 40862
A70: EVL631/П/40*40/ | B70: =CONCATENATE(A70,VLOOKUP($I$4,'Цвет мет. опор'!A:B,2,0),"/",VLOOKUP($J$4,'Цвет лючка'!A:B,2,0),".",VLOOKUP($K$4,'Цвет столешницы'!A:B,2,FALSE)) -> EVL631/П/40*40/ANT/ANT.L | C70: Рабочая станция эргономичная на П образном м/к 40х40 глубиной 600/1200 | D70: 2400*1236*750 | E70: промежуточная опора 1236 | F70: 39406
A71: EVL632/П/40*40/ | B71: =CONCATENATE(A71,VLOOKUP($I$4,'Цвет мет. опор'!A:B,2,0),"/",VLOOKUP($J$4,'Цвет лючка'!A:B,2,0),".",VLOOKUP($K$4,'Цвет столешницы'!A:B,2,FALSE)) -> EVL632/П/40*40/ANT/ANT.L | D71: 2800*1236*750 | F71: 41389
A72: EVL633/П/40*40/ | B72: =CONCATENATE(A72,VLOOKUP($I$4,'Цвет мет. опор'!A:B,2,0),"/",VLOOKUP($J$4,'Цвет лючка'!A:B,2,0),".",VLOOKUP($K$4,'Цвет столешницы'!A:B,2,FALSE)) -> EVL633/П/40*40/ANT/ANT.L | D72: 3200*1236*750 | F72: 43186
A73: EVL634/П/40*40/ | B73: =CONCATENATE(A73,VLOOKUP($I$4,'Цвет мет. опор'!A:B,2,0),"/",VLOOKUP($J$4,'Цвет лючка'!A:B,2,0),".",VLOOKUP($K$4,'Цвет столешницы'!A:B,2,FALSE)) -> EVL634/П/40*40/ANT/ANT.L | C73: Рабочая станция эргономичная на П образном м/к 40х40 глубиной 700/1200 | D73: 2400*1200*750 | E73: промежуточная опора 700 | F73: 40101
A74: EVL635/П/40*40/ | B74: =CONCATENATE(A74,VLOOKUP($I$4,'Цвет мет. опор'!A:B,2,0),"/",VLOOKUP($J$4,'Цвет лючка'!A:B,2,0),".",VLOOKUP($K$4,'Цвет столешницы'!A:B,2,FALSE)) -> EVL635/П/40*40/ANT/ANT.L | D74: 2800*1200*750 | F74: 42391
A75: EVL636/П/40*40/ | B75: =CONCATENATE(A75,VLOOKUP($I$4,'Цвет мет. опор'!A:B,2,0),"/",VLOOKUP($J$4,'Цвет лючка'!A:B,2,0),".",VLOOKUP($K$4,'Цвет столешницы'!A:B,2,FALSE)) -> EVL636/П/40*40/ANT/ANT.L | D75: 3200*1200*750 | F75: 44173
A76: EVL637/П/40*40/ | B76: =CONCATENATE(A76,VLOOKUP($I$4,'Цвет мет. опор'!A:B,2,0),"/",VLOOKUP($J$4,'Цвет лючка'!A:B,2,0),".",VLOOKUP($K$4,'Цвет столешницы'!A:B,2,FALSE)) -> EVL637/П/40*40/ANT/ANT.L | C76: Рабочая станция эргономичная на П образном м/к 40х40 глубиной 800/1200 | D76: 2400*1200*750 | E76: промежуточная опора 800 | F76: 40255
A77: EVL638/П/40*40/ | B77: =CONCATENATE(A77,VLOOKUP($I$4,'Цвет мет. опор'!A:B,2,0),"/",VLOOKUP($J$4,'Цвет лючка'!A:B,2,0),".",VLOOKUP($K$4,'Цвет столешницы'!A:B,2,FALSE)) -> EVL638/П/40*40/ANT/ANT.L | D77: 2800*1200*750 | F77: 42677
A78: EVL639/П/40*40/ | B78: =CONCATENATE(A78,VLOOKUP($I$4,'Цвет мет. опор'!A:B,2,0),"/",VLOOKUP($J$4,'Цвет лючка'!A:B,2,0),".",VLOOKUP($K$4,'Цвет столешницы'!A:B,2,FALSE)) -> EVL639/П/40*40/ANT/ANT.L | D78: 3200*1200*750 | F78: 44309
A79: EVL180/П/40*40/ | B79: =CONCATENATE(A79,VLOOKUP($I$4,'Цвет мет. опор'!A:B,2,0),"/",VLOOKUP($J$4,'Цвет лючка'!A:B,2,0),".",VLOOKUP($K$4,'Цвет столешницы'!A:B,2,FALSE)) -> EVL180/П/40*40/ANT/ANT.L | C79: Приставка к столу рабочая 1000х500 | D79: 1000x500x750 | F79: 12418
A80: EVL135/П/40*40/ | B80: =CONCATENATE(A80,VLOOKUP($I$4,'Цвет мет. опор'!A:B,2,0),"/",VLOOKUP($J$4,'Цвет лючка'!A:B,2,0),".",VLOOKUP($K$4,'Цвет столешницы'!A:B,2,FALSE)) -> EVL135/П/40*40/ANT/ANT.L | C80: Приставной элемент на П образном м/к 40х40 глубиной 700 (используется в качестве брифинга) | D80: 1000*600*750 | F80: 13733
A81: EVL137/П/40*40/ | B81: =CONCATENATE(A81,VLOOKUP($I$4,'Цвет мет. опор'!A:B,2,0),"/",VLOOKUP($J$4,'Цвет лючка'!A:B,2,0),".",VLOOKUP($K$4,'Цвет столешницы'!A:B,2,FALSE)) -> EVL137/П/40*40/ANT/ANT.L | D81: 1200*700*750 | F81: 14337
A82: EVL701/П/40*40/ | B82: =CONCATENATE(A82,VLOOKUP($I$4,'Цвет мет. опор'!A:B,2,0),"/",VLOOKUP($J$4,'Цвет лючка'!A:B,2,0),".",VLOOKUP($K$4,'Цвет столешницы'!A:B,2,FALSE)) -> EVL701/П/40*40/ANT/ANT.L | C82: Рабочая станция на П образном м/к 40х40 с тумбой (композиция стол+тумба) | D82: 1450*700*750 | E82: Тумба 450х700х750 | F82: 33567
A83: EVL702/П/40*40/ | B83: =CONCATENATE(A83,VLOOKUP($I$4,'Цвет мет. опор'!A:B,2,0),"/",VLOOKUP($J$4,'Цвет лючка'!A:B,2,0),".",VLOOKUP($K$4,'Цвет столешницы'!A:B,2,FALSE)) -> EVL702/П/40*40/ANT/ANT.L | D83: 1650*700*750 | F83: 34431
A84: EVL703/П/40*40/ | B84: =CONCATENATE(A84,VLOOKUP($I$4,'Цвет мет. опор'!A:B,2,0),"/",VLOOKUP($J$4,'Цвет лючка'!A:B,2,0),".",VLOOKUP($K$4,'Цвет столешницы'!A:B,2,FALSE)) -> EVL703/П/40*40/ANT/ANT.L | D84: 1850*700*750 | F84: 35109
A85: EVL704/П/40*40/ | B85: =CONCATENATE(A85,VLOOKUP($I$4,'Цвет мет. опор'!A:B,2,0),"/",VLOOKUP($J$4,'Цвет лючка'!A:B,2,0),".",VLOOKUP($K$4,'Цвет столешницы'!A:B,2,FALSE)) -> EVL704/П/40*40/ANT/ANT.L | D85: 2050*700*750 | F85: 35555
A86: EVL705/П/40*40/ | B86: =CONCATENATE(A86,VLOOKUP($I$4,'Цвет мет. опор'!A:B,2,0),"/",VLOOKUP($J$4,'Цвет лючка'!A:B,2,0),".",VLOOKUP($K$4,'Цвет столешницы'!A:B,2,FALSE)) -> EVL705/П/40*40/ANT/ANT.L | D86: 2250*700*750 | F86: 36599
A87: EVL706/П/40*40/ | B87: =CONCATENATE(A87,VLOOKUP($I$4,'Цвет мет. опор'!A:B,2,0),"/",VLOOKUP($J$4,'Цвет лючка'!A:B,2,0),".",VLOOKUP($K$4,'Цвет столешницы'!A:B,2,FALSE)) -> EVL706/П/40*40/ANT/ANT.L | C87: Рабочая станция на П образном м/к 40х40 с тумбой (композиция двойной бенч+тумба) | D87: 1450*1436*750 | E87: Тумба 450х1436х750 | F87: 57845
A88: EVL707/П/40*40/ | B88: =CONCATENATE(A88,VLOOKUP($I$4,'Цвет мет. опор'!A:B,2,0),"/",VLOOKUP($J$4,'Цвет лючка'!A:B,2,0),".",VLOOKUP($K$4,'Цвет столешницы'!A:B,2,FALSE)) -> EVL707/П/40*40/ANT/ANT.L | D88: 1650*1436*750 | F88: 59574
A89: EVL708/П/40*40/ | B89: =CONCATENATE(A89,VLOOKUP($I$4,'Цвет мет. опор'!A:B,2,0),"/",VLOOKUP($J$4,'Цвет лючка'!A:B,2,0),".",VLOOKUP($K$4,'Цвет столешницы'!A:B,2,FALSE)) -> EVL708/П/40*40/ANT/ANT.L | D89: 1850*1436*750 | F89: 61092
A90: EVL709/П/40*40/ | B90: =CONCATENATE(A90,VLOOKUP($I$4,'Цвет мет. опор'!A:B,2,0),"/",VLOOKUP($J$4,'Цвет лючка'!A:B,2,0),".",VLOOKUP($K$4,'Цвет столешницы'!A:B,2,FALSE)) -> EVL709/П/40*40/ANT/ANT.L | D90: 2050*1436*750 | F90: 62373
A91: EVL710/П/40*40/ | B91: =CONCATENATE(A91,VLOOKUP($I$4,'Цвет мет. опор'!A:B,2,0),"/",VLOOKUP($J$4,'Цвет лючка'!A:B,2,0),".",VLOOKUP($K$4,'Цвет столешницы'!A:B,2,FALSE)) -> EVL710/П/40*40/ANT/ANT.L | D91: 2250*1436*750 | F91: 63911
A92: EVL711/П/40*40/ | B92: =CONCATENATE(A92,VLOOKUP($I$4,'Цвет мет. опор'!A:B,2,0),"/",VLOOKUP($J$4,'Цвет лючка'!A:B,2,0),".",VLOOKUP($K$4,'Цвет столешницы'!A:B,2,FALSE)) -> EVL711/П/40*40/ANT/ANT.L | C92: Рабочая станция на П образном м/к 40х40 со шкафом-купе (композиция двойной бенч+шкаф-купе) | D92: 1410*1436*750 | E92: Шкаф-купе приставной 1440х410х750 | F92: 51749
A93: EVL712/П/40*40/ | B93: =CONCATENATE(A93,VLOOKUP($I$4,'Цвет мет. опор'!A:B,2,0),"/",VLOOKUP($J$4,'Цвет лючка'!A:B,2,0),".",VLOOKUP($K$4,'Цвет столешницы'!A:B,2,FALSE)) -> EVL712/П/40*40/ANT/ANT.L | D93: 1610*1436*750 | F93: 53478
A94: EVL713/П/40*40/ | B94: =CONCATENATE(A94,VLOOKUP($I$4,'Цвет мет. опор'!A:B,2,0),"/",VLOOKUP($J$4,'Цвет лючка'!A:B,2,0),".",VLOOKUP($K$4,'Цвет столешницы'!A:B,2,FALSE)) -> EVL713/П/40*40/ANT/ANT.L | D94: 1810*1436*750 | F94: 54572
A95: EVL714/П/40*40/ | B95: =CONCATENATE(A95,VLOOKUP($I$4,'Цвет мет. опор'!A:B,2,0),"/",VLOOKUP($J$4,'Цвет лючка'!A:B,2,0),".",VLOOKUP($K$4,'Цвет столешницы'!A:B,2,FALSE)) -> EVL714/П/40*40/ANT/ANT.L | D95: 2010*1436*750 | F95: 56277
A96: EVL715/П/40*40/ | B96: =CONCATENATE(A96,VLOOKUP($I$4,'Цвет мет. опор'!A:B,2,0),"/",VLOOKUP($J$4,'Цвет лючка'!A:B,2,0),".",VLOOKUP($K$4,'Цвет столешницы'!A:B,2,FALSE)) -> EVL715/П/40*40/ANT/ANT.L | D96: 2210*1436*750 | F96: 57815
A97: EVL716/П/40*40/ | B97: =CONCATENATE(A97,VLOOKUP($I$4,'Цвет мет. опор'!A:B,2,0),"/",VLOOKUP($J$4,'Цвет лючка'!A:B,2,0),".",VLOOKUP($K$4,'Цвет столешницы'!A:B,2,FALSE)) -> EVL716/П/40*40/ANT/ANT.L | C97: Рабочая станция на П образном м/к 40х40 со шкафом-купе (композиция двойной бенч+шкаф-купе) | D97: 1410*1436*1098 | E97: Шкаф-купе приставной 1440х410х1098 | F97: 56611
A98: EVL717/П/40*40/ | B98: =CONCATENATE(A98,VLOOKUP($I$4,'Цвет мет. опор'!A:B,2,0),"/",VLOOKUP($J$4,'Цвет лючка'!A:B,2,0),".",VLOOKUP($K$4,'Цвет столешницы'!A:B,2,FALSE)) -> EVL717/П/40*40/ANT/ANT.L | D98: 1610*1436*1098 | F98: 58340
A99: EVL718/П/40*40/ | B99: =CONCATENATE(A99,VLOOKUP($I$4,'Цвет мет. опор'!A:B,2,0),"/",VLOOKUP($J$4,'Цвет лючка'!A:B,2,0),".",VLOOKUP($K$4,'Цвет столешницы'!A:B,2,FALSE)) -> EVL718/П/40*40/ANT/ANT.L | D99: 1810*1436*1098 | F99: 59434
A100: EVL719/П/40*40/ | B100: =CONCATENATE(A100,VLOOKUP($I$4,'Цвет мет. опор'!A:B,2,0),"/",VLOOKUP($J$4,'Цвет лючка'!A:B,2,0),".",VLOOKUP($K$4,'Цвет столешницы'!A:B,2,FALSE)) -> EVL719/П/40*40/ANT/ANT.L | D100: 2010*1436*1098 | F100: 61139
A101: EVL720/П/40*40/ | B101: =CONCATENATE(A101,VLOOKUP($I$4,'Цвет мет. опор'!A:B,2,0),"/",VLOOKUP($J$4,'Цвет лючка'!A:B,2,0),".",VLOOKUP($K$4,'Цвет столешницы'!A:B,2,FALSE)) -> EVL720/П/40*40/ANT/ANT.L | D101: 2210*1436*1098 | F101: 62677
A102: EVL721/П/40*40/ | B102: =CONCATENATE(A102,VLOOKUP($I$4,'Цвет мет. опор'!A:B,2,0),"/",VLOOKUP($J$4,'Цвет лючка'!A:B,2,0),".",VLOOKUP($K$4,'Цвет столешницы'!A:B,2,FALSE)) -> EVL721/П/40*40/ANT/ANT.L | C102: Стол письменный на П образном м/к 40х40 со шкафом-купе (композиция двойной бенч+шкаф-купе) | D102: 1410*1240*1098 | E102: Шкаф-купе приставной 1240х410х1098 | F102: 41298
A103: EVL722/П/40*40/ | B103: =CONCATENATE(A103,VLOOKUP($I$4,'Цвет мет. опор'!A:B,2,0),"/",VLOOKUP($J$4,'Цвет лючка'!A:B,2,0),".",VLOOKUP($K$4,'Цвет столешницы'!A:B,2,FALSE)) -> EVL722/П/40*40/ANT/ANT.L | D103: 1610*1240*1098 | F103: 42162
A104: EVL723/П/40*40/ | B104: =CONCATENATE(A104,VLOOKUP($I$4,'Цвет мет. опор'!A:B,2,0),"/",VLOOKUP($J$4,'Цвет лючка'!A:B,2,0),".",VLOOKUP($K$4,'Цвет столешницы'!A:B,2,FALSE)) -> EVL723/П/40*40/ANT/ANT.L | D104: 1810*1240*1098 | F104: 42840
A105: EVL724/П/40*40/ | B105: =CONCATENATE(A105,VLOOKUP($I$4,'Цвет мет. опор'!A:B,2,0),"/",VLOOKUP($J$4,'Цвет лючка'!A:B,2,0),".",VLOOKUP($K$4,'Цвет столешницы'!A:B,2,FALSE)) -> EVL724/П/40*40/ANT/ANT.L | D105: 2010*1240*1098 | F105: 43286
A106: EVL725/П/40*40/ | B106: =CONCATENATE(A106,VLOOKUP($I$4,'Цвет мет. опор'!A:B,2,0),"/",VLOOKUP($J$4,'Цвет лючка'!A:B,2,0),".",VLOOKUP($K$4,'Цвет столешницы'!A:B,2,FALSE)) -> EVL725/П/40*40/ANT/ANT.L | D106: 2210*1240*1098 | F106: 44330
A107: EVL726/П/40*40/ | B107: =CONCATENATE(A107,VLOOKUP($I$4,'Цвет мет. опор'!A:B,2,0),"/",VLOOKUP($J$4,'Цвет лючка'!A:B,2,0),".",VLOOKUP($K$4,'Цвет столешницы'!A:B,2,FALSE)) -> EVL726/П/40*40/ANT/ANT.L | C107: Рабочая станция на П образном м/к 40х40 со шкафом-купе (композиция двойной бенч+шкаф-купе) | D107: 1410*2332*1098 | E107: Шкаф-купе приставной 2332х410х1098 | F107: 80258
A108: EVL727/П/40*40/ | B108: =CONCATENATE(A108,VLOOKUP($I$4,'Цвет мет. опор'!A:B,2,0),"/",VLOOKUP($J$4,'Цвет лючка'!A:B,2,0),".",VLOOKUP($K$4,'Цвет столешницы'!A:B,2,FALSE)) -> EVL727/П/40*40/ANT/ANT.L | D108: 1610*2332*1098 | F108: 81987
A109: EVL728/П/40*40/ | B109: =CONCATENATE(A109,VLOOKUP($I$4,'Цвет мет. опор'!A:B,2,0),"/",VLOOKUP($J$4,'Цвет лючка'!A:B,2,0),".",VLOOKUP($K$4,'Цвет столешницы'!A:B,2,FALSE)) -> EVL728/П/40*40/ANT/ANT.L | D109: 1810*2332*1098 | F109: 83081
A110: EVL729/П/40*40/ | B110: =CONCATENATE(A110,VLOOKUP($I$4,'Цвет мет. опор'!A:B,2,0),"/",VLOOKUP($J$4,'Цвет лючка'!A:B,2,0),".",VLOOKUP($K$4,'Цвет столешницы'!A:B,2,FALSE)) -> EVL729/П/40*40/ANT/ANT.L | D110: 2010*2332*1098 | F110: 84786
A111: EVL730/П/40*40/ | B111: =CONCATENATE(A111,VLOOKUP($I$4,'Цвет мет. опор'!A:B,2,0),"/",VLOOKUP($J$4,'Цвет лючка'!A:B,2,0),".",VLOOKUP($K$4,'Цвет столешницы'!A:B,2,FALSE)) -> EVL730/П/40*40/ANT/ANT.L | D111: 2210*2332*1098 | F111: 86323
A112: EVL731/П/40*40/ | B112: =CONCATENATE(A112,VLOOKUP($I$4,'Цвет мет. опор'!A:B,2,0),"/",VLOOKUP($J$4,'Цвет лючка'!A:B,2,0),".",VLOOKUP($K$4,'Цвет столешницы'!A:B,2,FALSE)) -> EVL731/П/40*40/ANT/ANT.L | C112: Рабочая станция на П образном м/к 40х40 с тумбой левая/правая | D112: 1450*1250*750 L | E112: правый | F112: 38311
A113: EVL732/П/40*40/ | B113: =CONCATENATE(A113,VLOOKUP($I$4,'Цвет мет. опор'!A:B,2,0),"/",VLOOKUP($J$4,'Цвет лючка'!A:B,2,0),".",VLOOKUP($K$4,'Цвет столешницы'!A:B,2,FALSE)) -> EVL732/П/40*40/ANT/ANT.L | D113: 1450*1250*750 R | F113: 38311
A114: EVL733/П/40*40/ | B114: =CONCATENATE(A114,VLOOKUP($I$4,'Цвет мет. опор'!A:B,2,0),"/",VLOOKUP($J$4,'Цвет лючка'!A:B,2,0),".",VLOOKUP($K$4,'Цвет столешницы'!A:B,2,FALSE)) -> EVL733/П/40*40/ANT/ANT.L | D114: 1650*1250*750 L | F114: 33450
A115: EVL734/П/40*40/ | B115: =CONCATENATE(A115,VLOOKUP($I$4,'Цвет мет. опор'!A:B,2,0),"/",VLOOKUP($J$4,'Цвет лючка'!A:B,2,0),".",VLOOKUP($K$4,'Цвет столешницы'!A:B,2,FALSE)) -> EVL734/П/40*40/ANT/ANT.L | D115: 1650*1250*750 R | F115: 33450
A116: EVL735/П/40*40/ | B116: =CONCATENATE(A116,VLOOKUP($I$4,'Цвет мет. опор'!A:B,2,0),"/",VLOOKUP($J$4,'Цвет лючка'!A:B,2,0),".",VLOOKUP($K$4,'Цвет столешницы'!A:B,2,FALSE)) -> EVL735/П/40*40/ANT/ANT.L | D116: 1850*1250*750 L | F116: 34372
A117: EVL736/П/40*40/ | B117: =CONCATENATE(A117,VLOOKUP($I$4,'Цвет мет. опор'!A:B,2,0),"/",VLOOKUP($J$4,'Цвет лючка'!A:B,2,0),".",VLOOKUP($K$4,'Цвет столешницы'!A:B,2,FALSE)) -> EVL736/П/40*40/ANT/ANT.L | D117: 1850*1250*750 R | F117: 34372
B118: Бэнч-системы
A119: EVL645/П/40*40/ | B119: =CONCATENATE(A119,VLOOKUP($I$4,'Цвет мет. опор'!A:B,2,0),"/",VLOOKUP($J$4,'Цвет лючка'!A:B,2,0),".",VLOOKUP($K$4,'Цвет столешницы'!A:B,2,FALSE)) -> EVL645/П/40*40/ANT/ANT.L | C119: Рабочая станция на 2 раб.места на П образном м/к 40х40 (бенч-система) глубиной 600 | D119: 2400*600*750 | F119: 34523
A120: EVL646/П/40*40/ | B120: =CONCATENATE(A120,VLOOKUP($I$4,'Цвет мет. опор'!A:B,2,0),"/",VLOOKUP($J$4,'Цвет лючка'!A:B,2,0),".",VLOOKUP($K$4,'Цвет столешницы'!A:B,2,FALSE)) -> EVL646/П/40*40/ANT/ANT.L | D120: 2800*600*750 | F120: 34379
A121: EVL647/П/40*40/ | B121: =CONCATENATE(A121,VLOOKUP($I$4,'Цвет мет. опор'!A:B,2,0),"/",VLOOKUP($J$4,'Цвет лючка'!A:B,2,0),".",VLOOKUP($K$4,'Цвет столешницы'!A:B,2,FALSE)) -> EVL647/П/40*40/ANT/ANT.L | D121: 3200*600*750 | F121: 37228
A122: EVL648/П/40*40/ | B122: =CONCATENATE(A122,VLOOKUP($I$4,'Цвет мет. опор'!A:B,2,0),"/",VLOOKUP($J$4,'Цвет лючка'!A:B,2,0),".",VLOOKUP($K$4,'Цвет столешницы'!A:B,2,FALSE)) -> EVL648/П/40*40/ANT/ANT.L | C122: Рабочая станция на 2 раб.места на П образном м/к 40х40 (бенч-система) глубиной 700 | D122: 2400*700*750 | F122: 35870
A123: EVL649/П/40*40/ | B123: =CONCATENATE(A123,VLOOKUP($I$4,'Цвет мет. опор'!A:B,2,0),"/",VLOOKUP($J$4,'Цвет лючка'!A:B,2,0),".",VLOOKUP($K$4,'Цвет столешницы'!A:B,2,FALSE)) -> EVL649/П/40*40/ANT/ANT.L | D123: 2800*700*750 | F123: 37150
A124: EVL650/П/40*40/ | B124: =CONCATENATE(A124,VLOOKUP($I$4,'Цвет мет. опор'!A:B,2,0),"/",VLOOKUP($J$4,'Цвет лючка'!A:B,2,0),".",VLOOKUP($K$4,'Цвет столешницы'!A:B,2,FALSE)) -> EVL650/П/40*40/ANT/ANT.L | D124: 3200*700*750 | F124: 38671
A125: EVL651/П/40*40/ | B125: =CONCATENATE(A125,VLOOKUP($I$4,'Цвет мет. опор'!A:B,2,0),"/",VLOOKUP($J$4,'Цвет лючка'!A:B,2,0),".",VLOOKUP($K$4,'Цвет столешницы'!A:B,2,FALSE)) -> EVL651/П/40*40/ANT/ANT.L | C125: Рабочая станция на 2 раб.места на П образном м/к 40х40 (бенч-система) глубиной 800 | D125: 2400*800*750 | F125: 36680
A126: EVL652/П/40*40/ | B126: =CONCATENATE(A126,VLOOKUP($I$4,'Цвет мет. опор'!A:B,2,0),"/",VLOOKUP($J$4,'Цвет лючка'!A:B,2,0),".",VLOOKUP($K$4,'Цвет столешницы'!A:B,2,FALSE)) -> EVL652/П/40*40/ANT/ANT.L | D126: 2800*800*750 | F126: 38442
A127: EVL653/П/40*40/ | B127: =CONCATENATE(A127,VLOOKUP($I$4,'Цвет мет. опор'!A:B,2,0),"/",VLOOKUP($J$4,'Цвет лючка'!A:B,2,0),".",VLOOKUP($K$4,'Цвет столешницы'!A:B,2,FALSE)) -> EVL653/П/40*40/ANT/ANT.L | D127: 3200*800*750 | F127: 39313
A128: EVL654/П/40*40/ | B128: =CONCATENATE(A128,VLOOKUP($I$4,'Цвет мет. опор'!A:B,2,0),"/",VLOOKUP($J$4,'Цвет лючка'!A:B,2,0),".",VLOOKUP($K$4,'Цвет столешницы'!A:B,2,FALSE)) -> EVL654/П/40*40/ANT/ANT.L | C128: Рабочая станция на 3 раб.места на П образном м/к 40х40 (бенч-система), глубиной 600 мм | D128: 3600*600*750 | F128: 50607
A129: EVL655/П/40*40/ | B129: =CONCATENATE(A129,VLOOKUP($I$4,'Цвет мет. опор'!A:B,2,0),"/",VLOOKUP($J$4,'Цвет лючка'!A:B,2,0),".",VLOOKUP($K$4,'Цвет столешницы'!A:B,2,FALSE)) -> EVL655/П/40*40/ANT/ANT.L | D129: 4200*600*750 | F129: 52032
A130: EVL656/П/40*40/ | B130: =CONCATENATE(A130,VLOOKUP($I$4,'Цвет мет. опор'!A:B,2,0),"/",VLOOKUP($J$4,'Цвет лючка'!A:B,2,0),".",VLOOKUP($K$4,'Цвет столешницы'!A:B,2,FALSE)) -> EVL656/П/40*40/ANT/ANT.L | D130: 4800*600*750 | F130: 54665
A131: EVL657/П/40*40/ | B131: =CONCATENATE(A131,VLOOKUP($I$4,'Цвет мет. опор'!A:B,2,0),"/",VLOOKUP($J$4,'Цвет лючка'!A:B,2,0),".",VLOOKUP($K$4,'Цвет столешницы'!A:B,2,FALSE)) -> EVL657/П/40*40/ANT/ANT.L | C131: Рабочая станция на 3 раб.места на П образном м/к 40х40 (бенч-система), глубиной 700 мм | D131: 3600*700*750 | F131: 52915
A132: EVL658/П/40*40/ | B132: =CONCATENATE(A132,VLOOKUP($I$4,'Цвет мет. опор'!A:B,2,0),"/",VLOOKUP($J$4,'Цвет лючка'!A:B,2,0),".",VLOOKUP($K$4,'Цвет столешницы'!A:B,2,FALSE)) -> EVL658/П/40*40/ANT/ANT.L | D132: 4200*700*750 | F132: 55192
A133: EVL659/П/40*40/ | B133: =CONCATENATE(A133,VLOOKUP($I$4,'Цвет мет. опор'!A:B,2,0),"/",VLOOKUP($J$4,'Цвет лючка'!A:B,2,0),".",VLOOKUP($K$4,'Цвет столешницы'!A:B,2,FALSE)) -> EVL659/П/40*40/ANT/ANT.L | D133: 4800*700*750 | F133: 57113
A134: EVL660/П/40*40/ | B134: =CONCATENATE(A134,VLOOKUP($I$4,'Цвет мет. опор'!A:B,2,0),"/",VLOOKUP($J$4,'Цвет лючка'!A:B,2,0),".",VLOOKUP($K$4,'Цвет столешницы'!A:B,2,FALSE)) -> EVL660/П/40*40/ANT/ANT.L | C134: Рабочая станция на 3 раб.места на П образном м/к 40х40 (бенч-система), глубиной 800 мм | D134: 3600*800*750 | F134: 53420
A135: EVL661/П/40*40/ | B135: =CONCATENATE(A135,VLOOKUP($I$4,'Цвет мет. опор'!A:B,2,0),"/",VLOOKUP($J$4,'Цвет лючка'!A:B,2,0),".",VLOOKUP($K$4,'Цвет столешницы'!A:B,2,FALSE)) -> EVL661/П/40*40/ANT/ANT.L | D135: 4200*800*750 | F135: 56335
A136: EVL662/П/40*40/ | B136: =CONCATENATE(A136,VLOOKUP($I$4,'Цвет мет. опор'!A:B,2,0),"/",VLOOKUP($J$4,'Цвет лючка'!A:B,2,0),".",VLOOKUP($K$4,'Цвет столешницы'!A:B,2,FALSE)) -> EVL662/П/40*40/ANT/ANT.L | D136: 4800*800*750 | F136: 58330
A137: EVL663/П/40*40/ | B137: =CONCATENATE(A137,VLOOKUP($I$4,'Цвет мет. опор'!A:B,2,0),"/",VLOOKUP($J$4,'Цвет лючка'!A:B,2,0),".",VLOOKUP($K$4,'Цвет столешницы'!A:B,2,FALSE)) -> EVL663/П/40*40/ANT/ANT.L | C137: Рабочая станция на 4 раб.места на П образном м/к 40х40 | D137: 2400*1236*750 | F137: 60224
A138: EVL664/П/40*40/ | B138: =CONCATENATE(A138,VLOOKUP($I$4,'Цвет мет. опор'!A:B,2,0),"/",VLOOKUP($J$4,'Цвет лючка'!A:B,2,0),".",VLOOKUP($K$4,'Цвет столешницы'!A:B,2,FALSE)) -> EVL664/П/40*40/ANT/ANT.L | D138: 2800*1236*750 | F138: 62123
A139: EVL665/П/40*40/ | B139: =CONCATENATE(A139,VLOOKUP($I$4,'Цвет мет. опор'!A:B,2,0),"/",VLOOKUP($J$4,'Цвет лючка'!A:B,2,0),".",VLOOKUP($K$4,'Цвет столешницы'!A:B,2,FALSE)) -> EVL665/П/40*40/ANT/ANT.L | D139: 3200*1236*750 | F139: 65633
A140: EVL666/П/40*40/ | B140: =CONCATENATE(A140,VLOOKUP($I$4,'Цвет мет. опор'!A:B,2,0),"/",VLOOKUP($J$4,'Цвет лючка'!A:B,2,0),".",VLOOKUP($K$4,'Цвет столешницы'!A:B,2,FALSE)) -> EVL666/П/40*40/ANT/ANT.L | C140: Рабочая станция на 4 раб.места на П образном м/к 40х40 | D140: 2400*1436*750 | F140: 62497
A141: EVL667/П/40*40/ | B141: =CONCATENATE(A141,VLOOKUP($I$4,'Цвет мет. опор'!A:B,2,0),"/",VLOOKUP($J$4,'Цвет лючка'!A:B,2,0),".",VLOOKUP($K$4,'Цвет столешницы'!A:B,2,FALSE)) -> EVL667/П/40*40/ANT/ANT.L | D141: 2800*1436*750 | F141: 65893
A142: EVL668/П/40*40/ | B142: =CONCATENATE(A142,VLOOKUP($I$4,'Цвет мет. опор'!A:B,2,0),"/",VLOOKUP($J$4,'Цвет лючка'!A:B,2,0),".",VLOOKUP($K$4,'Цвет столешницы'!A:B,2,FALSE)) -> EVL668/П/40*40/ANT/ANT.L | D142: 3200*1436*750 | F142: 68098
A143: EVL669/П/40*40/ | B143: =CONCATENATE(A143,VLOOKUP($I$4,'Цвет мет. опор'!A:B,2,0),"/",VLOOKUP($J$4,'Цвет лючка'!A:B,2,0),".",VLOOKUP($K$4,'Цвет столешницы'!A:B,2,FALSE)) -> EVL669/П/40*40/ANT/ANT.L | C143: Рабочая станция на 4 раб.места на П образном м/к 40х40 | D143: 2400*1636*750 | F143: 64769
A144: EVL670/П/40*40/ | B144: =CONCATENATE(A144,VLOOKUP($I$4,'Цвет мет. опор'!A:B,2,0),"/",VLOOKUP($J$4,'Цвет лючка'!A:B,2,0),".",VLOOKUP($K$4,'Цвет столешницы'!A:B,2,FALSE)) -> EVL670/П/40*40/ANT/ANT.L | D144: 2800*1636*750 | F144: 68294
A145: EVL671/П/40*40/ | B145: =CONCATENATE(A145,VLOOKUP($I$4,'Цвет мет. опор'!A:B,2,0),"/",VLOOKUP($J$4,'Цвет лючка'!A:B,2,0),".",VLOOKUP($K$4,'Цвет столешницы'!A:B,2,FALSE)) -> EVL671/П/40*40/ANT/ANT.L | D145: 3200*1636*750 | F145: 70036
A146: EVL672/П/40*40/ | B146: =CONCATENATE(A146,VLOOKUP($I$4,'Цвет мет. опор'!A:B,2,0),"/",VLOOKUP($J$4,'Цвет лючка'!A:B,2,0),".",VLOOKUP($K$4,'Цвет столешницы'!A:B,2,FALSE)) -> EVL672/П/40*40/ANT/ANT.L | C146: Рабочая станция на 6 раб.места на П образном м/к 40х40 с шириной 1-го рабочего места 600 мм | D146: 3600*1236*750 | F146: 88895
A147: EVL673/П/40*40/ | B147: =CONCATENATE(A147,VLOOKUP($I$4,'Цвет мет. опор'!A:B,2,0),"/",VLOOKUP($J$4,'Цвет лючка'!A:B,2,0),".",VLOOKUP($K$4,'Цвет столешницы'!A:B,2,FALSE)) -> EVL673/П/40*40/ANT/ANT.L | D147: 4200*1236*750 | F147: 91743
A148: EVL674/П/40*40/ | B148: =CONCATENATE(A148,VLOOKUP($I$4,'Цвет мет. опор'!A:B,2,0),"/",VLOOKUP($J$4,'Цвет лючка'!A:B,2,0),".",VLOOKUP($K$4,'Цвет столешницы'!A:B,2,FALSE)) -> EVL674/П/40*40/ANT/ANT.L | D148: 4800*1236*750 | F148: 97009
A149: EVL675/П/40*40/ | B149: =CONCATENATE(A149,VLOOKUP($I$4,'Цвет мет. опор'!A:B,2,0),"/",VLOOKUP($J$4,'Цвет лючка'!A:B,2,0),".",VLOOKUP($K$4,'Цвет столешницы'!A:B,2,FALSE)) -> EVL675/П/40*40/ANT/ANT.L | C149: Рабочая станция на 6 раб.места на П образном м/к 40х40 с шириной 1-го рабочего места 700 мм | D149: 3600*1436*750 | F149: 92347
A150: EVL676/П/40*40/ | B150: =CONCATENATE(A150,VLOOKUP($I$4,'Цвет мет. опор'!A:B,2,0),"/",VLOOKUP($J$4,'Цвет лючка'!A:B,2,0),".",VLOOKUP($K$4,'Цвет столешницы'!A:B,2,FALSE)) -> EVL676/П/40*40/ANT/ANT.L | D150: 4200*1436*750 | F150: 97442
A151: EVL677/П/40*40/ | B151: =CONCATENATE(A151,VLOOKUP($I$4,'Цвет мет. опор'!A:B,2,0),"/",VLOOKUP($J$4,'Цвет лючка'!A:B,2,0),".",VLOOKUP($K$4,'Цвет столешницы'!A:B,2,FALSE)) -> EVL677/П/40*40/ANT/ANT.L | D151: 4800*1436*750 | F151: 100750
A152: EVL678/П/40*40/ | B152: =CONCATENATE(A152,VLOOKUP($I$4,'Цвет мет. опор'!A:B,2,0),"/",VLOOKUP($J$4,'Цвет лючка'!A:B,2,0),".",VLOOKUP($K$4,'Цвет столешницы'!A:B,2,FALSE)) -> EVL678/П/40*40/ANT/ANT.L | C152: Рабочая станция на 6 раб.места на П образном м/к 40х40 с шириной 1-го рабочего места 800 мм | D152: 3600*1636*750 | F152: 95315
A153: EVL679/П/40*40/ | B153: =CONCATENATE(A153,VLOOKUP($I$4,'Цвет мет. опор'!A:B,2,0),"/",VLOOKUP($J$4,'Цвет лючка'!A:B,2,0),".",VLOOKUP($K$4,'Цвет столешницы'!A:B,2,FALSE)) -> EVL679/П/40*40/ANT/ANT.L | D153: 4200*1636*750 | F153: 100602
A154: EVL680/П/40*40/ | B154: =CONCATENATE(A154,VLOOKUP($I$4,'Цвет мет. опор'!A:B,2,0),"/",VLOOKUP($J$4,'Цвет лючка'!A:B,2,0),".",VLOOKUP($K$4,'Цвет столешницы'!A:B,2,FALSE)) -> EVL680/П/40*40/ANT/ANT.L | D154: 4800*1636*750 | F154: 103215
B155: Переговорные столы
A156: EVL800/П/40*40/ | B156: =CONCATENATE(A156,VLOOKUP($I$4,'Цвет мет. опор'!A:B,2,0),".",VLOOKUP($K$4,'Цвет столешницы'!A:B,2,FALSE)) -> EVL800/П/40*40/ANT.L | C156: Переговорный стол (1 столешница) на П образном м/к 40х40 | D156: 1000*1236*750 | F156: 30348
A157: EVL801/П/40*40/ | B157: =CONCATENATE(A157,VLOOKUP($I$4,'Цвет мет. опор'!A:B,2,0),".",VLOOKUP($K$4,'Цвет столешницы'!A:B,2,FALSE)) -> EVL801/П/40*40/ANT.L | D157: 1200*1236*750 | F157: 31589
A158: EVL802/П/40*40/ | B158: =CONCATENATE(A158,VLOOKUP($I$4,'Цвет мет. опор'!A:B,2,0),".",VLOOKUP($K$4,'Цвет столешницы'!A:B,2,FALSE)) -> EVL802/П/40*40/ANT.L | D158: 1400*1236*750 | F158: 27319
A159: EVL803/П/40*40/ | B159: =CONCATENATE(A159,VLOOKUP($I$4,'Цвет мет. опор'!A:B,2,0),".",VLOOKUP($K$4,'Цвет столешницы'!A:B,2,FALSE)) -> EVL803/П/40*40/ANT.L | D159: 1600*1236*750 | F159: 34958
A160: EVL804/П/40*40/ | B160: =CONCATENATE(A160,VLOOKUP($I$4,'Цвет мет. опор'!A:B,2,0),".",VLOOKUP($K$4,'Цвет столешницы'!A:B,2,FALSE)) -> EVL804/П/40*40/ANT.L | D160: 1800*1236*750 | F160: 36896
A161: EVL805/П/40*40/ | B161: =CONCATENATE(A161,VLOOKUP($I$4,'Цвет мет. опор'!A:B,2,0),".",VLOOKUP($K$4,'Цвет столешницы'!A:B,2,FALSE)) -> EVL805/П/40*40/ANT.L | C161: Переговорный стол (2 столешницы) на П образном м/к 40х40 | D161: 2000*1236*750 | F161: 51362
A162: EVL806/П/40*40/ | B162: =CONCATENATE(A162,VLOOKUP($I$4,'Цвет мет. опор'!A:B,2,0),".",VLOOKUP($K$4,'Цвет столешницы'!A:B,2,FALSE)) -> EVL806/П/40*40/ANT.L | D162: 2400*1236*750 | F162: 53455
A163: EVL807/П/40*40/ | B163: =CONCATENATE(A163,VLOOKUP($I$4,'Цвет мет. опор'!A:B,2,0),".",VLOOKUP($K$4,'Цвет столешницы'!A:B,2,FALSE)) -> EVL807/П/40*40/ANT.L | D163: 2800*1236*750 | F163: 55948
A164: EVL808/П/40*40/ | B164: =CONCATENATE(A164,VLOOKUP($I$4,'Цвет мет. опор'!A:B,2,0),".",VLOOKUP($K$4,'Цвет столешницы'!A:B,2,FALSE)) -> EVL808/П/40*40/ANT.L | D164: 3200*1236*750 | F164: 66111
A165: EVL809/П/40*40/ | B165: =CONCATENATE(A165,VLOOKUP($I$4,'Цвет мет. опор'!A:B,2,0),".",VLOOKUP($K$4,'Цвет столешницы'!A:B,2,FALSE)) -> EVL809/П/40*40/ANT.L | D165: 3600*1236*750 | F165: 69900
A166: EVL810/П/40*40/ | B166: =CONCATENATE(A166,VLOOKUP($I$4,'Цвет мет. опор'!A:B,2,0),".",VLOOKUP($K$4,'Цвет столешницы'!A:B,2,FALSE)) -> EVL810/П/40*40/ANT.L | C166: Переговорный стол (3 столешницы) на П образном м/к 40х40 | D166: 3000*1236*750 | F166: 71261
A167: EVL811/П/40*40/ | B167: =CONCATENATE(A167,VLOOKUP($I$4,'Цвет мет. опор'!A:B,2,0),".",VLOOKUP($K$4,'Цвет столешницы'!A:B,2,FALSE)) -> EVL811/П/40*40/ANT.L | D167: 3600*1236*750 | F167: 78174
A168: EVL812/П/40*40/ | B168: =CONCATENATE(A168,VLOOKUP($I$4,'Цвет мет. опор'!A:B,2,0),".",VLOOKUP($K$4,'Цвет столешницы'!A:B,2,FALSE)) -> EVL812/П/40*40/ANT.L | D168: 4200*1236*750 | F168: 81914
A169: EVL813/П/40*40/ | B169: =CONCATENATE(A169,VLOOKUP($I$4,'Цвет мет. опор'!A:B,2,0),".",VLOOKUP($K$4,'Цвет столешницы'!A:B,2,FALSE)) -> EVL813/П/40*40/ANT.L | D169: 4800*1236*750 | F169: 84346
A170: EVL814/П/40*40/ | B170: =CONCATENATE(A170,VLOOKUP($I$4,'Цвет мет. опор'!A:B,2,0),".",VLOOKUP($K$4,'Цвет столешницы'!A:B,2,FALSE)) -> EVL814/П/40*40/ANT.L | D170: 5400*1236*750 | F170: 87441
A171: EVL841/П/40*40/ | B171: =CONCATENATE(A171,VLOOKUP($I$4,'Цвет мет. опор'!A:B,2,0),".",VLOOKUP($K$4,'Цвет столешницы'!A:B,2,FALSE)) -> EVL841/П/40*40/ANT.L | C171: Переговорный стол (3 столешницы) на П-образном м/к 40х40 | D171: 3600*1436*750 | F171: 80596
A172: EVL842/П/40*40/ | B172: =CONCATENATE(A172,VLOOKUP($I$4,'Цвет мет. опор'!A:B,2,0),".",VLOOKUP($K$4,'Цвет столешницы'!A:B,2,FALSE)) -> EVL842/П/40*40/ANT.L | D172: 4200*1436*750 | F172: 84444
A173: EVL843/П/40*40/ | B173: =CONCATENATE(A173,VLOOKUP($I$4,'Цвет мет. опор'!A:B,2,0),".",VLOOKUP($K$4,'Цвет столешницы'!A:B,2,FALSE)) -> EVL843/П/40*40/ANT.L | D173: 4800*1436*750 | F173: 86975
A174: EVL844/П/40*40/ | B174: =CONCATENATE(A174,VLOOKUP($I$4,'Цвет мет. опор'!A:B,2,0),".",VLOOKUP($K$4,'Цвет столешницы'!A:B,2,FALSE)) -> EVL844/П/40*40/ANT.L | D174: 5400*1436*750 | F174: 89106
C175: Кодировка Артикула стола
C176: Модель стола разворот стола /Цвет опор/Цв. заглушки. Цвет столешницы
B177: МОДЕЛЬ СТОЛА (ФОРМА, РАЗМЕР) | C177: ПРАВОСТОРОННИЙ /ЛЕВОСТОРОННИЙ | D177: ЦВЕТ ОПОР | E177: ЦВЕТ ЗАГЛУШКИ, РУЧЕК | F177: ЦВЕТ СТОЛЕШНИЦЫ
C178: SX-левый | D178: АNT-АНТРАЦИТ | E178: АNT-АНТРАЦИТ | F178: H | G178: Белый
C179: DX-правый | D179: WHT-БЕЛЫЙ | E179: H-БЕЛЫЙ | F179: U727 | G179: Серый Камень
D180: GR-СЕРЫЙ | E180: G-СЕРЫЙ | F180: R2 | G180: Серый
F181: ANT | G181: Антрацит
F182: U003 | G182: Дуб Честерфилд
F183: L | G183: Дуб 131

Sheet Столы на А обр. 40х40
B1: EVOLUTION | F1: =Склаская!F1 -> 2025-05-23
B2: Столы, бенчи и рабочие станции на металлокаркасе: А-образные опоры - труба с сечением 40*40мм, траверсы - труба 40*20мм в цв. Антрацит, Белый* Столешницы ЛДСП - 25 мм. | I2: Формирование артикула в зависимости от выбранных характеристик
B3: Не складская программа производятся на заказ партией от 6 шт., со сроком по согласованию с производством, в цвете: Дуб Честерфилд, Белый, Антрацит, Серый R2, Дуб 131, Серый камень, Венге Цаво, Бетон. Опоры столов в цв. Антрацит, Белый, Серый. Заглушки кабель-каналов и ручки тумб: Антрацит, Белый. Для заказа изделия следует пользоваться правилами кодировки для создания артикула. →→→→ | I3: Цвет Опор | J3: Цвет кабель-канала | K3: Цвет столешницы
I4: Антрацит | J4: Белый | K4: Дуб Честерфилд
B5: Артикул | C5: Наименование | D5: Размеры Ш*Г*В (мм) | E5: Изображение | F5: Розничная Цена, руб.
A6: EVL113/А/40*40/ | B6: =CONCATENATE(A6,VLOOKUP($I$4,'Цвет мет. опор'!A:B,2,0),"/",VLOOKUP($J$4,'Цвет лючка'!A:B,2,0),".",VLOOKUP($K$4,'Цвет столешницы'!A:B,2,FALSE)) -> EVL113/А/40*40/ANT/H.U003 | C6: Стол письменный на А образном м/к 40х40, глубиной 600 мм | D6: 1000*600*750 | F6: 17696
A7: EVL114/А/40*40/ | B7: =CONCATENATE(A7,VLOOKUP($I$4,'Цвет мет. опор'!A:B,2,0),"/",VLOOKUP($J$4,'Цвет лючка'!A:B,2,0),".",VLOOKUP($K$4,'Цвет столешницы'!A:B,2,FALSE)) -> EVL114/А/40*40/ANT/H.U003 | D7: 1200*600*750 | F7: 18438
A8: EVL115/А/40*40/ | B8: =CONCATENATE(A8,VLOOKUP($I$4,'Цвет мет. опор'!A:B,2,0),"/",VLOOKUP($J$4,'Цвет лючка'!A:B,2,0),".",VLOOKUP($K$4,'Цвет столешницы'!A:B,2,FALSE)) -> EVL115/А/40*40/ANT/H.U003 | D8: 1400*600*750 | F8: 18783
A9: EVL116/А/40*40/ | B9: =CONCATENATE(A9,VLOOKUP($I$4,'Цвет мет. опор'!A:B,2,0),"/",VLOOKUP($J$4,'Цвет лючка'!A:B,2,0),".",VLOOKUP($K$4,'Цвет столешницы'!A:B,2,FALSE)) -> EVL116/А/40*40/ANT/H.U003 | D9: 1600*600*750 | F9: 19791
A10: EVL100/А/40*40/ | B10: =CONCATENATE(A10,VLOOKUP($I$4,'Цвет мет. опор'!A:B,2,0),"/",VLOOKUP($J$4,'Цвет лючка'!A:B,2,0),".",VLOOKUP($K$4,'Цвет столешницы'!A:B,2,FALSE)) -> EVL100/А/40*40/ANT/H.U003 | C10: Стол письменный на А образном м/к 40х40, глубиной 700 мм | D10: 1000*700*750 | F10: 18348
A11: EVL101/А/40*40/ | B11: =CONCATENATE(A11,VLOOKUP($I$4,'Цвет мет. опор'!A:B,2,0),"/",VLOOKUP($J$4,'Цвет лючка'!A:B,2,0),".",VLOOKUP($K$4,'Цвет столешницы'!A:B,2,FALSE)) -> EVL101/А/40*40/ANT/H.U003 | D11: 1200*700*750 | F11: 19213
A12: EVL102/0/40*40 | B12: =CONCATENATE(A12,VLOOKUP($I$4,'Цвет мет. опор'!A:B,2,0),"/",VLOOKUP($J$4,'Цвет лючка'!A:B,2,0),".",VLOOKUP($K$4,'Цвет столешницы'!A:B,2,FALSE)) -> EVL102/0/40*40ANT/H.U003 | D12: 1400*700*750 | F12: 19972
A13: EVL103/0/40*40 | B13: =CONCATENATE(A13,VLOOKUP($I$4,'Цвет мет. опор'!A:B,2,0),"/",VLOOKUP($J$4,'Цвет лючка'!A:B,2,0),".",VLOOKUP($K$4,'Цвет столешницы'!A:B,2,FALSE)) -> EVL103/0/40*40ANT/H.U003 | D13: 1600*700*750 | F13: 20612
A14: EVL104/А/40*40/ | B14: =CONCATENATE(A14,VLOOKUP($I$4,'Цвет мет. опор'!A:B,2,0),"/",VLOOKUP($J$4,'Цвет лючка'!A:B,2,0),".",VLOOKUP($K$4,'Цвет столешницы'!A:B,2,FALSE)) -> EVL104/А/40*40/ANT/H.U003 | D14: 1800*700*750 | F14: 21381
A15: EVL117/А/40*40/ | B15: =CONCATENATE(A15,VLOOKUP($I$4,'Цвет мет. опор'!A:B,2,0),"/",VLOOKUP($J$4,'Цвет лючка'!A:B,2,0),".",VLOOKUP($K$4,'Цвет столешницы'!A:B,2,FALSE)) -> EVL117/А/40*40/ANT/H.U003 | C15: Стол письменный на А образном м/к 40х40, глубиной 800 мм | D15: 1000*800*750 | F15: 18544
A16: EVL118/А/40*40/ | B16: =CONCATENATE(A16,VLOOKUP($I$4,'Цвет мет. опор'!A:B,2,0),"/",VLOOKUP($J$4,'Цвет лючка'!A:B,2,0),".",VLOOKUP($K$4,'Цвет столешницы'!A:B,2,FALSE)) -> EVL118/А/40*40/ANT/H.U003 | D16: 1200*800*750 | F16: 19648
A17: EVL119/А/40*40/ | B17: =CONCATENATE(A17,VLOOKUP($I$4,'Цвет мет. опор'!A:B,2,0),"/",VLOOKUP($J$4,'Цвет лючка'!A:B,2,0),".",VLOOKUP($K$4,'Цвет столешницы'!A:B,2,FALSE)) -> EVL119/А/40*40/ANT/H.U003 | D17: 1400*800*750 | F17: 20529
A18: EVL120/А/40*40/ | B18: =CONCATENATE(A18,VLOOKUP($I$4,'Цвет мет. опор'!A:B,2,0),"/",VLOOKUP($J$4,'Цвет лючка'!A:B,2,0),".",VLOOKUP($K$4,'Цвет столешницы'!A:B,2,FALSE)) -> EVL120/А/40*40/ANT/H.U003 | D18: 1600*800*750 | F18: 21284
A19: EVL121/А/40*40/ | B19: =CONCATENATE(A19,VLOOKUP($I$4,'Цвет мет. опор'!A:B,2,0),"/",VLOOKUP($J$4,'Цвет лючка'!A:B,2,0),".",VLOOKUP($K$4,'Цвет столешницы'!A:B,2,FALSE)) -> EVL121/А/40*40/ANT/H.U003 | D19: 1800*800*750 | F19: 22181
A20: EVL122/А/40*40/ | B20: =CONCATENATE(A20,VLOOKUP($I$4,'Цвет мет. опор'!A:B,2,0),"/",VLOOKUP($J$4,'Цвет лючка'!A:B,2,0),".",VLOOKUP($K$4,'Цвет столешницы'!A:B,2,FALSE)) -> EVL122/А/40*40/ANT/H.U003 | C20: Стол письменный на А образном м/к 40х40, глубиной 900 мм | D20: 1800*900*750 | F20: 22433
A21: EVL123SX(DX)/А/40*40/ | B21: =CONCATENATE(A21,VLOOKUP($I$4,'Цвет мет. опор'!A:B,2,0),"/",VLOOKUP($J$4,'Цвет лючка'!A:B,2,0),".",VLOOKUP($K$4,'Цвет столешницы'!A:B,2,FALSE)) -> EVL123SX(DX)/А/40*40/ANT/H.U003 | C21: Стол криволинейный левый/правый на А образном м/к 40х40, глубиной 600/900 мм | D21: 1200*900*750 | E21: правый | F21: 19108
A22: EVL124SX(DX)/А/40*40/ | B22: =CONCATENATE(A22,VLOOKUP($I$4,'Цвет мет. опор'!A:B,2,0),"/",VLOOKUP($J$4,'Цвет лючка'!A:B,2,0),".",VLOOKUP($K$4,'Цвет столешницы'!A:B,2,FALSE)) -> EVL124SX(DX)/А/40*40/ANT/H.U003 | D22: 1400*900*750 | F22: 20184
A23: EVL105SX(DX)/А/40*40/ | B23: =CONCATENATE(A23,VLOOKUP($I$4,'Цвет мет. опор'!A:B,2,0),"/",VLOOKUP($J$4,'Цвет лючка'!A:B,2,0),".",VLOOKUP($K$4,'Цвет столешницы'!A:B,2,FALSE)) -> EVL105SX(DX)/А/40*40/ANT/H.U003 | C23: Стол криволинейный левый/правый на А образном м/к 40х40, глубиной 700/900 мм | D23: 1200*900*750 | E23: правый | F23: 15794
A24: EVL106SX(DX)/А/40*40/ | B24: =CONCATENATE(A24,VLOOKUP($I$4,'Цвет мет. опор'!A:B,2,0),"/",VLOOKUP($J$4,'Цвет лючка'!A:B,2,0),".",VLOOKUP($K$4,'Цвет столешницы'!A:B,2,FALSE)) -> EVL106SX(DX)/А/40*40/ANT/H.U003 | D24: 1400*900*750 | F24: 16413
A25: EVL107SX(DX)/А/40*40/ | B25: =CONCATENATE(A25,VLOOKUP($I$4,'Цвет мет. опор'!A:B,2,0),"/",VLOOKUP($J$4,'Цвет лючка'!A:B,2,0),".",VLOOKUP($K$4,'Цвет столешницы'!A:B,2,FALSE)) -> EVL107SX(DX)/А/40*40/ANT/H.U003 | D25: 1600*900*750 | F25: 17226
A26: EVL125SX(DX)/А/40*40/ | B26: =CONCATENATE(A26,VLOOKUP($I$4,'Цвет мет. опор'!A:B,2,0),"/",VLOOKUP($J$4,'Цвет лючка'!A:B,2,0),".",VLOOKUP($K$4,'Цвет столешницы'!A:B,2,FALSE)) -> EVL125SX(DX)/А/40*40/ANT/H.U003 | C26: Стол криволинейный левый/правый на А образном м/к 40х40, глубиной 800/900 мм | D26: 1400*900*750 | F26: 16423
A27: EVL126SX(DX)/А/40*40/ | B27: =CONCATENATE(A27,VLOOKUP($I$4,'Цвет мет. опор'!A:B,2,0),"/",VLOOKUP($J$4,'Цвет лючка'!A:B,2,0),".",VLOOKUP($K$4,'Цвет столешницы'!A:B,2,FALSE)) -> EVL126SX(DX)/А/40*40/ANT/H.U003 | D27: 1600*900*750 | F27: 17239
A28: EVL109SX(DX)/А/40*40 | B28: =CONCATENATE(A28,VLOOKUP($I$4,'Цвет мет. опор'!A:B,2,0),"/",VLOOKUP($J$4,'Цвет лючка'!A:B,2,0),".",VLOOKUP($K$4,'Цвет столешницы'!A:B,2,FALSE)) -> EVL109SX(DX)/А/40*40ANT/H.U003 | C28: Стол эргономичный левый/правый на А образном м/к 40х40, глубиной 700/900 мм | D28: 1200х900/700х750 | F28: 15763
A29: EVL110SX(DX)/А/40*40 | B29: =CONCATENATE(A29,VLOOKUP($I$4,'Цвет мет. опор'!A:B,2,0),"/",VLOOKUP($J$4,'Цвет лючка'!A:B,2,0),".",VLOOKUP($K$4,'Цвет столешницы'!A:B,2,FALSE)) -> EVL110SX(DX)/А/40*40ANT/H.U003 | D29: 1400х900/700х750 | F29: 16382
A30: EVL111SX(DX)/А/40*40 | B30: =CONCATENATE(A30,VLOOKUP($I$4,'Цвет мет. опор'!A:B,2,0),"/",VLOOKUP($J$4,'Цвет лючка'!A:B,2,0),".",VLOOKUP($K$4,'Цвет столешницы'!A:B,2,FALSE)) -> EVL111SX(DX)/А/40*40ANT/H.U003 | D30: 1600х900/700х750 | F30: 17192
A31: EVL127SX(DX)/А/40*40/ | B31: =CONCATENATE(A31,VLOOKUP($I$4,'Цвет мет. опор'!A:B,2,0),"/",VLOOKUP($J$4,'Цвет лючка'!A:B,2,0),".",VLOOKUP($K$4,'Цвет столешницы'!A:B,2,FALSE)) -> EVL127SX(DX)/А/40*40/ANT/H.U003 | C31: Стол эргономичный левый/правый на А образном м/к 40х40, глубиной 600/1200 мм | D31: 1400*1200*750 | F31: 30648
A32: EVL128SX(DX)/А/40*40/ | B32: =CONCATENATE(A32,VLOOKUP($I$4,'Цвет мет. опор'!A:B,2,0),"/",VLOOKUP($J$4,'Цвет лючка'!A:B,2,0),".",VLOOKUP($K$4,'Цвет столешницы'!A:B,2,FALSE)) -> EVL128SX(DX)/А/40*40/ANT/H.U003 | D32: 1600*1200*750 | F32: 31547
A33: EVL129SX(DX)/А/40*40/ | B33: =CONCATENATE(A33,VLOOKUP($I$4,'Цвет мет. опор'!A:B,2,0),"/",VLOOKUP($J$4,'Цвет лючка'!A:B,2,0),".",VLOOKUP($K$4,'Цвет столешницы'!A:B,2,FALSE)) -> EVL129SX(DX)/А/40*40/ANT/H.U003 | C33: Стол эргономичный левый/правый на А образном м/к 40х40, глубиной 700/1200 мм | D33: 1400*1200*750 | F33: 30999
A34: EVL130SX(DX)/А/40*40/ | B34: =CONCATENATE(A34,VLOOKUP($I$4,'Цвет мет. опор'!A:B,2,0),"/",VLOOKUP($J$4,'Цвет лючка'!A:B,2,0),".",VLOOKUP($K$4,'Цвет столешницы'!A:B,2,FALSE)) -> EVL130SX(DX)/А/40*40/ANT/H.U003 | D34: 1600*1200*750 | F34: 31890
A35: EVL131SX(DX)/А/40*40/ | B35: =CONCATENATE(A35,VLOOKUP($I$4,'Цвет мет. опор'!A:B,2,0),"/",VLOOKUP($J$4,'Цвет лючка'!A:B,2,0),".",VLOOKUP($K$4,'Цвет столешницы'!A:B,2,FALSE)) -> EVL131SX(DX)/А/40*40/ANT/H.U003 | C35: Стол эргономичный левый/правый на А образном м/к 40х40, глубиной 800/1200 мм | D35: 1400*1200*750 | F35: 31270
A36: EVL132SX(DX)/А/40*40/ | B36: =CONCATENATE(A36,VLOOKUP($I$4,'Цвет мет. опор'!A:B,2,0),"/",VLOOKUP($J$4,'Цвет лючка'!A:B,2,0),".",VLOOKUP($K$4,'Цвет столешницы'!A:B,2,FALSE)) -> EVL132SX(DX)/А/40*40/ANT/H.U003 | D36: 1600*1200*750 | F36: 32086
A37: EVL601/А/40*40/ | B37: =CONCATENATE(A37,VLOOKUP($I$4,'Цвет мет. опор'!A:B,2,0),"/",VLOOKUP($J$4,'Цвет лючка'!A:B,2,0),".",VLOOKUP($K$4,'Цвет столешницы'!A:B,2,FALSE)) -> EVL601/А/40*40/ANT/H.U003 | C37: Рабочая станция на А образном м/к 40х40, глубиной 1236 мм | D37: 1200*1236*750 | F37: 31553
A38: EVL602/А/40*40/ | B38: =CONCATENATE(A38,VLOOKUP($I$4,'Цвет мет. опор'!A:B,2,0),"/",VLOOKUP($J$4,'Цвет лючка'!A:B,2,0),".",VLOOKUP($K$4,'Цвет столешницы'!A:B,2,FALSE)) -> EVL602/А/40*40/ANT/H.U003 | D38: 1400*1236*750 | F38: 32502
A39: EVL603/А/40*40/ | B39: =CONCATENATE(A39,VLOOKUP($I$4,'Цвет мет. опор'!A:B,2,0),"/",VLOOKUP($J$4,'Цвет лючка'!A:B,2,0),".",VLOOKUP($K$4,'Цвет столешницы'!A:B,2,FALSE)) -> EVL603/А/40*40/ANT/H.U003 | D39: 1600*1236*750 | F39: 34258
A40: EVL681/А/40*40/ | B40: =CONCATENATE(A40,VLOOKUP($I$4,'Цвет мет. опор'!A:B,2,0),"/",VLOOKUP($J$4,'Цвет лючка'!A:B,2,0),".",VLOOKUP($K$4,'Цвет столешницы'!A:B,2,FALSE)) -> EVL681/А/40*40/ANT/H.U003 | D40: 1800*1236*751 | F40: 35957
A41: EVL604/А/40*40/ | B41: =CONCATENATE(A41,VLOOKUP($I$4,'Цвет мет. опор'!A:B,2,0),"/",VLOOKUP($J$4,'Цвет лючка'!A:B,2,0),".",VLOOKUP($K$4,'Цвет столешницы'!A:B,2,FALSE)) -> EVL604/А/40*40/ANT/H.U003 | C41: Рабочая станция на А образном м/к 40х40 глубиной 1436 | D41: 1200*1436*750 | F41: 33014
A42: EVL605/А/40*40/ | B42: =CONCATENATE(A42,VLOOKUP($I$4,'Цвет мет. опор'!A:B,2,0),"/",VLOOKUP($J$4,'Цвет лючка'!A:B,2,0),".",VLOOKUP($K$4,'Цвет столешницы'!A:B,2,FALSE)) -> EVL605/А/40*40/ANT/H.U003 | D42: 1400*1436*750 | F42: 34532
A43: EVL606/А/40*40/ | B43: =CONCATENATE(A43,VLOOKUP($I$4,'Цвет мет. опор'!A:B,2,0),"/",VLOOKUP($J$4,'Цвет лючка'!A:B,2,0),".",VLOOKUP($K$4,'Цвет столешницы'!A:B,2,FALSE)) -> EVL606/А/40*40/ANT/H.U003 | D43: 1600*1436*750 | F43: 35813
A44: EVL682/А/40*40/ | B44: =CONCATENATE(A44,VLOOKUP($I$4,'Цвет мет. опор'!A:B,2,0),"/",VLOOKUP($J$4,'Цвет лючка'!A:B,2,0),".",VLOOKUP($K$4,'Цвет столешницы'!A:B,2,FALSE)) -> EVL682/А/40*40/ANT/H.U003 | D44: 1800*1436*751 | F44: 37350
A45: EVL607/А/40*40/ | B45: =CONCATENATE(A45,VLOOKUP($I$4,'Цвет мет. опор'!A:B,2,0),"/",VLOOKUP($J$4,'Цвет лючка'!A:B,2,0),".",VLOOKUP($K$4,'Цвет столешницы'!A:B,2,FALSE)) -> EVL607/А/40*40/ANT/H.U003 | C45: Рабочая станция на А образном м/к 40х40 глубиной 1636 | D45: 1200*1636*750 | F45: 34223
A46: EVL608/А/40*40/ | B46: =CONCATENATE(A46,VLOOKUP($I$4,'Цвет мет. опор'!A:B,2,0),"/",VLOOKUP($J$4,'Цвет лючка'!A:B,2,0),".",VLOOKUP($K$4,'Цвет столешницы'!A:B,2,FALSE)) -> EVL608/А/40*40/ANT/H.U003 | D46: 1400*1636*750 | F46: 35986
A47: EVL609/А/40*40/ | B47: =CONCATENATE(A47,VLOOKUP($I$4,'Цвет мет. опор'!A:B,2,0),"/",VLOOKUP($J$4,'Цвет лючка'!A:B,2,0),".",VLOOKUP($K$4,'Цвет столешницы'!A:B,2,FALSE)) -> EVL609/А/40*40/ANT/H.U003 | D47: 1600*1636*750 | F47: 37494
A48: EVL683/А/40*40/ | B48: =CONCATENATE(A48,VLOOKUP($I$4,'Цвет мет. опор'!A:B,2,0),"/",VLOOKUP($J$4,'Цвет лючка'!A:B,2,0),".",VLOOKUP($K$4,'Цвет столешницы'!A:B,2,FALSE)) -> EVL683/А/40*40/ANT/H.U003 | D48: 1800*1636*751 | F48: 39289
A49: EVL610/А/40*40/ | B49: =CONCATENATE(A49,VLOOKUP($I$4,'Цвет мет. опор'!A:B,2,0),"/",VLOOKUP($J$4,'Цвет лючка'!A:B,2,0),".",VLOOKUP($K$4,'Цвет столешницы'!A:B,2,FALSE)) -> EVL610/А/40*40/ANT/H.U003 | C49: Рабочая станция криволинейная на А образном м/к 40х40 глубиной 1236/1836 | D49: 1200*1836*750 | F49: 34055
A50: EVL611/А/40*40/ | B50: =CONCATENATE(A50,VLOOKUP($I$4,'Цвет мет. опор'!A:B,2,0),"/",VLOOKUP($J$4,'Цвет лючка'!A:B,2,0),".",VLOOKUP($K$4,'Цвет столешницы'!A:B,2,FALSE)) -> EVL611/А/40*40/ANT/H.U003 | D50: 1400*1836*750 | F50: 35938
A51: EVL612/А/40*40/ | B51: =CONCATENATE(A51,VLOOKUP($I$4,'Цвет мет. опор'!A:B,2,0),"/",VLOOKUP($J$4,'Цвет лючка'!A:B,2,0),".",VLOOKUP($K$4,'Цвет столешницы'!A:B,2,FALSE)) -> EVL612/А/40*40/ANT/H.U003 | D51: 1600*1836*750 | F51: 37357
A52: EVL613/А/40*40/ | B52: =CONCATENATE(A52,VLOOKUP($I$4,'Цвет мет. опор'!A:B,2,0),"/",VLOOKUP($J$4,'Цвет лючка'!A:B,2,0),".",VLOOKUP($K$4,'Цвет столешницы'!A:B,2,FALSE)) -> EVL613/А/40*40/ANT/H.U003 | C52: Рабочая станция криволинейная на А образном м/к 40х40 глубиной 1436/1836 | D52: 1200*1836*750 | F52: 33066
A53: EVL614/А/40*40/ | B53: =CONCATENATE(A53,VLOOKUP($I$4,'Цвет мет. опор'!A:B,2,0),"/",VLOOKUP($J$4,'Цвет лючка'!A:B,2,0),".",VLOOKUP($K$4,'Цвет столешницы'!A:B,2,FALSE)) -> EVL614/А/40*40/ANT/H.U003 | D53: 1400*1836*750 | F53: 35218
A54: EVL615/А/40*40/ | B54: =CONCATENATE(A54,VLOOKUP($I$4,'Цвет мет. опор'!A:B,2,0),"/",VLOOKUP($J$4,'Цвет лючка'!A:B,2,0),".",VLOOKUP($K$4,'Цвет столешницы'!A:B,2,FALSE)) -> EVL615/А/40*40/ANT/H.U003 | D54: 1600*1836*750 | F54: 36612
A55: EVL616/А/40*40/ | B55: =CONCATENATE(A55,VLOOKUP($I$4,'Цвет мет. опор'!A:B,2,0),"/",VLOOKUP($J$4,'Цвет лючка'!A:B,2,0),".",VLOOKUP($K$4,'Цвет столешницы'!A:B,2,FALSE)) -> EVL616/А/40*40/ANT/H.U003 | C55: Рабочая станция эргономичная на А образном м/к 40х40 глубиной 1236/2436 | D55: 1400*2436*750 | F55: 55849
A56: EVL617/А/40*40/ | B56: =CONCATENATE(A56,VLOOKUP($I$4,'Цвет мет. опор'!A:B,2,0),"/",VLOOKUP($J$4,'Цвет лючка'!A:B,2,0),".",VLOOKUP($K$4,'Цвет столешницы'!A:B,2,FALSE)) -> EVL617/А/40*40/ANT/H.U003 | D56: 1600*2436*750 | F56: 57713
A57: EVL618/А/40*40/ | B57: =CONCATENATE(A57,VLOOKUP($I$4,'Цвет мет. опор'!A:B,2,0),"/",VLOOKUP($J$4,'Цвет лючка'!A:B,2,0),".",VLOOKUP($K$4,'Цвет столешницы'!A:B,2,FALSE)) -> EVL618/А/40*40/ANT/H.U003 | C57: Рабочая станция эргономичная на А образном м/к 40х40 глубиной 1436/2436 | D57: 1400*2440*750 | F57: 56882
A58: EVL619/А/40*40/ | B58: =CONCATENATE(A58,VLOOKUP($I$4,'Цвет мет. опор'!A:B,2,0),"/",VLOOKUP($J$4,'Цвет лючка'!A:B,2,0),".",VLOOKUP($K$4,'Цвет столешницы'!A:B,2,FALSE)) -> EVL619/А/40*40/ANT/H.U003 | D58: 1600*2440*750 | F58: 58797
A59: EVL620/А/40*40/ | B59: =CONCATENATE(A59,VLOOKUP($I$4,'Цвет мет. опор'!A:B,2,0),"/",VLOOKUP($J$4,'Цвет лючка'!A:B,2,0),".",VLOOKUP($K$4,'Цвет столешницы'!A:B,2,FALSE)) -> EVL620/А/40*40/ANT/H.U003 | C59: Рабочая станция эргономичная на А образном м/к 40х40 глубиной 1636/2436 | D59: 1400*2440*750 | F59: 57343
A60: EVL621/А/40*40/ | B60: =CONCATENATE(A60,VLOOKUP($I$4,'Цвет мет. опор'!A:B,2,0),"/",VLOOKUP($J$4,'Цвет лючка'!A:B,2,0),".",VLOOKUP($K$4,'Цвет столешницы'!A:B,2,FALSE)) -> EVL621/А/40*40/ANT/H.U003 | D60: 1600*2440*750 | F60: 59041
A61: EVL622/А/40*40/ | B61: =CONCATENATE(A61,VLOOKUP($I$4,'Цвет мет. опор'!A:B,2,0),"/",VLOOKUP($J$4,'Цвет лючка'!A:B,2,0),".",VLOOKUP($K$4,'Цвет столешницы'!A:B,2,FALSE)) -> EVL622/А/40*40/ANT/H.U003 | C61: Рабочая станция эргономичная на А образном м/к 40х40 глубиной 600/900 | D61: 2400*900*750 | F61: 37025
A62: EVL623/А/40*40/ | B62: =CONCATENATE(A62,VLOOKUP($I$4,'Цвет мет. опор'!A:B,2,0),"/",VLOOKUP($J$4,'Цвет лючка'!A:B,2,0),".",VLOOKUP($K$4,'Цвет столешницы'!A:B,2,FALSE)) -> EVL623/А/40*40/ANT/H.U003 | D62: 2800*900*750 | F62: 38908
A63: EVL624/А/40*40/ | B63: =CONCATENATE(A63,VLOOKUP($I$4,'Цвет мет. опор'!A:B,2,0),"/",VLOOKUP($J$4,'Цвет лючка'!A:B,2,0),".",VLOOKUP($K$4,'Цвет столешницы'!A:B,2,FALSE)) -> EVL624/А/40*40/ANT/H.U003 | D63: 3200*900*750 | F63: 40327
A64: EVL625/А/40*40/ | B64: =CONCATENATE(A64,VLOOKUP($I$4,'Цвет мет. опор'!A:B,2,0),"/",VLOOKUP($J$4,'Цвет лючка'!A:B,2,0),".",VLOOKUP($K$4,'Цвет столешницы'!A:B,2,FALSE)) -> EVL625/А/40*40/ANT/H.U003 | C64: Рабочая станция эргономичная на А образном м/к 40х40 глубиной 700/900 | D64: 2400*900*750 | F64: 36116
A65: EVL626/А/40*40/ | B65: =CONCATENATE(A65,VLOOKUP($I$4,'Цвет мет. опор'!A:B,2,0),"/",VLOOKUP($J$4,'Цвет лючка'!A:B,2,0),".",VLOOKUP($K$4,'Цвет столешницы'!A:B,2,FALSE)) -> EVL626/А/40*40/ANT/H.U003 | D65: 2800*900*750 | F65: 38268
A66: EVL627/А/40*40/ | B66: =CONCATENATE(A66,VLOOKUP($I$4,'Цвет мет. опор'!A:B,2,0),"/",VLOOKUP($J$4,'Цвет лючка'!A:B,2,0),".",VLOOKUP($K$4,'Цвет столешницы'!A:B,2,FALSE)) -> EVL627/А/40*40/ANT/H.U003 | D66: 3200*900*750 | F66: 39663
A67: EVL628/А/40*40/ | B67: =CONCATENATE(A67,VLOOKUP($I$4,'Цвет мет. опор'!A:B,2,0),"/",VLOOKUP($J$4,'Цвет лючка'!A:B,2,0),".",VLOOKUP($K$4,'Цвет столешницы'!A:B,2,FALSE)) -> EVL628/А/40*40/ANT/H.U003 | C67: Рабочая станция эргономичная на А образном м/к 40х40 глубиной 800/900 | D67: 2400*900*750 | F67: 37633
A68: EVL629/А/40*40/ | B68: =CONCATENATE(A68,VLOOKUP($I$4,'Цвет мет. опор'!A:B,2,0),"/",VLOOKUP($J$4,'Цвет лючка'!A:B,2,0),".",VLOOKUP($K$4,'Цвет столешницы'!A:B,2,FALSE)) -> EVL629/А/40*40/ANT/H.U003 | D68: 2800*900*750 | F68: 39470
A69: EVL630/А/40*40/ | B69: =CONCATENATE(A69,VLOOKUP($I$4,'Цвет мет. опор'!A:B,2,0),"/",VLOOKUP($J$4,'Цвет лючка'!A:B,2,0),".",VLOOKUP($K$4,'Цвет столешницы'!A:B,2,FALSE)) -> EVL630/А/40*40/ANT/H.U003 | D69: 3200*900*750 | F69: 40862
A70: EVL631/А/40*40/ | B70: =CONCATENATE(A70,VLOOKUP($I$4,'Цвет мет. опор'!A:B,2,0),"/",VLOOKUP($J$4,'Цвет лючка'!A:B,2,0),".",VLOOKUP($K$4,'Цвет столешницы'!A:B,2,FALSE)) -> EVL631/А/40*40/ANT/H.U003 | C70: Рабочая станция эргономичная на А образном м/к 40х40 глубиной 600/1200 | D70: 2400*1236*750 | E70: промежуточная опора 1236 | F70: 39406
A71: EVL632/А/40*40/ | B71: =CONCATENATE(A71,VLOOKUP($I$4,'Цвет мет. опор'!A:B,2,0),"/",VLOOKUP($J$4,'Цвет лючка'!A:B,2,0),".",VLOOKUP($K$4,'Цвет столешницы'!A:B,2,FALSE)) -> EVL632/А/40*40/ANT/H.U003 | D71: 2800*1236*750 | F71: 41389
A72: EVL633/А/40*40/ | B72: =CONCATENATE(A72,VLOOKUP($I$4,'Цвет мет. опор'!A:B,2,0),"/",VLOOKUP($J$4,'Цвет лючка'!A:B,2,0),".",VLOOKUP($K$4,'Цвет столешницы'!A:B,2,FALSE)) -> EVL633/А/40*40/ANT/H.U003 | D72: 3200*1236*750 | F72: 43186
A73: EVL634/А/40*40/ | B73: =CONCATENATE(A73,VLOOKUP($I$4,'Цвет мет. опор'!A:B,2,0),"/",VLOOKUP($J$4,'Цвет лючка'!A:B,2,0),".",VLOOKUP($K$4,'Цвет столешницы'!A:B,2,FALSE)) -> EVL634/А/40*40/ANT/H.U003 | C73: Рабочая станция эргономичная на А образном м/к 40х40 глубиной 700/1200 | D73: 2400*1200*750 | E73: промежуточная опора 700 | F73: 40101
A74: EVL635/А/40*40/ | B74: =CONCATENATE(A74,VLOOKUP($I$4,'Цвет мет. опор'!A:B,2,0),"/",VLOOKUP($J$4,'Цвет лючка'!A:B,2,0),".",VLOOKUP($K$4,'Цвет столешницы'!A:B,2,FALSE)) -> EVL635/А/40*40/ANT/H.U003 | D74: 2800*1200*750 | F74: 42391
A75: EVL636/А/40*40/ | B75: =CONCATENATE(A75,VLOOKUP($I$4,'Цвет мет. опор'!A:B,2,0),"/",VLOOKUP($J$4,'Цвет лючка'!A:B,2,0),".",VLOOKUP($K$4,'Цвет столешницы'!A:B,2,FALSE)) -> EVL636/А/40*40/ANT/H.U003 | D75: 3200*1200*750 | F75: 44173
A76: EVL637/А/40*40/ | B76: =CONCATENATE(A76,VLOOKUP($I$4,'Цвет мет. опор'!A:B,2,0),"/",VLOOKUP($J$4,'Цвет лючка'!A:B,2,0),".",VLOOKUP($K$4,'Цвет столешницы'!A:B,2,FALSE)) -> EVL637/А/40*40/ANT/H.U003 | C76: Рабочая станция эргономичная на А образном м/к 40х40 глубиной 800/1200 | D76: 2400*1200*750 | E76: промежуточная опора 800 | F76: 40255
A77: EVL638/А/40*40/ | B77: =CONCATENATE(A77,VLOOKUP($I$4,'Цвет мет. опор'!A:B,2,0),"/",VLOOKUP($J$4,'Цвет лючка'!A:B,2,0),".",VLOOKUP($K$4,'Цвет столешницы'!A:B,2,FALSE)) -> EVL638/А/40*40/ANT/H.U003 | D77: 2800*1200*750 | F77: 42677
A78: EVL639/А/40*40/ | B78: =CONCATENATE(A78,VLOOKUP($I$4,'Цвет мет. опор'!A:B,2,0),"/",VLOOKUP($J$4,'Цвет лючка'!A:B,2,0),".",VLOOKUP($K$4,'Цвет столешницы'!A:B,2,FALSE)) -> EVL639/А/40*40/ANT/H.U003 | D78: 3200*1200*750 | F78: 44309
A79: EVL180/А/40*40/ | B79: =CONCATENATE(A79,VLOOKUP($I$4,'Цвет мет. опор'!A:B,2,0),"/",VLOOKUP($J$4,'Цвет лючка'!A:B,2,0),".",VLOOKUP($K$4,'Цвет столешницы'!A:B,2,FALSE)) -> EVL180/А/40*40/ANT/H.U003 | C79: Приставка к столу рабочая 1000х500 | D79: 1000x500x750 | F79: 11712
A80: EVL135/А/40*40/ | B80: =CONCATENATE(A80,VLOOKUP($I$4,'Цвет мет. опор'!A:B,2,0),"/",VLOOKUP($J$4,'Цвет лючка'!A:B,2,0),".",VLOOKUP($K$4,'Цвет столешницы'!A:B,2,FALSE)) -> EVL135/А/40*40/ANT/H.U003 | C80: Приставной элемент на А образном м/к 40х40 глуб. 700 (используется в качестве брифинга) | D80: 1000*600*750 | F80: 13733
A81: EVL137/А/40*40/ | B81: =CONCATENATE(A81,VLOOKUP($I$4,'Цвет мет. опор'!A:B,2,0),"/",VLOOKUP($J$4,'Цвет лючка'!A:B,2,0),".",VLOOKUP($K$4,'Цвет столешницы'!A:B,2,FALSE)) -> EVL137/А/40*40/ANT/H.U003 | D81: 1200*700*750 | F81: 15184
A82: EVL701/А/40*40/ | B82: =CONCATENATE(A82,VLOOKUP($I$4,'Цвет мет. опор'!A:B,2,0),"/",VLOOKUP($J$4,'Цвет лючка'!A:B,2,0),".",VLOOKUP($K$4,'Цвет столешницы'!A:B,2,FALSE)) -> EVL701/А/40*40/ANT/H.U003 | C82: Рабочая станция на А образном м/к 40х40 с тумбой (композиция стол+тумба) | D82: 1450*700*750 | E82: Тумба 450х700х750 | F82: 33567
A83: EVL702/А/40*40/ | B83: =CONCATENATE(A83,VLOOKUP($I$4,'Цвет мет. опор'!A:B,2,0),"/",VLOOKUP($J$4,'Цвет лючка'!A:B,2,0),".",VLOOKUP($K$4,'Цвет столешницы'!A:B,2,FALSE)) -> EVL702/А/40*40/ANT/H.U003 | D83: 1650*700*750 | F83: 34431
A84: EVL703/А/40*40/ | B84: =CONCATENATE(A84,VLOOKUP($I$4,'Цвет мет. опор'!A:B,2,0),"/",VLOOKUP($J$4,'Цвет лючка'!A:B,2,0),".",VLOOKUP($K$4,'Цвет столешницы'!A:B,2,FALSE)) -> EVL703/А/40*40/ANT/H.U003 | D84: 1850*700*750 | F84: 35190
A85: EVL704/А/40*40/ | B85: =CONCATENATE(A85,VLOOKUP($I$4,'Цвет мет. опор'!A:B,2,0),"/",VLOOKUP($J$4,'Цвет лючка'!A:B,2,0),".",VLOOKUP($K$4,'Цвет столешницы'!A:B,2,FALSE)) -> EVL704/А/40*40/ANT/H.U003 | D85: 2050*700*750 | F85: 35831
A86: EVL705/А/40*40/ | B86: =CONCATENATE(A86,VLOOKUP($I$4,'Цвет мет. опор'!A:B,2,0),"/",VLOOKUP($J$4,'Цвет лючка'!A:B,2,0),".",VLOOKUP($K$4,'Цвет столешницы'!A:B,2,FALSE)) -> EVL705/А/40*40/ANT/H.U003 | D86: 2250*700*750 | F86: 36600
A87: EVL706/А/40*40/ | B87: =CONCATENATE(A87,VLOOKUP($I$4,'Цвет мет. опор'!A:B,2,0),"/",VLOOKUP($J$4,'Цвет лючка'!A:B,2,0),".",VLOOKUP($K$4,'Цвет столешницы'!A:B,2,FALSE)) -> EVL706/А/40*40/ANT/H.U003 | C87: Рабочая станция на А образном м/к 40х40 с тумбой (композиция двойной бенч+тумба) | D87: 1450*1436*750 | E87: Тумба 450х1436х750 | F87: 57845
A88: EVL707/А/40*40/ | B88: =CONCATENATE(A88,VLOOKUP($I$4,'Цвет мет. опор'!A:B,2,0),"/",VLOOKUP($J$4,'Цвет лючка'!A:B,2,0),".",VLOOKUP($K$4,'Цвет столешницы'!A:B,2,FALSE)) -> EVL707/А/40*40/ANT/H.U003 | D88: 1650*1436*750 | F88: 59574
A89: EVL708/А/40*40/ | B89: =CONCATENATE(A89,VLOOKUP($I$4,'Цвет мет. опор'!A:B,2,0),"/",VLOOKUP($J$4,'Цвет лючка'!A:B,2,0),".",VLOOKUP($K$4,'Цвет столешницы'!A:B,2,FALSE)) -> EVL708/А/40*40/ANT/H.U003 | D89: 1850*1436*750 | F89: 61092
A90: EVL709/А/40*40/ | B90: =CONCATENATE(A90,VLOOKUP($I$4,'Цвет мет. опор'!A:B,2,0),"/",VLOOKUP($J$4,'Цвет лючка'!A:B,2,0),".",VLOOKUP($K$4,'Цвет столешницы'!A:B,2,FALSE)) -> EVL709/А/40*40/ANT/H.U003 | D90: 2050*1436*750 | F90: 62373
A91: EVL710/А/40*40/ | B91: =CONCATENATE(A91,VLOOKUP($I$4,'Цвет мет. опор'!A:B,2,0),"/",VLOOKUP($J$4,'Цвет лючка'!A:B,2,0),".",VLOOKUP($K$4,'Цвет столешницы'!A:B,2,FALSE)) -> EVL710/А/40*40/ANT/H.U003 | D91: 2250*1436*750 | F91: 63911
A92: EVL711/А/40*40/ | B92: =CONCATENATE(A92,VLOOKUP($I$4,'Цвет мет. опор'!A:B,2,0),"/",VLOOKUP($J$4,'Цвет лючка'!A:B,2,0),".",VLOOKUP($K$4,'Цвет столешницы'!A:B,2,FALSE)) -> EVL711/А/40*40/ANT/H.U003 | C92: Рабочая станция на А образном м/к 40х40 со шкафом-купе (композиция двойной бенч+шкаф-купе) | D92: 1410*1436*750 | E92: Шкаф-купе приставной 1440х410х750 | F92: 51749
A93: EVL712/А/40*40/ | B93: =CONCATENATE(A93,VLOOKUP($I$4,'Цвет мет. опор'!A:B,2,0),"/",VLOOKUP($J$4,'Цвет лючка'!A:B,2,0),".",VLOOKUP($K$4,'Цвет столешницы'!A:B,2,FALSE)) -> EVL712/А/40*40/ANT/H.U003 | D93: 1610*1436*750 | F93: 53478
A94: EVL713/А/40*40/ | B94: =CONCATENATE(A94,VLOOKUP($I$4,'Цвет мет. опор'!A:B,2,0),"/",VLOOKUP($J$4,'Цвет лючка'!A:B,2,0),".",VLOOKUP($K$4,'Цвет столешницы'!A:B,2,FALSE)) -> EVL713/А/40*40/ANT/H.U003 | D94: 1810*1436*750 | F94: 54996
A95: EVL714/А/40*40/ | B95: =CONCATENATE(A95,VLOOKUP($I$4,'Цвет мет. опор'!A:B,2,0),"/",VLOOKUP($J$4,'Цвет лючка'!A:B,2,0),".",VLOOKUP($K$4,'Цвет столешницы'!A:B,2,FALSE)) -> EVL714/А/40*40/ANT/H.U003 | D95: 2010*1436*750 | F95: 56277
A96: EVL715/А/40*40/ | B96: =CONCATENATE(A96,VLOOKUP($I$4,'Цвет мет. опор'!A:B,2,0),"/",VLOOKUP($J$4,'Цвет лючка'!A:B,2,0),".",VLOOKUP($K$4,'Цвет столешницы'!A:B,2,FALSE)) -> EVL715/А/40*40/ANT/H.U003 | D96: 2210*1436*750 | F96: 57815
A97: EVL716/А/40*40/ | B97: =CONCATENATE(A97,VLOOKUP($I$4,'Цвет мет. опор'!A:B,2,0),"/",VLOOKUP($J$4,'Цвет лючка'!A:B,2,0),".",VLOOKUP($K$4,'Цвет столешницы'!A:B,2,FALSE)) -> EVL716/А/40*40/ANT/H.U003 | C97: Рабочая станция на А образном м/к 40х40 со шкафом-купе (композиция двойной бенч+шкаф-купе) | D97: 1410*1436*1098 | E97: Шкаф-купе приставной 1440х410х1098 | F97: 56611
A98: EVL717/А/40*40/ | B98: =CONCATENATE(A98,VLOOKUP($I$4,'Цвет мет. опор'!A:B,2,0),"/",VLOOKUP($J$4,'Цвет лючка'!A:B,2,0),".",VLOOKUP($K$4,'Цвет столешницы'!A:B,2,FALSE)) -> EVL717/А/40*40/ANT/H.U003 | D98: 1610*1436*1098 | F98: 58340
A99: EVL718/А/40*40/ | B99: =CONCATENATE(A99,VLOOKUP($I$4,'Цвет мет. опор'!A:B,2,0),"/",VLOOKUP($J$4,'Цвет лючка'!A:B,2,0),".",VLOOKUP($K$4,'Цвет столешницы'!A:B,2,FALSE)) -> EVL718/А/40*40/ANT/H.U003 | D99: 1810*1436*1098 | F99: 59858
A100: EVL719/А/40*40/ | B100: =CONCATENATE(A100,VLOOKUP($I$4,'Цвет мет. опор'!A:B,2,0),"/",VLOOKUP($J$4,'Цвет лючка'!A:B,2,0),".",VLOOKUP($K$4,'Цвет столешницы'!A:B,2,FALSE)) -> EVL719/А/40*40/ANT/H.U003 | D100: 2010*1436*1098 | F100: 61139
A101: EVL720/А/40*40/ | B101: =CONCATENATE(A101,VLOOKUP($I$4,'Цвет мет. опор'!A:B,2,0),"/",VLOOKUP($J$4,'Цвет лючка'!A:B,2,0),".",VLOOKUP($K$4,'Цвет столешницы'!A:B,2,FALSE)) -> EVL720/А/40*40/ANT/H.U003 | D101: 2210*1436*1098 | F101: 62677
A102: EVL721/А/40*40/ | B102: =CONCATENATE(A102,VLOOKUP($I$4,'Цвет мет. опор'!A:B,2,0),"/",VLOOKUP($J$4,'Цвет лючка'!A:B,2,0),".",VLOOKUP($K$4,'Цвет столешницы'!A:B,2,FALSE)) -> EVL721/А/40*40/ANT/H.U003 | C102: Стол письменный на А образном м/к 40х40 со шкафом-купе (композиция двойной бенч+шкаф-купе) | D102: 1410*1240*1098 | E102: Шкаф-купе приставной 1240х410х1098 | F102: 41298
A103: EVL722/А/40*40/ | B103: =CONCATENATE(A103,VLOOKUP($I$4,'Цвет мет. опор'!A:B,2,0),"/",VLOOKUP($J$4,'Цвет лючка'!A:B,2,0),".",VLOOKUP($K$4,'Цвет столешницы'!A:B,2,FALSE)) -> EVL722/А/40*40/ANT/H.U003 | D103: 1610*1240*1098 | F103: 42162
A104: EVL723/А/40*40/ | B104: =CONCATENATE(A104,VLOOKUP($I$4,'Цвет мет. опор'!A:B,2,0),"/",VLOOKUP($J$4,'Цвет лючка'!A:B,2,0),".",VLOOKUP($K$4,'Цвет столешницы'!A:B,2,FALSE)) -> EVL723/А/40*40/ANT/H.U003 | D104: 1810*1240*1098 | F104: 42921
A105: EVL724/А/40*40/ | B105: =CONCATENATE(A105,VLOOKUP($I$4,'Цвет мет. опор'!A:B,2,0),"/",VLOOKUP($J$4,'Цвет лючка'!A:B,2,0),".",VLOOKUP($K$4,'Цвет столешницы'!A:B,2,FALSE)) -> EVL724/А/40*40/ANT/H.U003 | D105: 2010*1240*1098 | F105: 43562
A106: EVL725/А/40*40/ | B106: =CONCATENATE(A106,VLOOKUP($I$4,'Цвет мет. опор'!A:B,2,0),"/",VLOOKUP($J$4,'Цвет лючка'!A:B,2,0),".",VLOOKUP($K$4,'Цвет столешницы'!A:B,2,FALSE)) -> EVL725/А/40*40/ANT/H.U003 | D106: 2210*1240*1098 | F106: 44330
A107: EVL726/А/40*40/ | B107: =CONCATENATE(A107,VLOOKUP($I$4,'Цвет мет. опор'!A:B,2,0),"/",VLOOKUP($J$4,'Цвет лючка'!A:B,2,0),".",VLOOKUP($K$4,'Цвет столешницы'!A:B,2,FALSE)) -> EVL726/А/40*40/ANT/H.U003 | C107: Рабочая станция на А образном м/к 40х40 со шкафом-купе (композиция двойной бенч+шкаф-купе) | D107: 1410*2332*1098 | E107: Шкаф-купе приставной 2332х410х1098 | F107: 80258
A108: EVL727/А/40*40/ | B108: =CONCATENATE(A108,VLOOKUP($I$4,'Цвет мет. опор'!A:B,2,0),"/",VLOOKUP($J$4,'Цвет лючка'!A:B,2,0),".",VLOOKUP($K$4,'Цвет столешницы'!A:B,2,FALSE)) -> EVL727/А/40*40/ANT/H.U003 | D108: 1610*2332*1098 | F108: 81987
A109: EVL728/А/40*40/ | B109: =CONCATENATE(A109,VLOOKUP($I$4,'Цвет мет. опор'!A:B,2,0),"/",VLOOKUP($J$4,'Цвет лючка'!A:B,2,0),".",VLOOKUP($K$4,'Цвет столешницы'!A:B,2,FALSE)) -> EVL728/А/40*40/ANT/H.U003 | D109: 1810*2332*1098 | F109: 83505
A110: EVL729/А/40*40/ | B110: =CONCATENATE(A110,VLOOKUP($I$4,'Цвет мет. опор'!A:B,2,0),"/",VLOOKUP($J$4,'Цвет лючка'!A:B,2,0),".",VLOOKUP($K$4,'Цвет столешницы'!A:B,2,FALSE)) -> EVL729/А/40*40/ANT/H.U003 | D110: 2010*2332*1098 | F110: 84786
A111: EVL730/А/40*40/ | B111: =CONCATENATE(A111,VLOOKUP($I$4,'Цвет мет. опор'!A:B,2,0),"/",VLOOKUP($J$4,'Цвет лючка'!A:B,2,0),".",VLOOKUP($K$4,'Цвет столешницы'!A:B,2,FALSE)) -> EVL730/А/40*40/ANT/H.U003 | D111: 2210*2332*1098 | F111: 86323
A112: Бэнч-системы
A113: EVL645/А/40*40/ | B113: =CONCATENATE(A113,VLOOKUP($I$4,'Цвет мет. опор'!A:B,2,0),"/",VLOOKUP($J$4,'Цвет лючка'!A:B,2,0),".",VLOOKUP($K$4,'Цвет столешницы'!A:B,2,FALSE)) -> EVL645/А/40*40/ANT/H.U003 | C113: Рабочая станция на 2 раб.места на А образном м/к 40х40 (бенч-система) глубиной 600 | D113: 2400*600*750 | F113: 34523
A114: EVL646/А/40*40/ | B114: =CONCATENATE(A114,VLOOKUP($I$4,'Цвет мет. опор'!A:B,2,0),"/",VLOOKUP($J$4,'Цвет лючка'!A:B,2,0),".",VLOOKUP($K$4,'Цвет столешницы'!A:B,2,FALSE)) -> EVL646/А/40*40/ANT/H.U003 | D114: 2800*600*750 | F114: 35472
A115: EVL647/А/40*40/ | B115: =CONCATENATE(A115,VLOOKUP($I$4,'Цвет мет. опор'!A:B,2,0),"/",VLOOKUP($J$4,'Цвет лючка'!A:B,2,0),".",VLOOKUP($K$4,'Цвет столешницы'!A:B,2,FALSE)) -> EVL647/А/40*40/ANT/H.U003 | D115: 3200*600*750 | F115: 37228
A116: EVL648/А/40*40/ | B116: =CONCATENATE(A116,VLOOKUP($I$4,'Цвет мет. опор'!A:B,2,0),"/",VLOOKUP($J$4,'Цвет лючка'!A:B,2,0),".",VLOOKUP($K$4,'Цвет столешницы'!A:B,2,FALSE)) -> EVL648/А/40*40/ANT/H.U003 | C116: Рабочая станция на 2 раб.места на А образном м/к 40х40 (бенч-система) глубиной 700 | D116: 2400*700*750 | F116: 35870
A117: EVL649/А/40*40/ | B117: =CONCATENATE(A117,VLOOKUP($I$4,'Цвет мет. опор'!A:B,2,0),"/",VLOOKUP($J$4,'Цвет лючка'!A:B,2,0),".",VLOOKUP($K$4,'Цвет столешницы'!A:B,2,FALSE)) -> EVL649/А/40*40/ANT/H.U003 | D117: 2800*700*750 | F117: 37569
A118: EVL650/А/40*40/ | B118: =CONCATENATE(A118,VLOOKUP($I$4,'Цвет мет. опор'!A:B,2,0),"/",VLOOKUP($J$4,'Цвет лючка'!A:B,2,0),".",VLOOKUP($K$4,'Цвет столешницы'!A:B,2,FALSE)) -> EVL650/А/40*40/ANT/H.U003 | D118: 3200*700*750 | F118: 38671
A119: EVL651/А/40*40/ | B119: =CONCATENATE(A119,VLOOKUP($I$4,'Цвет мет. опор'!A:B,2,0),"/",VLOOKUP($J$4,'Цвет лючка'!A:B,2,0),".",VLOOKUP($K$4,'Цвет столешницы'!A:B,2,FALSE)) -> EVL651/А/40*40/ANT/H.U003 | C119: Рабочая станция на 2 раб.места на А образном м/к 40х40 (бенч-система) глубиной 800 | D119: 2400*800*750 | F119: 36680
A120: EVL652/А/40*40/ | B120: =CONCATENATE(A120,VLOOKUP($I$4,'Цвет мет. опор'!A:B,2,0),"/",VLOOKUP($J$4,'Цвет лючка'!A:B,2,0),".",VLOOKUP($K$4,'Цвет столешницы'!A:B,2,FALSE)) -> EVL652/А/40*40/ANT/H.U003 | D120: 2800*800*750 | F120: 38442
A121: EVL653/А/40*40/ | B121: =CONCATENATE(A121,VLOOKUP($I$4,'Цвет мет. опор'!A:B,2,0),"/",VLOOKUP($J$4,'Цвет лючка'!A:B,2,0),".",VLOOKUP($K$4,'Цвет столешницы'!A:B,2,FALSE)) -> EVL653/А/40*40/ANT/H.U003 | D121: 3200*800*750 | F121: 39950
A122: EVL654/А/40*40/ | B122: =CONCATENATE(A122,VLOOKUP($I$4,'Цвет мет. опор'!A:B,2,0),"/",VLOOKUP($J$4,'Цвет лючка'!A:B,2,0),".",VLOOKUP($K$4,'Цвет столешницы'!A:B,2,FALSE)) -> EVL654/А/40*40/ANT/H.U003 | C122: Рабочая станция на 3 раб.места на А образном м/к 40х40 (бенч-система), глубиной 600 мм | D122: 3600*600*750 | F122: 50607
A123: EVL655/А/40*40/ | B123: =CONCATENATE(A123,VLOOKUP($I$4,'Цвет мет. опор'!A:B,2,0),"/",VLOOKUP($J$4,'Цвет лючка'!A:B,2,0),".",VLOOKUP($K$4,'Цвет столешницы'!A:B,2,FALSE)) -> EVL655/А/40*40/ANT/H.U003 | D123: 4200*600*750 | F123: 52032
A124: EVL656/А/40*40/ | B124: =CONCATENATE(A124,VLOOKUP($I$4,'Цвет мет. опор'!A:B,2,0),"/",VLOOKUP($J$4,'Цвет лючка'!A:B,2,0),".",VLOOKUP($K$4,'Цвет столешницы'!A:B,2,FALSE)) -> EVL656/А/40*40/ANT/H.U003 | D124: 4800*600*750 | F124: 54665
A125: EVL657/А/40*40/ | B125: =CONCATENATE(A125,VLOOKUP($I$4,'Цвет мет. опор'!A:B,2,0),"/",VLOOKUP($J$4,'Цвет лючка'!A:B,2,0),".",VLOOKUP($K$4,'Цвет столешницы'!A:B,2,FALSE)) -> EVL657/А/40*40/ANT/H.U003 | C125: Рабочая станция на 3 раб.места на А образном м/к 40х40 (бенч-система), глубиной 700 мм | D125: 3600*700*750 | F125: 52915
A126: EVL658/А/40*40/ | B126: =CONCATENATE(A126,VLOOKUP($I$4,'Цвет мет. опор'!A:B,2,0),"/",VLOOKUP($J$4,'Цвет лючка'!A:B,2,0),".",VLOOKUP($K$4,'Цвет столешницы'!A:B,2,FALSE)) -> EVL658/А/40*40/ANT/H.U003 | D126: 4200*700*750 | F126: 55192
A127: EVL659/А/40*40/ | B127: =CONCATENATE(A127,VLOOKUP($I$4,'Цвет мет. опор'!A:B,2,0),"/",VLOOKUP($J$4,'Цвет лючка'!A:B,2,0),".",VLOOKUP($K$4,'Цвет столешницы'!A:B,2,FALSE)) -> EVL659/А/40*40/ANT/H.U003 | D127: 4800*700*750 | F127: 57113
A128: EVL660/А/40*40/ | B128: =CONCATENATE(A128,VLOOKUP($I$4,'Цвет мет. опор'!A:B,2,0),"/",VLOOKUP($J$4,'Цвет лючка'!A:B,2,0),".",VLOOKUP($K$4,'Цвет столешницы'!A:B,2,FALSE)) -> EVL660/А/40*40/ANT/H.U003 | C128: Рабочая станция на 3 раб.места на А образном м/к 40х40 (бенч-система), глубиной 800 мм | D128: 3600*800*750 | F128: 53420
A129: EVL661/А/40*40/ | B129: =CONCATENATE(A129,VLOOKUP($I$4,'Цвет мет. опор'!A:B,2,0),"/",VLOOKUP($J$4,'Цвет лючка'!A:B,2,0),".",VLOOKUP($K$4,'Цвет столешницы'!A:B,2,FALSE)) -> EVL661/А/40*40/ANT/H.U003 | D129: 4200*800*750 | F129: 56335
A130: EVL662/А/40*40/ | B130: =CONCATENATE(A130,VLOOKUP($I$4,'Цвет мет. опор'!A:B,2,0),"/",VLOOKUP($J$4,'Цвет лючка'!A:B,2,0),".",VLOOKUP($K$4,'Цвет столешницы'!A:B,2,FALSE)) -> EVL662/А/40*40/ANT/H.U003 | D130: 4800*800*750 | F130: 58330
A131: EVL663/А/40*40/ | B131: =CONCATENATE(A131,VLOOKUP($I$4,'Цвет мет. опор'!A:B,2,0),"/",VLOOKUP($J$4,'Цвет лючка'!A:B,2,0),".",VLOOKUP($K$4,'Цвет столешницы'!A:B,2,FALSE)) -> EVL663/А/40*40/ANT/H.U003 | C131: Рабочая станция на 4 раб.места на А образном м/к 40х40 с шириной 1-го рабочего места 600 мм | D131: 2400*1236*750 | F131: 60224
A132: EVL664/А/40*40/ | B132: =CONCATENATE(A132,VLOOKUP($I$4,'Цвет мет. опор'!A:B,2,0),"/",VLOOKUP($J$4,'Цвет лючка'!A:B,2,0),".",VLOOKUP($K$4,'Цвет столешницы'!A:B,2,FALSE)) -> EVL664/А/40*40/ANT/H.U003 | D132: 2800*1236*750 | F132: 62123
A133: EVL665/А/40*40/ | B133: =CONCATENATE(A133,VLOOKUP($I$4,'Цвет мет. опор'!A:B,2,0),"/",VLOOKUP($J$4,'Цвет лючка'!A:B,2,0),".",VLOOKUP($K$4,'Цвет столешницы'!A:B,2,FALSE)) -> EVL665/А/40*40/ANT/H.U003 | D133: 3200*1236*750 | F133: 65633
A134: EVL666/А/40*40/ | B134: =CONCATENATE(A134,VLOOKUP($I$4,'Цвет мет. опор'!A:B,2,0),"/",VLOOKUP($J$4,'Цвет лючка'!A:B,2,0),".",VLOOKUP($K$4,'Цвет столешницы'!A:B,2,FALSE)) -> EVL666/А/40*40/ANT/H.U003 | C134: Рабочая станция на 4 раб.места на А образном м/к 40х40 с шириной 1-го рабочего места 700 мм | D134: 2400*1436*750 | F134: 62497
A135: EVL667/А/40*40/ | B135: =CONCATENATE(A135,VLOOKUP($I$4,'Цвет мет. опор'!A:B,2,0),"/",VLOOKUP($J$4,'Цвет лючка'!A:B,2,0),".",VLOOKUP($K$4,'Цвет столешницы'!A:B,2,FALSE)) -> EVL667/А/40*40/ANT/H.U003 | D135: 2800*1436*750 | F135: 65893
A136: EVL668/А/40*40/ | B136: =CONCATENATE(A136,VLOOKUP($I$4,'Цвет мет. опор'!A:B,2,0),"/",VLOOKUP($J$4,'Цвет лючка'!A:B,2,0),".",VLOOKUP($K$4,'Цвет столешницы'!A:B,2,FALSE)) -> EVL668/А/40*40/ANT/H.U003 | D136: 3200*1436*750 | F136: 68098
A137: EVL669/А/40*40/ | B137: =CONCATENATE(A137,VLOOKUP($I$4,'Цвет мет. опор'!A:B,2,0),"/",VLOOKUP($J$4,'Цвет лючка'!A:B,2,0),".",VLOOKUP($K$4,'Цвет столешницы'!A:B,2,FALSE)) -> EVL669/А/40*40/ANT/H.U003 | C137: Рабочая станция на 4 раб.места на А образном м/к 40х40 с шириной 1-го рабочего места 800 мм | D137: 2400*1636*750 | F137: 64769
A138: EVL670/А/40*40/ | B138: =CONCATENATE(A138,VLOOKUP($I$4,'Цвет мет. опор'!A:B,2,0),"/",VLOOKUP($J$4,'Цвет лючка'!A:B,2,0),".",VLOOKUP($K$4,'Цвет столешницы'!A:B,2,FALSE)) -> EVL670/А/40*40/ANT/H.U003 | D138: 2800*1636*750 | F138: 68294
A139: EVL671/А/40*40/ | B139: =CONCATENATE(A139,VLOOKUP($I$4,'Цвет мет. опор'!A:B,2,0),"/",VLOOKUP($J$4,'Цвет лючка'!A:B,2,0),".",VLOOKUP($K$4,'Цвет столешницы'!A:B,2,FALSE)) -> EVL671/А/40*40/ANT/H.U003 | D139: 3200*1636*750 | F139: 71311
A140: EVL672/А/40*40/ | B140: =CONCATENATE(A140,VLOOKUP($I$4,'Цвет мет. опор'!A:B,2,0),"/",VLOOKUP($J$4,'Цвет лючка'!A:B,2,0),".",VLOOKUP($K$4,'Цвет столешницы'!A:B,2,FALSE)) -> EVL672/А/40*40/ANT/H.U003 | C140: Рабочая станция на 6 раб.места на А образном м/к 40х40 с шириной 1-го рабочего места 600 мм | D140: 3600*1236*750 | F140: 88895
A141: EVL673/А/40*40/ | B141: =CONCATENATE(A141,VLOOKUP($I$4,'Цвет мет. опор'!A:B,2,0),"/",VLOOKUP($J$4,'Цвет лючка'!A:B,2,0),".",VLOOKUP($K$4,'Цвет столешницы'!A:B,2,FALSE)) -> EVL673/А/40*40/ANT/H.U003 | D141: 4200*1236*750 | F141: 91743
A142: EVL674/А/40*40/ | B142: =CONCATENATE(A142,VLOOKUP($I$4,'Цвет мет. опор'!A:B,2,0),"/",VLOOKUP($J$4,'Цвет лючка'!A:B,2,0),".",VLOOKUP($K$4,'Цвет столешницы'!A:B,2,FALSE)) -> EVL674/А/40*40/ANT/H.U003 | D142: 4800*1236*750 | F142: 97009
A143: EVL675/А/40*40/ | B143: =CONCATENATE(A143,VLOOKUP($I$4,'Цвет мет. опор'!A:B,2,0),"/",VLOOKUP($J$4,'Цвет лючка'!A:B,2,0),".",VLOOKUP($K$4,'Цвет столешницы'!A:B,2,FALSE)) -> EVL675/А/40*40/ANT/H.U003 | C143: Рабочая станция на 6 раб.места на А образном м/к 40х40 с шириной 1-го рабочего места 700 мм | D143: 3600*1436*750 | F143: 92347
A144: EVL676/А/40*40/ | B144: =CONCATENATE(A144,VLOOKUP($I$4,'Цвет мет. опор'!A:B,2,0),"/",VLOOKUP($J$4,'Цвет лючка'!A:B,2,0),".",VLOOKUP($K$4,'Цвет столешницы'!A:B,2,FALSE)) -> EVL676/А/40*40/ANT/H.U003 | D144: 4200*1436*750 | F144: 97442
A145: EVL677/А/40*40/ | B145: =CONCATENATE(A145,VLOOKUP($I$4,'Цвет мет. опор'!A:B,2,0),"/",VLOOKUP($J$4,'Цвет лючка'!A:B,2,0),".",VLOOKUP($K$4,'Цвет столешницы'!A:B,2,FALSE)) -> EVL677/А/40*40/ANT/H.U003 | D145: 4800*1436*750 | F145: 100750
A146: EVL678/А/40*40/ | B146: =CONCATENATE(A146,VLOOKUP($I$4,'Цвет мет. опор'!A:B,2,0),"/",VLOOKUP($J$4,'Цвет лючка'!A:B,2,0),".",VLOOKUP($K$4,'Цвет столешницы'!A:B,2,FALSE)) -> EVL678/А/40*40/ANT/H.U003 | C146: Рабочая станция на 6 раб.места на А образном м/к 40х40 с шириной 1-го рабочего места 800 мм | D146: 3600*1636*750 | F146: 95315
A147: EVL679/А/40*40/ | B147: =CONCATENATE(A147,VLOOKUP($I$4,'Цвет мет. опор'!A:B,2,0),"/",VLOOKUP($J$4,'Цвет лючка'!A:B,2,0),".",VLOOKUP($K$4,'Цвет столешницы'!A:B,2,FALSE)) -> EVL679/А/40*40/ANT/H.U003 | D147: 4200*1636*750 | F147: 100602
A148: EVL680/А/40*40/ | B148: =CONCATENATE(A148,VLOOKUP($I$4,'Цвет мет. опор'!A:B,2,0),"/",VLOOKUP($J$4,'Цвет лючка'!A:B,2,0),".",VLOOKUP($K$4,'Цвет столешницы'!A:B,2,FALSE)) -> EVL680/А/40*40/ANT/H.U003 | D148: 4800*1636*750 | F148: 105127
B149: Переговорные столы
A150: EVL800/А/40*40/ | B150: =CONCATENATE(A150,VLOOKUP($I$4,'Цвет мет. опор'!A:B,2,0),".",VLOOKUP($K$4,'Цвет столешницы'!A:B,2,FALSE)) -> EVL800/А/40*40/ANT.U003 | C150: Переговорный стол (1 столешница) на А образном м/к 40х40 | D150: 1000*1236*750 | F150: 30348
A151: EVL801/А/40*40/ | B151: =CONCATENATE(A151,VLOOKUP($I$4,'Цвет мет. опор'!A:B,2,0),".",VLOOKUP($K$4,'Цвет столешницы'!A:B,2,FALSE)) -> EVL801/А/40*40/ANT.U003 | D151: 1200*1236*750 | F151: 31589
A152: EVL802/А/40*40/ | B152: =CONCATENATE(A152,VLOOKUP($I$4,'Цвет мет. опор'!A:B,2,0),".",VLOOKUP($K$4,'Цвет столешницы'!A:B,2,FALSE)) -> EVL802/А/40*40/ANT.U003 | D152: 1400*1236*750 | F152: 33062
A153: EVL803/А/40*40/ | B153: =CONCATENATE(A153,VLOOKUP($I$4,'Цвет мет. опор'!A:B,2,0),".",VLOOKUP($K$4,'Цвет столешницы'!A:B,2,FALSE)) -> EVL803/А/40*40/ANT.U003 | D153: 1600*1236*750 | F153: 34958
A154: EVL804/А/40*40/ | B154: =CONCATENATE(A154,VLOOKUP($I$4,'Цвет мет. опор'!A:B,2,0),".",VLOOKUP($K$4,'Цвет столешницы'!A:B,2,FALSE)) -> EVL804/А/40*40/ANT.U003 | D154: 1800*1236*750 | F154: 36896
A155: EVL805/А/40*40/ | B155: =CONCATENATE(A155,VLOOKUP($I$4,'Цвет мет. опор'!A:B,2,0),".",VLOOKUP($K$4,'Цвет столешницы'!A:B,2,FALSE)) -> EVL805/А/40*40/ANT.U003 | C155: Переговорный стол (2 столешницы) на А образном м/к 40х40 | D155: 2000*1236*750 | F155: 51362
A156: EVL806/А/40*40/ | B156: =CONCATENATE(A156,VLOOKUP($I$4,'Цвет мет. опор'!A:B,2,0),".",VLOOKUP($K$4,'Цвет столешницы'!A:B,2,FALSE)) -> EVL806/А/40*40/ANT.U003 | D156: 2400*1236*750 | F156: 53455
A157: EVL807/А/40*40/ | B157: =CONCATENATE(A157,VLOOKUP($I$4,'Цвет мет. опор'!A:B,2,0),".",VLOOKUP($K$4,'Цвет столешницы'!A:B,2,FALSE)) -> EVL807/А/40*40/ANT.U003 | D157: 2800*1236*750 | F157: 55948
A158: EVL808/А/40*40/ | B158: =CONCATENATE(A158,VLOOKUP($I$4,'Цвет мет. опор'!A:B,2,0),".",VLOOKUP($K$4,'Цвет столешницы'!A:B,2,FALSE)) -> EVL808/А/40*40/ANT.U003 | D158: 3200*1236*750 | F158: 66111
A159: EVL809/А/40*40/ | B159: =CONCATENATE(A159,VLOOKUP($I$4,'Цвет мет. опор'!A:B,2,0),".",VLOOKUP($K$4,'Цвет столешницы'!A:B,2,FALSE)) -> EVL809/А/40*40/ANT.U003 | D159: 3600*1236*750 | F159: 69900
A160: EVL810/А/40*40/ | B160: =CONCATENATE(A160,VLOOKUP($I$4,'Цвет мет. опор'!A:B,2,0),".",VLOOKUP($K$4,'Цвет столешницы'!A:B,2,FALSE)) -> EVL810/А/40*40/ANT.U003 | C160: Переговорный стол (3 столешницы) на А образном м/к 40х40 | D160: 3000*1236*750 | F160: 71261
A161: EVL811/А/40*40/ | B161: =CONCATENATE(A161,VLOOKUP($I$4,'Цвет мет. опор'!A:B,2,0),".",VLOOKUP($K$4,'Цвет столешницы'!A:B,2,FALSE)) -> EVL811/А/40*40/ANT.U003 | D161: 3600*1236*750 | F161: 78174
A162: EVL812/А/40*40/ | B162: =CONCATENATE(A162,VLOOKUP($I$4,'Цвет мет. опор'!A:B,2,0),".",VLOOKUP($K$4,'Цвет столешницы'!A:B,2,FALSE)) -> EVL812/А/40*40/ANT.U003 | D162: 4200*1236*750 | F162: 81914
A163: EVL813/А/40*40/ | B163: =CONCATENATE(A163,VLOOKUP($I$4,'Цвет мет. опор'!A:B,2,0),".",VLOOKUP($K$4,'Цвет столешницы'!A:B,2,FALSE)) -> EVL813/А/40*40/ANT.U003 | D163: 4800*1236*750 | F163: 84346
A164: EVL814/А/40*40/ | B164: =CONCATENATE(A164,VLOOKUP($I$4,'Цвет мет. опор'!A:B,2,0),".",VLOOKUP($K$4,'Цвет столешницы'!A:B,2,FALSE)) -> EVL814/А/40*40/ANT.U003 | D164: 5400*1236*750 | F164: 87441
A165: EVL841/А/40*40/ | B165: =CONCATENATE(A165,VLOOKUP($I$4,'Цвет мет. опор'!A:B,2,0),".",VLOOKUP($K$4,'Цвет столешницы'!A:B,2,FALSE)) -> EVL841/А/40*40/ANT.U003 | C165: Переговорный стол (3 столешницы) на А-образном м/к 40х40 | D165: 3600*1436*750 | F165: 80596
A166: EVL842/А/40*40/ | B166: =CONCATENATE(A166,VLOOKUP($I$4,'Цвет мет. опор'!A:B,2,0),".",VLOOKUP($K$4,'Цвет столешницы'!A:B,2,FALSE)) -> EVL842/А/40*40/ANT.U003 | D166: 4200*1436*750 | F166: 84444
A167: EVL843/А/40*40/ | B167: =CONCATENATE(A167,VLOOKUP($I$4,'Цвет мет. опор'!A:B,2,0),".",VLOOKUP($K$4,'Цвет столешницы'!A:B,2,FALSE)) -> EVL843/А/40*40/ANT.U003 | D167: 4800*1436*750 | F167: 86975
A168: EVL844/А/40*40/ | B168: =CONCATENATE(A168,VLOOKUP($I$4,'Цвет мет. опор'!A:B,2,0),".",VLOOKUP($K$4,'Цвет столешницы'!A:B,2,FALSE)) -> EVL844/А/40*40/ANT.U003 | D168: 5400*1436*750 | F168: 89106
C169: Кодировка Артикула стола
C170: Модель стола разворот стола /Цвет опор/Цв. заглушки. Цвет столешницы
B171: МОДЕЛЬ СТОЛА (ФОРМА, РАЗМЕР) | C171: ПРАВОСТОРОННИЙ /ЛЕВОСТОРОННИЙ | D171: ЦВЕТ ОПОР | E171: ЦВЕТ ЗАГЛУШКИ, РУЧЕК | F171: ЦВЕТ СТОЛЕШНИЦЫ
C172: SX-левый | D172: АNT-АНТРАЦИТ | E172: АNT-АНТРАЦИТ | F172: H | G172: Белый
C173: DX-правый | D173: WHT-БЕЛЫЙ | E173: H-БЕЛЫЙ | F173: U727 | G173: Серый Камень
D174: GR-СЕРЫЙ | E174: G-СЕРЫЙ | F174: R2 | G174: Серый
F175: ANT | G175: Антрацит
F176: U003 | G176: Дуб Честерфилд
F177: L | G177: Дуб 131

Sheet Столы на О-обр. 40х40
B1: EVOLUTION | F1: =Склаская!F1 -> 2025-05-23
B2: Столы, бенчи и рабочие станции на металлокаркасе: О-образные опоры - труба с сечением 40*40мм, траверсы - труба 40*20мм в цв. Антрацит, Белый. Столешницы ЛДСП - 25 мм. | J2: Формирование артикула в зависимости от выбранных характеристик
B3: Не складская программа производятся на заказ партией от 6 шт., со сроком по согласованию с производством, в цвете: Дуб Честерфилд, Белый, Антрацит, Серый R2, Дуб 131, Серый камень, Венге Цаво, Бетон. Опоры столов в цв. Антрацит, Белый, Серый. Заглушки кабель-каналов и ручки тумб: Антрацит, Белый. Для заказа изделия следует пользоваться правилами кодировки для создания артикула. →→→→ | J3: Цвет Опор | K3: Цвет кабель-канала | L3: Цвет столешницы
J4: Антрацит | K4: Антрацит | L4: Дуб Честерфилд
A5: Артикул | B5: Артикул | C5: Наименование | D5: Размеры Ш*Г*В (мм) | E5: Изображение | F5: Розничная Цена, руб.
A6: EVL113/О/40*40/ | B6: =CONCATENATE(A6,VLOOKUP($J$4,'Цвет мет. опор'!A:B,2,0),"/",VLOOKUP($K$4,'Цвет лючка'!A:B,2,0),".",VLOOKUP($L$4,'Цвет столешницы'!A:B,2,FALSE)) -> EVL113/О/40*40/ANT/ANT.U003 | C6: Стол письменный на О образном м/к 40х40, глубиной 600 мм | D6: 1000*600*750 | F6: 18409
A7: EVL114/О/40*40/ | B7: =CONCATENATE(A7,VLOOKUP($J$4,'Цвет мет. опор'!A:B,2,0),"/",VLOOKUP($K$4,'Цвет лючка'!A:B,2,0),".",VLOOKUP($L$4,'Цвет столешницы'!A:B,2,FALSE)) -> EVL114/О/40*40/ANT/ANT.U003 | D7: 1200*600*750 | F7: 19151
A8: EVL115/О/40*40/ | B8: =CONCATENATE(A8,VLOOKUP($J$4,'Цвет мет. опор'!A:B,2,0),"/",VLOOKUP($K$4,'Цвет лючка'!A:B,2,0),".",VLOOKUP($L$4,'Цвет столешницы'!A:B,2,FALSE)) -> EVL115/О/40*40/ANT/ANT.U003 | D8: 1400*600*750 | F8: 19626
A9: EVL116/О/40*40/ | B9: =CONCATENATE(A9,VLOOKUP($J$4,'Цвет мет. опор'!A:B,2,0),"/",VLOOKUP($K$4,'Цвет лючка'!A:B,2,0),".",VLOOKUP($L$4,'Цвет столешницы'!A:B,2,FALSE)) -> EVL116/О/40*40/ANT/ANT.U003 | D9: 1600*600*750 | F9: 20504
A10: EVL100/О/40*40/ | B10: =CONCATENATE(A10,VLOOKUP($J$4,'Цвет мет. опор'!A:B,2,0),"/",VLOOKUP($K$4,'Цвет лючка'!A:B,2,0),".",VLOOKUP($L$4,'Цвет столешницы'!A:B,2,FALSE)) -> EVL100/О/40*40/ANT/ANT.U003 | C10: Стол письменный на О образном м/к 40х40, глубиной 700 мм | D10: 1000*700*750 | F10: 19238
A11: EVL101/О/40*40/ | B11: =CONCATENATE(A11,VLOOKUP($J$4,'Цвет мет. опор'!A:B,2,0),"/",VLOOKUP($K$4,'Цвет лючка'!A:B,2,0),".",VLOOKUP($L$4,'Цвет столешницы'!A:B,2,FALSE)) -> EVL101/О/40*40/ANT/ANT.U003 | D11: 1200*700*750 | F11: 20103
A12: EVL102/0/40*40 | B12: =CONCATENATE(A12,VLOOKUP($J$4,'Цвет мет. опор'!A:B,2,0),"/",VLOOKUP($K$4,'Цвет лючка'!A:B,2,0),".",VLOOKUP($L$4,'Цвет столешницы'!A:B,2,FALSE)) -> EVL102/0/40*40ANT/ANT.U003 | D12: 1400*700*750 | F12: 20862
A13: EVL103/0/40*40 | B13: =CONCATENATE(A13,VLOOKUP($J$4,'Цвет мет. опор'!A:B,2,0),"/",VLOOKUP($K$4,'Цвет лючка'!A:B,2,0),".",VLOOKUP($L$4,'Цвет столешницы'!A:B,2,FALSE)) -> EVL103/0/40*40ANT/ANT.U003 | D13: 1600*700*750 | F13: 21502
A14: EVL104/О/40*40/ | B14: =CONCATENATE(A14,VLOOKUP($J$4,'Цвет мет. опор'!A:B,2,0),"/",VLOOKUP($K$4,'Цвет лючка'!A:B,2,0),".",VLOOKUP($L$4,'Цвет столешницы'!A:B,2,FALSE)) -> EVL104/О/40*40/ANT/ANT.U003 | D14: 1800*700*750 | F14: 22271
A15: EVL117/О/40*40/ | B15: =CONCATENATE(A15,VLOOKUP($J$4,'Цвет мет. опор'!A:B,2,0),"/",VLOOKUP($K$4,'Цвет лючка'!A:B,2,0),".",VLOOKUP($L$4,'Цвет столешницы'!A:B,2,FALSE)) -> EVL117/О/40*40/ANT/ANT.U003 | C15: Стол письменный на О образном м/к 40х40, глубиной 800 мм | D15: 1000*800*750 | F15: 19528
A16: EVL118/О/40*40/ | B16: =CONCATENATE(A16,VLOOKUP($J$4,'Цвет мет. опор'!A:B,2,0),"/",VLOOKUP($K$4,'Цвет лючка'!A:B,2,0),".",VLOOKUP($L$4,'Цвет столешницы'!A:B,2,FALSE)) -> EVL118/О/40*40/ANT/ANT.U003 | D16: 1200*800*750 | F16: 20633
A17: EVL119/О/40*40/ | B17: =CONCATENATE(A17,VLOOKUP($J$4,'Цвет мет. опор'!A:B,2,0),"/",VLOOKUP($K$4,'Цвет лючка'!A:B,2,0),".",VLOOKUP($L$4,'Цвет столешницы'!A:B,2,FALSE)) -> EVL119/О/40*40/ANT/ANT.U003 | D17: 1400*800*750 | F17: 21514
A18: EVL120/О/40*40/ | B18: =CONCATENATE(A18,VLOOKUP($J$4,'Цвет мет. опор'!A:B,2,0),"/",VLOOKUP($K$4,'Цвет лючка'!A:B,2,0),".",VLOOKUP($L$4,'Цвет столешницы'!A:B,2,FALSE)) -> EVL120/О/40*40/ANT/ANT.U003 | D18: 1600*800*750 | F18: 22268
A19: EVL121/О/40*40/ | B19: =CONCATENATE(A19,VLOOKUP($J$4,'Цвет мет. опор'!A:B,2,0),"/",VLOOKUP($K$4,'Цвет лючка'!A:B,2,0),".",VLOOKUP($L$4,'Цвет столешницы'!A:B,2,FALSE)) -> EVL121/О/40*40/ANT/ANT.U003 | D19: 1800*800*750 | F19: 23166
A20: EVL122/О/40*40/ | B20: =CONCATENATE(A20,VLOOKUP($J$4,'Цвет мет. опор'!A:B,2,0),"/",VLOOKUP($K$4,'Цвет лючка'!A:B,2,0),".",VLOOKUP($L$4,'Цвет столешницы'!A:B,2,FALSE)) -> EVL122/О/40*40/ANT/ANT.U003 | C20: Стол письменный на О образном м/к 40х40, глубиной 900 мм | D20: 1800*900*750 | F20: 23313
A21: EVL123SX(DX)/О/40*40/ | B21: =CONCATENATE(A21,VLOOKUP($J$4,'Цвет мет. опор'!A:B,2,0),"/",VLOOKUP($K$4,'Цвет лючка'!A:B,2,0),".",VLOOKUP($L$4,'Цвет столешницы'!A:B,2,FALSE)) -> EVL123SX(DX)/О/40*40/ANT/ANT.U003 | C21: Стол криволинейный левый/правый на О образном м/к 40х40, глубиной 600/900 мм | D21: 1200*900*750 | E21: правый | F21: 20901
A22: EVL124SX(DX)/О/40*40/ | B22: =CONCATENATE(A22,VLOOKUP($J$4,'Цвет мет. опор'!A:B,2,0),"/",VLOOKUP($K$4,'Цвет лючка'!A:B,2,0),".",VLOOKUP($L$4,'Цвет столешницы'!A:B,2,FALSE)) -> EVL124SX(DX)/О/40*40/ANT/ANT.U003 | D22: 1400*900*750 | F22: 20897
A23: EVL105SX(DX)/О/40*40/ | B23: =CONCATENATE(A23,VLOOKUP($J$4,'Цвет мет. опор'!A:B,2,0),"/",VLOOKUP($K$4,'Цвет лючка'!A:B,2,0),".",VLOOKUP($L$4,'Цвет столешницы'!A:B,2,FALSE)) -> EVL105SX(DX)/О/40*40/ANT/ANT.U003 | C23: Стол криволинейный левый/правый на О образном м/к 40х40, глубиной 700/900 мм | D23: 1200*900*750 | E23: правый | F23: 20129
A24: EVL106SX(DX)/О/40*40/ | B24: =CONCATENATE(A24,VLOOKUP($J$4,'Цвет мет. опор'!A:B,2,0),"/",VLOOKUP($K$4,'Цвет лючка'!A:B,2,0),".",VLOOKUP($L$4,'Цвет столешницы'!A:B,2,FALSE)) -> EVL106SX(DX)/О/40*40/ANT/ANT.U003 | D24: 1400*900*750 | F24: 21205
A25: EVL107SX(DX)/О/40*40/ | B25: =CONCATENATE(A25,VLOOKUP($J$4,'Цвет мет. опор'!A:B,2,0),"/",VLOOKUP($K$4,'Цвет лючка'!A:B,2,0),".",VLOOKUP($L$4,'Цвет столешницы'!A:B,2,FALSE)) -> EVL107SX(DX)/О/40*40/ANT/ANT.U003 | D25: 1600*900*750 | F25: 21902
A26: EVL125SX(DX)/О/40*40/ | B26: =CONCATENATE(A26,VLOOKUP($J$4,'Цвет мет. опор'!A:B,2,0),"/",VLOOKUP($K$4,'Цвет лючка'!A:B,2,0),".",VLOOKUP($L$4,'Цвет столешницы'!A:B,2,FALSE)) -> EVL125SX(DX)/О/40*40/ANT/ANT.U003 | C26: Стол криволинейный левый/правый на О образном м/к 40х40, глубиной 800/900 мм | D26: 1400*900*750 | F26: 22028
A27: EVL126SX(DX)/О/40*40/ | B27: =CONCATENATE(A27,VLOOKUP($J$4,'Цвет мет. опор'!A:B,2,0),"/",VLOOKUP($K$4,'Цвет лючка'!A:B,2,0),".",VLOOKUP($L$4,'Цвет столешницы'!A:B,2,FALSE)) -> EVL126SX(DX)/О/40*40/ANT/ANT.U003 | D27: 1600*900*750 | F27: 22724
A28: EVL109SX(DX)/О/40*40 | B28: =CONCATENATE(A28,VLOOKUP($J$4,'Цвет мет. опор'!A:B,2,0),"/",VLOOKUP($K$4,'Цвет лючка'!A:B,2,0),".",VLOOKUP($L$4,'Цвет столешницы'!A:B,2,FALSE)) -> EVL109SX(DX)/О/40*40ANT/ANT.U003 | C28: Стол эргономичный левый/правый на О образном м/к 40х40, глубиной 700/900 мм | D28: 1200х900/700х750 | F28: 20106
A29: EVL110SX(DX)/О/40*40 | B29: =CONCATENATE(A29,VLOOKUP($J$4,'Цвет мет. опор'!A:B,2,0),"/",VLOOKUP($K$4,'Цвет лючка'!A:B,2,0),".",VLOOKUP($L$4,'Цвет столешницы'!A:B,2,FALSE)) -> EVL110SX(DX)/О/40*40ANT/ANT.U003 | D29: 1400х900/700х750 | F29: 20999
A30: EVL111SX(DX)/О/40*40 | B30: =CONCATENATE(A30,VLOOKUP($J$4,'Цвет мет. опор'!A:B,2,0),"/",VLOOKUP($K$4,'Цвет лючка'!A:B,2,0),".",VLOOKUP($L$4,'Цвет столешницы'!A:B,2,FALSE)) -> EVL111SX(DX)/О/40*40ANT/ANT.U003 | D30: 1600х900/700х750 | F30: 21877
A31: EVL127SX(DX)/О/40*40/ | B31: =CONCATENATE(A31,VLOOKUP($J$4,'Цвет мет. опор'!A:B,2,0),"/",VLOOKUP($K$4,'Цвет лючка'!A:B,2,0),".",VLOOKUP($L$4,'Цвет столешницы'!A:B,2,FALSE)) -> EVL127SX(DX)/О/40*40/ANT/ANT.U003 | C31: Стол эргономичный левый/правый на О образном м/к 40х40, глубиной 600/1200 мм | D31: 1400*1200*750 | F31: 31717
A32: EVL128SX(DX)/О/40*40/ | B32: =CONCATENATE(A32,VLOOKUP($J$4,'Цвет мет. опор'!A:B,2,0),"/",VLOOKUP($K$4,'Цвет лючка'!A:B,2,0),".",VLOOKUP($L$4,'Цвет столешницы'!A:B,2,FALSE)) -> EVL128SX(DX)/О/40*40/ANT/ANT.U003 | D32: 1600*1200*750 | F32: 32616
A33: EVL129SX(DX)/О/40*40/ | B33: =CONCATENATE(A33,VLOOKUP($J$4,'Цвет мет. опор'!A:B,2,0),"/",VLOOKUP($K$4,'Цвет лючка'!A:B,2,0),".",VLOOKUP($L$4,'Цвет столешницы'!A:B,2,FALSE)) -> EVL129SX(DX)/О/40*40/ANT/ANT.U003 | C33: Стол эргономичный левый/правый на О образном м/к 40х40, глубиной 700/1200 мм | D33: 1400*1200*750 | F33: 32245
A34: EVL130SX(DX)/О/40*40/ | B34: =CONCATENATE(A34,VLOOKUP($J$4,'Цвет мет. опор'!A:B,2,0),"/",VLOOKUP($K$4,'Цвет лючка'!A:B,2,0),".",VLOOKUP($L$4,'Цвет столешницы'!A:B,2,FALSE)) -> EVL130SX(DX)/О/40*40/ANT/ANT.U003 | D34: 1600*1200*750 | F34: 33137
A35: EVL131SX(DX)/О/40*40/ | B35: =CONCATENATE(A35,VLOOKUP($J$4,'Цвет мет. опор'!A:B,2,0),"/",VLOOKUP($K$4,'Цвет лючка'!A:B,2,0),".",VLOOKUP($L$4,'Цвет столешницы'!A:B,2,FALSE)) -> EVL131SX(DX)/О/40*40/ANT/ANT.U003 | C35: Стол эргономичный левый/правый на О образном м/к 40х40, глубиной 800/1200 мм | D35: 1400*1200*750 | F35: 32611
A36: EVL132SX(DX)/О/40*40/ | B36: =CONCATENATE(A36,VLOOKUP($J$4,'Цвет мет. опор'!A:B,2,0),"/",VLOOKUP($K$4,'Цвет лючка'!A:B,2,0),".",VLOOKUP($L$4,'Цвет столешницы'!A:B,2,FALSE)) -> EVL132SX(DX)/О/40*40/ANT/ANT.U003 | D36: 1600*1200*750 | F36: 33427
A37: EVL601/О/40*40/ | B37: =CONCATENATE(A37,VLOOKUP($J$4,'Цвет мет. опор'!A:B,2,0),"/",VLOOKUP($K$4,'Цвет лючка'!A:B,2,0),".",VLOOKUP($L$4,'Цвет столешницы'!A:B,2,FALSE)) -> EVL601/О/40*40/ANT/ANT.U003 | C37: Рабочая станция на О образном м/к 40х40, глубиной 1236 мм | D37: 1200*1236*750 | F37: 33454
A38: EVL602/О/40*40/ | B38: =CONCATENATE(A38,VLOOKUP($J$4,'Цвет мет. опор'!A:B,2,0),"/",VLOOKUP($K$4,'Цвет лючка'!A:B,2,0),".",VLOOKUP($L$4,'Цвет столешницы'!A:B,2,FALSE)) -> EVL602/О/40*40/ANT/ANT.U003 | D38: 1400*1236*750 | F38: 34403
A39: EVL603/О/40*40/ | B39: =CONCATENATE(A39,VLOOKUP($J$4,'Цвет мет. опор'!A:B,2,0),"/",VLOOKUP($K$4,'Цвет лючка'!A:B,2,0),".",VLOOKUP($L$4,'Цвет столешницы'!A:B,2,FALSE)) -> EVL603/О/40*40/ANT/ANT.U003 | D39: 1600*1236*750 | F39: 36159
A40: EVL681/О/40*40/ | B40: =CONCATENATE(A40,VLOOKUP($J$4,'Цвет мет. опор'!A:B,2,0),"/",VLOOKUP($K$4,'Цвет лючка'!A:B,2,0),".",VLOOKUP($L$4,'Цвет столешницы'!A:B,2,FALSE)) -> EVL681/О/40*40/ANT/ANT.U003 | D40: 1800*1236*751 | F40: 37858
A41: EVL604/О/40*40/ | B41: =CONCATENATE(A41,VLOOKUP($J$4,'Цвет мет. опор'!A:B,2,0),"/",VLOOKUP($K$4,'Цвет лючка'!A:B,2,0),".",VLOOKUP($L$4,'Цвет столешницы'!A:B,2,FALSE)) -> EVL604/О/40*40/ANT/ANT.U003 | C41: Рабочая станция на О образном м/к 40х40 глубиной 1436 | D41: 1200*1436*750 | F41: 34696
A42: EVL605/О/40*40/ | B42: =CONCATENATE(A42,VLOOKUP($J$4,'Цвет мет. опор'!A:B,2,0),"/",VLOOKUP($K$4,'Цвет лючка'!A:B,2,0),".",VLOOKUP($L$4,'Цвет столешницы'!A:B,2,FALSE)) -> EVL605/О/40*40/ANT/ANT.U003 | D42: 1400*1436*750 | F42: 37046
A43: EVL606/О/40*40/ | B43: =CONCATENATE(A43,VLOOKUP($J$4,'Цвет мет. опор'!A:B,2,0),"/",VLOOKUP($K$4,'Цвет лючка'!A:B,2,0),".",VLOOKUP($L$4,'Цвет столешницы'!A:B,2,FALSE)) -> EVL606/О/40*40/ANT/ANT.U003 | D43: 1600*1436*750 | F43: 38327
A44: EVL682/О/40*40/ | B44: =CONCATENATE(A44,VLOOKUP($J$4,'Цвет мет. опор'!A:B,2,0),"/",VLOOKUP($K$4,'Цвет лючка'!A:B,2,0),".",VLOOKUP($L$4,'Цвет столешницы'!A:B,2,FALSE)) -> EVL682/О/40*40/ANT/ANT.U003 | D44: 1800*1436*751 | F44: 39865
A45: EVL607/О/40*40/ | B45: =CONCATENATE(A45,VLOOKUP($J$4,'Цвет мет. опор'!A:B,2,0),"/",VLOOKUP($K$4,'Цвет лючка'!A:B,2,0),".",VLOOKUP($L$4,'Цвет столешницы'!A:B,2,FALSE)) -> EVL607/О/40*40/ANT/ANT.U003 | C45: Рабочая станция на О образном м/к 40х40 глубиной 1636 | D45: 1200*1636*750 | F45: 36500
A46: EVL608/О/40*40/ | B46: =CONCATENATE(A46,VLOOKUP($J$4,'Цвет мет. опор'!A:B,2,0),"/",VLOOKUP($K$4,'Цвет лючка'!A:B,2,0),".",VLOOKUP($L$4,'Цвет столешницы'!A:B,2,FALSE)) -> EVL608/О/40*40/ANT/ANT.U003 | D46: 1400*1636*750 | F46: 38263
A47: EVL609/О/40*40/ | B47: =CONCATENATE(A47,VLOOKUP($J$4,'Цвет мет. опор'!A:B,2,0),"/",VLOOKUP($K$4,'Цвет лючка'!A:B,2,0),".",VLOOKUP($L$4,'Цвет столешницы'!A:B,2,FALSE)) -> EVL609/О/40*40/ANT/ANT.U003 | D47: 1600*1636*750 | F47: 39771
A48: EVL683/О/40*40/ | B48: =CONCATENATE(A48,VLOOKUP($J$4,'Цвет мет. опор'!A:B,2,0),"/",VLOOKUP($K$4,'Цвет лючка'!A:B,2,0),".",VLOOKUP($L$4,'Цвет столешницы'!A:B,2,FALSE)) -> EVL683/О/40*40/ANT/ANT.U003 | D48: 1800*1636*750 | F48: 41566
A49: EVL610/О/40*40/ | B49: =CONCATENATE(A49,VLOOKUP($J$4,'Цвет мет. опор'!A:B,2,0),"/",VLOOKUP($K$4,'Цвет лючка'!A:B,2,0),".",VLOOKUP($L$4,'Цвет столешницы'!A:B,2,FALSE)) -> EVL610/О/40*40/ANT/ANT.U003 | C49: Рабочая станция криволинейная на О образном м/к 40х40 глубиной 1236/1836 | D49: 1200*1836*750 | F49: 35955
A50: EVL611/О/40*40/ | B50: =CONCATENATE(A50,VLOOKUP($J$4,'Цвет мет. опор'!A:B,2,0),"/",VLOOKUP($K$4,'Цвет лючка'!A:B,2,0),".",VLOOKUP($L$4,'Цвет столешницы'!A:B,2,FALSE)) -> EVL611/О/40*40/ANT/ANT.U003 | D50: 1400*1836*750 | F50: 37839
A51: EVL612/О/40*40/ | B51: =CONCATENATE(A51,VLOOKUP($J$4,'Цвет мет. опор'!A:B,2,0),"/",VLOOKUP($K$4,'Цвет лючка'!A:B,2,0),".",VLOOKUP($L$4,'Цвет столешницы'!A:B,2,FALSE)) -> EVL612/О/40*40/ANT/ANT.U003 | D51: 1600*1836*750 | F51: 39258
A52: EVL613/О/40*40/ | B52: =CONCATENATE(A52,VLOOKUP($J$4,'Цвет мет. опор'!A:B,2,0),"/",VLOOKUP($K$4,'Цвет лючка'!A:B,2,0),".",VLOOKUP($L$4,'Цвет столешницы'!A:B,2,FALSE)) -> EVL613/О/40*40/ANT/ANT.U003 | C52: Рабочая станция криволинейная на О образном м/к 40х40 глубиной 1436/1836 | D52: 1200*1836*750 | F52: 35581
A53: EVL614/О/40*40/ | B53: =CONCATENATE(A53,VLOOKUP($J$4,'Цвет мет. опор'!A:B,2,0),"/",VLOOKUP($K$4,'Цвет лючка'!A:B,2,0),".",VLOOKUP($L$4,'Цвет столешницы'!A:B,2,FALSE)) -> EVL614/О/40*40/ANT/ANT.U003 | D53: 1400*1836*750 | F53: 37733
A54: EVL615/О/40*40/ | B54: =CONCATENATE(A54,VLOOKUP($J$4,'Цвет мет. опор'!A:B,2,0),"/",VLOOKUP($K$4,'Цвет лючка'!A:B,2,0),".",VLOOKUP($L$4,'Цвет столешницы'!A:B,2,FALSE)) -> EVL615/О/40*40/ANT/ANT.U003 | D54: 1600*1836*750 | F54: 39127
A55: EVL616/О/40*40/ | B55: =CONCATENATE(A55,VLOOKUP($J$4,'Цвет мет. опор'!A:B,2,0),"/",VLOOKUP($K$4,'Цвет лючка'!A:B,2,0),".",VLOOKUP($L$4,'Цвет столешницы'!A:B,2,FALSE)) -> EVL616/О/40*40/ANT/ANT.U003 | C55: Рабочая станция эргономичная на О образном м/к 40х40 глубиной 1236/2436 | D55: 1400*2436*750 | F55: 58463
A56: EVL617/О/40*40/ | B56: =CONCATENATE(A56,VLOOKUP($J$4,'Цвет мет. опор'!A:B,2,0),"/",VLOOKUP($K$4,'Цвет лючка'!A:B,2,0),".",VLOOKUP($L$4,'Цвет столешницы'!A:B,2,FALSE)) -> EVL617/О/40*40/ANT/ANT.U003 | D56: 1600*2436*750 | F56: 60326
A57: EVL618/О/40*40/ | B57: =CONCATENATE(A57,VLOOKUP($J$4,'Цвет мет. опор'!A:B,2,0),"/",VLOOKUP($K$4,'Цвет лючка'!A:B,2,0),".",VLOOKUP($L$4,'Цвет столешницы'!A:B,2,FALSE)) -> EVL618/О/40*40/ANT/ANT.U003 | C57: Рабочая станция эргономичная на О образном м/к 40х40 глубиной 1436/2436 | D57: 1400*2440*750 | F57: 60109
A58: EVL619/О/40*40/ | B58: =CONCATENATE(A58,VLOOKUP($J$4,'Цвет мет. опор'!A:B,2,0),"/",VLOOKUP($K$4,'Цвет лючка'!A:B,2,0),".",VLOOKUP($L$4,'Цвет столешницы'!A:B,2,FALSE)) -> EVL619/О/40*40/ANT/ANT.U003 | D58: 1600*2440*750 | F58: 62025
A59: EVL620/О/40*40/ | B59: =CONCATENATE(A59,VLOOKUP($J$4,'Цвет мет. опор'!A:B,2,0),"/",VLOOKUP($K$4,'Цвет лючка'!A:B,2,0),".",VLOOKUP($L$4,'Цвет столешницы'!A:B,2,FALSE)) -> EVL620/О/40*40/ANT/ANT.U003 | C59: Рабочая станция эргономичная на О образном м/к 40х40 глубиной 1636/2436 | D59: 1400*2440*750 | F59: 60333
A60: EVL621/О/40*40/ | B60: =CONCATENATE(A60,VLOOKUP($J$4,'Цвет мет. опор'!A:B,2,0),"/",VLOOKUP($K$4,'Цвет лючка'!A:B,2,0),".",VLOOKUP($L$4,'Цвет столешницы'!A:B,2,FALSE)) -> EVL621/О/40*40/ANT/ANT.U003 | D60: 1600*2440*750 | F60: 62031
A61: EVL622/О/40*40/ | B61: =CONCATENATE(A61,VLOOKUP($J$4,'Цвет мет. опор'!A:B,2,0),"/",VLOOKUP($K$4,'Цвет лючка'!A:B,2,0),".",VLOOKUP($L$4,'Цвет столешницы'!A:B,2,FALSE)) -> EVL622/О/40*40/ANT/ANT.U003 | C61: Рабочая станция эргономичная на О образном м/к 40х40 глубиной 600/900 | D61: 2400*900*750 | F61: 36945
A62: EVL623/О/40*40/ | B62: =CONCATENATE(A62,VLOOKUP($J$4,'Цвет мет. опор'!A:B,2,0),"/",VLOOKUP($K$4,'Цвет лючка'!A:B,2,0),".",VLOOKUP($L$4,'Цвет столешницы'!A:B,2,FALSE)) -> EVL623/О/40*40/ANT/ANT.U003 | D62: 2800*900*750 | F62: 38829
A63: EVL624/О/40*40/ | B63: =CONCATENATE(A63,VLOOKUP($J$4,'Цвет мет. опор'!A:B,2,0),"/",VLOOKUP($K$4,'Цвет лючка'!A:B,2,0),".",VLOOKUP($L$4,'Цвет столешницы'!A:B,2,FALSE)) -> EVL624/О/40*40/ANT/ANT.U003 | D63: 3200*900*750 | F63: 40248
A64: EVL625/О/40*40/ | B64: =CONCATENATE(A64,VLOOKUP($J$4,'Цвет мет. опор'!A:B,2,0),"/",VLOOKUP($K$4,'Цвет лючка'!A:B,2,0),".",VLOOKUP($L$4,'Цвет столешницы'!A:B,2,FALSE)) -> EVL625/О/40*40/ANT/ANT.U003 | C64: Рабочая станция эргономичная на О образном м/к 40х40 глубиной 700/900 | D64: 2400*900*750 | F64: 37442
A65: EVL626/О/40*40/ | B65: =CONCATENATE(A65,VLOOKUP($J$4,'Цвет мет. опор'!A:B,2,0),"/",VLOOKUP($K$4,'Цвет лючка'!A:B,2,0),".",VLOOKUP($L$4,'Цвет столешницы'!A:B,2,FALSE)) -> EVL626/О/40*40/ANT/ANT.U003 | D65: 2800*900*750 | F65: 39302
A66: EVL627/О/40*40/ | B66: =CONCATENATE(A66,VLOOKUP($J$4,'Цвет мет. опор'!A:B,2,0),"/",VLOOKUP($K$4,'Цвет лючка'!A:B,2,0),".",VLOOKUP($L$4,'Цвет столешницы'!A:B,2,FALSE)) -> EVL627/О/40*40/ANT/ANT.U003 | D66: 3200*900*750 | F66: 40708
A67: EVL628/О/40*40/ | B67: =CONCATENATE(A67,VLOOKUP($J$4,'Цвет мет. опор'!A:B,2,0),"/",VLOOKUP($K$4,'Цвет лючка'!A:B,2,0),".",VLOOKUP($L$4,'Цвет столешницы'!A:B,2,FALSE)) -> EVL628/О/40*40/ANT/ANT.U003 | C67: Рабочая станция эргономичная на О образном м/к 40х40 глубиной 800/900 | D67: 2400*900*750 | F67: 37939
A68: EVL629/О/40*40/ | B68: =CONCATENATE(A68,VLOOKUP($J$4,'Цвет мет. опор'!A:B,2,0),"/",VLOOKUP($K$4,'Цвет лючка'!A:B,2,0),".",VLOOKUP($L$4,'Цвет столешницы'!A:B,2,FALSE)) -> EVL629/О/40*40/ANT/ANT.U003 | D68: 2800*900*750 | F68: 39776
A69: EVL630/О/40*40/ | B69: =CONCATENATE(A69,VLOOKUP($J$4,'Цвет мет. опор'!A:B,2,0),"/",VLOOKUP($K$4,'Цвет лючка'!A:B,2,0),".",VLOOKUP($L$4,'Цвет столешницы'!A:B,2,FALSE)) -> EVL630/О/40*40/ANT/ANT.U003 | D69: 3200*900*750 | F69: 41168
A70: EVL631/О/40*40/ | B70: =CONCATENATE(A70,VLOOKUP($J$4,'Цвет мет. опор'!A:B,2,0),"/",VLOOKUP($K$4,'Цвет лючка'!A:B,2,0),".",VLOOKUP($L$4,'Цвет столешницы'!A:B,2,FALSE)) -> EVL631/О/40*40/ANT/ANT.U003 | C70: Рабочая станция эргономичная на О образном м/к 40х40 глубиной 600/1200 | D70: 2400*1236*750 | E70: промежуточная опора 1236 | F70: 41235
A71: EVL632/О/40*40/ | B71: =CONCATENATE(A71,VLOOKUP($J$4,'Цвет мет. опор'!A:B,2,0),"/",VLOOKUP($K$4,'Цвет лючка'!A:B,2,0),".",VLOOKUP($L$4,'Цвет столешницы'!A:B,2,FALSE)) -> EVL632/О/40*40/ANT/ANT.U003 | D71: 2800*1236*750 | F71: 43217
A72: EVL633/О/40*40/ | B72: =CONCATENATE(A72,VLOOKUP($J$4,'Цвет мет. опор'!A:B,2,0),"/",VLOOKUP($K$4,'Цвет лючка'!A:B,2,0),".",VLOOKUP($L$4,'Цвет столешницы'!A:B,2,FALSE)) -> EVL633/О/40*40/ANT/ANT.U003 | D72: 3200*1236*750 | F72: 45014
A73: EVL634/О/40*40/ | B73: =CONCATENATE(A73,VLOOKUP($J$4,'Цвет мет. опор'!A:B,2,0),"/",VLOOKUP($K$4,'Цвет лючка'!A:B,2,0),".",VLOOKUP($L$4,'Цвет столешницы'!A:B,2,FALSE)) -> EVL634/О/40*40/ANT/ANT.U003 | C73: Рабочая станция эргономичная на О образном м/к 40х40 глубиной 700/1200 | D73: 2400*1200*750 | E73: промежуточная опора 700 | F73: 40897
A74: EVL635/О/40*40/ | B74: =CONCATENATE(A74,VLOOKUP($J$4,'Цвет мет. опор'!A:B,2,0),"/",VLOOKUP($K$4,'Цвет лючка'!A:B,2,0),".",VLOOKUP($L$4,'Цвет столешницы'!A:B,2,FALSE)) -> EVL635/О/40*40/ANT/ANT.U003 | D74: 2800*1200*750 | F74: 43100
A75: EVL636/О/40*40/ | B75: =CONCATENATE(A75,VLOOKUP($J$4,'Цвет мет. опор'!A:B,2,0),"/",VLOOKUP($K$4,'Цвет лючка'!A:B,2,0),".",VLOOKUP($L$4,'Цвет столешницы'!A:B,2,FALSE)) -> EVL636/О/40*40/ANT/ANT.U003 | D75: 3200*1200*750 | F75: 44815
A76: EVL637/О/40*40/ | B76: =CONCATENATE(A76,VLOOKUP($J$4,'Цвет мет. опор'!A:B,2,0),"/",VLOOKUP($K$4,'Цвет лючка'!A:B,2,0),".",VLOOKUP($L$4,'Цвет столешницы'!A:B,2,FALSE)) -> EVL637/О/40*40/ANT/ANT.U003 | C76: Рабочая станция эргономичная на О образном м/к 40х40 глубиной 800/1200 | D76: 2400*1200*750 | E76: промежуточная опора 800 | F76: 40560
A77: EVL638/О/40*40/ | B77: =CONCATENATE(A77,VLOOKUP($J$4,'Цвет мет. опор'!A:B,2,0),"/",VLOOKUP($K$4,'Цвет лючка'!A:B,2,0),".",VLOOKUP($L$4,'Цвет столешницы'!A:B,2,FALSE)) -> EVL638/О/40*40/ANT/ANT.U003 | D77: 2800*1200*750 | F77: 42983
A78: EVL639/О/40*40/ | B78: =CONCATENATE(A78,VLOOKUP($J$4,'Цвет мет. опор'!A:B,2,0),"/",VLOOKUP($K$4,'Цвет лючка'!A:B,2,0),".",VLOOKUP($L$4,'Цвет столешницы'!A:B,2,FALSE)) -> EVL639/О/40*40/ANT/ANT.U003 | D78: 3200*1200*750 | F78: 44615
A79: EVL180/О/40*40/ | B79: =CONCATENATE(A79,VLOOKUP($J$4,'Цвет мет. опор'!A:B,2,0),"/",VLOOKUP($K$4,'Цвет лючка'!A:B,2,0),".",VLOOKUP($L$4,'Цвет столешницы'!A:B,2,FALSE)) -> EVL180/О/40*40/ANT/ANT.U003 | C79: Приставка к столу рабочая 1000х500 | D79: 1000x500x750 | F79: 12095
A80: EVL135/О/40*40/ | B80: =CONCATENATE(A80,VLOOKUP($J$4,'Цвет мет. опор'!A:B,2,0),"/",VLOOKUP($K$4,'Цвет лючка'!A:B,2,0),".",VLOOKUP($L$4,'Цвет столешницы'!A:B,2,FALSE)) -> EVL135/О/40*40/ANT/ANT.U003 | C80: Приставной элемент на О образном м/к 40х40 глуб. 700 (используется в качестве брифинга) | D80: 1000*600*750 | F80: 14089
A81: EVL137/О/40*40/ | B81: =CONCATENATE(A81,VLOOKUP($J$4,'Цвет мет. опор'!A:B,2,0),"/",VLOOKUP($K$4,'Цвет лючка'!A:B,2,0),".",VLOOKUP($L$4,'Цвет столешницы'!A:B,2,FALSE)) -> EVL137/О/40*40/ANT/ANT.U003 | D81: 1200*700*750 | F81: 15629
A82: EVL701/О/40*40/ | B82: =CONCATENATE(A82,VLOOKUP($J$4,'Цвет мет. опор'!A:B,2,0),"/",VLOOKUP($K$4,'Цвет лючка'!A:B,2,0),".",VLOOKUP($L$4,'Цвет столешницы'!A:B,2,FALSE)) -> EVL701/О/40*40/ANT/ANT.U003 | C82: Рабочая станция на О образном м/к 40х40 с тумбой (композиция стол+тумба) | D82: 1450*700*750 | E82: Тумба 450х700х750 | F82: 34457
A83: EVL702/О/40*40/ | B83: =CONCATENATE(A83,VLOOKUP($J$4,'Цвет мет. опор'!A:B,2,0),"/",VLOOKUP($K$4,'Цвет лючка'!A:B,2,0),".",VLOOKUP($L$4,'Цвет столешницы'!A:B,2,FALSE)) -> EVL702/О/40*40/ANT/ANT.U003 | D83: 1650*700*750 | F83: 35321
A84: EVL703/О/40*40/ | B84: =CONCATENATE(A84,VLOOKUP($J$4,'Цвет мет. опор'!A:B,2,0),"/",VLOOKUP($K$4,'Цвет лючка'!A:B,2,0),".",VLOOKUP($L$4,'Цвет столешницы'!A:B,2,FALSE)) -> EVL703/О/40*40/ANT/ANT.U003 | D84: 1850*700*750 | F84: 36080
A85: EVL704/О/40*40/ | B85: =CONCATENATE(A85,VLOOKUP($J$4,'Цвет мет. опор'!A:B,2,0),"/",VLOOKUP($K$4,'Цвет лючка'!A:B,2,0),".",VLOOKUP($L$4,'Цвет столешницы'!A:B,2,FALSE)) -> EVL704/О/40*40/ANT/ANT.U003 | D85: 2050*700*750 | F85: 36721
A86: EVL705/О/40*40/ | B86: =CONCATENATE(A86,VLOOKUP($J$4,'Цвет мет. опор'!A:B,2,0),"/",VLOOKUP($K$4,'Цвет лючка'!A:B,2,0),".",VLOOKUP($L$4,'Цвет столешницы'!A:B,2,FALSE)) -> EVL705/О/40*40/ANT/ANT.U003 | D86: 2250*700*750 | F86: 34747
A87: EVL706/О/40*40/ | B87: =CONCATENATE(A87,VLOOKUP($J$4,'Цвет мет. опор'!A:B,2,0),"/",VLOOKUP($K$4,'Цвет лючка'!A:B,2,0),".",VLOOKUP($L$4,'Цвет столешницы'!A:B,2,FALSE)) -> EVL706/О/40*40/ANT/ANT.U003 | C87: Рабочая станция на О образном м/к 40х40 с тумбой (композиция двойной бенч+тумба) | D87: 1450*1436*750 | E87: Тумба 450х1436х750 | F87: 60360
A88: EVL707/О/40*40/ | B88: =CONCATENATE(A88,VLOOKUP($J$4,'Цвет мет. опор'!A:B,2,0),"/",VLOOKUP($K$4,'Цвет лючка'!A:B,2,0),".",VLOOKUP($L$4,'Цвет столешницы'!A:B,2,FALSE)) -> EVL707/О/40*40/ANT/ANT.U003 | D88: 1650*1436*750 | F88: 62089
A89: EVL708/О/40*40/ | B89: =CONCATENATE(A89,VLOOKUP($J$4,'Цвет мет. опор'!A:B,2,0),"/",VLOOKUP($K$4,'Цвет лючка'!A:B,2,0),".",VLOOKUP($L$4,'Цвет столешницы'!A:B,2,FALSE)) -> EVL708/О/40*40/ANT/ANT.U003 | D89: 1850*1436*750 | F89: 63607
A90: EVL709/О/40*40/ | B90: =CONCATENATE(A90,VLOOKUP($J$4,'Цвет мет. опор'!A:B,2,0),"/",VLOOKUP($K$4,'Цвет лючка'!A:B,2,0),".",VLOOKUP($L$4,'Цвет столешницы'!A:B,2,FALSE)) -> EVL709/О/40*40/ANT/ANT.U003 | D90: 2050*1436*750 | F90: 64888
A91: EVL710/О/40*40/ | B91: =CONCATENATE(A91,VLOOKUP($J$4,'Цвет мет. опор'!A:B,2,0),"/",VLOOKUP($K$4,'Цвет лючка'!A:B,2,0),".",VLOOKUP($L$4,'Цвет столешницы'!A:B,2,FALSE)) -> EVL710/О/40*40/ANT/ANT.U003 | D91: 2250*1436*750 | F91: 66425
A92: EVL711/О/40*40/ | B92: =CONCATENATE(A92,VLOOKUP($J$4,'Цвет мет. опор'!A:B,2,0),"/",VLOOKUP($K$4,'Цвет лючка'!A:B,2,0),".",VLOOKUP($L$4,'Цвет столешницы'!A:B,2,FALSE)) -> EVL711/О/40*40/ANT/ANT.U003 | C92: Рабочая станция на О образном м/к 40х40 со шкафом-купе (композиция двойной бенч+шкаф-купе) | D92: 1410*1436*750 | E92: Шкаф купе приставной 1440х410х750 | F92: 54264
A93: EVL712/О/40*40/ | B93: =CONCATENATE(A93,VLOOKUP($J$4,'Цвет мет. опор'!A:B,2,0),"/",VLOOKUP($K$4,'Цвет лючка'!A:B,2,0),".",VLOOKUP($L$4,'Цвет столешницы'!A:B,2,FALSE)) -> EVL712/О/40*40/ANT/ANT.U003 | D93: 1610*1436*750 | F93: 55161
A94: EVL713/О/40*40/ | B94: =CONCATENATE(A94,VLOOKUP($J$4,'Цвет мет. опор'!A:B,2,0),"/",VLOOKUP($K$4,'Цвет лючка'!A:B,2,0),".",VLOOKUP($L$4,'Цвет столешницы'!A:B,2,FALSE)) -> EVL713/О/40*40/ANT/ANT.U003 | D94: 1810*1436*750 | F94: 57511
A95: EVL714/О/40*40/ | B95: =CONCATENATE(A95,VLOOKUP($J$4,'Цвет мет. опор'!A:B,2,0),"/",VLOOKUP($K$4,'Цвет лючка'!A:B,2,0),".",VLOOKUP($L$4,'Цвет столешницы'!A:B,2,FALSE)) -> EVL714/О/40*40/ANT/ANT.U003 | D95: 2010*1436*750 | F95: 58792
A96: EVL715/О/40*40/ | B96: =CONCATENATE(A96,VLOOKUP($J$4,'Цвет мет. опор'!A:B,2,0),"/",VLOOKUP($K$4,'Цвет лючка'!A:B,2,0),".",VLOOKUP($L$4,'Цвет столешницы'!A:B,2,FALSE)) -> EVL715/О/40*40/ANT/ANT.U003 | D96: 2210*1436*750 | F96: 60329
A97: EVL716/О/40*40/ | B97: =CONCATENATE(A97,VLOOKUP($J$4,'Цвет мет. опор'!A:B,2,0),"/",VLOOKUP($K$4,'Цвет лючка'!A:B,2,0),".",VLOOKUP($L$4,'Цвет столешницы'!A:B,2,FALSE)) -> EVL716/О/40*40/ANT/ANT.U003 | C97: Рабочая станция на О образном м/к 40х40 со шкафом-купе (композиция двойной бенч+шкаф-купе) | D97: 1410*1436*1098 | E97: Шкаф купе приставной 1440х410х1098 | F97: 59126
A98: EVL717/О/40*40/ | B98: =CONCATENATE(A98,VLOOKUP($J$4,'Цвет мет. опор'!A:B,2,0),"/",VLOOKUP($K$4,'Цвет лючка'!A:B,2,0),".",VLOOKUP($L$4,'Цвет столешницы'!A:B,2,FALSE)) -> EVL717/О/40*40/ANT/ANT.U003 | D98: 1610*1436*1098 | F98: 60023
A99: EVL718/О/40*40/ | B99: =CONCATENATE(A99,VLOOKUP($J$4,'Цвет мет. опор'!A:B,2,0),"/",VLOOKUP($K$4,'Цвет лючка'!A:B,2,0),".",VLOOKUP($L$4,'Цвет столешницы'!A:B,2,FALSE)) -> EVL718/О/40*40/ANT/ANT.U003 | D99: 1810*1436*1098 | F99: 62373
A100: EVL719/О/40*40/ | B100: =CONCATENATE(A100,VLOOKUP($J$4,'Цвет мет. опор'!A:B,2,0),"/",VLOOKUP($K$4,'Цвет лючка'!A:B,2,0),".",VLOOKUP($L$4,'Цвет столешницы'!A:B,2,FALSE)) -> EVL719/О/40*40/ANT/ANT.U003 | D100: 2010*1436*1098 | F100: 63654
A101: EVL720/О/40*40/ | B101: =CONCATENATE(A101,VLOOKUP($J$4,'Цвет мет. опор'!A:B,2,0),"/",VLOOKUP($K$4,'Цвет лючка'!A:B,2,0),".",VLOOKUP($L$4,'Цвет столешницы'!A:B,2,FALSE)) -> EVL720/О/40*40/ANT/ANT.U003 | D101: 2210*1436*1098 | F101: 65191
A102: EVL721/О/40*40/ | B102: =CONCATENATE(A102,VLOOKUP($J$4,'Цвет мет. опор'!A:B,2,0),"/",VLOOKUP($K$4,'Цвет лючка'!A:B,2,0),".",VLOOKUP($L$4,'Цвет столешницы'!A:B,2,FALSE)) -> EVL721/О/40*40/ANT/ANT.U003 | C102: Стол письменный на О образном м/к 40х40 со шкафом-купе (композиция двойной бенч+шкаф-купе) | D102: 1410*1240*1098 | E102: Шкаф купе приставной 1240х410х1098 | F102: 42188
A103: EVL722/О/40*40/ | B103: =CONCATENATE(A103,VLOOKUP($J$4,'Цвет мет. опор'!A:B,2,0),"/",VLOOKUP($K$4,'Цвет лючка'!A:B,2,0),".",VLOOKUP($L$4,'Цвет столешницы'!A:B,2,FALSE)) -> EVL722/О/40*40/ANT/ANT.U003 | D103: 1610*1240*1098 | F103: 43052
A104: EVL723/О/40*40/ | B104: =CONCATENATE(A104,VLOOKUP($J$4,'Цвет мет. опор'!A:B,2,0),"/",VLOOKUP($K$4,'Цвет лючка'!A:B,2,0),".",VLOOKUP($L$4,'Цвет столешницы'!A:B,2,FALSE)) -> EVL723/О/40*40/ANT/ANT.U003 | D104: 1810*1240*1098 | F104: 43811
A105: EVL724/О/40*40/ | B105: =CONCATENATE(A105,VLOOKUP($J$4,'Цвет мет. опор'!A:B,2,0),"/",VLOOKUP($K$4,'Цвет лючка'!A:B,2,0),".",VLOOKUP($L$4,'Цвет столешницы'!A:B,2,FALSE)) -> EVL724/О/40*40/ANT/ANT.U003 | D105: 2010*1240*1098 | F105: 44451
A106: EVL725/О/40*40/ | B106: =CONCATENATE(A106,VLOOKUP($J$4,'Цвет мет. опор'!A:B,2,0),"/",VLOOKUP($K$4,'Цвет лючка'!A:B,2,0),".",VLOOKUP($L$4,'Цвет столешницы'!A:B,2,FALSE)) -> EVL725/О/40*40/ANT/ANT.U003 | D106: 2210*1240*1098 | F106: 45220
A107: EVL726/О/40*40/ | B107: =CONCATENATE(A107,VLOOKUP($J$4,'Цвет мет. опор'!A:B,2,0),"/",VLOOKUP($K$4,'Цвет лючка'!A:B,2,0),".",VLOOKUP($L$4,'Цвет столешницы'!A:B,2,FALSE)) -> EVL726/О/40*40/ANT/ANT.U003 | C107: Рабочая станция на О образном м/к 40х40 со шкафом-купе (композиция двойной бенч+шкаф-купе) | D107: 1410*2332*1098 | E107: шкафная группа 2332х410х1098 | F107: 82772
A108: EVL727/О/40*40/ | B108: =CONCATENATE(A108,VLOOKUP($J$4,'Цвет мет. опор'!A:B,2,0),"/",VLOOKUP($K$4,'Цвет лючка'!A:B,2,0),".",VLOOKUP($L$4,'Цвет столешницы'!A:B,2,FALSE)) -> EVL727/О/40*40/ANT/ANT.U003 | D108: 1610*2332*1098 | F108: 83669
A109: EVL728/О/40*40/ | B109: =CONCATENATE(A109,VLOOKUP($J$4,'Цвет мет. опор'!A:B,2,0),"/",VLOOKUP($K$4,'Цвет лючка'!A:B,2,0),".",VLOOKUP($L$4,'Цвет столешницы'!A:B,2,FALSE)) -> EVL728/О/40*40/ANT/ANT.U003 | D109: 1810*2332*1098 | F109: 86020
A110: EVL729/О/40*40/ | B110: =CONCATENATE(A110,VLOOKUP($J$4,'Цвет мет. опор'!A:B,2,0),"/",VLOOKUP($K$4,'Цвет лючка'!A:B,2,0),".",VLOOKUP($L$4,'Цвет столешницы'!A:B,2,FALSE)) -> EVL729/О/40*40/ANT/ANT.U003 | D110: 2010*2332*1098 | F110: 87300
A111: EVL730/О/40*40/ | B111: =CONCATENATE(A111,VLOOKUP($J$4,'Цвет мет. опор'!A:B,2,0),"/",VLOOKUP($K$4,'Цвет лючка'!A:B,2,0),".",VLOOKUP($L$4,'Цвет столешницы'!A:B,2,FALSE)) -> EVL730/О/40*40/ANT/ANT.U003 | D111: 2210*2332*1098 | F111: 88838
